Workbook

Sheet Cover
C2: Version 2.04 | E2: 2019-10-25
C5: 12 month CashFlow Forecasting
C8: Integrated profit and loss account, cash flow, funds flow and balance sheet
C10: Handles accruals, prepayments, trading stock and work in progress
C12: Simple sales or 5 product sales types
C14: Comprehensive payroll workings - NI, Tax, AE Pension, Employment Allowance etc or just enter totals
C16: Variables for flexing payment terms for expense accounts
C18: Cash collection variables
C20: Start by reading the "help" notes (supplied as a separate Word Document) then set your variables - click the button below
C22: What if….? Scenarios
C24: Graphs and charts
C35: © BBS Computing Ltd and 2020 Innovation Training Limited 2019
C38: Green tabs | E38: Data input
C39: Red tabs | E39: Information tabs
C40: Yellow tabs | E40: Output reports
T41: 0

Sheet Variables
B4: Variables and options
B5: 2019-09-01 | D5: Start date | F5: Client Name
B7: =IF(sales_input_type=1,"Product Type","Other") -> Product Type | D7: Sales input
B9: =IF($O$35=1,"Yes","No") -> Yes | D9: Vat Registered - Yes/No | N9: Product Type
F10: Multiple for VAT Exclusive | N10: Other | O10: 1
B11: =IF(O35=1,20%,0%) -> 0.2 | D11: Std VAT | F11: =M11 -> 0.8333333333 | K11: 1 | L11: =1+stdvat -> 1.2 | M11: =K11/L11 -> 0.8333333333
B13: 0.6 | D13: % of sales paid by credit card
B15: 0.025 | D15: Credit card charge rate %
N16: Yes
B17: 0.0425 | D17: Bank overdraft interest rate | N17: No
D19: Bank overdraft Limit
D21: Cash Collection Profile - the boxed items should add up to 100%
B22: 0.4 | D22: In month of sale - month 1 | F22: Total is | G22: =SUM(B22:B29) -> 1
B23: 0.25 | D23: In month after sale - month 2
B24: 0.15 | D24: In month after sale - month 3
B25: 0.1 | D25: In month after sale - month 4
B26: 0.05 | D26: In month after sale - month 5
D27: In month after sale - month 6
B29: 0.05 | D29: Bad debts %
B31: 6 | D31: First month of bad debt write off
B33: 30 | D33: Average days in month
K34: Complete months | L34: Part
B35: 30 | D35: Average days credit taken when paying suppliers | K35: =IF(Average_days_in_month,INT(days_credit_suppliers/Average_days_in_month)) -> 1 | L35: =IF(Average_days_in_month,MOD(days_credit_suppliers,Average_days_in_month)/Average_days_in_month,) -> 0 | O35: 1
K36: Complete months | L36: Part
B37: 30 | D37: Average days credit taken by customers | K37: =IF(Average_days_in_month,INT(days_credit_customers/Average_days_in_month)) -> 1 | L37: =IF(Average_days_in_month,MOD(days_credit_customers,Average_days_in_month)/Average_days_in_month,) -> 0
B39: 1 | D39: Month Number for standalone monthly Balance Sheet
B41: 3 | D41: VAT ending period - 1 - 3 are permitted. If 1, payment in month 2, if 2, payment for months 1 and 2 in month 3 etc.
B43: 0.19 | D43: Tax rate (on profits)
D45: What If? % change Enter e.g. 5 for 5% increase or -5 for 5% decrease (use only after completing the "standard" version)
D47: Select price if the what if % is a price increase - no effect on cost of sales | AA47: 1
D48: Select volume if the what if % is a volume increase - both sales and cost of sales increase
D51: Payroll
B52: 12500 | D52: Personal Allowance
B54: 100000 | D54: Personal allowance taper
B56: 8632 | D56: Ers NI lower limit
B58: 50000 | D58: Ers NI upper limit
B60: 0.138 | D60: Ers NI rate
B62: 0.09 | D62: Ees NI rate to upper limit
B64: 0.02 | D64: Ees NI rate above upper limit
B66: 6136 | D66: Auto enrolment pension lower limit
B68: 50000 | D68: Auto enrolment pension upper limit
B70: 0.05 | D70: Auto enrolment ees rate
B72: 0.03 | D72: Auto enrolment ees rate
B74: 0 | D74: Tax band 1
B76: 50000 | D76: Tax band 2
B78: 150000 | D78: Tax band 3
O79: 1 | P79: Emp_allce
B80: =IF(O79=1,"Yes","No") -> Yes | D80: Claim Employment Allowance
B82: 3000 | D82: Employment allowance rate | O82: 1 | P82: Detailed
P83: Summary
B84: =IF(O82=1,"Detailed","Summary") -> Detailed | D84: Claim on Detailed Wages Tab or Summary wages tab? (See Help notes)

Sheet ReviewSummary
H4: Days credit | J4: This is memo only to show the days credit
D5: =expense1!$C$4 -> Expense 1 | F5: =expense1!$C$6 -> Advertising | H5: =expense1!$E$7 -> 30 | J5: These feed from the individual pages
D6: =expense2!$C$4 -> Expense 2 | F6: =expense2!$C$6 -> Utilities (gas, electric, water) | H6: =expense2!$E$7 -> 30 | J6: There are no data entry fields on this page
D7: =expense3!$C$4 -> Expense 3 | F7: =expense3!$C$6 -> Rent | H7: =expense3!$E$7 -> 30
D8: =expense4!$C$4 -> Expense 4 | F8: =expense4!$C$6 -> Rates and water | H8: =expense4!$E$7 -> 30
D9: =expense5!$C$4 -> Expense 5 | F9: =expense5!$C$6 -> Telephone and internet | H9: =expense5!$E$7 -> 30
D10: =expense6!$C$4 -> Expense 6 | F10: =expense6!$C$6 -> Advertising and marketing | H10: =expense6!$E$7 -> 30
D11: =expense7!$C$4 -> Expense 7 | F11: =expense7!$C$6 -> Motor running costs | H11: =expense7!$E$7 -> 30
D12: =expense8!$C$4 -> Expense 8 | F12: =expense8!$C$6 -> Insurance | H12: =expense8!$E$7 -> 30
D13: =expense9!$C$4 -> Expense 9 | F13: =expense9!$C$6 -> Printing, stationery and postage | H13: =expense9!$E$7 -> 30
D14: =expense10!$C$4 -> Expense 10 | F14: =expense10!$C$6 -> Leasing | H14: =expense10!$E$7 -> 30
D15: =expense11!$C$4 -> Expense 11 | F15: =expense11!$C$6 -> Legal and professional fees | H15: =expense11!$E$7 -> 30
D16: =expense12!$C$4 -> Expense 12 | F16: =expense12!$C$6 -> Repairs and renewals | H16: =expense12!$E$7 -> 30
D17: =expense13!$C$4 -> Expense 13 | F17: =expense13!$C$6 -> IT Costs | H17: =expense13!$E$7 -> 30
D18: =expense14!$C$4 -> Expense 14 | F18: =expense14!$C$6 -> Sundry expenses | H18: =expense14!$E$7 -> 30
D19: =expense15!$C$4 -> Expense 15 | F19: =expense15!$C$6 -> Bank charges | H19: =expense15!$E$7 -> 30
D20: =expense16!$C$4 -> Expense 16 | F20: =expense16!$C$6 -> Bank loan interest | H20: =expense16!$E$7 -> 30
D21: =expense17!$C$4 -> Expense 17 | F21: =expense17!$C$6 -> spare17 | H21: =expense17!$E$7 -> 30
D22: =expense18!$C$4 -> Expense 18 | F22: =expense18!$C$6 -> spare18 | H22: =expense18!$E$7 -> 30
D23: =expense19!$C$4 -> Expense 19 | F23: =expense19!$C$6 -> spare19 | H23: =expense19!$E$7 -> 30
D24: =expense20!$C$4 -> Expense 20 | F24: =expense20!$C$6 -> spare20 | H24: =expense20!$E$7 -> 30
D25: =expense21!$C$4 -> Expense 21 | F25: =expense21!$C$6 -> spare21 | H25: =expense21!$E$7 -> 30
D26: =expense22!$C$4 -> Expense 22 | F26: =expense22!$C$6 -> spare22 | H26: =expense22!$E$7 -> 30
D27: =expense23!$C$4 -> Expense 23 | F27: =expense23!$C$6 -> spare23 | H27: =expense23!$E$7 -> 30
D28: =expense24!$C$4 -> Expense 24 | F28: =expense24!$C$6 -> spare24 | H28: =expense24!$E$7 -> 30
D29: =expense25!$C$4 -> Expense 25 | F29: =expense25!$C$6 -> spare25 | H29: =expense25!$E$7 -> 30
D36: Opening balance - to calculate opening capital balance
D38: Fixed assets cost | G38: =Capex1!D90 -> 0
D39: Depreciation | G39: =Capex1!D95 -> 0
D40: Work in progress | G40: =Salesinputcomplex!D26 -> 0
D41: Stocks | G41: =cosalescomplex!E15+cosalescomplex!E16 -> 0
D42: Debtors | G42: =opbaldebtors -> 0
D43: Prepayments | G43: =Prepayments!C5 -> 0
D44: VAT Debtor | G44: =IF(VATAccount!$C$20<0,-VATAccount!$C$20,0) -> 0
D45: Cash at Bank | G45: =IF(Opening_Cash_Balance>0,Opening_Cash_Balance,0) -> 0
D46: Creditors and Accruals | G46: =-creditors!R6 -> 0
D47: VAT Creditor | G47: =IF(VATAccount!$C$20>0,-VATAccount!$C$20,0) -> 0
D48: PAYE | G48: =-Wages!C18-'Wages-Simple'!C18 -> 0
D49: Pension | G49: =-Wages!C16-'Wages-Simple'!C15 -> 0
D50: HP/Loans | G50: =-'HP1'!C43 -> 0
D51: Tax | G51: =-optaxprovn -> 0
D52: Bank overdraft | G52: =IF(Opening_Cash_Balance<0,Opening_Cash_Balance,0) -> 0
G53: =SUM(G38:G52) -> 0
D54: Opening Balance | F54: Calculated | G54: =G53 -> 0 | H54: This feesds through to other balance sheet reports

Sheet CashFlow
K1: The only figure to be entered on this tab is the opening bank position.
B4: =cliname -> 0 | C4: Cash Flow Forecast
B6: Start Date | C6: 2018-03-31
C8: =start_date -> 2019-09-01 | D8: =EDATE(C8,1) -> 2019-10-01 | E8: =EDATE(D8,1) -> 2019-11-01 | F8: =EDATE(E8,1) -> 2019-12-01 | G8: 2020-01-01 | H8: 2020-02-01 | I8: 2020-03-01 | J8: 2020-04-01 | K8: 2020-05-01 | L8: 2020-06-01 | M8: 2020-07-01 | N8: 2020-08-01 | O8: Total
B10: Receipts | C10: =SUM(C11:C18) -> 0 | D10: 0 | E10: 0 | F10: 0 | G10: 0 | H10: 0 | I10: 0 | J10: 0 | K10: 0 | L10: 0 | M10: 0 | N10: 0 | O10: 0
A11: Sales1 | B11: Sales | C11: =-Salesinputcomplex!E192 -> 0 | D11: =-Salesinputcomplex!F192 -> 0 | E11: =-Salesinputcomplex!G192 -> 0 | F11: =-Salesinputcomplex!H192 -> 0 | G11: =-Salesinputcomplex!I192 -> 0 | H11: =-Salesinputcomplex!J192 -> 0 | I11: =-Salesinputcomplex!K192 -> 0 | J11: =-Salesinputcomplex!L192 -> 0 | K11: =-Salesinputcomplex!M192 -> 0 | L11: =-Salesinputcomplex!N192 -> 0 | M11: =-Salesinputcomplex!O192 -> 0 | N11: =-Salesinputcomplex!P192 -> 0 | O11: =SUM(C11:N11) -> 0 | V11: =O11 -> 0
A12: Misc1 | B12: Interest received | C12: ='Misc 1'!C17 -> 0 | D12: ='Misc 1'!D17 -> 0 | E12: ='Misc 1'!E17 -> 0 | F12: ='Misc 1'!F17 -> 0 | G12: ='Misc 1'!G17 -> 0 | H12: ='Misc 1'!H17 -> 0 | I12: ='Misc 1'!I17 -> 0 | J12: ='Misc 1'!J17 -> 0 | K12: ='Misc 1'!K17 -> 0 | L12: ='Misc 1'!L17 -> 0 | M12: ='Misc 1'!M17 -> 0 | N12: ='Misc 1'!N17 -> 0 | O12: 0 | V12: =O12 -> 0
A13: Misc1 | B13: Miscellaneous Income | C13: ='Misc 1'!C29 -> 0 | D13: ='Misc 1'!D29 -> 0 | E13: ='Misc 1'!E29 -> 0 | F13: ='Misc 1'!F29 -> 0 | G13: ='Misc 1'!G29 -> 0 | H13: ='Misc 1'!H29 -> 0 | I13: ='Misc 1'!I29 -> 0 | J13: ='Misc 1'!J29 -> 0 | K13: ='Misc 1'!K29 -> 0 | L13: ='Misc 1'!L29 -> 0 | M13: ='Misc 1'!M29 -> 0 | N13: ='Misc 1'!N29 -> 0 | O13: 0 | V13: 0
A14: HP1 | B14: Loans received | C14: ='HP1'!C44 -> 0 | D14: ='HP1'!D44 -> 0 | E14: ='HP1'!E44 -> 0 | F14: ='HP1'!F44 -> 0 | G14: ='HP1'!G44 -> 0 | H14: ='HP1'!H44 -> 0 | I14: ='HP1'!I44 -> 0 | J14: ='HP1'!J44 -> 0 | K14: ='HP1'!K44 -> 0 | L14: ='HP1'!L44 -> 0 | M14: ='HP1'!M44 -> 0 | N14: ='HP1'!N44 -> 0 | O14: 0 | V14: 0
A15: Capex1 | B15: Disposal of assets | C15: =Capex1!D100 -> 0 | D15: =Capex1!E100 -> 0 | E15: =Capex1!F100 -> 0 | F15: =Capex1!G100 -> 0 | G15: =Capex1!H100 -> 0 | H15: =Capex1!I100 -> 0 | I15: =Capex1!J100 -> 0 | J15: =Capex1!K100 -> 0 | K15: =Capex1!L100 -> 0 | L15: =Capex1!M100 -> 0 | M15: =Capex1!N100 -> 0 | N15: =Capex1!O100 -> 0 | O15: 0 | V15: 0
A16: Cap1 | B16: Capital Introduced/Directors loan | C16: ='Cap1'!C$17 -> 0 | D16: ='Cap1'!D$17 -> 0 | E16: ='Cap1'!E$17 -> 0 | F16: ='Cap1'!F$17 -> 0 | G16: ='Cap1'!G$17 -> 0 | H16: ='Cap1'!H$17 -> 0 | I16: ='Cap1'!I$17 -> 0 | J16: ='Cap1'!J$17 -> 0 | K16: ='Cap1'!K$17 -> 0 | L16: ='Cap1'!L$17 -> 0 | M16: ='Cap1'!M$17 -> 0 | N16: ='Cap1'!N$17 -> 0 | O16: 0 | V16: 0
O17: 0 | V17: 0
A18: VAT | B18: VAT Refund | C18: =IF(VATAccount!D26<0,0,VATAccount!D26) -> 0 | D18: =IF(VATAccount!E26<0,0,VATAccount!E26) -> 0 | E18: =IF(VATAccount!F26<0,0,VATAccount!F26) -> 0 | F18: =IF(VATAccount!G26<0,0,VATAccount!G26) -> 0 | G18: =IF(VATAccount!H26<0,0,VATAccount!H26) -> 0 | H18: =IF(VATAccount!I26<0,0,VATAccount!I26) -> 0 | I18: =IF(VATAccount!J26<0,0,VATAccount!J26) -> 0 | J18: =IF(VATAccount!K26<0,0,VATAccount!K26) -> 0 | K18: =IF(VATAccount!L26<0,0,VATAccount!L26) -> 0 | L18: =IF(VATAccount!M26<0,0,VATAccount!M26) -> 0 | M18: =IF(VATAccount!N26<0,0,VATAccount!N26) -> 0 | N18: =IF(VATAccount!O26<0,0,VATAccount!O26) -> 0 | O18: 0 | V18: 0
V19: 0
B20: Payments | C20: =SUM(C22:C57) ->  | O20: =SUM(C20:N20) -> 
V21: 0
A22: Cos1 | B22: Purchases of goods for resale | C22: =cosalescomplex!E29+cosalescomplex!E30 -> 0 | D22: =cosalescomplex!F29+cosalescomplex!F30 -> 0 | E22: =cosalescomplex!G29+cosalescomplex!G30 -> 0 | F22: =cosalescomplex!H29+cosalescomplex!H30 -> 0 | G22: =cosalescomplex!I29+cosalescomplex!I30 -> 0 | H22: =cosalescomplex!J29+cosalescomplex!J30 -> 0 | I22: =cosalescomplex!K29+cosalescomplex!K30 -> 0 | J22: =cosalescomplex!L29+cosalescomplex!L30 -> 0 | K22: =cosalescomplex!M29+cosalescomplex!M30 -> 0 | L22: =cosalescomplex!N29+cosalescomplex!N30 -> 0 | M22: =cosalescomplex!O29+cosalescomplex!O30 -> 0 | N22: =cosalescomplex!P29+cosalescomplex!P30 -> 0 | O22: 0 | V22: 0
A23: Exp1 | B23: Advertising | C23: =expense1!C17 -> 0 | D23: =expense1!D17 -> 0 | E23: =expense1!E17 -> 0 | F23: =expense1!F17 -> 0 | G23: =expense1!G17 -> 0 | H23: =expense1!H17 -> 0 | I23: =expense1!I17 -> 0 | J23: =expense1!J17 -> 0 | K23: =expense1!K17 -> 0 | L23: =expense1!L17 -> 0 | M23: =expense1!M17 -> 0 | N23: =expense1!N17 -> 0 | O23: 0 | V23: 0
A24: Exp2 | B24: Utilities (gas, electric, water) | C24: =expense2!C17 -> 0 | D24: =expense2!D17 -> 0 | E24: =expense2!E17 -> 0 | F24: =expense2!F17 -> 0 | G24: =expense2!G17 -> 0 | H24: =expense2!H17 -> 0 | I24: =expense2!I17 -> 0 | J24: =expense2!J17 -> 0 | K24: =expense2!K17 -> 0 | L24: =expense2!L17 -> 0 | M24: =expense2!M17 -> 0 | N24: =expense2!N17 -> 0 | O24: 0 | V24: 0
A25: Exp3 | B25: Rent | C25: =expense3!C17 -> 0 | D25: =expense3!D17 -> 0 | E25: =expense3!E17 -> 0 | F25: =expense3!F17 -> 0 | G25: =expense3!G17 -> 0 | H25: =expense3!H17 -> 0 | I25: =expense3!I17 -> 0 | J25: =expense3!J17 -> 0 | K25: =expense3!K17 -> 0 | L25: =expense3!L17 -> 0 | M25: =expense3!M17 -> 0 | N25: =expense3!N17 -> 0 | O25: 0 | V25: 0
A26: Exp4 | B26: Rates and water | C26: =expense4!C17 -> 0 | D26: =expense4!D17 -> 0 | E26: =expense4!E17 -> 0 | F26: =expense4!F17 -> 0 | G26: =expense4!G17 -> 0 | H26: =expense4!H17 -> 0 | I26: =expense4!I17 -> 0 | J26: =expense4!J17 -> 0 | K26: =expense4!K17 -> 0 | L26: =expense4!L17 -> 0 | M26: =expense4!M17 -> 0 | N26: =expense4!N17 -> 0 | O26: 0 | V26: 0
A27: Exp5 | B27: Telephone and internet | C27: =expense5!C17 -> 0 | D27: =expense5!D17 -> 0 | E27: =expense5!E17 -> 0 | F27: =expense5!F17 -> 0 | G27: =expense5!G17 -> 0 | H27: =expense5!H17 -> 0 | I27: =expense5!I17 -> 0 | J27: =expense5!J17 -> 0 | K27: =expense5!K17 -> 0 | L27: =expense5!L17 -> 0 | M27: =expense5!M17 -> 0 | N27: =expense5!N17 -> 0 | O27: 0 | V27: 0
A28: Exp6 | B28: Advertising and marketing | C28: =expense6!C17 -> 0 | D28: =expense6!D17 -> 0 | E28: =expense6!E17 -> 0 | F28: =expense6!F17 -> 0 | G28: =expense6!G17 -> 0 | H28: =expense6!H17 -> 0 | I28: =expense6!I17 -> 0 | J28: =expense6!J17 -> 0 | K28: =expense6!K17 -> 0 | L28: =expense6!L17 -> 0 | M28: =expense6!M17 -> 0 | N28: =expense6!N17 -> 0 | O28: 0 | V28: 0
A29: Exp7 | B29: Motor running costs | C29: =expense7!C17 -> 0 | D29: =expense7!D17 -> 0 | E29: =expense7!E17 -> 0 | F29: =expense7!F17 -> 0 | G29: =expense7!G17 -> 0 | H29: =expense7!H17 -> 0 | I29: =expense7!I17 -> 0 | J29: =expense7!J17 -> 0 | K29: =expense7!K17 -> 0 | L29: =expense7!L17 -> 0 | M29: =expense7!M17 -> 0 | N29: =expense7!N17 -> 0 | O29: 0 | V29: 0
A30: Exp8 | B30: Insurance | C30: =expense8!C17 -> 0 | D30: =expense8!D17 -> 0 | E30: =expense8!E17 -> 0 | F30: =expense8!F17 -> 0 | G30: =expense8!G17 -> 0 | H30: =expense8!H17 -> 0 | I30: =expense8!I17 -> 0 | J30: =expense8!J17 -> 0 | K30: =expense8!K17 -> 0 | L30: =expense8!L17 -> 0 | M30: =expense8!M17 -> 0 | N30: =expense8!N17 -> 0 | O30: 0 | V30: 0
A31: Exp9 | B31: Printing, stationery and postage | C31: =expense9!C17 -> 0 | D31: =expense9!D17 -> 0 | E31: =expense9!E17 -> 0 | F31: =expense9!F17 -> 0 | G31: =expense9!G17 -> 0 | H31: =expense9!H17 -> 0 | I31: =expense9!I17 -> 0 | J31: =expense9!J17 -> 0 | K31: =expense9!K17 -> 0 | L31: =expense9!L17 -> 0 | M31: =expense9!M17 -> 0 | N31: =expense9!N17 -> 0 | O31: 0 | V31: 0
A32: Exp10 | B32: Leasing | C32: =expense10!C17 -> 0 | D32: =expense10!D17 -> 0 | E32: =expense10!E17 -> 0 | F32: =expense10!F17 -> 0 | G32: =expense10!G17 -> 0 | H32: =expense10!H17 -> 0 | I32: =expense10!I17 -> 0 | J32: =expense10!J17 -> 0 | K32: =expense10!K17 -> 0 | L32: =expense10!L17 -> 0 | M32: =expense10!M17 -> 0 | N32: =expense10!N17 -> 0 | O32: 0 | V32: 0
A33: Exp11 | B33: Legal and professional fees | C33: =expense11!C17 -> 0 | D33: =expense11!D17 -> 0 | E33: =expense11!E17 -> 0 | F33: =expense11!F17 -> 0 | G33: =expense11!G17 -> 0 | H33: =expense11!H17 -> 0 | I33: =expense11!I17 -> 0 | J33: =expense11!J17 -> 0 | K33: =expense11!K17 -> 0 | L33: =expense11!L17 -> 0 | M33: =expense11!M17 -> 0 | N33: =expense11!N17 -> 0 | O33: 0 | V33: 0
A34: Exp12 | B34: Repairs and renewals | C34: =expense12!C17 -> 0 | D34: =expense12!D17 -> 0 | E34: =expense12!E17 -> 0 | F34: =expense12!F17 -> 0 | G34: =expense12!G17 -> 0 | H34: =expense12!H17 -> 0 | I34: =expense12!I17 -> 0 | J34: =expense12!J17 -> 0 | K34: =expense12!K17 -> 0 | L34: =expense12!L17 -> 0 | M34: =expense12!M17 -> 0 | N34: =expense12!N17 -> 0 | O34: 0 | V34: 0
A35: Exp13 | B35: IT Costs | C35: =expense13!C17 -> 0 | D35: =expense13!D17 -> 0 | E35: =expense13!E17 -> 0 | F35: =expense13!F17 -> 0 | G35: =expense13!G17 -> 0 | H35: =expense13!H17 -> 0 | I35: =expense13!I17 -> 0 | J35: =expense13!J17 -> 0 | K35: =expense13!K17 -> 0 | L35: =expense13!L17 -> 0 | M35: =expense13!M17 -> 0 | N35: =expense13!N17 -> 0 | O35: 0 | V35: 0
A36: Exp14 | B36: Sundry expenses | C36: =expense14!C17 -> 0 | D36: =expense14!D17 -> 0 | E36: =expense14!E17 -> 0 | F36: =expense14!F17 -> 0 | G36: =expense14!G17 -> 0 | H36: =expense14!H17 -> 0 | I36: =expense14!I17 -> 0 | J36: =expense14!J17 -> 0 | K36: =expense14!K17 -> 0 | L36: =expense14!L17 -> 0 | M36: =expense14!M17 -> 0 | N36: =expense14!N17 -> 0 | O36: 0 | V36: 0
A37: Exp15 | B37: Bank charges | C37: =expense15!C17 -> 0 | D37: =expense15!D17 -> 0 | E37: =expense15!E17 -> 0 | F37: =expense15!F17 -> 0 | G37: =expense15!G17 -> 0 | H37: =expense15!H17 -> 0 | I37: =expense15!I17 -> 0 | J37: =expense15!J17 -> 0 | K37: =expense15!K17 -> 0 | L37: =expense15!L17 -> 0 | M37: =expense15!M17 -> 0 | N37: =expense15!N17 -> 0 | O37: 0 | V37: 0
A38: Exp16 | B38: Bank loan interest | C38: =expense16!C17 -> 0 | D38: =expense16!D17 -> 0 | E38: =expense16!E17 -> 0 | F38: =expense16!F17 -> 0 | G38: =expense16!G17 -> 0 | H38: =expense16!H17 -> 0 | I38: =expense16!I17 -> 0 | J38: =expense16!J17 -> 0 | K38: =expense16!K17 -> 0 | L38: =expense16!L17 -> 0 | M38: =expense16!M17 -> 0 | N38: =expense16!N17 -> 0 | O38: 0 | V38: 0
A39: Exp17 | B39: spare17 | C39: =expense17!C17 -> 0 | D39: =expense17!D17 -> 0 | E39: =expense17!E17 -> 0 | F39: =expense17!F17 -> 0 | G39: =expense17!G17 -> 0 | H39: =expense17!H17 -> 0 | I39: =expense17!I17 -> 0 | J39: =expense17!J17 -> 0 | K39: =expense17!K17 -> 0 | L39: =expense17!L17 -> 0 | M39: =expense17!M17 -> 0 | N39: =expense17!N17 -> 0 | O39: 0 | V39: 0
A40: Exp18 | B40: spare18 | C40: =expense18!C17 -> 0 | D40: =expense18!D17 -> 0 | E40: =expense18!E17 -> 0 | F40: =expense18!F17 -> 0 | G40: =expense18!G17 -> 0 | H40: =expense18!H17 -> 0 | I40: =expense18!I17 -> 0 | J40: =expense18!J17 -> 0 | K40: =expense18!K17 -> 0 | L40: =expense18!L17 -> 0 | M40: =expense18!M17 -> 0 | N40: =expense18!N17 -> 0 | O40: 0 | V40: 0
A41: Exp19 | B41: spare19 | C41: =expense19!C17 -> 0 | D41: =expense19!D17 -> 0 | E41: =expense19!E17 -> 0 | F41: =expense19!F17 -> 0 | G41: =expense19!G17 -> 0 | H41: =expense19!H17 -> 0 | I41: =expense19!I17 -> 0 | J41: =expense19!J17 -> 0 | K41: =expense19!K17 -> 0 | L41: =expense19!L17 -> 0 | M41: =expense19!M17 -> 0 | N41: =expense19!N17 -> 0 | O41: 0 | V41: 0
A42: Exp20 | B42: spare20 | C42: =expense20!C17 -> 0 | D42: =expense20!D17 -> 0 | E42: =expense20!E17 -> 0 | F42: =expense20!F17 -> 0 | G42: =expense20!G17 -> 0 | H42: =expense20!H17 -> 0 | I42: =expense20!I17 -> 0 | J42: =expense20!J17 -> 0 | K42: =expense20!K17 -> 0 | L42: =expense20!L17 -> 0 | M42: =expense20!M17 -> 0 | N42: =expense20!N17 -> 0 | O42: 0 | V42: 0
A43: Exp21 | B43: spare21 | C43: =expense21!C17 -> 0 | D43: =expense21!D17 -> 0 | E43: =expense21!E17 -> 0 | F43: =expense21!F17 -> 0 | G43: =expense21!G17 -> 0 | H43: =expense21!H17 -> 0 | I43: =expense21!I17 -> 0 | J43: =expense21!J17 -> 0 | K43: =expense21!K17 -> 0 | L43: =expense21!L17 -> 0 | M43: =expense21!M17 -> 0 | N43: =expense21!N17 -> 0 | O43: 0 | V43: 0
A44: Exp22 | B44: spare22 | C44: =expense22!C17 -> 0 | D44: =expense22!D17 -> 0 | E44: =expense22!E17 -> 0 | F44: =expense22!F17 -> 0 | G44: =expense22!G17 -> 0 | H44: =expense22!H17 -> 0 | I44: =expense22!I17 -> 0 | J44: =expense22!J17 -> 0 | K44: =expense22!K17 -> 0 | L44: =expense22!L17 -> 0 | M44: =expense22!M17 -> 0 | N44: =expense22!N17 -> 0 | O44: 0 | V44: 0
A45: Exp23 | B45: spare23 | C45: =expense23!C17 -> 0 | D45: =expense23!D17 -> 0 | E45: =expense23!E17 -> 0 | F45: =expense23!F17 -> 0 | G45: =expense23!G17 -> 0 | H45: =expense23!H17 -> 0 | I45: =expense23!I17 -> 0 | J45: =expense23!J17 -> 0 | K45: =expense23!K17 -> 0 | L45: =expense23!L17 -> 0 | M45: =expense23!M17 -> 0 | N45: =expense23!N17 -> 0 | O45: 0 | V45: 0
A46: Wag1 | B46: Net Wages | C46: =Wages!D20+'Wages-Simple'!D22 -> 0 | D46: =Wages!E20+'Wages-Simple'!E22 -> 0 | E46: =Wages!F20+'Wages-Simple'!F22 -> 0 | F46: =Wages!G20+'Wages-Simple'!G22 -> 0 | G46: =Wages!H20+'Wages-Simple'!H22 -> 0 | H46: =Wages!I20+'Wages-Simple'!I22 -> 0 | I46: =Wages!J20+'Wages-Simple'!J22 -> 0 | J46: =Wages!K20+'Wages-Simple'!K22 -> 0 | K46: =Wages!L20+'Wages-Simple'!L22 -> 0 | L46: =Wages!M20+'Wages-Simple'!M22 -> 0 | M46: =Wages!N20+'Wages-Simple'!N22 -> 0 | N46: =Wages!O20+'Wages-Simple'!O22 -> 0 | O46: 0 | V46: 0
A47: Wag1 | B47: PAYE | C47: =Wages!C18+'Wages-Simple'!D26+Journal!C24 -> 0 | D47: =Wages!D18+'Wages-Simple'!E26+Journal!D24 -> 0 | E47: =Wages!E18+'Wages-Simple'!F26+Journal!E24 -> 0 | F47: =Wages!F18+'Wages-Simple'!G26+Journal!F24 -> 0 | G47: =Wages!G18+'Wages-Simple'!H26+Journal!G24 -> 0 | H47: =Wages!H18+'Wages-Simple'!I26+Journal!H24 -> 0 | I47: =Wages!I18+'Wages-Simple'!J26+Journal!I24 -> 0 | J47: =Wages!J18+'Wages-Simple'!K26+Journal!J24 -> 0 | K47: =Wages!K18+'Wages-Simple'!L26+Journal!K24 -> 0 | L47: =Wages!L18+'Wages-Simple'!M26+Journal!L24 -> 0 | M47: =Wages!M18+'Wages-Simple'!N26+Journal!M24 -> 0 | N47: =Wages!N18+'Wages-Simple'!O26+Journal!N24 -> 0 | O47: 0 | V47: 0
A48: Wag1 | B48: Pension contributions | C48: =Wages!C16+'Wages-Simple'!D24 -> 0 | D48: =Wages!D16+'Wages-Simple'!E24 -> 0 | E48: =Wages!E16+'Wages-Simple'!F24 -> 0 | F48: =Wages!F16+'Wages-Simple'!G24 -> 0 | G48: =Wages!G16+'Wages-Simple'!H24 -> 0 | H48: =Wages!H16+'Wages-Simple'!I24 -> 0 | I48: =Wages!I16+'Wages-Simple'!J24 -> 0 | J48: =Wages!J16+'Wages-Simple'!K24 -> 0 | K48: =Wages!K16+'Wages-Simple'!L24 -> 0 | L48: =Wages!L16+'Wages-Simple'!M24 -> 0 | M48: =Wages!M16+'Wages-Simple'!N24 -> 0 | N48: =Wages!N16+'Wages-Simple'!O24 -> 0 | O48: 0 | V48: 0
A49: Exp24 | B49: spare24 | C49: =expense24!C17 -> 0 | D49: =expense24!D17 -> 0 | E49: =expense24!E17 -> 0 | F49: =expense24!F17 -> 0 | G49: =expense24!G17 -> 0 | H49: =expense24!H17 -> 0 | I49: =expense24!I17 -> 0 | J49: =expense24!J17 -> 0 | K49: =expense24!K17 -> 0 | L49: =expense24!L17 -> 0 | M49: =expense24!M17 -> 0 | N49: =expense24!N17 -> 0 | O49: 0 | V49: 0
A50: Exp25 | B50: spare25 | C50: =expense25!C17 -> 0 | D50: =expense25!D17 -> 0 | E50: =expense25!E17 -> 0 | F50: =expense25!F17 -> 0 | G50: =expense25!G17 -> 0 | H50: =expense25!H17 -> 0 | I50: =expense25!I17 -> 0 | J50: =expense25!J17 -> 0 | K50: =expense25!K17 -> 0 | L50: =expense25!L17 -> 0 | M50: =expense25!M17 -> 0 | N50: =expense25!N17 -> 0 | O50: 0 | V50: 0
A51: CrBkCh | B51: Bank overdraft interest | C51: ='CrCard+bankChs'!C24 -> 0 | D51: ='CrCard+bankChs'!D24 ->  | E51: ='CrCard+bankChs'!E24 ->  | F51: ='CrCard+bankChs'!F24 ->  | G51: ='CrCard+bankChs'!G24 ->  | H51: ='CrCard+bankChs'!H24 ->  | I51: ='CrCard+bankChs'!I24 ->  | J51: ='CrCard+bankChs'!J24 ->  | K51: ='CrCard+bankChs'!K24 ->  | L51: ='CrCard+bankChs'!L24 ->  | M51: ='CrCard+bankChs'!M24 ->  | N51: ='CrCard+bankChs'!N24 -> 
A52: CrBkCh | B52: Credit card charges | C52: ='CrCard+bankChs'!C17 -> 0 | D52: ='CrCard+bankChs'!D17 -> 0 | E52: ='CrCard+bankChs'!E17 -> 0 | F52: ='CrCard+bankChs'!F17 -> 0 | G52: ='CrCard+bankChs'!G17 -> 0 | H52: ='CrCard+bankChs'!H17 -> 0 | I52: ='CrCard+bankChs'!I17 -> 0 | J52: ='CrCard+bankChs'!J17 -> 0 | K52: ='CrCard+bankChs'!K17 -> 0 | L52: ='CrCard+bankChs'!L17 -> 0 | M52: ='CrCard+bankChs'!M17 -> 0 | N52: ='CrCard+bankChs'!N17 -> 0 | O52: 0
A53: Tax1 | B53: Corporation/Income Tax | D53: ='Tax1'!C41 -> 0 | E53: ='Tax1'!D41 -> 0 | F53: ='Tax1'!E41 -> 0 | G53: ='Tax1'!F41 -> 0 | H53: ='Tax1'!G41 -> 0 | I53: ='Tax1'!H41 -> 0 | J53: ='Tax1'!I41 -> 0 | K53: ='Tax1'!J41 -> 0 | L53: ='Tax1'!K41 -> 0 | M53: ='Tax1'!L41 -> 0 | N53: ='Tax1'!M41 -> 0 | O53: 0 | V53: 0
A54: Capex1 | B54: Capital expenditure | C54: =Capex1!D88 -> 0 | D54: =Capex1!E88 -> 0 | E54: =Capex1!F88 -> 0 | F54: =Capex1!G88 -> 0 | G54: =Capex1!H88 -> 0 | H54: =Capex1!I88 -> 0 | I54: =Capex1!J88 -> 0 | J54: =Capex1!K88 -> 0 | K54: =Capex1!L88 -> 0 | L54: =Capex1!M88 -> 0 | M54: =Capex1!N88 -> 0 | N54: =Capex1!O88 -> 0 | O54: 0 | V54: 0
A55: Draw1 | B55: Drawings/Directors loan Rep'ts | C55: =Draw1!C$19 -> 0 | D55: =Draw1!D$19 -> 0 | E55: =Draw1!E$19 -> 0 | F55: =Draw1!F$19 -> 0 | G55: =Draw1!G$19 -> 0 | H55: =Draw1!H$19 -> 0 | I55: =Draw1!I$19 -> 0 | J55: =Draw1!J$19 -> 0 | K55: =Draw1!K$19 -> 0 | L55: =Draw1!L$19 -> 0 | M55: =Draw1!M$19 -> 0 | N55: =Draw1!N$19 -> 0 | O55: 0 | V55: 0
A56: HP1 | B56: Loan / HP repayments | C56: ='HP1'!C45 -> 0 | D56: ='HP1'!D45 -> 0 | E56: ='HP1'!E45 -> 0 | F56: ='HP1'!F45 -> 0 | G56: ='HP1'!G45 -> 0 | H56: ='HP1'!H45 -> 0 | I56: ='HP1'!I45 -> 0 | J56: ='HP1'!J45 -> 0 | K56: ='HP1'!K45 -> 0 | L56: ='HP1'!L45 -> 0 | M56: ='HP1'!M45 -> 0 | N56: ='HP1'!N45 -> 0 | O56: 0 | V56: 0
A57: VAT | B57: VAT Payable | C57: =IF(VATAccount!D26>0,0,-VATAccount!D26) -> 0 | D57: =IF(VATAccount!E26>0,0,-VATAccount!E26) -> 0 | E57: =IF(VATAccount!F26>0,0,-VATAccount!F26) -> 0 | F57: =IF(VATAccount!G26>0,0,-VATAccount!G26) -> 0 | G57: =IF(VATAccount!H26>0,0,-VATAccount!H26) -> 0 | H57: =IF(VATAccount!I26>0,0,-VATAccount!I26) -> 0 | I57: =IF(VATAccount!J26>0,0,-VATAccount!J26) -> 0 | J57: =IF(VATAccount!K26>0,0,-VATAccount!K26) -> 0 | K57: =IF(VATAccount!L26>0,0,-VATAccount!L26) -> 0 | L57: =IF(VATAccount!M26>0,0,-VATAccount!M26) -> 0 | M57: =IF(VATAccount!N26>0,0,-VATAccount!N26) -> 0 | N57: =IF(VATAccount!O26>0,0,-VATAccount!O26) -> 0 | O57: 0 | V57: 0
O58: 0 | V58: 0
B59: Cash flow | V59: 0
B60: Net Cash Movement | C60: =C10-C20 -> 
B62: Opening Cash Balance | D62: =C65 -> 0
C64: 1 | D64: 2 | E64: 3 | F64: 4 | G64: 5 | H64: 6 | I64: 7 | J64: 8 | K64: 9 | L64: 10 | M64: 11 | N64: 12
B65: Closing Cash Balance | C65: =C62+C60 -> 
Q66: =HLOOKUP(monthno,B64:O65,2) -> 
B67: Overdraft Limit | C67: =-overdraftlimit -> 0 | D67: 0 | E67: 0 | F67: 0 | G67: 0 | H67: 0 | I67: 0 | J67: 0 | K67: 0 | L67: 0 | M67: 0 | N67: 0
B71: Warnings (There will be warning messages that appear below only if there are any detected inconsistencies)
A72: VAT | B72: =IF(AND(($O$18+$O$57)<>0,stdvat=0%),"VAT rate is 0% but there are figures in the VAT Payable/Repayable Rows","") -> 

Sheet P&L
S1: 0 | V1: 1 | W1: GP Row
V2: 1
B4: =cliname -> 0 | C4: Profit and Loss Account
A6: `
C8: =start_date -> 2019-09-01 | D8: =EDATE(C8,1) -> 2019-10-01 | E8: =EDATE(D8,1) -> 2019-11-01 | F8: =EDATE(E8,1) -> 2019-12-01 | G8: 2020-01-01 | H8: 2020-02-01 | I8: 2020-03-01 | J8: 2020-04-01 | K8: 2020-05-01 | L8: 2020-06-01 | M8: 2020-07-01 | N8: 2020-08-01 | P8: Total
V10: =COUNT(IF(C10:P10<>0, C10:P10)) -> 0
A11: Sales | B11: Sales | C11: =Salesinputcomplex!E195 -> 0 | D11: =Salesinputcomplex!F195 -> 0 | E11: =Salesinputcomplex!G195 -> 0 | F11: =Salesinputcomplex!H195 -> 0 | G11: =Salesinputcomplex!I195 -> 0 | H11: =Salesinputcomplex!J195 -> 0 | I11: =Salesinputcomplex!K195 -> 0 | J11: =Salesinputcomplex!L195 -> 0 | K11: =Salesinputcomplex!M195 -> 0 | L11: =Salesinputcomplex!N195 -> 0 | M11: =Salesinputcomplex!O195 -> 0 | N11: =Salesinputcomplex!P195 -> 0 | P11: =SUM(C11:N11) -> 0 | V11: =COUNT(IF(C11:P11<>0, C11:P11)) -> 0
V12: =COUNT(IF(C12:P12<>0, C12:P12)) -> 0
A13: Sales | B13: Work in progress adjustment | C13: =-Salesinputcomplex!D31 -> 0 | D13: =-Salesinputcomplex!E31 -> 0 | E13: =-Salesinputcomplex!F31 -> 0 | F13: =-Salesinputcomplex!G31 -> 0 | G13: =-Salesinputcomplex!H31 -> 0 | H13: =-Salesinputcomplex!I31 -> 0 | I13: =-Salesinputcomplex!J31 -> 0 | J13: =-Salesinputcomplex!K31 -> 0 | K13: =-Salesinputcomplex!L31 -> 0 | L13: =-Salesinputcomplex!M31 -> 0 | M13: =-Salesinputcomplex!N31 -> 0 | N13: =-Salesinputcomplex!O31 -> 0 | P13: =SUM(C13:N13) -> 0 | V13: =COUNT(IF(C13:P13<>0, C13:P13)) -> 0
C14: =C11+C13 -> 0 | D14: =D11+D13 -> 0 | E14: 0 | F14: 0 | G14: 0 | H14: 0 | I14: 0 | J14: 0 | K14: 0 | L14: 0 | M14: 0 | N14: 0 | P14: =SUM(C14:N14) -> 0 | V14: =IF(V13=0,0,V11) -> 0
A15: Cos1 | B15: Less: Cost of Sales | C15: =cosalescomplex!E39 -> 0 | D15: =cosalescomplex!F39 -> 0 | E15: =cosalescomplex!G39 -> 0 | F15: =cosalescomplex!H39 -> 0 | G15: =cosalescomplex!I39 -> 0 | H15: =cosalescomplex!J39 -> 0 | I15: =cosalescomplex!K39 -> 0 | J15: =cosalescomplex!L39 -> 0 | K15: =cosalescomplex!M39 -> 0 | L15: =cosalescomplex!N39 -> 0 | M15: =cosalescomplex!O39 -> 0 | N15: =cosalescomplex!P39 -> 0 | P15: =SUM(C15:N15) -> 0 | V15: =IF(V14=0,0,V12) -> 0
V16: =IF(V15=0,0,V13) -> 0
B17: Gross Profit | C17: =C14-C15 -> 0 | D17: =D14-D15 -> 0 | E17: 0 | F17: 0 | G17: 0 | H17: 0 | I17: 0 | J17: 0 | K17: 0 | L17: 0 | M17: 0 | N17: 0 | P17: =SUM(C17:N17) -> 0 | V17: =IF(P17=P11,0,1) -> 0
B19: Gross Profit % | C19: =IFERROR(C17/C14," ") ->  | D19: =IFERROR(D17/D14," ") ->  | P19: =IFERROR(P17/P11," ") ->  | V19: =V17 -> 0
V20: =COUNT(IF(C20:P20<>0, C20:P20)) -> 0
B21: Less: Overheads | P21: =SUM(C21:N21) -> 0 | V21: =COUNT(IF(C21:P21<>0, C21:P21)) -> 0
A22: Exp1 | B22: =CashFlow!$B$23 -> Advertising | C22: =expense1!C30 -> 0 | D22: =expense1!D30 -> 0 | E22: =expense1!E30 -> 0 | F22: =expense1!F30 -> 0 | G22: =expense1!G30 -> 0 | H22: =expense1!H30 -> 0 | I22: =expense1!I30 -> 0 | J22: =expense1!J30 -> 0 | K22: =expense1!K30 -> 0 | L22: =expense1!L30 -> 0 | M22: =expense1!M30 -> 0 | N22: =expense1!N30 -> 0 | P22: 0 | V22: =COUNT(IF(C22:P22<>0, C22:P22)) -> 0
A23: Exp2 | B23: =CashFlow!$B24 -> Utilities (gas, electric, water) | C23: =expense2!C30 -> 0 | D23: =expense2!D30 -> 0 | E23: =expense2!E30 -> 0 | F23: =expense2!F30 -> 0 | G23: =expense2!G30 -> 0 | H23: =expense2!H30 -> 0 | I23: =expense2!I30 -> 0 | J23: =expense2!J30 -> 0 | K23: =expense2!K30 -> 0 | L23: =expense2!L30 -> 0 | M23: =expense2!M30 -> 0 | N23: =expense2!N30 -> 0 | P23: 0 | V23: =COUNT(IF(C23:P23<>0, C23:P23)) -> 0
A24: Exp3 | B24: =CashFlow!$B25 -> Rent | C24: =expense3!C30 -> 0 | D24: =expense3!D30 -> 0 | E24: =expense3!E30 -> 0 | F24: =expense3!F30 -> 0 | G24: =expense3!G30 -> 0 | H24: =expense3!H30 -> 0 | I24: =expense3!I30 -> 0 | J24: =expense3!J30 -> 0 | K24: =expense3!K30 -> 0 | L24: =expense3!L30 -> 0 | M24: =expense3!M30 -> 0 | N24: =expense3!N30 -> 0 | P24: 0 | V24: =COUNT(IF(C24:P24<>0, C24:P24)) -> 0
A25: Exp4 | B25: =CashFlow!$B26 -> Rates and water | C25: =expense4!C30 -> 0 | D25: =expense4!D30 -> 0 | E25: =expense4!E30 -> 0 | F25: =expense4!F30 -> 0 | G25: =expense4!G30 -> 0 | H25: =expense4!H30 -> 0 | I25: =expense4!I30 -> 0 | J25: =expense4!J30 -> 0 | K25: =expense4!K30 -> 0 | L25: =expense4!L30 -> 0 | M25: =expense4!M30 -> 0 | N25: =expense4!N30 -> 0 | P25: 0 | V25: =COUNT(IF(C25:P25<>0, C25:P25)) -> 0
A26: Exp5 | B26: =CashFlow!$B27 -> Telephone and internet | C26: =expense5!C30 -> 0 | D26: =expense5!D30 -> 0 | E26: =expense5!E30 -> 0 | F26: =expense5!F30 -> 0 | G26: =expense5!G30 -> 0 | H26: =expense5!H30 -> 0 | I26: =expense5!I30 -> 0 | J26: =expense5!J30 -> 0 | K26: =expense5!K30 -> 0 | L26: =expense5!L30 -> 0 | M26: =expense5!M30 -> 0 | N26: =expense5!N30 -> 0 | P26: 0 | V26: =COUNT(IF(C26:P26<>0, C26:P26)) -> 0
A27: Exp6 | B27: =CashFlow!$B28 -> Advertising and marketing | C27: =expense6!C30 -> 0 | D27: =expense6!D30 -> 0 | E27: =expense6!E30 -> 0 | F27: =expense6!F30 -> 0 | G27: =expense6!G30 -> 0 | H27: =expense6!H30 -> 0 | I27: =expense6!I30 -> 0 | J27: =expense6!J30 -> 0 | K27: =expense6!K30 -> 0 | L27: =expense6!L30 -> 0 | M27: =expense6!M30 -> 0 | N27: =expense6!N30 -> 0 | P27: 0 | V27: =COUNT(IF(C27:P27<>0, C27:P27)) -> 0
A28: Exp7 | B28: =CashFlow!$B29 -> Motor running costs | C28: =expense7!C30+Journal!C13+Journal!C33 -> 0 | D28: =expense7!D30+Journal!D13+Journal!D33 -> 0 | E28: =expense7!E30+Journal!E13+Journal!E33 -> 0 | F28: =expense7!F30+Journal!F13+Journal!F33 -> 0 | G28: =expense7!G30+Journal!G13+Journal!G33 -> 0 | H28: =expense7!H30+Journal!H13+Journal!H33 -> 0 | I28: =expense7!I30+Journal!I13+Journal!I33 -> 0 | J28: =expense7!J30+Journal!J13+Journal!J33 -> 0 | K28: =expense7!K30+Journal!K13+Journal!K33 -> 0 | L28: =expense7!L30+Journal!L13+Journal!L33 -> 0 | M28: =expense7!M30+Journal!M13+Journal!M33 -> 0 | N28: =expense7!N30+Journal!N13+Journal!N33 -> 0 | P28: 0 | V28: =COUNT(IF(C28:P28<>0, C28:P28)) -> 0
A29: Exp8 | B29: =CashFlow!$B30 -> Insurance | C29: =expense8!C30 -> 0 | D29: =expense8!D30 -> 0 | E29: =expense8!E30 -> 0 | F29: =expense8!F30 -> 0 | G29: =expense8!G30 -> 0 | H29: =expense8!H30 -> 0 | I29: =expense8!I30 -> 0 | J29: =expense8!J30 -> 0 | K29: =expense8!K30 -> 0 | L29: =expense8!L30 -> 0 | M29: =expense8!M30 -> 0 | N29: =expense8!N30 -> 0 | P29: 0 | V29: =COUNT(IF(C29:P29<>0, C29:P29)) -> 0
A30: Exp9 | B30: =CashFlow!$B31 -> Printing, stationery and postage | C30: =expense9!C30 -> 0 | D30: =expense9!D30 -> 0 | E30: =expense9!E30 -> 0 | F30: =expense9!F30 -> 0 | G30: =expense9!G30 -> 0 | H30: =expense9!H30 -> 0 | I30: =expense9!I30 -> 0 | J30: =expense9!J30 -> 0 | K30: =expense9!K30 -> 0 | L30: =expense9!L30 -> 0 | M30: =expense9!M30 -> 0 | N30: =expense9!N30 -> 0 | P30: 0 | V30: =COUNT(IF(C30:P30<>0, C30:P30)) -> 0
A31: Exp10 | B31: =CashFlow!$B32 -> Leasing | C31: =expense10!C30+Journal!C34 -> 0 | D31: =expense10!D30+Journal!D34 -> 0 | E31: =expense10!E30+Journal!E34 -> 0 | F31: =expense10!F30+Journal!F34 -> 0 | G31: =expense10!G30+Journal!G34 -> 0 | H31: =expense10!H30+Journal!H34 -> 0 | I31: =expense10!I30+Journal!I34 -> 0 | J31: =expense10!J30+Journal!J34 -> 0 | K31: =expense10!K30+Journal!K34 -> 0 | L31: =expense10!L30+Journal!L34 -> 0 | M31: =expense10!M30+Journal!M34 -> 0 | N31: =expense10!N30+Journal!N34 -> 0 | P31: 0 | V31: =COUNT(IF(C31:P31<>0, C31:P31)) -> 0
A32: Exp11 | B32: =CashFlow!$B33 -> Legal and professional fees | C32: =expense11!C30 -> 0 | D32: =expense11!D30 -> 0 | E32: =expense11!E30 -> 0 | F32: =expense11!F30 -> 0 | G32: =expense11!G30 -> 0 | H32: =expense11!H30 -> 0 | I32: =expense11!I30 -> 0 | J32: =expense11!J30 -> 0 | K32: =expense11!K30 -> 0 | L32: =expense11!L30 -> 0 | M32: =expense11!M30 -> 0 | N32: =expense11!N30 -> 0 | P32: 0 | V32: =COUNT(IF(C32:P32<>0, C32:P32)) -> 0
A33: Wag1 | B33: Staff costs | C33: =Wages!D9+'Wages-Simple'!D9 -> 0 | D33: =Wages!E9+'Wages-Simple'!E9 -> 0 | E33: =Wages!F9+'Wages-Simple'!F9 -> 0 | F33: =Wages!G9+'Wages-Simple'!G9 -> 0 | G33: =Wages!H9+'Wages-Simple'!H9 -> 0 | H33: =Wages!I9+'Wages-Simple'!I9 -> 0 | I33: =Wages!J9+'Wages-Simple'!J9 -> 0 | J33: =Wages!K9+'Wages-Simple'!K9 -> 0 | K33: =Wages!L9+'Wages-Simple'!L9 -> 0 | L33: =Wages!M9+'Wages-Simple'!M9 -> 0 | M33: =Wages!N9+'Wages-Simple'!N9 -> 0 | N33: =Wages!O9+'Wages-Simple'!O9 -> 0 | P33: =SUM(C33:N33) -> 0 | V33: =COUNT(IF(C33:P33<>0, C33:P33)) -> 0
A34: Wag1 | B34: Employer NI and Pension | C34: =Wages!D11+Wages!D13+'Wages-Simple'!D11+'Wages-Simple'!D13-ERsallceSummarymth1+Journal!C21 -> 0 | D34: =Wages!E11+Wages!E13+'Wages-Simple'!E11+'Wages-Simple'!E13-ERsallceSummarymth1+Journal!D21 -> 0 | E34: =Wages!F11+Wages!F13+'Wages-Simple'!F11+'Wages-Simple'!F13-ERsallceSummarymth1+Journal!E21 -> 0 | F34: =Wages!G11+Wages!G13+'Wages-Simple'!G11+'Wages-Simple'!G13-ERsallceSummarymth1+Journal!F21 -> 0 | G34: =Wages!H11+Wages!H13+'Wages-Simple'!H11+'Wages-Simple'!H13-ERsallceSummarymth1+Journal!G21 -> 0 | H34: =Wages!I11+Wages!I13+'Wages-Simple'!I11+'Wages-Simple'!I13-ERsallceSummarymth1+Journal!H21 -> 0 | I34: =Wages!J11+Wages!J13+'Wages-Simple'!J11+'Wages-Simple'!J13-ERsallceSummarymth1+Journal!I21 -> 0 | J34: =Wages!K11+Wages!K13+'Wages-Simple'!K11+'Wages-Simple'!K13-ERsallceSummarymth1+Journal!J21 -> 0 | K34: =Wages!L11+Wages!L13+'Wages-Simple'!L11+'Wages-Simple'!L13-ERsallceSummarymth1+Journal!K21 -> 0 | L34: =Wages!M11+Wages!M13+'Wages-Simple'!M11+'Wages-Simple'!M13-ERsallceSummarymth1+Journal!L21 -> 0 | M34: =Wages!N11+Wages!N13+'Wages-Simple'!N11+'Wages-Simple'!N13-ERsallceSummarymth1+Journal!M21 -> 0 | N34: =Wages!O11+Wages!O13+'Wages-Simple'!O11+'Wages-Simple'!O13-ERsallceSummarymth1+Journal!N21 -> 0 | P34: 0 | V34: =COUNT(IF(C34:P34<>0, C34:P34)) -> 0
A35: Exp12 | B35: =CashFlow!$B34 -> Repairs and renewals | C35: =expense12!C30 -> 0 | D35: =expense12!D30 -> 0 | E35: =expense12!E30 -> 0 | F35: =expense12!F30 -> 0 | G35: =expense12!G30 -> 0 | H35: =expense12!H30 -> 0 | I35: =expense12!I30 -> 0 | J35: =expense12!J30 -> 0 | K35: =expense12!K30 -> 0 | L35: =expense12!L30 -> 0 | M35: =expense12!M30 -> 0 | N35: =expense12!N30 -> 0 | P35: 0 | V35: =COUNT(IF(C35:P35<>0, C35:P35)) -> 0
A36: Exp13 | B36: =CashFlow!$B35 -> IT Costs | C36: =expense13!C30 -> 0 | D36: =expense13!D30 -> 0 | E36: =expense13!E30 -> 0 | F36: =expense13!F30 -> 0 | G36: =expense13!G30 -> 0 | H36: =expense13!H30 -> 0 | I36: =expense13!I30 -> 0 | J36: =expense13!J30 -> 0 | K36: =expense13!K30 -> 0 | L36: =expense13!L30 -> 0 | M36: =expense13!M30 -> 0 | N36: =expense13!N30 -> 0 | P36: 0 | V36: =COUNT(IF(C36:P36<>0, C36:P36)) -> 0
A37: Exp14 | B37: =CashFlow!$B36 -> Sundry expenses | C37: =expense14!C30 -> 0 | D37: =expense14!D30 -> 0 | E37: =expense14!E30 -> 0 | F37: =expense14!F30 -> 0 | G37: =expense14!G30 -> 0 | H37: =expense14!H30 -> 0 | I37: =expense14!I30 -> 0 | J37: =expense14!J30 -> 0 | K37: =expense14!K30 -> 0 | L37: =expense14!L30 -> 0 | M37: =expense14!M30 -> 0 | N37: =expense14!N30 -> 0 | P37: 0 | V37: =COUNT(IF(C37:P37<>0, C37:P37)) -> 0
A38: Exp15 | B38: =CashFlow!$B37 -> Bank charges | C38: =expense15!C30 -> 0 | D38: =expense15!D30 -> 0 | E38: =expense15!E30 -> 0 | F38: =expense15!F30 -> 0 | G38: =expense15!G30 -> 0 | H38: =expense15!H30 -> 0 | I38: =expense15!I30 -> 0 | J38: =expense15!J30 -> 0 | K38: =expense15!K30 -> 0 | L38: =expense15!L30 -> 0 | M38: =expense15!M30 -> 0 | N38: =expense15!N30 -> 0 | P38: 0 | V38: =COUNT(IF(C38:P38<>0, C38:P38)) -> 0
A39: Exp16 | B39: =CashFlow!$B38 -> Bank loan interest | C39: =expense16!C30 -> 0 | D39: =expense16!D30 -> 0 | E39: =expense16!E30 -> 0 | F39: =expense16!F30 -> 0 | G39: =expense16!G30 -> 0 | H39: =expense16!H30 -> 0 | I39: =expense16!I30 -> 0 | J39: =expense16!J30 -> 0 | K39: =expense16!K30 -> 0 | L39: =expense16!L30 -> 0 | M39: =expense16!M30 -> 0 | N39: =expense16!N30 -> 0 | P39: 0 | V39: =COUNT(IF(C39:P39<>0, C39:P39)) -> 0
A40: Exp17 | B40: =CashFlow!$B39 -> spare17 | C40: =expense17!C30 -> 0 | D40: =expense17!D30 -> 0 | E40: =expense17!E30 -> 0 | F40: =expense17!F30 -> 0 | G40: =expense17!G30 -> 0 | H40: =expense17!H30 -> 0 | I40: =expense17!I30 -> 0 | J40: =expense17!J30 -> 0 | K40: =expense17!K30 -> 0 | L40: =expense17!L30 -> 0 | M40: =expense17!M30 -> 0 | N40: =expense17!N30 -> 0 | P40: 0 | V40: =COUNT(IF(C40:P40<>0, C40:P40)) -> 0
A41: Exp18 | B41: =CashFlow!$B40 -> spare18 | C41: =expense18!C30 -> 0 | D41: =expense18!D30 -> 0 | E41: =expense18!E30 -> 0 | F41: =expense18!F30 -> 0 | G41: =expense18!G30 -> 0 | H41: =expense18!H30 -> 0 | I41: =expense18!I30 -> 0 | J41: =expense18!J30 -> 0 | K41: =expense18!K30 -> 0 | L41: =expense18!L30 -> 0 | M41: =expense18!M30 -> 0 | N41: =expense18!N30 -> 0 | P41: 0 | V41: =COUNT(IF(C41:P41<>0, C41:P41)) -> 0
A42: Exp19 | B42: =CashFlow!$B41 -> spare19 | C42: =expense19!C30 -> 0 | D42: =expense19!D30 -> 0 | E42: =expense19!E30 -> 0 | F42: =expense19!F30 -> 0 | G42: =expense19!G30 -> 0 | H42: =expense19!H30 -> 0 | I42: =expense19!I30 -> 0 | J42: =expense19!J30 -> 0 | K42: =expense19!K30 -> 0 | L42: =expense19!L30 -> 0 | M42: =expense19!M30 -> 0 | N42: =expense19!N30 -> 0 | P42: 0 | V42: =COUNT(IF(C42:P42<>0, C42:P42)) -> 0
A43: Exp20 | B43: =CashFlow!$B42 -> spare20 | C43: =expense20!C30 -> 0 | D43: =expense20!D30 -> 0 | E43: =expense20!E30 -> 0 | F43: =expense20!F30 -> 0 | G43: =expense20!G30 -> 0 | H43: =expense20!H30 -> 0 | I43: =expense20!I30 -> 0 | J43: =expense20!J30 -> 0 | K43: =expense20!K30 -> 0 | L43: =expense20!L30 -> 0 | M43: =expense20!M30 -> 0 | N43: =expense20!N30 -> 0 | P43: 0 | V43: =COUNT(IF(C43:P43<>0, C43:P43)) -> 0
A44: Exp21 | B44: =CashFlow!$B43 -> spare21 | C44: =expense21!C30 -> 0 | D44: =expense21!D30 -> 0 | E44: =expense21!E30 -> 0 | F44: =expense21!F30 -> 0 | G44: =expense21!G30 -> 0 | H44: =expense21!H30 -> 0 | I44: =expense21!I30 -> 0 | J44: =expense21!J30 -> 0 | K44: =expense21!K30 -> 0 | L44: =expense21!L30 -> 0 | M44: =expense21!M30 -> 0 | N44: =expense21!N30 -> 0 | P44: 0 | V44: =COUNT(IF(C44:P44<>0, C44:P44)) -> 0
A45: Exp22 | B45: =CashFlow!$B44 -> spare22 | C45: =expense22!C30 -> 0 | D45: =expense22!D30 -> 0 | E45: =expense22!E30 -> 0 | F45: =expense22!F30 -> 0 | G45: =expense22!G30 -> 0 | H45: =expense22!H30 -> 0 | I45: =expense22!I30 -> 0 | J45: =expense22!J30 -> 0 | K45: =expense22!K30 -> 0 | L45: =expense22!L30 -> 0 | M45: =expense22!M30 -> 0 | N45: =expense22!N30 -> 0 | P45: 0 | V45: =COUNT(IF(C45:P45<>0, C45:P45)) -> 0
A46: Exp23 | B46: =CashFlow!$B45 -> spare23 | C46: =expense23!C30 -> 0 | D46: =expense23!D30 -> 0 | E46: =expense23!E30 -> 0 | F46: =expense23!F30 -> 0 | G46: =expense23!G30 -> 0 | H46: =expense23!H30 -> 0 | I46: =expense23!I30 -> 0 | J46: =expense23!J30 -> 0 | K46: =expense23!K30 -> 0 | L46: =expense23!L30 -> 0 | M46: =expense23!M30 -> 0 | N46: =expense23!N30 -> 0 | P46: 0 | V46: =COUNT(IF(C46:P46<>0, C46:P46)) -> 0
A47: Exp24 | B47: =CashFlow!$B49 -> spare24 | C47: =expense24!C30 -> 0 | D47: =expense24!D30 -> 0 | E47: =expense24!E30 -> 0 | F47: =expense24!F30 -> 0 | G47: =expense24!G30 -> 0 | H47: =expense24!H30 -> 0 | I47: =expense24!I30 -> 0 | J47: =expense24!J30 -> 0 | K47: =expense24!K30 -> 0 | L47: =expense24!L30 -> 0 | M47: =expense24!M30 -> 0 | N47: =expense24!N30 -> 0 | P47: 0 | V47: =COUNT(IF(C47:P47<>0, C47:P47)) -> 0
A48: Exp25 | B48: =CashFlow!$B50 -> spare25 | C48: =expense25!C30 -> 0 | D48: =expense25!D30 -> 0 | E48: =expense25!E30 -> 0 | F48: =expense25!F30 -> 0 | G48: =expense25!G30 -> 0 | H48: =expense25!H30 -> 0 | I48: =expense25!I30 -> 0 | J48: =expense25!J30 -> 0 | K48: =expense25!K30 -> 0 | L48: =expense25!L30 -> 0 | M48: =expense25!M30 -> 0 | N48: =expense25!N30 -> 0 | P48: 0 | V48: =COUNT(IF(C48:P48<>0, C48:P48)) -> 0
A49: Sales | B49: Bad debts | C49: =-Salesinputcomplex!E190 -> 0 | D49: =-Salesinputcomplex!F190 -> 0 | E49: =-Salesinputcomplex!G190 -> 0 | F49: =-Salesinputcomplex!H190 -> 0 | G49: =-Salesinputcomplex!I190 -> 0 | H49: =-Salesinputcomplex!J190 -> 0 | I49: =-Salesinputcomplex!K190 -> 0 | J49: =-Salesinputcomplex!L190 -> 0 | K49: =-Salesinputcomplex!M190 -> 0 | L49: =-Salesinputcomplex!N190 -> 0 | M49: =-Salesinputcomplex!O190 -> 0 | N49: =-Salesinputcomplex!P190 -> 0 | P49: 0 | V49: =COUNT(IF(C49:P49<>0, C49:P49)) -> 0
A50: CrBkCh | B50: Bank overdraft interest | C50: ='CrCard+bankChs'!C24 ->  | D50: ='CrCard+bankChs'!D24 ->  | E50: ='CrCard+bankChs'!E24 ->  | F50: ='CrCard+bankChs'!F24 ->  | G50: ='CrCard+bankChs'!G24 ->  | H50: ='CrCard+bankChs'!H24 ->  | I50: ='CrCard+bankChs'!I24 ->  | J50: ='CrCard+bankChs'!J24 ->  | K50: ='CrCard+bankChs'!K24 ->  | L50: ='CrCard+bankChs'!L24 ->  | M50: ='CrCard+bankChs'!M24 ->  | N50: ='CrCard+bankChs'!N24 ->  | V50: =COUNT(IF(C50:P50<>0, C50:P50)) -> 0
A51: CrBkCh | B51: Credit card charges | C51: =CashFlow!C52 -> 0 | D51: =CashFlow!D52 -> 0 | E51: =CashFlow!E52 -> 0 | F51: =CashFlow!F52 -> 0 | G51: =CashFlow!G52 -> 0 | H51: =CashFlow!H52 -> 0 | I51: =CashFlow!I52 -> 0 | J51: =CashFlow!J52 -> 0 | K51: =CashFlow!K52 -> 0 | L51: =CashFlow!L52 -> 0 | M51: =CashFlow!M52 -> 0 | N51: =CashFlow!N52 -> 0 | P51: 0 | V51: =COUNT(IF(C51:P51<>0, C51:P51)) -> 0
A52: Capex1 | B52: Depreciation | C52: =-Capex1!D96 -> 0 | D52: =-Capex1!E96 -> 0 | E52: =-Capex1!F96 -> 0 | F52: =-Capex1!G96 -> 0 | G52: =-Capex1!H96 -> 0 | H52: =-Capex1!I96 -> 0 | I52: =-Capex1!J96 -> 0 | J52: =-Capex1!K96 -> 0 | K52: =-Capex1!L96 -> 0 | L52: =-Capex1!M96 -> 0 | M52: =-Capex1!N96 -> 0 | N52: =-Capex1!O96 -> 0 | P52: 0 | V52: =COUNT(IF(C52:P52<>0, C52:P52)) -> 0
A53: HP1 | B53: HP/Loan interest | C53: ='HP1'!C46 -> 0 | D53: ='HP1'!D46 -> 0 | E53: ='HP1'!E46 -> 0 | F53: ='HP1'!F46 -> 0 | G53: ='HP1'!G46 -> 0 | H53: ='HP1'!H46 -> 0 | I53: ='HP1'!I46 -> 0 | J53: ='HP1'!J46 -> 0 | K53: ='HP1'!K46 -> 0 | L53: ='HP1'!L46 -> 0 | M53: ='HP1'!M46 -> 0 | N53: ='HP1'!N46 -> 0 | P53: 0 | V53: =COUNT(IF(C53:P53<>0, C53:P53)) -> 0
A54: Capex1 | B54: Profit/Loss on sale of assets | C54: =-Capex1!D102 -> 0 | D54: =-Capex1!E102 -> 0 | E54: =-Capex1!F102 -> 0 | F54: =-Capex1!G102 -> 0 | G54: =-Capex1!H102 -> 0 | H54: =-Capex1!I102 -> 0 | I54: =-Capex1!J102 -> 0 | J54: =-Capex1!K102 -> 0 | K54: =-Capex1!L102 -> 0 | L54: =-Capex1!M102 -> 0 | M54: =-Capex1!N102 -> 0 | N54: =-Capex1!O102 -> 0 | P54: 0 | V54: =COUNT(IF(C54:P54<>0, C54:P54)) -> 0
P55: 0 | V55: =COUNT(IF(C55:P55<>0, C55:P55)) -> 0
P56: 0 | V56: =COUNT(IF(C56:P56<>0, C56:P56)) -> 0
B57: Total Expenses | C57: =SUM(C22:C56) ->  | P57: =SUM(C57:N57) -> 
B58: =IF(P62=0,"","Other income") ->  | V58: =COUNT(IF(C58:P58<>0, C58:P58)) -> 0
A59: Misc1 | B59: =CashFlow!B12 -> Interest received | C59: =CashFlow!C12 -> 0 | D59: =CashFlow!D12 -> 0 | E59: =CashFlow!E12 -> 0 | F59: =CashFlow!F12 -> 0 | G59: =CashFlow!G12 -> 0 | H59: =CashFlow!H12 -> 0 | I59: =CashFlow!I12 -> 0 | J59: =CashFlow!J12 -> 0 | K59: =CashFlow!K12 -> 0 | L59: =CashFlow!L12 -> 0 | M59: =CashFlow!M12 -> 0 | N59: =CashFlow!N12 -> 0 | P59: =SUM(C59:N59) -> 0 | V59: =COUNT(IF(C59:P59<>0, C59:P59)) -> 0
A60: Misc1 | B60: =CashFlow!$B$13 -> Miscellaneous Income | C60: =CashFlow!C13 -> 0 | D60: =CashFlow!D13 -> 0 | E60: =CashFlow!E13 -> 0 | F60: =CashFlow!F13 -> 0 | G60: =CashFlow!G13 -> 0 | H60: =CashFlow!H13 -> 0 | I60: =CashFlow!I13 -> 0 | J60: =CashFlow!J13 -> 0 | K60: =CashFlow!K13 -> 0 | L60: =CashFlow!L13 -> 0 | M60: =CashFlow!M13 -> 0 | N60: =CashFlow!N13 -> 0 | P60: 0 | V60: =COUNT(IF(C60:P60<>0, C60:P60)) -> 0
V61: =COUNT(IF(C61:P61<>0, C61:P61)) -> 0
B62: Total Other Income | C62: =SUM(C59:C61) -> 0 | D62: =SUM(D59:D61) -> 0 | E62: 0 | F62: 0 | G62: 0 | H62: 0 | I62: 0 | J62: 0 | K62: 0 | L62: 0 | M62: 0 | N62: 0 | V62: =COUNT(IF(C62:P62<>0, C62:P62)) -> 0
B64: Net Profit/(Loss) | C64: =C17-C57+C62 ->  | D64: =D17-D57+D62 ->  | P64: =SUM(C64:N64) -> 
A66: Tax1 | B66: Provision for taxation | C66: ='Tax1'!C39 -> 0 | D66: ='Tax1'!D39 ->  | E66: ='Tax1'!E39 ->  | F66: ='Tax1'!F39 ->  | G66: ='Tax1'!G39 ->  | H66: ='Tax1'!H39 ->  | I66: ='Tax1'!I39 ->  | J66: ='Tax1'!J39 ->  | K66: ='Tax1'!K39 ->  | L66: ='Tax1'!L39 ->  | M66: ='Tax1'!M39 ->  | N66: ='Tax1'!N39 ->  | P66: =SUM(C66:N66) -> 
B68: Profit after Tax | C68: =C64-C66 ->  | D68: =D64-D66 ->  | P68: =SUM(C68:N68) -> 
C74: Balance Sheet Values
C75: 1 | D75: 2 | E75: 3 | F75: 4 | G75: 5 | H75: 6 | I75: 7 | J75: 8 | K75: 9 | L75: 10 | M75: 11 | N75: 12
C76: =C68 ->  | D76: =C76+D68 ->  | E76: =D76+E68 ->  | Q76: =HLOOKUP(monthno,C75:N76,2) ->  | R76: Period b/s Value

Sheet Balance Sheet all months
C4: =cliname -> 0 | G4: Balance Sheet
G5: =start_date -> 2019-09-01 | H5: =EDATE(G5,1) -> 2019-10-01 | I5: =EDATE(H5,1) -> 2019-11-01 | J5: =EDATE(I5,1) -> 2019-12-01 | K5: 2020-01-01 | L5: 2020-02-01 | M5: 2020-03-01 | N5: 2020-04-01 | O5: 2020-05-01 | P5: 2020-06-01 | Q5: 2020-07-01 | R5: 2020-08-01
F6: =IF(SUM(F8:F38)>0,"Opening Bal","") ->  | G6: 1 | H6: 2 | I6: 3 | J6: 4 | K6: 5 | L6: 6 | M6: 7 | N6: 8 | O6: 9 | P6: 10 | Q6: 11 | R6: 12
C7: Fixed assets | V7: =V8-V9 -> 0
C8: Cost | F8: =Capex1!C90 -> 0 | G8: =Capex1!D93 -> 0 | H8: =Capex1!E93 -> 0 | I8: =Capex1!F93 -> 0 | J8: =Capex1!G93 -> 0 | K8: =Capex1!H93 -> 0 | L8: =Capex1!I93 -> 0 | M8: =Capex1!J93 -> 0 | N8: =Capex1!K93 -> 0 | O8: =Capex1!L93 -> 0 | P8: =Capex1!M93 -> 0 | Q8: =Capex1!N93 -> 0 | R8: =Capex1!O93 -> 0 | V8: =SUM(G8:U8) -> 0
C9: Less:Depreciation | F9: =ReviewSummary!G39 -> 0 | G9: =Capex1!D98 -> 0 | H9: =Capex1!E98 -> 0 | I9: =Capex1!F98 -> 0 | J9: =Capex1!G98 -> 0 | K9: =Capex1!H98 -> 0 | L9: =Capex1!I98 -> 0 | M9: =Capex1!J98 -> 0 | N9: =Capex1!K98 -> 0 | O9: =Capex1!L98 -> 0 | P9: =Capex1!M98 -> 0 | Q9: =Capex1!N98 -> 0 | R9: =Capex1!O98 -> 0 | V9: =SUM(G9:U9) -> 0
F10: =SUM(F8:F9) -> 0 | G10: =SUM(G8:G9) -> 0 | H10: =SUM(H8:H9) -> 0 | I10: 0 | J10: 0 | K10: 0 | L10: 0 | M10: 0 | N10: 0 | O10: 0 | P10: 0 | Q10: 0 | R10: 0 | V10: 0
C11: Current Assets | V11: 0
C12: Stocks | F12: =ReviewSummary!G41 -> 0 | G12: =cosalescomplex!E41 -> 0 | H12: =cosalescomplex!F41 -> 0 | I12: =cosalescomplex!G41 -> 0 | J12: =cosalescomplex!H41 -> 0 | K12: =cosalescomplex!I41 -> 0 | L12: =cosalescomplex!J41 -> 0 | M12: =cosalescomplex!K41 -> 0 | N12: =cosalescomplex!L41 -> 0 | O12: =cosalescomplex!M41 -> 0 | P12: =cosalescomplex!N41 -> 0 | Q12: =cosalescomplex!O41 -> 0 | R12: =cosalescomplex!P41 -> 0 | V12: 0
C13: Work in progress | F13: =ReviewSummary!G40 -> 0 | G13: =Salesinputcomplex!D27 -> 0 | H13: =Salesinputcomplex!E27 -> 0 | I13: =Salesinputcomplex!F27 -> 0 | J13: =Salesinputcomplex!G27 -> 0 | K13: =Salesinputcomplex!H27 -> 0 | L13: =Salesinputcomplex!I27 -> 0 | M13: =Salesinputcomplex!J27 -> 0 | N13: =Salesinputcomplex!K27 -> 0 | O13: =Salesinputcomplex!L27 -> 0 | P13: =Salesinputcomplex!M27 -> 0 | Q13: =Salesinputcomplex!N27 -> 0 | R13: =Salesinputcomplex!O27 -> 0 | V13: 0
C14: Debtors | F14: =ReviewSummary!G42 -> 0 | G14: =ROUND(Salesinputcomplex!E193,2) -> 0 | H14: =ROUND(Salesinputcomplex!F193,2) -> 0 | I14: =ROUND(Salesinputcomplex!G193,2) -> 0 | J14: =ROUND(Salesinputcomplex!H193,2) -> 0 | K14: =ROUND(Salesinputcomplex!I193,2) -> 0 | L14: =ROUND(Salesinputcomplex!J193,2) -> 0 | M14: =ROUND(Salesinputcomplex!K193,2) -> 0 | N14: =ROUND(Salesinputcomplex!L193,2) -> 0 | O14: =ROUND(Salesinputcomplex!M193,2) -> 0 | P14: =ROUND(Salesinputcomplex!N193,2) -> 0 | Q14: =ROUND(Salesinputcomplex!O193,2) -> 0 | R14: =ROUND(Salesinputcomplex!P193,2) -> 0 | V14: 0
C15: Prepayments | F15: =ReviewSummary!G43 -> 0 | G15: =Prepayments!D5 -> 0 | H15: =Prepayments!E5 -> 0 | I15: =Prepayments!F5 -> 0 | J15: =Prepayments!G5 -> 0 | K15: =Prepayments!H5 -> 0 | L15: =Prepayments!I5 -> 0 | M15: =Prepayments!J5 -> 0 | N15: =Prepayments!K5 -> 0 | O15: =Prepayments!L5 -> 0 | P15: =Prepayments!M5 -> 0 | Q15: =Prepayments!N5 -> 0 | R15: =Prepayments!O5 -> 0 | V15: 0
C16: VAT Debtor | F16: =ReviewSummary!G44 -> 0 | G16: =IF(VATAccount!D20>0,0,-VATAccount!D20) -> 0 | H16: =IF(VATAccount!E20>0,0,-VATAccount!E20) -> 0 | I16: =IF(VATAccount!F20>0,0,-VATAccount!F20) -> 0 | J16: =IF(VATAccount!G20>0,0,-VATAccount!G20) -> 0 | K16: =IF(VATAccount!H20>0,0,-VATAccount!H20) -> 0 | L16: =IF(VATAccount!I20>0,0,-VATAccount!I20) -> 0 | M16: =IF(VATAccount!J20>0,0,-VATAccount!J20) -> 0 | N16: =IF(VATAccount!K20>0,0,-VATAccount!K20) -> 0 | O16: =IF(VATAccount!L20>0,0,-VATAccount!L20) -> 0 | P16: =IF(VATAccount!M20>0,0,-VATAccount!M20) -> 0 | Q16: =IF(VATAccount!N20>0,0,-VATAccount!N20) -> 0 | R16: =IF(VATAccount!O20>0,0,-VATAccount!O20) -> 0 | V16: 0
C17: Cash at Bank | F17: =IF(ReviewSummary!G45<0,0,ReviewSummary!G45) -> 0 | G17: =IF(CashFlow!C65>0,CashFlow!C65,0) -> 0 | H17: =IF(CashFlow!D65>0,CashFlow!D65,0) ->  | I17: =IF(CashFlow!E65>0,CashFlow!E65,0) ->  | J17: =IF(CashFlow!F65>0,CashFlow!F65,0) ->  | K17: =IF(CashFlow!G65>0,CashFlow!G65,0) ->  | L17: =IF(CashFlow!H65>0,CashFlow!H65,0) ->  | M17: =IF(CashFlow!I65>0,CashFlow!I65,0) ->  | N17: =IF(CashFlow!J65>0,CashFlow!J65,0) ->  | O17: =IF(CashFlow!K65>0,CashFlow!K65,0) ->  | P17: =IF(CashFlow!L65>0,CashFlow!L65,0) ->  | Q17: =IF(CashFlow!M65>0,CashFlow!M65,0) ->  | R17: =IF(CashFlow!N65>0,CashFlow!N65,0) -> 
F18: =SUM(F12:F17) -> 0 | G18: =SUM(G12:G17) -> 0 | H18: =SUM(H12:H17) -> 
V19: 0
C20: Current Liabilities | V20: 0
C21: Creditors and accruals | F21: =-ReviewSummary!G46 -> 0 | G21: =ROUND(creditors!D6+Accruals!D6,2) -> 0 | H21: =ROUND(creditors!E6+Accruals!E6,2) -> 0 | I21: =ROUND(creditors!F6+Accruals!F6,2) -> 0 | J21: =ROUND(creditors!G6+Accruals!G6,2) -> 0 | K21: =ROUND(creditors!H6+Accruals!H6,2) -> 0 | L21: =ROUND(creditors!I6+Accruals!I6,2) -> 0 | M21: =ROUND(creditors!J6+Accruals!J6,2) -> 0 | N21: =ROUND(creditors!K6+Accruals!K6,2) -> 0 | O21: =ROUND(creditors!L6+Accruals!L6,2) -> 0 | P21: =ROUND(creditors!M6+Accruals!M6,2) -> 0 | Q21: =ROUND(creditors!N6+Accruals!N6,2) -> 0 | R21: =ROUND(creditors!O6+Accruals!O6,2) -> 0 | V21: 0
C22: VAT | F22: =-ReviewSummary!G47 -> 0 | G22: =IF(VATAccount!D20<0,0,VATAccount!D20) -> 0 | H22: =IF(VATAccount!E20<0,0,VATAccount!E20) -> 0 | I22: =IF(VATAccount!F20<0,0,VATAccount!F20) -> 0 | J22: =IF(VATAccount!G20<0,0,VATAccount!G20) -> 0 | K22: =IF(VATAccount!H20<0,0,VATAccount!H20) -> 0 | L22: =IF(VATAccount!I20<0,0,VATAccount!I20) -> 0 | M22: =IF(VATAccount!J20<0,0,VATAccount!J20) -> 0 | N22: =IF(VATAccount!K20<0,0,VATAccount!K20) -> 0 | O22: =IF(VATAccount!L20<0,0,VATAccount!L20) -> 0 | P22: =IF(VATAccount!M20<0,0,VATAccount!M20) -> 0 | Q22: =IF(VATAccount!N20<0,0,VATAccount!N20) -> 0 | R22: =IF(VATAccount!O20<0,0,VATAccount!O20) -> 0 | V22: 0
C23: PAYE | F23: =-ReviewSummary!G48 -> 0 | G23: =Wages!D18+'Wages-Simple'!D39 -> 0 | H23: =Wages!E18+'Wages-Simple'!E39 -> 0 | I23: =Wages!F18+'Wages-Simple'!F39 -> 0 | J23: =Wages!G18+'Wages-Simple'!G39 -> 0 | K23: =Wages!H18+'Wages-Simple'!H39 -> 0 | L23: =Wages!I18+'Wages-Simple'!I39 -> 0 | M23: =Wages!J18+'Wages-Simple'!J39 -> 0 | N23: =Wages!K18+'Wages-Simple'!K39 -> 0 | O23: =Wages!L18+'Wages-Simple'!L39 -> 0 | P23: =Wages!M18+'Wages-Simple'!M39 -> 0 | Q23: =Wages!N18+'Wages-Simple'!N39 -> 0 | R23: =Wages!O18+'Wages-Simple'!O39 -> 0 | V23: 0
C24: Pension | F24: =-ReviewSummary!G49 -> 0 | G24: =Wages!D16+'Wages-Simple'!D40 -> 0 | H24: =Wages!E16+'Wages-Simple'!E40 -> 0 | I24: =Wages!F16+'Wages-Simple'!F40 -> 0 | J24: =Wages!G16+'Wages-Simple'!G40 -> 0 | K24: =Wages!H16+'Wages-Simple'!H40 -> 0 | L24: =Wages!I16+'Wages-Simple'!I40 -> 0 | M24: =Wages!J16+'Wages-Simple'!J40 -> 0 | N24: =Wages!K16+'Wages-Simple'!K40 -> 0 | O24: =Wages!L16+'Wages-Simple'!L40 -> 0 | P24: =Wages!M16+'Wages-Simple'!M40 -> 0 | Q24: =Wages!N16+'Wages-Simple'!N40 -> 0 | R24: =Wages!O16+'Wages-Simple'!O40 -> 0 | V24: 0
C25: Bank overdraft | F25: =-ReviewSummary!G52 -> 0 | G25: =IF(CashFlow!C65<0,-CashFlow!C65,0) -> 0 | H25: =IF(CashFlow!D65<0,-CashFlow!D65,0) ->  | I25: =IF(CashFlow!E65<0,-CashFlow!E65,0) ->  | J25: =IF(CashFlow!F65<0,-CashFlow!F65,0) ->  | K25: =IF(CashFlow!G65<0,-CashFlow!G65,0) ->  | L25: =IF(CashFlow!H65<0,-CashFlow!H65,0) ->  | M25: =IF(CashFlow!I65<0,-CashFlow!I65,0) ->  | N25: =IF(CashFlow!J65<0,-CashFlow!J65,0) ->  | O25: =IF(CashFlow!K65<0,-CashFlow!K65,0) ->  | P25: =IF(CashFlow!L65<0,-CashFlow!L65,0) ->  | Q25: =IF(CashFlow!M65<0,-CashFlow!M65,0) ->  | R25: =IF(CashFlow!N65<0,-CashFlow!N65,0) -> 
C26: Tax Provision | F26: =-ReviewSummary!G51 -> 0 | G26: ='Tax1'!C37 -> 0 | H26: ='Tax1'!D37 ->  | I26: ='Tax1'!E37 ->  | J26: ='Tax1'!F37 ->  | K26: ='Tax1'!G37 ->  | L26: ='Tax1'!H37 ->  | M26: ='Tax1'!I37 ->  | N26: ='Tax1'!J37 ->  | O26: ='Tax1'!K37 ->  | P26: ='Tax1'!L37 ->  | Q26: ='Tax1'!M37 ->  | R26: ='Tax1'!N37 -> 
C27: HP/Loans | F27: =-ReviewSummary!G50 -> 0 | G27: ='HP1'!C47 -> 0 | H27: ='HP1'!D47 -> 0 | I27: ='HP1'!E47 -> 0 | J27: ='HP1'!F47 -> 0 | K27: ='HP1'!G47 -> 0 | L27: ='HP1'!H47 -> 0 | M27: ='HP1'!I47 -> 0 | N27: ='HP1'!J47 -> 0 | O27: ='HP1'!K47 -> 0 | P27: ='HP1'!L47 -> 0 | Q27: ='HP1'!M47 -> 0 | R27: ='HP1'!N47 -> 0 | V27: 0
F28: =SUM(F21:F27) -> 0 | G28: =SUM(G21:G27) -> 0 | H28: =SUM(H21:H27) -> 
C29: Net Current Assets/(Liabilities) | F29: =F18-F28 -> 0 | G29: =G18-G28 -> 0 | H29: =H18-H28 -> 
V30: 0
C31: Net Assets/(Liabilities) | F31: =F10+F29 -> 0 | G31: =G10+G29 -> 0 | H31: =H10+H29 -> 
C32: Capital | V32: 0
C33: Opening Balance | F33: =ReviewSummary!G54 -> 0 | G33: =ReviewSummary!G54 -> 0 | H33: =G33 -> 0 | I33: =H33 -> 0 | J33: 0 | K33: 0 | L33: 0 | M33: 0 | N33: 0 | O33: 0 | P33: 0 | Q33: 0 | R33: 0 | V33: 0
C34: Introduced | G34: ='Cap1'!C30 -> 0 | H34: ='Cap1'!D30 -> 0 | I34: ='Cap1'!E30 -> 0 | J34: ='Cap1'!F30 -> 0 | K34: ='Cap1'!G30 -> 0 | L34: ='Cap1'!H30 -> 0 | M34: ='Cap1'!I30 -> 0 | N34: ='Cap1'!J30 -> 0 | O34: ='Cap1'!K30 -> 0 | P34: ='Cap1'!L30 -> 0 | Q34: ='Cap1'!M30 -> 0 | R34: ='Cap1'!N30 -> 0 | V34: 0
C35: =CashFlow!$B$55 -> Drawings/Directors loan Rep'ts | G35: =-Draw1!C32 -> 0 | H35: =-Draw1!D32 -> 0 | I35: =-Draw1!E32 -> 0 | J35: =-Draw1!F32 -> 0 | K35: =-Draw1!G32 -> 0 | L35: =-Draw1!H32 -> 0 | M35: =-Draw1!I32 -> 0 | N35: =-Draw1!J32 -> 0 | O35: =-Draw1!K32 -> 0 | P35: =-Draw1!L32 -> 0 | Q35: =-Draw1!M32 -> 0 | R35: =-Draw1!N32 -> 0 | V35: 0
C36: Retained Profit/(Loss) | G36: ='P&L'!C76 ->  | H36: ='P&L'!D76 ->  | I36: ='P&L'!E76 ->  | J36: ='P&L'!F76 ->  | K36: ='P&L'!G76 ->  | L36: ='P&L'!H76 ->  | M36: ='P&L'!I76 ->  | N36: ='P&L'!J76 ->  | O36: ='P&L'!K76 ->  | P36: ='P&L'!L76 ->  | Q36: ='P&L'!M76 ->  | R36: ='P&L'!N76 -> 
V37: 0
F38: =SUM(F33:F37) -> 0 | G38: =SUM(G33:G37) ->  | H38: =SUM(H33:H37) -> 
V39: 0
G40: =ROUND(G31-G38,2) ->  | H40: =ROUND(H31-H38,2) -> 
V41: 0
V42: 0
V43: 0
V44: 0
V45: 0
V46: 0
V47: 0
V48: 0

Sheet FundsFlow
D5: ANNUAL FUNDS FLOW STATEMENT
D6: Funds generated from operations
D7: =IF(J7<0,"Loss for the period","Profit for the period") ->  | J7: =profit.lossyr ->  | V7: =J7 -> 
D8: Adjust for items not involving flow of funds
D9: Depreciation | J9: ='P&L'!P52 -> 0 | V9: =J9 -> 0
D10: Profit/Loss on sales of assets | J10: ='P&L'!P54 -> 0 | V10: =J10 -> 0
J12: =SUM(J7:J11) -> 
D14: Movements in working capital
D15: ='Balance Sheet all months'!C12 -> Stocks | G15: =IF(I15>0,"Increase","Decrease") -> Decrease | I15: =-('Balance Sheet all months'!R12-'Balance Sheet all months'!F12) -> 0 | V15: =I15 -> 0
D16: ='Balance Sheet all months'!C13 -> Work in progress | G16: =IF(I16>0,"Increase","Decrease") -> Decrease | I16: =-('Balance Sheet all months'!R13-'Balance Sheet all months'!F13) -> 0 | V16: =I16 -> 0
D17: ='Balance Sheet all months'!C14 -> Debtors | G17: =IF(I17<0,"Increase","Decrease") -> Decrease | I17: =ROUND(-'Balance Sheet all months'!R14+'Balance Sheet all months'!F14,2) -> 0 | V17: =I17 -> 0
D18: ='Balance Sheet all months'!C15 -> Prepayments | G18: =IF(I18<0,"Increase","Decrease") -> Decrease | I18: =-('Balance Sheet all months'!R15-'Balance Sheet all months'!F15) -> 0 | V18: 0
D19: VAT | G19: =IF(I19>0,"Increase","Decrease") -> Decrease | I19: =('Balance Sheet all months'!R16-'Balance Sheet all months'!F16)-('Balance Sheet all months'!F22-'Balance Sheet all months'!R22) -> 0 | V19: 0
D20: ='Balance Sheet all months'!C21 -> Creditors and accruals | G20: =IF(I20>0,"Increase","Decrease") -> Decrease | I20: ='Balance Sheet all months'!R21-'Balance Sheet all months'!F21 -> 0 | V20: 0
D21: PAYE and pension liability | G21: Decrease | I21: ='Balance Sheet all months'!R24+'Balance Sheet all months'!R23+'Balance Sheet all months'!F23+'Balance Sheet all months'!F24 -> 0 | V21: 0
D22: Tax paid | I22: =-'Tax1'!$P$28 -> 0 | V22: 0
D23: ='Balance Sheet all months'!C34 -> Introduced | I23: ='Balance Sheet all months'!R34 -> 0 | V23: 0
D24: =CashFlow!$B$55 -> Drawings/Directors loan Rep'ts | I24: ='Balance Sheet all months'!R35 -> 0 | V24: 0
D25: Capital expenditure | I25: =-Capex1!Q91 -> 0 | V25: 0
D26: Disposal of assets | I26: =Capex1!$Q$102 -> 0 | V26: 0
J27: =SUM(I15:I26) -> 0
J28: =J27+J12 -> 
D31: Movement in Cash | G31: =IF(J31>0,"Increase","Decrease") ->  | J31: =CashFlow!$O$60-CashFlow!C62+Opening_Cash_Balance -> 
D79: The information below is used to generate graphs on the Graphs (2) tab only
I80: Opening Cash | J80: =Opening_Cash_Balance -> 0
I81: Profit | J81: =J12 -> 
I82: =D15 -> Stocks | J82: =I15 -> 0
I83: =D16 -> Work in progress | J83: 0
I84: Debtors | J84: 0
I85: Prepayments | J85: 0
I86: VAT | J86: 0
I87: Creditors and accruals | J87: 0
I88: PAYE and pension liability | J88: 0
I89: Tax paid | J89: 0
I90: Introduced | J90: 0
I91: =D24 -> Drawings/Directors loan Rep'ts | J91: 0
I92: Capital expenditure | J92: 0
I93: Disposal of assets | J93: 0
I94: Closing Cash | J94: =CashFlow!N65 -> 

Sheet Balance Sheet
C4: Balance sheet as at Period | F4: =monthno -> 1
F6: Dr | H6: Cr
C7: Fixed assets
C8: Cost | F8: =fabbs1 -> 0
C9: Depreciation | H9: =-depnbs -> 0
C11: Current Assets
C12: Stocks | F12: =stockbs -> 0
C13: Work in progress | F13: =-wipbs -> 0
C14: Debtors | F14: =debtorsbsnew -> 0
C15: Prepayments | F15: =prepaybs -> 0
C16: VAT Debtor | F16: =IF(vatbs>0,0,-vatbs) -> 0
C17: Cash at Bank | F17: =IF(closingcash>0,closingcash," ") -> 
C21: Current Liabilities
C22: Creditors and Accruals | H22: =accrualsbs+creditorsbs -> 0
C23: VAT | H23: =IF(vatbs<0,0,vatbs) -> 0
C24: PAYE | H24: =payebs+payebswagessimple -> 0
C25: Pension | H25: =PENSIONBS+pensionbdwagessimple -> 0
C26: Bank overdraft | H26: =IF(closingcash<0,closingcash*-1," ") -> 
C27: HP/Loans | H27: =hpbs -> 0
C28: Taxation | H28: =taxbs -> 0
C30: Capital
C31: Opening Balance | F31: =IF(ReviewSummary!$G$54>0,0,-ReviewSummary!$G$54) -> 0 | H31: =IF(ReviewSummary!$G$54<0,0,ReviewSummary!$G$54) -> 0
C32: Introduced | H32: =Capint -> 0
C33: Drawings | F33: =draw -> 0
C34: Retained Profit/(Loss) | F34: =IF(retainedprofitlossmonthly<0,retainedprofitlossmonthly*-1," ") ->  | H34: =IF(retainedprofitlossmonthly>0,retainedprofitlossmonthly," ") -> 
F36: =SUM(F7:F34) ->  | H36: =SUM(H7:H34) -> 
H38: =F36-H36 -> 

Sheet Graphs
Q4: Month | R4: ='P&L'!C8 -> 2019-09-01 | S4: ='P&L'!D8 -> 2019-10-01 | T4: ='P&L'!E8 -> 2019-11-01 | U4: ='P&L'!F8 -> 2019-12-01 | V4: ='P&L'!G8 -> 2020-01-01 | W4: ='P&L'!H8 -> 2020-02-01 | X4: ='P&L'!I8 -> 2020-03-01 | Y4: ='P&L'!J8 -> 2020-04-01 | Z4: ='P&L'!K8 -> 2020-05-01 | AA4: ='P&L'!L8 -> 2020-06-01 | AB4: ='P&L'!M8 -> 2020-07-01 | AC4: ='P&L'!N8 -> 2020-08-01
Q5: Turnover | R5: ='P&L'!C14 -> 0 | S5: ='P&L'!D14 -> 0 | T5: ='P&L'!E14 -> 0 | U5: ='P&L'!F14 -> 0 | V5: ='P&L'!G14 -> 0 | W5: ='P&L'!H14 -> 0 | X5: ='P&L'!I14 -> 0 | Y5: ='P&L'!J14 -> 0 | Z5: ='P&L'!K14 -> 0 | AA5: ='P&L'!L14 -> 0 | AB5: ='P&L'!M14 -> 0 | AC5: ='P&L'!N14 -> 0
Q6: Cost of Sales | R6: ='P&L'!C15 -> 0 | S6: ='P&L'!D15 -> 0 | T6: ='P&L'!E15 -> 0 | U6: ='P&L'!F15 -> 0 | V6: ='P&L'!G15 -> 0 | W6: ='P&L'!H15 -> 0 | X6: ='P&L'!I15 -> 0 | Y6: ='P&L'!J15 -> 0 | Z6: ='P&L'!K15 -> 0 | AA6: ='P&L'!L15 -> 0 | AB6: ='P&L'!M15 -> 0 | AC6: ='P&L'!N15 -> 0
Q7: Expenses | R7: ='P&L'!C57 -> 0 | S7: ='P&L'!D57 ->  | T7: ='P&L'!E57 ->  | U7: ='P&L'!F57 ->  | V7: ='P&L'!G57 ->  | W7: ='P&L'!H57 ->  | X7: ='P&L'!I57 ->  | Y7: ='P&L'!J57 ->  | Z7: ='P&L'!K57 ->  | AA7: ='P&L'!L57 ->  | AB7: ='P&L'!M57 ->  | AC7: ='P&L'!N57 -> 
Q8: Other income | R8: ='P&L'!C62 -> 0 | S8: ='P&L'!D62 -> 0 | T8: ='P&L'!E62 -> 0 | U8: ='P&L'!F62 -> 0 | V8: ='P&L'!G62 -> 0 | W8: ='P&L'!H62 -> 0 | X8: ='P&L'!I62 -> 0 | Y8: ='P&L'!J62 -> 0 | Z8: ='P&L'!K62 -> 0 | AA8: ='P&L'!L62 -> 0 | AB8: ='P&L'!M62 -> 0 | AC8: ='P&L'!N62 -> 0
Q9: Net Profit | R9: ='P&L'!C64 -> 0 | S9: ='P&L'!D64 ->  | T9: ='P&L'!E64 ->  | U9: ='P&L'!F64 ->  | V9: ='P&L'!G64 ->  | W9: ='P&L'!H64 ->  | X9: ='P&L'!I64 ->  | Y9: ='P&L'!J64 ->  | Z9: ='P&L'!K64 ->  | AA9: ='P&L'!L64 ->  | AB9: ='P&L'!M64 ->  | AC9: ='P&L'!N64 -> 
Q10: Cash at bank | R10: =CashFlow!C65 ->  | S10: =CashFlow!D65 ->  | T10: =CashFlow!E65 ->  | U10: =CashFlow!F65 ->  | V10: =CashFlow!G65 ->  | W10: =CashFlow!H65 ->  | X10: =CashFlow!I65 ->  | Y10: =CashFlow!J65 ->  | Z10: =CashFlow!K65 ->  | AA10: =CashFlow!L65 ->  | AB10: =CashFlow!M65 ->  | AC10: =CashFlow!N65 -> 

Sheet Graphs (2)
R3: Opening | S3: =CashFlow!C62 -> 0
R4: ='P&L'!C8 -> 2019-09-01 | S4: =CashFlow!C60 -> 
R5: ='P&L'!$D8 -> 2019-10-01 | S5: =CashFlow!D$60 -> 
R6: ='P&L'!$E8 -> 2019-11-01 | S6: =CashFlow!E$60 -> 
R7: ='P&L'!$F8 -> 2019-12-01 | S7: =CashFlow!F$60 -> 
R8: ='P&L'!$G8 -> 2020-01-01 | S8: =CashFlow!G$60 -> 
R9: ='P&L'!$H8 -> 2020-02-01 | S9: =CashFlow!H$60 -> 
R10: ='P&L'!$I8 -> 2020-03-01 | S10: =CashFlow!I$60 -> 
R11: ='P&L'!$J8 -> 2020-04-01 | S11: =CashFlow!J$60 -> 
R12: ='P&L'!$K8 -> 2020-05-01 | S12: =CashFlow!K$60 -> 
R13: ='P&L'!$L8 -> 2020-06-01 | S13: =CashFlow!L$60 -> 
R14: ='P&L'!$M8 -> 2020-07-01 | S14: =CashFlow!M$60 -> 
R15: ='P&L'!$N8 -> 2020-08-01 | S15: =CashFlow!N$60 -> 
R16: Closing | S16: =CashFlow!N$65 -> 
D79: =FundsFlow!D79 -> The information below is used to generate graphs on the Graphs (2) tab only
D80: =FundsFlow!D80 -> 0 | E80: =FundsFlow!E80 -> 0 | F80: =FundsFlow!F80 -> 0 | G80: =FundsFlow!G80 -> 0 | H80: =FundsFlow!H80 -> 0 | I80: =FundsFlow!I80 -> Opening Cash | J80: =FundsFlow!J80 -> 0
D81: =FundsFlow!D81 -> 0 | E81: =FundsFlow!E81 -> 0 | F81: =FundsFlow!F81 -> 0 | G81: =FundsFlow!G81 -> 0 | H81: =FundsFlow!H81 -> 0 | I81: =FundsFlow!I81 -> Profit | J81: =FundsFlow!J81 -> 
D82: =FundsFlow!D82 -> 0 | E82: =FundsFlow!E82 -> 0 | F82: =FundsFlow!F82 -> 0 | G82: =FundsFlow!G82 -> 0 | H82: =FundsFlow!H82 -> 0 | I82: =FundsFlow!I82 -> Stocks | J82: =FundsFlow!J82 -> 0
D83: =FundsFlow!D83 -> 0 | E83: =FundsFlow!E83 -> 0 | F83: =FundsFlow!F83 -> 0 | G83: =FundsFlow!G83 -> 0 | H83: =FundsFlow!H83 -> 0 | I83: =FundsFlow!I83 -> Work in progress | J83: =FundsFlow!J83 -> 0
D84: =FundsFlow!D84 -> 0 | E84: =FundsFlow!E84 -> 0 | F84: =FundsFlow!F84 -> 0 | G84: =FundsFlow!G84 -> 0 | H84: =FundsFlow!H84 -> 0 | I84: =FundsFlow!I84 -> Debtors | J84: =FundsFlow!J84 -> 0
D85: =FundsFlow!D85 -> 0 | E85: =FundsFlow!E85 -> 0 | F85: =FundsFlow!F85 -> 0 | G85: =FundsFlow!G85 -> 0 | H85: =FundsFlow!H85 -> 0 | I85: =FundsFlow!I85 -> Prepayments | J85: =FundsFlow!J85 -> 0
D86: =FundsFlow!D86 -> 0 | E86: =FundsFlow!E86 -> 0 | F86: =FundsFlow!F86 -> 0 | G86: =FundsFlow!G86 -> 0 | H86: =FundsFlow!H86 -> 0 | I86: =FundsFlow!I86 -> VAT | J86: =FundsFlow!J86 -> 0
D87: =FundsFlow!D87 -> 0 | E87: =FundsFlow!E87 -> 0 | F87: =FundsFlow!F87 -> 0 | G87: =FundsFlow!G87 -> 0 | H87: =FundsFlow!H87 -> 0 | I87: =FundsFlow!I87 -> Creditors and accruals | J87: =FundsFlow!J87 -> 0
D88: =FundsFlow!D88 -> 0 | E88: =FundsFlow!E88 -> 0 | F88: =FundsFlow!F88 -> 0 | G88: =FundsFlow!G88 -> 0 | H88: =FundsFlow!H88 -> 0 | I88: =FundsFlow!I88 -> PAYE and pension liability | J88: =FundsFlow!J88 -> 0
D89: =FundsFlow!D89 -> 0 | E89: =FundsFlow!E89 -> 0 | F89: =FundsFlow!F89 -> 0 | G89: =FundsFlow!G89 -> 0 | H89: =FundsFlow!H89 -> 0 | I89: =FundsFlow!I89 -> Tax paid | J89: =FundsFlow!J89 -> 0
D90: =FundsFlow!D90 -> 0 | E90: =FundsFlow!E90 -> 0 | F90: =FundsFlow!F90 -> 0 | G90: =FundsFlow!G90 -> 0 | H90: =FundsFlow!H90 -> 0 | I90: =FundsFlow!I90 -> Introduced | J90: =FundsFlow!J90 -> 0
D91: =FundsFlow!D91 -> 0 | E91: =FundsFlow!E91 -> 0 | F91: =FundsFlow!F91 -> 0 | G91: =FundsFlow!G91 -> 0 | H91: =FundsFlow!H91 -> 0 | I91: =FundsFlow!I91 -> Drawings/Directors loan Rep'ts | J91: =FundsFlow!J91 -> 0
D92: =FundsFlow!D92 -> 0 | E92: =FundsFlow!E92 -> 0 | F92: =FundsFlow!F92 -> 0 | G92: =FundsFlow!G92 -> 0 | H92: =FundsFlow!H92 -> 0 | I92: =FundsFlow!I92 -> Capital expenditure | J92: =FundsFlow!J92 -> 0
D93: =FundsFlow!D93 -> 0 | E93: =FundsFlow!E93 -> 0 | F93: =FundsFlow!F93 -> 0 | G93: =FundsFlow!G93 -> 0 | H93: =FundsFlow!H93 -> 0 | I93: =FundsFlow!I93 -> Disposal of assets | J93: =FundsFlow!J93 -> 0
D94: =FundsFlow!D94 -> 0 | E94: =FundsFlow!E94 -> 0 | F94: =FundsFlow!F94 -> 0 | G94: =FundsFlow!G94 -> 0 | H94: =FundsFlow!H94 -> 0 | I94: =FundsFlow!I94 -> Closing Cash | J94: =FundsFlow!J94 -> 

Sheet ProductSalesSummary
J2: =IF(whatifsalespercent<>0,"As adjusted for What if %","") -> 
B4: Product Sales Summary | C4: =start_date -> 2019-09-01 | D4: =EDATE(C4,1) -> 2019-10-01 | E4: =EDATE(D4,1) -> 2019-11-01 | F4: =EDATE(E4,1) -> 2019-12-01 | G4: 2020-01-01 | H4: 2020-02-01 | I4: 2020-03-01 | J4: 2020-04-01 | K4: 2020-05-01 | L4: 2020-06-01 | M4: 2020-07-01 | N4: 2020-08-01 | P4: Total
B7: Total Sales | C7: =C12+C17+C22+C27+C32 -> 0 | D7: 0 | E7: 0 | F7: 0 | G7: 0 | H7: 0 | I7: 0 | J7: 0 | K7: 0 | L7: 0 | M7: 0 | N7: 0 | P7: =SUM(C7:O7) -> 0 | V7: =P7+P8 -> 0
B8: Total Cost of Sales | C8: =C13+C18+C23+C28+C33 -> 0 | D8: 0 | E8: 0 | F8: 0 | G8: 0 | H8: 0 | I8: 0 | J8: 0 | K8: 0 | L8: 0 | M8: 0 | N8: 0 | P8: =SUM(C8:O8) -> 0
B9: Gross Profit | C9: =C7-C8 -> 0 | D9: =D7-D8 -> 0 | E9: 0 | F9: 0 | G9: 0 | H9: 0 | I9: 0 | J9: 0 | K9: 0 | L9: 0 | M9: 0 | N9: 0 | P9: =SUM(C9:O9) -> 0
B10: Gross Profit % | C10: =IFERROR(C9/C7," ") -> 
B12: =Salesinputcomplex!$A$82 -> Product 1 | C12: =IF(whatifsalespercent<>0,((Salesinputcomplex!D83*(1+whatifsalespercent)*VAT_Exclusive_percent)+(Salesinputcomplex!D84*(1+whatifsalespercent))),Salesinputcomplex!D83*VAT_Exclusive_percent+Salesinputcomplex!D84) -> 0 | D12: =IF(whatifsalespercent<>0,((Salesinputcomplex!E83*(1+whatifsalespercent)*VAT_Exclusive_percent)+(Salesinputcomplex!E84*(1+whatifsalespercent))),Salesinputcomplex!E83*VAT_Exclusive_percent+Salesinputcomplex!E84) -> 0 | E12: =IF(whatifsalespercent<>0,((Salesinputcomplex!F83*(1+whatifsalespercent)*VAT_Exclusive_percent)+(Salesinputcomplex!F84*(1+whatifsalespercent))),Salesinputcomplex!F83*VAT_Exclusive_percent+Salesinputcomplex!F84) -> 0 | F12: =IF(whatifsalespercent<>0,((Salesinputcomplex!G83*(1+whatifsalespercent)*VAT_Exclusive_percent)+(Salesinputcomplex!G84*(1+whatifsalespercent))),Salesinputcomplex!G83*VAT_Exclusive_percent+Salesinputcomplex!G84) -> 0 | G12: =IF(whatifsalespercent<>0,((Salesinputcomplex!H83*(1+whatifsalespercent)*VAT_Exclusive_percent)+(Salesinputcomplex!H84*(1+whatifsalespercent))),Salesinputcomplex!H83*VAT_Exclusive_percent+Salesinputcomplex!H84) -> 0 | H12: =IF(whatifsalespercent<>0,((Salesinputcomplex!I83*(1+whatifsalespercent)*VAT_Exclusive_percent)+(Salesinputcomplex!I84*(1+whatifsalespercent))),Salesinputcomplex!I83*VAT_Exclusive_percent+Salesinputcomplex!I84) -> 0 | I12: =IF(whatifsalespercent<>0,((Salesinputcomplex!J83*(1+whatifsalespercent)*VAT_Exclusive_percent)+(Salesinputcomplex!J84*(1+whatifsalespercent))),Salesinputcomplex!J83*VAT_Exclusive_percent+Salesinputcomplex!J84) -> 0 | J12: =IF(whatifsalespercent<>0,((Salesinputcomplex!K83*(1+whatifsalespercent)*VAT_Exclusive_percent)+(Salesinputcomplex!K84*(1+whatifsalespercent))),Salesinputcomplex!K83*VAT_Exclusive_percent+Salesinputcomplex!K84) -> 0 | K12: =IF(whatifsalespercent<>0,((Salesinputcomplex!L83*(1+whatifsalespercent)*VAT_Exclusive_percent)+(Salesinputcomplex!L84*(1+whatifsalespercent))),Salesinputcomplex!L83*VAT_Exclusive_percent+Salesinputcomplex!L84) -> 0 | L12: =IF(whatifsalespercent<>0,((Salesinputcomplex!M83*(1+whatifsalespercent)*VAT_Exclusive_percent)+(Salesinputcomplex!M84*(1+whatifsalespercent))),Salesinputcomplex!M83*VAT_Exclusive_percent+Salesinputcomplex!M84) -> 0 | M12: =IF(whatifsalespercent<>0,((Salesinputcomplex!N83*(1+whatifsalespercent)*VAT_Exclusive_percent)+(Salesinputcomplex!N84*(1+whatifsalespercent))),Salesinputcomplex!N83*VAT_Exclusive_percent+Salesinputcomplex!N84) -> 0 | N12: =IF(whatifsalespercent<>0,((Salesinputcomplex!O83*(1+whatifsalespercent)*VAT_Exclusive_percent)+(Salesinputcomplex!O84*(1+whatifsalespercent))),Salesinputcomplex!O83*VAT_Exclusive_percent+Salesinputcomplex!O84) -> 0 | P12: =SUM(C12:O12) -> 0 | V12: =P12+P13 -> 0
B13: Cost of Sales | C13: =IF(AND(whatifsalespercent<>0,whatifvariable=2),(cosalescomplex!E57*(1+whatifsalespercent))*(VAT_Exclusive_percent)+cosalescomplex!E58*(1+whatifsalespercent),(cosalescomplex!E57*(VAT_Exclusive_percent))+cosalescomplex!E58) -> 0 | D13: =IF(AND(whatifsalespercent<>0,whatifvariable=2),(cosalescomplex!F57*(1+whatifsalespercent))*(VAT_Exclusive_percent)+cosalescomplex!F58*(1+whatifsalespercent),(cosalescomplex!F57*(VAT_Exclusive_percent))+cosalescomplex!F58) -> 0 | E13: =IF(AND(whatifsalespercent<>0,whatifvariable=2),(cosalescomplex!G57*(1+whatifsalespercent))*(VAT_Exclusive_percent)+cosalescomplex!G58*(1+whatifsalespercent),(cosalescomplex!G57*(VAT_Exclusive_percent))+cosalescomplex!G58) -> 0 | F13: =IF(AND(whatifsalespercent<>0,whatifvariable=2),(cosalescomplex!H57*(1+whatifsalespercent))*(VAT_Exclusive_percent)+cosalescomplex!H58*(1+whatifsalespercent),(cosalescomplex!H57*(VAT_Exclusive_percent))+cosalescomplex!H58) -> 0 | G13: =IF(AND(whatifsalespercent<>0,whatifvariable=2),(cosalescomplex!I57*(1+whatifsalespercent))*(VAT_Exclusive_percent)+cosalescomplex!I58*(1+whatifsalespercent),(cosalescomplex!I57*(VAT_Exclusive_percent))+cosalescomplex!I58) -> 0 | H13: =IF(AND(whatifsalespercent<>0,whatifvariable=2),(cosalescomplex!J57*(1+whatifsalespercent))*(VAT_Exclusive_percent)+cosalescomplex!J58*(1+whatifsalespercent),(cosalescomplex!J57*(VAT_Exclusive_percent))+cosalescomplex!J58) -> 0 | I13: =IF(AND(whatifsalespercent<>0,whatifvariable=2),(cosalescomplex!K57*(1+whatifsalespercent))*(VAT_Exclusive_percent)+cosalescomplex!K58*(1+whatifsalespercent),(cosalescomplex!K57*(VAT_Exclusive_percent))+cosalescomplex!K58) -> 0 | J13: =IF(AND(whatifsalespercent<>0,whatifvariable=2),(cosalescomplex!L57*(1+whatifsalespercent))*(VAT_Exclusive_percent)+cosalescomplex!L58*(1+whatifsalespercent),(cosalescomplex!L57*(VAT_Exclusive_percent))+cosalescomplex!L58) -> 0 | K13: =IF(AND(whatifsalespercent<>0,whatifvariable=2),(cosalescomplex!M57*(1+whatifsalespercent))*(VAT_Exclusive_percent)+cosalescomplex!M58*(1+whatifsalespercent),(cosalescomplex!M57*(VAT_Exclusive_percent))+cosalescomplex!M58) -> 0 | L13: =IF(AND(whatifsalespercent<>0,whatifvariable=2),(cosalescomplex!N57*(1+whatifsalespercent))*(VAT_Exclusive_percent)+cosalescomplex!N58*(1+whatifsalespercent),(cosalescomplex!N57*(VAT_Exclusive_percent))+cosalescomplex!N58) -> 0 | M13: =IF(AND(whatifsalespercent<>0,whatifvariable=2),(cosalescomplex!O57*(1+whatifsalespercent))*(VAT_Exclusive_percent)+cosalescomplex!O58*(1+whatifsalespercent),(cosalescomplex!O57*(VAT_Exclusive_percent))+cosalescomplex!O58) -> 0 | N13: =IF(AND(whatifsalespercent<>0,whatifvariable=2),(cosalescomplex!P57*(1+whatifsalespercent))*(VAT_Exclusive_percent)+cosalescomplex!P58*(1+whatifsalespercent),(cosalescomplex!P57*(VAT_Exclusive_percent))+cosalescomplex!P58) -> 0 | P13: =SUM(C13:N13) -> 0
B14: Gross Profit | C14: =C12-C13 -> 0 | D14: 0 | E14: 0 | F14: 0 | G14: 0 | H14: 0 | I14: 0 | J14: 0 | K14: 0 | L14: 0 | M14: 0 | N14: 0 | P14: =SUM(C14:N14) -> 0
B15: Gross Profit % | C15: =IFERROR(C14/C12," ") ->  | P15: =IFERROR(P14/P12," ") -> 
B17: =Salesinputcomplex!$A$86 -> Product 2 | C17: =IF(whatifsalespercent<>0,((Salesinputcomplex!D87*(1+whatifsalespercent)*VAT_Exclusive_percent)+(Salesinputcomplex!D88*(1+whatifsalespercent))),Salesinputcomplex!D87*VAT_Exclusive_percent+Salesinputcomplex!D88) -> 0 | D17: =IF(whatifsalespercent<>0,((Salesinputcomplex!E87*(1+whatifsalespercent)*VAT_Exclusive_percent)+(Salesinputcomplex!E88*(1+whatifsalespercent))),Salesinputcomplex!E87*VAT_Exclusive_percent+Salesinputcomplex!E88) -> 0 | E17: =IF(whatifsalespercent<>0,((Salesinputcomplex!F87*(1+whatifsalespercent)*VAT_Exclusive_percent)+(Salesinputcomplex!F88*(1+whatifsalespercent))),Salesinputcomplex!F87*VAT_Exclusive_percent+Salesinputcomplex!F88) -> 0 | F17: =IF(whatifsalespercent<>0,((Salesinputcomplex!G87*(1+whatifsalespercent)*VAT_Exclusive_percent)+(Salesinputcomplex!G88*(1+whatifsalespercent))),Salesinputcomplex!G87*VAT_Exclusive_percent+Salesinputcomplex!G88) -> 0 | G17: =IF(whatifsalespercent<>0,((Salesinputcomplex!H87*(1+whatifsalespercent)*VAT_Exclusive_percent)+(Salesinputcomplex!H88*(1+whatifsalespercent))),Salesinputcomplex!H87*VAT_Exclusive_percent+Salesinputcomplex!H88) -> 0 | H17: =IF(whatifsalespercent<>0,((Salesinputcomplex!I87*(1+whatifsalespercent)*VAT_Exclusive_percent)+(Salesinputcomplex!I88*(1+whatifsalespercent))),Salesinputcomplex!I87*VAT_Exclusive_percent+Salesinputcomplex!I88) -> 0 | I17: =IF(whatifsalespercent<>0,((Salesinputcomplex!J87*(1+whatifsalespercent)*VAT_Exclusive_percent)+(Salesinputcomplex!J88*(1+whatifsalespercent))),Salesinputcomplex!J87*VAT_Exclusive_percent+Salesinputcomplex!J88) -> 0 | J17: =IF(whatifsalespercent<>0,((Salesinputcomplex!K87*(1+whatifsalespercent)*VAT_Exclusive_percent)+(Salesinputcomplex!K88*(1+whatifsalespercent))),Salesinputcomplex!K87*VAT_Exclusive_percent+Salesinputcomplex!K88) -> 0 | K17: =IF(whatifsalespercent<>0,((Salesinputcomplex!L87*(1+whatifsalespercent)*VAT_Exclusive_percent)+(Salesinputcomplex!L88*(1+whatifsalespercent))),Salesinputcomplex!L87*VAT_Exclusive_percent+Salesinputcomplex!L88) -> 0 | L17: =IF(whatifsalespercent<>0,((Salesinputcomplex!M87*(1+whatifsalespercent)*VAT_Exclusive_percent)+(Salesinputcomplex!M88*(1+whatifsalespercent))),Salesinputcomplex!M87*VAT_Exclusive_percent+Salesinputcomplex!M88) -> 0 | M17: =IF(whatifsalespercent<>0,((Salesinputcomplex!N87*(1+whatifsalespercent)*VAT_Exclusive_percent)+(Salesinputcomplex!N88*(1+whatifsalespercent))),Salesinputcomplex!N87*VAT_Exclusive_percent+Salesinputcomplex!N88) -> 0 | N17: =IF(whatifsalespercent<>0,((Salesinputcomplex!O87*(1+whatifsalespercent)*VAT_Exclusive_percent)+(Salesinputcomplex!O88*(1+whatifsalespercent))),Salesinputcomplex!O87*VAT_Exclusive_percent+Salesinputcomplex!O88) -> 0 | P17: =SUM(C17:O17) -> 0 | V17: =P17+P18 -> 0
B18: Cost of Sales | C18: =IF(AND(whatifsalespercent<>0,whatifvariable=2),(cosalescomplex!E61*(1+whatifsalespercent))*(VAT_Exclusive_percent)+cosalescomplex!E62*(1+whatifsalespercent),(cosalescomplex!E61*(VAT_Exclusive_percent))+cosalescomplex!E62) -> 0 | D18: =IF(AND(whatifsalespercent<>0,whatifvariable=2),(cosalescomplex!F61*(1+whatifsalespercent))*(VAT_Exclusive_percent)+cosalescomplex!F62*(1+whatifsalespercent),(cosalescomplex!F61*(VAT_Exclusive_percent))+cosalescomplex!F62) -> 0 | E18: =IF(AND(whatifsalespercent<>0,whatifvariable=2),(cosalescomplex!G61*(1+whatifsalespercent))*(VAT_Exclusive_percent)+cosalescomplex!G62*(1+whatifsalespercent),(cosalescomplex!G61*(VAT_Exclusive_percent))+cosalescomplex!G62) -> 0 | F18: =IF(AND(whatifsalespercent<>0,whatifvariable=2),(cosalescomplex!H61*(1+whatifsalespercent))*(VAT_Exclusive_percent)+cosalescomplex!H62*(1+whatifsalespercent),(cosalescomplex!H61*(VAT_Exclusive_percent))+cosalescomplex!H62) -> 0 | G18: =IF(AND(whatifsalespercent<>0,whatifvariable=2),(cosalescomplex!I61*(1+whatifsalespercent))*(VAT_Exclusive_percent)+cosalescomplex!I62*(1+whatifsalespercent),(cosalescomplex!I61*(VAT_Exclusive_percent))+cosalescomplex!I62) -> 0 | H18: =IF(AND(whatifsalespercent<>0,whatifvariable=2),(cosalescomplex!J61*(1+whatifsalespercent))*(VAT_Exclusive_percent)+cosalescomplex!J62*(1+whatifsalespercent),(cosalescomplex!J61*(VAT_Exclusive_percent))+cosalescomplex!J62) -> 0 | I18: =IF(AND(whatifsalespercent<>0,whatifvariable=2),(cosalescomplex!K61*(1+whatifsalespercent))*(VAT_Exclusive_percent)+cosalescomplex!K62*(1+whatifsalespercent),(cosalescomplex!K61*(VAT_Exclusive_percent))+cosalescomplex!K62) -> 0 | J18: =IF(AND(whatifsalespercent<>0,whatifvariable=2),(cosalescomplex!L61*(1+whatifsalespercent))*(VAT_Exclusive_percent)+cosalescomplex!L62*(1+whatifsalespercent),(cosalescomplex!L61*(VAT_Exclusive_percent))+cosalescomplex!L62) -> 0 | K18: =IF(AND(whatifsalespercent<>0,whatifvariable=2),(cosalescomplex!M61*(1+whatifsalespercent))*(VAT_Exclusive_percent)+cosalescomplex!M62*(1+whatifsalespercent),(cosalescomplex!M61*(VAT_Exclusive_percent))+cosalescomplex!M62) -> 0 | L18: =IF(AND(whatifsalespercent<>0,whatifvariable=2),(cosalescomplex!N61*(1+whatifsalespercent))*(VAT_Exclusive_percent)+cosalescomplex!N62*(1+whatifsalespercent),(cosalescomplex!N61*(VAT_Exclusive_percent))+cosalescomplex!N62) -> 0 | M18: =IF(AND(whatifsalespercent<>0,whatifvariable=2),(cosalescomplex!O61*(1+whatifsalespercent))*(VAT_Exclusive_percent)+cosalescomplex!O62*(1+whatifsalespercent),(cosalescomplex!O61*(VAT_Exclusive_percent))+cosalescomplex!O62) -> 0 | N18: =IF(AND(whatifsalespercent<>0,whatifvariable=2),(cosalescomplex!P61*(1+whatifsalespercent))*(VAT_Exclusive_percent)+cosalescomplex!P62*(1+whatifsalespercent),(cosalescomplex!P61*(VAT_Exclusive_percent))+cosalescomplex!P62) -> 0 | P18: =SUM(C18:N18) -> 0
B19: Gross Profit | C19: =C17-C18 -> 0 | D19: 0 | E19: 0 | F19: 0 | G19: 0 | H19: 0 | I19: 0 | J19: 0 | K19: 0 | L19: 0 | M19: 0 | N19: 0 | P19: =SUM(C19:N19) -> 0
B20: Gross Profit % | C20: =IFERROR(C19/C17," ") ->  | P20: =IFERROR(P19/P17," ") -> 
B22: =Salesinputcomplex!$A$90 -> Product 3 | C22: =IF(whatifsalespercent<>0,((Salesinputcomplex!D91*(1+whatifsalespercent)*VAT_Exclusive_percent)+(Salesinputcomplex!D92*(1+whatifsalespercent))),Salesinputcomplex!D91*VAT_Exclusive_percent+Salesinputcomplex!D92) -> 0 | D22: =IF(whatifsalespercent<>0,((Salesinputcomplex!E91*(1+whatifsalespercent)*VAT_Exclusive_percent)+(Salesinputcomplex!E92*(1+whatifsalespercent))),Salesinputcomplex!E91*VAT_Exclusive_percent+Salesinputcomplex!E92) -> 0 | E22: =IF(whatifsalespercent<>0,((Salesinputcomplex!F91*(1+whatifsalespercent)*VAT_Exclusive_percent)+(Salesinputcomplex!F92*(1+whatifsalespercent))),Salesinputcomplex!F91*VAT_Exclusive_percent+Salesinputcomplex!F92) -> 0 | F22: =IF(whatifsalespercent<>0,((Salesinputcomplex!G91*(1+whatifsalespercent)*VAT_Exclusive_percent)+(Salesinputcomplex!G92*(1+whatifsalespercent))),Salesinputcomplex!G91*VAT_Exclusive_percent+Salesinputcomplex!G92) -> 0 | G22: =IF(whatifsalespercent<>0,((Salesinputcomplex!H91*(1+whatifsalespercent)*VAT_Exclusive_percent)+(Salesinputcomplex!H92*(1+whatifsalespercent))),Salesinputcomplex!H91*VAT_Exclusive_percent+Salesinputcomplex!H92) -> 0 | H22: =IF(whatifsalespercent<>0,((Salesinputcomplex!I91*(1+whatifsalespercent)*VAT_Exclusive_percent)+(Salesinputcomplex!I92*(1+whatifsalespercent))),Salesinputcomplex!I91*VAT_Exclusive_percent+Salesinputcomplex!I92) -> 0 | I22: =IF(whatifsalespercent<>0,((Salesinputcomplex!J91*(1+whatifsalespercent)*VAT_Exclusive_percent)+(Salesinputcomplex!J92*(1+whatifsalespercent))),Salesinputcomplex!J91*VAT_Exclusive_percent+Salesinputcomplex!J92) -> 0 | J22: =IF(whatifsalespercent<>0,((Salesinputcomplex!K91*(1+whatifsalespercent)*VAT_Exclusive_percent)+(Salesinputcomplex!K92*(1+whatifsalespercent))),Salesinputcomplex!K91*VAT_Exclusive_percent+Salesinputcomplex!K92) -> 0 | K22: =IF(whatifsalespercent<>0,((Salesinputcomplex!L91*(1+whatifsalespercent)*VAT_Exclusive_percent)+(Salesinputcomplex!L92*(1+whatifsalespercent))),Salesinputcomplex!L91*VAT_Exclusive_percent+Salesinputcomplex!L92) -> 0 | L22: =IF(whatifsalespercent<>0,((Salesinputcomplex!M91*(1+whatifsalespercent)*VAT_Exclusive_percent)+(Salesinputcomplex!M92*(1+whatifsalespercent))),Salesinputcomplex!M91*VAT_Exclusive_percent+Salesinputcomplex!M92) -> 0 | M22: =IF(whatifsalespercent<>0,((Salesinputcomplex!N91*(1+whatifsalespercent)*VAT_Exclusive_percent)+(Salesinputcomplex!N92*(1+whatifsalespercent))),Salesinputcomplex!N91*VAT_Exclusive_percent+Salesinputcomplex!N92) -> 0 | N22: =IF(whatifsalespercent<>0,((Salesinputcomplex!O91*(1+whatifsalespercent)*VAT_Exclusive_percent)+(Salesinputcomplex!O92*(1+whatifsalespercent))),Salesinputcomplex!O91*VAT_Exclusive_percent+Salesinputcomplex!O92) -> 0 | P22: =SUM(C22:O22) -> 0 | V22: =P22+P23 -> 0
B23: Cost of Sales | C23: =IF(AND(whatifsalespercent<>0,whatifvariable=2),(cosalescomplex!E65*(1+whatifsalespercent))*(VAT_Exclusive_percent)+cosalescomplex!E66*(1+whatifsalespercent),(cosalescomplex!E65*(VAT_Exclusive_percent))+cosalescomplex!E66) -> 0 | D23: =IF(AND(whatifsalespercent<>0,whatifvariable=2),(cosalescomplex!F65*(1+whatifsalespercent))*(VAT_Exclusive_percent)+cosalescomplex!F66*(1+whatifsalespercent),(cosalescomplex!F65*(VAT_Exclusive_percent))+cosalescomplex!F66) -> 0 | E23: =IF(AND(whatifsalespercent<>0,whatifvariable=2),(cosalescomplex!G65*(1+whatifsalespercent))*(VAT_Exclusive_percent)+cosalescomplex!G66*(1+whatifsalespercent),(cosalescomplex!G65*(VAT_Exclusive_percent))+cosalescomplex!G66) -> 0 | F23: =IF(AND(whatifsalespercent<>0,whatifvariable=2),(cosalescomplex!H65*(1+whatifsalespercent))*(VAT_Exclusive_percent)+cosalescomplex!H66*(1+whatifsalespercent),(cosalescomplex!H65*(VAT_Exclusive_percent))+cosalescomplex!H66) -> 0 | G23: =IF(AND(whatifsalespercent<>0,whatifvariable=2),(cosalescomplex!I65*(1+whatifsalespercent))*(VAT_Exclusive_percent)+cosalescomplex!I66*(1+whatifsalespercent),(cosalescomplex!I65*(VAT_Exclusive_percent))+cosalescomplex!I66) -> 0 | H23: =IF(AND(whatifsalespercent<>0,whatifvariable=2),(cosalescomplex!J65*(1+whatifsalespercent))*(VAT_Exclusive_percent)+cosalescomplex!J66*(1+whatifsalespercent),(cosalescomplex!J65*(VAT_Exclusive_percent))+cosalescomplex!J66) -> 0 | I23: =IF(AND(whatifsalespercent<>0,whatifvariable=2),(cosalescomplex!K65*(1+whatifsalespercent))*(VAT_Exclusive_percent)+cosalescomplex!K66*(1+whatifsalespercent),(cosalescomplex!K65*(VAT_Exclusive_percent))+cosalescomplex!K66) -> 0 | J23: =IF(AND(whatifsalespercent<>0,whatifvariable=2),(cosalescomplex!L65*(1+whatifsalespercent))*(VAT_Exclusive_percent)+cosalescomplex!L66*(1+whatifsalespercent),(cosalescomplex!L65*(VAT_Exclusive_percent))+cosalescomplex!L66) -> 0 | K23: =IF(AND(whatifsalespercent<>0,whatifvariable=2),(cosalescomplex!M65*(1+whatifsalespercent))*(VAT_Exclusive_percent)+cosalescomplex!M66*(1+whatifsalespercent),(cosalescomplex!M65*(VAT_Exclusive_percent))+cosalescomplex!M66) -> 0 | L23: =IF(AND(whatifsalespercent<>0,whatifvariable=2),(cosalescomplex!N65*(1+whatifsalespercent))*(VAT_Exclusive_percent)+cosalescomplex!N66*(1+whatifsalespercent),(cosalescomplex!N65*(VAT_Exclusive_percent))+cosalescomplex!N66) -> 0 | M23: =IF(AND(whatifsalespercent<>0,whatifvariable=2),(cosalescomplex!O65*(1+whatifsalespercent))*(VAT_Exclusive_percent)+cosalescomplex!O66*(1+whatifsalespercent),(cosalescomplex!O65*(VAT_Exclusive_percent))+cosalescomplex!O66) -> 0 | N23: =IF(AND(whatifsalespercent<>0,whatifvariable=2),(cosalescomplex!P65*(1+whatifsalespercent))*(VAT_Exclusive_percent)+cosalescomplex!P66*(1+whatifsalespercent),(cosalescomplex!P65*(VAT_Exclusive_percent))+cosalescomplex!P66) -> 0 | P23: =SUM(C23:N23) -> 0
B24: Gross Profit | C24: =C22-C23 -> 0 | D24: 0 | E24: 0 | F24: 0 | G24: 0 | H24: 0 | I24: 0 | J24: 0 | K24: 0 | L24: 0 | M24: 0 | N24: 0 | P24: =SUM(C24:N24) -> 0
B25: Gross Profit % | C25: =IFERROR(C24/C22," ") ->  | P25: =IFERROR(P24/P22," ") -> 
B27: =Salesinputcomplex!$A$94 -> Product 4 | C27: =IF(whatifsalespercent<>0,((Salesinputcomplex!D95*(1+whatifsalespercent)*VAT_Exclusive_percent)+(Salesinputcomplex!D96*(1+whatifsalespercent))),Salesinputcomplex!D95*VAT_Exclusive_percent+Salesinputcomplex!D96) -> 0 | D27: =IF(whatifsalespercent<>0,((Salesinputcomplex!E95*(1+whatifsalespercent)*VAT_Exclusive_percent)+(Salesinputcomplex!E96*(1+whatifsalespercent))),Salesinputcomplex!E95*VAT_Exclusive_percent+Salesinputcomplex!E96) -> 0 | E27: =IF(whatifsalespercent<>0,((Salesinputcomplex!F95*(1+whatifsalespercent)*VAT_Exclusive_percent)+(Salesinputcomplex!F96*(1+whatifsalespercent))),Salesinputcomplex!F95*VAT_Exclusive_percent+Salesinputcomplex!F96) -> 0 | F27: =IF(whatifsalespercent<>0,((Salesinputcomplex!G95*(1+whatifsalespercent)*VAT_Exclusive_percent)+(Salesinputcomplex!G96*(1+whatifsalespercent))),Salesinputcomplex!G95*VAT_Exclusive_percent+Salesinputcomplex!G96) -> 0 | G27: =IF(whatifsalespercent<>0,((Salesinputcomplex!H95*(1+whatifsalespercent)*VAT_Exclusive_percent)+(Salesinputcomplex!H96*(1+whatifsalespercent))),Salesinputcomplex!H95*VAT_Exclusive_percent+Salesinputcomplex!H96) -> 0 | H27: =IF(whatifsalespercent<>0,((Salesinputcomplex!I95*(1+whatifsalespercent)*VAT_Exclusive_percent)+(Salesinputcomplex!I96*(1+whatifsalespercent))),Salesinputcomplex!I95*VAT_Exclusive_percent+Salesinputcomplex!I96) -> 0 | I27: =IF(whatifsalespercent<>0,((Salesinputcomplex!J95*(1+whatifsalespercent)*VAT_Exclusive_percent)+(Salesinputcomplex!J96*(1+whatifsalespercent))),Salesinputcomplex!J95*VAT_Exclusive_percent+Salesinputcomplex!J96) -> 0 | J27: =IF(whatifsalespercent<>0,((Salesinputcomplex!K95*(1+whatifsalespercent)*VAT_Exclusive_percent)+(Salesinputcomplex!K96*(1+whatifsalespercent))),Salesinputcomplex!K95*VAT_Exclusive_percent+Salesinputcomplex!K96) -> 0 | K27: =IF(whatifsalespercent<>0,((Salesinputcomplex!L95*(1+whatifsalespercent)*VAT_Exclusive_percent)+(Salesinputcomplex!L96*(1+whatifsalespercent))),Salesinputcomplex!L95*VAT_Exclusive_percent+Salesinputcomplex!L96) -> 0 | L27: =IF(whatifsalespercent<>0,((Salesinputcomplex!M95*(1+whatifsalespercent)*VAT_Exclusive_percent)+(Salesinputcomplex!M96*(1+whatifsalespercent))),Salesinputcomplex!M95*VAT_Exclusive_percent+Salesinputcomplex!M96) -> 0 | M27: =IF(whatifsalespercent<>0,((Salesinputcomplex!N95*(1+whatifsalespercent)*VAT_Exclusive_percent)+(Salesinputcomplex!N96*(1+whatifsalespercent))),Salesinputcomplex!N95*VAT_Exclusive_percent+Salesinputcomplex!N96) -> 0 | N27: =IF(whatifsalespercent<>0,((Salesinputcomplex!O95*(1+whatifsalespercent)*VAT_Exclusive_percent)+(Salesinputcomplex!O96*(1+whatifsalespercent))),Salesinputcomplex!O95*VAT_Exclusive_percent+Salesinputcomplex!O96) -> 0 | P27: =SUM(C27:O27) -> 0 | V27: =P27+P28 -> 0
B28: Cost of Sales | C28: =IF(AND(whatifsalespercent<>0,whatifvariable=2),(cosalescomplex!E69*(1+whatifsalespercent))*(VAT_Exclusive_percent)+cosalescomplex!E70*(1+whatifsalespercent),(cosalescomplex!E69*(VAT_Exclusive_percent))+cosalescomplex!E70) -> 0 | D28: =IF(AND(whatifsalespercent<>0,whatifvariable=2),(cosalescomplex!F69*(1+whatifsalespercent))*(VAT_Exclusive_percent)+cosalescomplex!F70*(1+whatifsalespercent),(cosalescomplex!F69*(VAT_Exclusive_percent))+cosalescomplex!F70) -> 0 | E28: =IF(AND(whatifsalespercent<>0,whatifvariable=2),(cosalescomplex!G69*(1+whatifsalespercent))*(VAT_Exclusive_percent)+cosalescomplex!G70*(1+whatifsalespercent),(cosalescomplex!G69*(VAT_Exclusive_percent))+cosalescomplex!G70) -> 0 | F28: =IF(AND(whatifsalespercent<>0,whatifvariable=2),(cosalescomplex!H69*(1+whatifsalespercent))*(VAT_Exclusive_percent)+cosalescomplex!H70*(1+whatifsalespercent),(cosalescomplex!H69*(VAT_Exclusive_percent))+cosalescomplex!H70) -> 0 | G28: =IF(AND(whatifsalespercent<>0,whatifvariable=2),(cosalescomplex!I69*(1+whatifsalespercent))*(VAT_Exclusive_percent)+cosalescomplex!I70*(1+whatifsalespercent),(cosalescomplex!I69*(VAT_Exclusive_percent))+cosalescomplex!I70) -> 0 | H28: =IF(AND(whatifsalespercent<>0,whatifvariable=2),(cosalescomplex!J69*(1+whatifsalespercent))*(VAT_Exclusive_percent)+cosalescomplex!J70*(1+whatifsalespercent),(cosalescomplex!J69*(VAT_Exclusive_percent))+cosalescomplex!J70) -> 0 | I28: =IF(AND(whatifsalespercent<>0,whatifvariable=2),(cosalescomplex!K69*(1+whatifsalespercent))*(VAT_Exclusive_percent)+cosalescomplex!K70*(1+whatifsalespercent),(cosalescomplex!K69*(VAT_Exclusive_percent))+cosalescomplex!K70) -> 0 | J28: =IF(AND(whatifsalespercent<>0,whatifvariable=2),(cosalescomplex!L69*(1+whatifsalespercent))*(VAT_Exclusive_percent)+cosalescomplex!L70*(1+whatifsalespercent),(cosalescomplex!L69*(VAT_Exclusive_percent))+cosalescomplex!L70) -> 0 | K28: =IF(AND(whatifsalespercent<>0,whatifvariable=2),(cosalescomplex!M69*(1+whatifsalespercent))*(VAT_Exclusive_percent)+cosalescomplex!M70*(1+whatifsalespercent),(cosalescomplex!M69*(VAT_Exclusive_percent))+cosalescomplex!M70) -> 0 | L28: =IF(AND(whatifsalespercent<>0,whatifvariable=2),(cosalescomplex!N69*(1+whatifsalespercent))*(VAT_Exclusive_percent)+cosalescomplex!N70*(1+whatifsalespercent),(cosalescomplex!N69*(VAT_Exclusive_percent))+cosalescomplex!N70) -> 0 | M28: =IF(AND(whatifsalespercent<>0,whatifvariable=2),(cosalescomplex!O69*(1+whatifsalespercent))*(VAT_Exclusive_percent)+cosalescomplex!O70*(1+whatifsalespercent),(cosalescomplex!O69*(VAT_Exclusive_percent))+cosalescomplex!O70) -> 0 | N28: =IF(AND(whatifsalespercent<>0,whatifvariable=2),(cosalescomplex!P69*(1+whatifsalespercent))*(VAT_Exclusive_percent)+cosalescomplex!P70*(1+whatifsalespercent),(cosalescomplex!P69*(VAT_Exclusive_percent))+cosalescomplex!P70) -> 0 | P28: =SUM(C28:N28) -> 0
B29: Gross Profit | C29: =C27-C28 -> 0 | D29: 0 | E29: 0 | F29: 0 | G29: 0 | H29: 0 | I29: 0 | J29: 0 | K29: 0 | L29: 0 | M29: 0 | N29: 0 | P29: =SUM(C29:N29) -> 0
B30: Gross Profit % | C30: =IFERROR(C29/C27," ") ->  | P30: =IFERROR(P29/P27," ") -> 
B32: =Salesinputcomplex!$A$98 -> Product 5 | C32: =IF(whatifsalespercent<>0,((Salesinputcomplex!D99*(1+whatifsalespercent)*VAT_Exclusive_percent)+(Salesinputcomplex!D100*(1+whatifsalespercent))),Salesinputcomplex!D99*VAT_Exclusive_percent+Salesinputcomplex!D100) -> 0 | D32: =IF(whatifsalespercent<>0,((Salesinputcomplex!E99*(1+whatifsalespercent)*VAT_Exclusive_percent)+(Salesinputcomplex!E100*(1+whatifsalespercent))),Salesinputcomplex!E99*VAT_Exclusive_percent+Salesinputcomplex!E100) -> 0 | E32: =IF(whatifsalespercent<>0,((Salesinputcomplex!F99*(1+whatifsalespercent)*VAT_Exclusive_percent)+(Salesinputcomplex!F100*(1+whatifsalespercent))),Salesinputcomplex!F99*VAT_Exclusive_percent+Salesinputcomplex!F100) -> 0 | F32: =IF(whatifsalespercent<>0,((Salesinputcomplex!G99*(1+whatifsalespercent)*VAT_Exclusive_percent)+(Salesinputcomplex!G100*(1+whatifsalespercent))),Salesinputcomplex!G99*VAT_Exclusive_percent+Salesinputcomplex!G100) -> 0 | G32: =IF(whatifsalespercent<>0,((Salesinputcomplex!H99*(1+whatifsalespercent)*VAT_Exclusive_percent)+(Salesinputcomplex!H100*(1+whatifsalespercent))),Salesinputcomplex!H99*VAT_Exclusive_percent+Salesinputcomplex!H100) -> 0 | H32: =IF(whatifsalespercent<>0,((Salesinputcomplex!I99*(1+whatifsalespercent)*VAT_Exclusive_percent)+(Salesinputcomplex!I100*(1+whatifsalespercent))),Salesinputcomplex!I99*VAT_Exclusive_percent+Salesinputcomplex!I100) -> 0 | I32: =IF(whatifsalespercent<>0,((Salesinputcomplex!J99*(1+whatifsalespercent)*VAT_Exclusive_percent)+(Salesinputcomplex!J100*(1+whatifsalespercent))),Salesinputcomplex!J99*VAT_Exclusive_percent+Salesinputcomplex!J100) -> 0 | J32: =IF(whatifsalespercent<>0,((Salesinputcomplex!K99*(1+whatifsalespercent)*VAT_Exclusive_percent)+(Salesinputcomplex!K100*(1+whatifsalespercent))),Salesinputcomplex!K99*VAT_Exclusive_percent+Salesinputcomplex!K100) -> 0 | K32: =IF(whatifsalespercent<>0,((Salesinputcomplex!L99*(1+whatifsalespercent)*VAT_Exclusive_percent)+(Salesinputcomplex!L100*(1+whatifsalespercent))),Salesinputcomplex!L99*VAT_Exclusive_percent+Salesinputcomplex!L100) -> 0 | L32: =IF(whatifsalespercent<>0,((Salesinputcomplex!M99*(1+whatifsalespercent)*VAT_Exclusive_percent)+(Salesinputcomplex!M100*(1+whatifsalespercent))),Salesinputcomplex!M99*VAT_Exclusive_percent+Salesinputcomplex!M100) -> 0 | M32: =IF(whatifsalespercent<>0,((Salesinputcomplex!N99*(1+whatifsalespercent)*VAT_Exclusive_percent)+(Salesinputcomplex!N100*(1+whatifsalespercent))),Salesinputcomplex!N99*VAT_Exclusive_percent+Salesinputcomplex!N100) -> 0 | N32: =IF(whatifsalespercent<>0,((Salesinputcomplex!O99*(1+whatifsalespercent)*VAT_Exclusive_percent)+(Salesinputcomplex!O100*(1+whatifsalespercent))),Salesinputcomplex!O99*VAT_Exclusive_percent+Salesinputcomplex!O100) -> 0 | P32: =SUM(C32:O32) -> 0 | V32: =P32+P33 -> 0
B33: Cost of Sales | C33: =IF(AND(whatifsalespercent<>0,whatifvariable=2),(cosalescomplex!E73*(1+whatifsalespercent))*(VAT_Exclusive_percent)+cosalescomplex!E74*(1+whatifsalespercent),(cosalescomplex!E73*(VAT_Exclusive_percent))+cosalescomplex!E74) -> 0 | D33: =cosalescomplex!F73*(VAT_Exclusive_percent)+cosalescomplex!F74 -> 0 | E33: =cosalescomplex!G73*(VAT_Exclusive_percent)+cosalescomplex!G74 -> 0 | F33: =cosalescomplex!H73*(VAT_Exclusive_percent)+cosalescomplex!H74 -> 0 | G33: =cosalescomplex!I73*(VAT_Exclusive_percent)+cosalescomplex!I74 -> 0 | H33: =cosalescomplex!J73*(VAT_Exclusive_percent)+cosalescomplex!J74 -> 0 | I33: =cosalescomplex!K73*(VAT_Exclusive_percent)+cosalescomplex!K74 -> 0 | J33: =cosalescomplex!L73*(VAT_Exclusive_percent)+cosalescomplex!L74 -> 0 | K33: =cosalescomplex!M73*(VAT_Exclusive_percent)+cosalescomplex!M74 -> 0 | L33: =cosalescomplex!N73*(VAT_Exclusive_percent)+cosalescomplex!N74 -> 0 | M33: =cosalescomplex!O73*(VAT_Exclusive_percent)+cosalescomplex!O74 -> 0 | N33: =cosalescomplex!P73*(VAT_Exclusive_percent)+cosalescomplex!P74 -> 0 | P33: =SUM(C33:N33) -> 0
B34: Gross Profit | C34: =C32-C33 -> 0 | D34: 0 | E34: 0 | F34: 0 | G34: 0 | H34: 0 | I34: 0 | J34: 0 | K34: 0 | L34: 0 | M34: 0 | N34: 0 | P34: =SUM(C34:N34) -> 0
B35: Gross Profit % | C35: =IFERROR(C34/C32," ") ->  | P35: =IFERROR(P34/P32," ") -> 

Sheet Salesinputcomplex
V1: 2 | W1: opening drs
V2: 3 | W2: sales | Z2: =sales_input_type -> 1
A3: There are two potential areas to enter Sales - General Sales in first section and Product Sales in second section - hide unwanted sections using the macro buttons above | L3: =IF(AND(O16<>0),"WARNING - there are still opening debtor balances - check this","") -> 
D4: =CashFlow!$B$11 -> Sales
A6: Opening Debtors | B6: common to both sales scenarios | E6: Ignore this section if there are no "opening balances"
D8: 1 | E8: 2 | F8: 3 | G8: 4 | H8: 5 | I8: 6 | J8: 7 | K8: 8 | L8: 9 | M8: 10 | N8: 11 | O8: 12
A10: Opening Balance Debtors | E10: =D16 -> 0 | F10: =IF(F$21=1,,E16) -> 0 | G10: =IF(G$21=1,,F16) -> 0 | H10: =IF(H$21=1,,G16) -> 0 | I10: =IF(I$21=1,,H16) -> 0 | J10: =IF(J$21=1,,I16) -> 0 | K10: =IF(K$21=1,,J16) -> 0 | L10: =IF(L$21=1,,K16) -> 0 | M10: =IF(M$21=1,,L16) -> 0 | N10: =IF(N$21=1,,M16) -> 0 | O10: =IF(O$21=1,,N16) -> 0
A12: Paid in Month (manually enter for all months) | Q12: =SUM(D12:P12) -> 0
A14: Bad debt written off | Q14: =SUM(D14:P14) -> 0
A16: Closing Debtors from opening balances | D16: =opbaldebtors-D12-D14 -> 0 | E16: =E10-E12-E14 -> 0 | F16: =F10-F12-F14 -> 0 | G16: 0 | H16: 0 | I16: 0 | J16: 0 | K16: 0 | L16: 0 | M16: 0 | N16: 0 | O16: 0
A19: Work in Progress Section | B19: only complete if there is work in progress to adjust | F19: Enter base sales figures in here - What If percentage movements will be adjusted above
D21: 1 | E21: 2 | F21: 3 | G21: 4 | H21: 5 | I21: 6 | J21: 7 | K21: 8 | L21: 9 | M21: 10 | N21: 11 | O21: 12
A22: Work in Progress
A23: Work Done exc VAT | Q23: =SUM(D23:P23) -> 0
A24: Recovery % | B24: 1 | D24: =wiprecoverypercent -> 1 | E24: 1 | F24: 1 | G24: 1 | H24: 1 | I24: 1 | J24: 1 | K24: 1 | L24: 1 | M24: 1 | N24: 1 | O24: 1
A25: Recovery | D25: =D23*D24 -> 0 | E25: =E23*E24 -> 0 | F25: 0 | G25: 0 | H25: 0 | I25: 0 | J25: 0 | K25: 0 | L25: 0 | M25: 0 | N25: 0 | O25: 0
A26: Opening Work in progress | E26: =D27 -> 0 | F26: =E27 -> 0 | G26: 0 | H26: 0 | I26: 0 | J26: 0 | K26: 0 | L26: 0 | M26: 0 | N26: 0 | O26: 0
A27: Closing Work in Progress | U27: =-HLOOKUP(monthno,D21:O27,7) -> 0 | V27: Wipbs
A29: Invoiced - carried to section below | C29: A | D29: =D25+D26-D27 -> 0 | E29: =E25+E26-E27 -> 0 | F29: 0 | G29: 0 | H29: 0 | I29: 0 | J29: 0 | K29: 0 | L29: 0 | M29: 0 | N29: 0 | O29: 0
A30: to which VAT will be added
A31: Profit and Loss - adjustment | D31: =D26-D27 -> 0 | E31: =E26-E27 -> 0 | F31: 0 | G31: 0 | H31: 0 | I31: 0 | J31: 0 | K31: 0 | L31: 0 | M31: 0 | N31: 0 | O31: 0 | Q31: =SUM(D31:P31) -> 0
A33: Complete either first or second section below
A34: Section One - General Sales | D34: 1 | E34: 2 | F34: 3 | G34: 4 | H34: 5 | I34: 6 | J34: 7 | K34: 8 | L34: 9 | M34: 10 | N34: 11 | O34: 12
A35: Reserved for What if? | C35: =IF(whatifsalespercent<>0,"What if % adj","") ->  | D35: =IF(whatifsalespercent<>1,1+whatifsalespercent,"1") -> 1 | E35: 1 | F35: 1 | G35: 1 | H35: 1 | I35: 1 | J35: 1 | K35: 1 | L35: 1 | M35: 1 | N35: 1 | O35: 1
A36: Std rate invoices gross | C36: B | D36: =(D29*stdvat+D29)*D35 -> 0 | E36: 0 | F36: 0 | G36: 0 | H36: 0 | I36: 0 | J36: 0 | K36: 0 | L36: 0 | M36: 0 | N36: 0 | O36: 0 | Q36: =SUM(D36:P36) -> 0
A37: Zero rate invoices | Q37: =SUM(D37:P37) -> 0 | S37: Summary
A38: Total | C38: =IF(whatifsalespercent<>0,"As adjusted","") ->  | D38: =SUM(D36:D37)*D35 -> 0 | E38: =SUM(E36:E37)*E35 -> 0 | F38: 0 | G38: 0 | H38: 0 | I38: 0 | J38: 0 | K38: 0 | L38: 0 | M38: 0 | N38: 0 | O38: 0 | Q38: =SUM(D38:P38) -> 0 | S38: Opening Drs
A39: Debtors b/fwd | E39: =D43 -> 0 | F39: =E43 -> 0 | G39: 0 | H39: 0 | I39: 0 | J39: 0 | K39: 0 | L39: 0 | M39: 0 | N39: 0 | O39: 0 | S39: Invoices service | V39: =Q38 -> 0
A40: Bad debts | D40: =-E172 -> 0 | E40: =-F172 -> 0 | F40: 0 | G40: 0 | H40: 0 | I40: 0 | J40: 0 | K40: 0 | L40: 0 | M40: 0 | N40: 0 | O40: 0 | Q40: =SUM(D40:P40) -> 0 | S40: Paid Service | W40: =Q41 -> 0
A41: Paid sales | D41: =-E173 -> 0 | E41: =-F173 -> 0 | F41: 0 | G41: 0 | H41: 0 | I41: 0 | J41: 0 | K41: 0 | L41: 0 | M41: 0 | N41: 0 | O41: 0 | Q41: =SUM(D41:P41) -> 0 | S41: Closing Debtors service | W41: =O43 -> 0
D42: 1 | E42: 2 | F42: 3 | G42: 4 | H42: 5 | I42: 6 | J42: 7 | K42: 8 | L42: 9 | M42: 10 | N42: 11 | O42: 12 | S42: Bad Debts | W42: =Q40 -> 0
A43: Total Debtors - Balance Sheet | D43: =D38-D40-D41 -> 0 | E43: =E39+E38-E40-E41 -> 0 | F43: =F39+F38-F40-F41 -> 0 | G43: 0 | H43: 0 | I43: 0 | J43: 0 | K43: 0 | L43: 0 | M43: 0 | N43: 0 | O43: 0 | V43: =SUM(V39:V42) -> 0 | W43: =SUM(W39:W42) -> 0
A45: Vat on invoices | D45: =D36*(1-VAT_Exclusive_percent)*D35 -> 0 | E45: 0 | F45: 0 | G45: 0 | H45: 0 | I45: 0 | J45: 0 | K45: 0 | L45: 0 | M45: 0 | N45: 0 | O45: 0 | Q45: =SUM(D45:P45) -> 0
A47: Vat Element to VAT Account | D47: =D45 -> 0 | E47: =E45 -> 0 | F47: 0 | G47: 0 | H47: 0 | I47: 0 | J47: 0 | K47: 0 | L47: 0 | M47: 0 | N47: 0 | O47: 0 | Q47: =SUM(D47:P47) -> 0
A49: Profit and Loss | D49: =D38-D47 -> 0 | E49: 0 | F49: 0 | G49: 0 | H49: 0 | I49: 0 | J49: 0 | K49: 0 | L49: 0 | M49: 0 | N49: 0 | O49: 0 | Q49: =SUM(D49:P49) -> 0
A54: Section Two - Product/Department type | D54: 1 | E54: 2 | F54: 3 | G54: 4 | H54: 5 | I54: 6 | J54: 7 | K54: 8 | L54: 9 | M54: 10 | N54: 11 | O54: 12
A55: Reserved for What if? | C55: =IF(whatifsalespercent<>0,"What if % adj","") ->  | D55: =1+whatifsalespercent -> 1 | E55: 1 | F55: 1 | G55: 1 | H55: 1 | I55: 1 | J55: 1 | K55: 1 | L55: 1 | M55: 1 | N55: 1 | O55: 1
A56: Opening debtors Product line sales | E56: =IF(E$44=1,,D67) -> 0 | F56: 0 | G56: 0 | H56: 0 | I56: 0 | J56: 0 | K56: 0 | L56: 0 | M56: 0 | N56: 0 | O56: 0
A58: Sales by Product Line - Enter in table below - do not enter here
A59: Std rate invoices gross | C59: =IF(whatifsalespercent<>0,"As adjusted","") ->  | D59: =D102*D55 -> 0 | E59: =E102*E55 -> 0 | F59: 0 | G59: 0 | H59: 0 | I59: 0 | J59: 0 | K59: 0 | L59: 0 | M59: 0 | N59: 0 | O59: 0 | Q59: =SUM(D59:P59) -> 0
A60: Zero rate invoices | C60: =IF(whatifsalespercent<>0,"As adjusted","") ->  | D60: =D103*D55 -> 0 | E60: =E103*E55 -> 0 | F60: 0 | G60: 0 | H60: 0 | I60: 0 | J60: 0 | K60: 0 | L60: 0 | M60: 0 | N60: 0 | O60: 0 | Q60: =SUM(D60:P60) -> 0
A61: Total | D61: =D59+D60 -> 0 | E61: =E59+E60 -> 0 | F61: 0 | G61: 0 | H61: 0 | I61: 0 | J61: 0 | K61: 0 | L61: 0 | M61: 0 | N61: 0 | O61: 0 | Q61: =SUM(D61:P61) -> 0
V62: =SUM(V58:V61) -> 0 | W62: =SUM(W58:W61) -> 0
A64: Paid Product Line sales | D64: =D143 -> 0 | E64: =E143 -> 0 | F64: 0 | G64: 0 | H64: 0 | I64: 0 | J64: 0 | K64: 0 | L64: 0 | M64: 0 | N64: 0 | O64: 0 | P64: 0 | Q64: =SUM(D64:P64) -> 0
A65: Bad Debts -product line sales | D65: =D142 -> 0 | E65: =E142 -> 0 | F65: 0 | G65: 0 | H65: 0 | I65: 0 | J65: 0 | K65: 0 | L65: 0 | M65: 0 | N65: 0 | O65: 0 | P65: 0 | Q65: =SUM(D65:P65) -> 0
A67: Closing Debtors - product line sales | D67: =D56+D61+D64+D65 -> 0 | E67: =E56+E61+E64+E65 -> 0 | F67: 0 | G67: 0 | H67: 0 | I67: 0 | J67: 0 | K67: 0 | L67: 0 | M67: 0 | N67: 0 | O67: 0 | P67: 0
D68: 1 | E68: 2 | F68: 3 | G68: 4 | H68: 5 | I68: 6 | J68: 7 | K68: 8 | L68: 9 | M68: 10 | N68: 11 | O68: 12
A69: Total Debtors - Balance Sheet | D69: =D67 -> 0 | E69: =E67 -> 0 | F69: 0 | G69: 0 | H69: 0 | I69: 0 | J69: 0 | K69: 0 | L69: 0 | M69: 0 | N69: 0 | O69: 0 | U69: =HLOOKUP(monthno,D68:O69,2) -> 0
A71: Vat on invoices | D71: =D59*(1-VAT_Exclusive_percent) -> 0 | E71: 0 | F71: 0 | G71: 0 | H71: 0 | I71: 0 | J71: 0 | K71: 0 | L71: 0 | M71: 0 | N71: 0 | O71: 0 | Q71: =SUM(D71:P71) -> 0
A73: Vat Element to VAT Account | D73: =D72+D71 -> 0 | E73: =E72+E71 -> 0 | F73: 0 | G73: 0 | H73: 0 | I73: 0 | J73: 0 | K73: 0 | L73: 0 | M73: 0 | N73: 0 | O73: 0 | Q73: =SUM(D73:P73) -> 0
A75: Profit and Loss | D75: =D61-D73 -> 0 | E75: 0 | F75: 0 | G75: 0 | H75: 0 | I75: 0 | J75: 0 | K75: 0 | L75: 0 | M75: 0 | N75: 0 | O75: 0 | Q75: =SUM(D75:P75) -> 0
A78: Second Sales Section - Product type
A80: Sales by Product Line - data entry | C80: GP % | D80: Enter base sales figures in here - What If percentage movements will be adjusted above
A82: Product 1
A83: Std rate invoices gross | C83: 0.4 | Q83: =SUM(D83:P83) -> 0
A84: Zero rate invoices | C84: =C83 -> 0.4 | Q84: =SUM(D84:P84) -> 0
A86: Product 2
A87: Std rate invoices gross | C87: 0.25 | Q87: =SUM(D87:P87) -> 0
A88: Zero rate invoices | C88: =C87 -> 0.25 | Q88: 0
A90: Product 3
A91: Std rate invoices gross | C91: 0.2 | Q91: =SUM(D91:P91) -> 0
A92: Zero rate invoices | C92: =C91 -> 0.2 | Q92: 0
A94: Product 4
A95: Std rate invoices gross | C95: 0.1 | Q95: =SUM(D95:P95) -> 0
A96: Zero rate invoices | C96: =C95 -> 0.1 | Q96: 0
A98: Product 5
A99: Std rate invoices gross | Q99: =SUM(D99:P99) -> 0
A100: Zero rate invoices | C100: =C99 -> 0 | Q100: 0
A102: Total Gross | D102: =D83+D87+D91+D95+D99 -> 0 | E102: =E83+E87+E91+E95+E99 -> 0 | F102: 0 | G102: 0 | H102: 0 | I102: 0 | J102: 0 | K102: 0 | L102: 0 | M102: 0 | N102: 0 | O102: 0 | P102: 0 | Q102: 0
A103: Total Zero rate | D103: =D84+D88+D92+D96+D100 -> 0 | E103: =E84+E88+E92+E96+E100 -> 0 | F103: 0 | G103: 0 | H103: 0 | I103: 0 | J103: 0 | K103: 0 | L103: 0 | M103: 0 | N103: 0 | O103: 0 | P103: 0 | Q103: 0
A116: Workings Section Below - No data entry
D118: =SUM(E118:I118) -> 0.95 | E118: =cashcol0 -> 0.4 | F118: =cashcol1 -> 0.25 | G118: =cashcol2 -> 0.15 | H118: =cashcol3 -> 0.1 | I118: =cashcol4 -> 0.05
A120: Calculation section - departmental | E120: 1 | F120: 2 | G120: 3 | H120: 4 | I120: 5 | J120: 6 | K120: 7 | L120: 8 | M120: 9 | N120: 10 | O120: 11 | P120: 12
C121: Section 2 | D121: Total
A122: 1 | C122: =OFFSET($C$61,,A122) -> 0 | D122: =B122+C122 -> 0 | E122: =IF(E$120-$A122>=0,OFFSET(E$118,,1-$A122),)*$D122 -> 0 | F122: =IF(F$120-$A122>=0,OFFSET(F$118,,1-$A122),)*$D122 -> 0 | G122: 0 | H122: 0 | I122: 0 | J122: 0 | K122: 0 | L122: 0 | M122: 0 | N122: 0 | O122: 0 | P122: 0
A123: 2 | C123: =OFFSET($C$61,,A123) -> 0 | D123: =B123+C123 -> 0 | E123: =IF(E$120-$A123>=0,OFFSET(E$118,,1-$A123),)*$D123 -> 0 | F123: 0 | G123: 0 | H123: 0 | I123: 0 | J123: 0 | K123: 0 | L123: 0 | M123: 0 | N123: 0 | O123: 0 | P123: 0
A124: 3 | C124: 0 | D124: 0 | E124: 0 | F124: 0 | G124: 0 | H124: 0 | I124: 0 | J124: 0 | K124: 0 | L124: 0 | M124: 0 | N124: 0 | O124: 0 | P124: 0
A125: 4 | C125: 0 | D125: 0 | E125: 0 | F125: 0 | G125: 0 | H125: 0 | I125: 0 | J125: 0 | K125: 0 | L125: 0 | M125: 0 | N125: 0 | O125: 0 | P125: 0
A126: 5 | C126: 0 | D126: 0 | E126: 0 | F126: 0 | G126: 0 | H126: 0 | I126: 0 | J126: 0 | K126: 0 | L126: 0 | M126: 0 | N126: 0 | O126: 0 | P126: 0
A127: 6 | C127: 0 | D127: 0 | E127: 0 | F127: 0 | G127: 0 | H127: 0 | I127: 0 | J127: 0 | K127: 0 | L127: 0 | M127: 0 | N127: 0 | O127: 0 | P127: 0
A128: 7 | C128: 0 | D128: 0 | E128: 0 | F128: 0 | G128: 0 | H128: 0 | I128: 0 | J128: 0 | K128: 0 | L128: 0 | M128: 0 | N128: 0 | O128: 0 | P128: 0
A129: 8 | C129: 0 | D129: 0 | E129: 0 | F129: 0 | G129: 0 | H129: 0 | I129: 0 | J129: 0 | K129: 0 | L129: 0 | M129: 0 | N129: 0 | O129: 0 | P129: 0
A130: 9 | C130: 0 | D130: 0 | E130: 0 | F130: 0 | G130: 0 | H130: 0 | I130: 0 | J130: 0 | K130: 0 | L130: 0 | M130: 0 | N130: 0 | O130: 0 | P130: 0
A131: 10 | C131: 0 | D131: 0 | E131: 0 | F131: 0 | G131: 0 | H131: 0 | I131: 0 | J131: 0 | K131: 0 | L131: 0 | M131: 0 | N131: 0 | O131: 0 | P131: 0
A132: 11 | C132: 0 | D132: 0 | E132: 0 | F132: 0 | G132: 0 | H132: 0 | I132: 0 | J132: 0 | K132: 0 | L132: 0 | M132: 0 | N132: 0 | O132: 0 | P132: 0
A133: 12 | C133: 0 | D133: 0 | E133: 0 | F133: 0 | G133: 0 | H133: 0 | I133: 0 | J133: 0 | K133: 0 | L133: 0 | M133: 0 | N133: 0 | O133: 0 | P133: 0
E135: =SUM(E122:E134) -> 0 | F135: =SUM(F122:F134) -> 0 | G135: 0 | H135: 0 | I135: 0 | J135: 0 | K135: 0 | L135: 0 | M135: 0 | N135: 0 | O135: 0 | P135: 0
B137: bad debts | C137: =baddebtpercent -> 0.05
C138: =baddebtmonth -> 6 | E138: =IF(E$120-$C$138<0,,OFFSET(E$141,,1-$C$138))*$C$137 -> 0 | F138: =IF(F$120-$C$138<0,,OFFSET(F$141,,1-$C$138))*$C$137 -> 0 | G138: 0 | H138: 0 | I138: 0 | J138: 0 | K138: 0 | L138: 0 | M138: 0 | N138: 0 | O138: 0 | P138: 0
B140: Opening Debtors | F140: =E144 -> 0 | G140: =F144 -> 0 | H140: 0 | I140: 0 | J140: 0 | K140: 0 | L140: 0 | M140: 0 | N140: 0 | O140: 0 | P140: 0
B141: Sales | E141: =D122 -> 0 | F141: =D123 -> 0 | G141: =D124 -> 0 | H141: =D125 -> 0 | I141: =D126 -> 0 | J141: =D127 -> 0 | K141: =D128 -> 0 | L141: =D129 -> 0 | M141: =D130 -> 0 | N141: =D131 -> 0 | O141: =D132 -> 0 | P141: =D133 -> 0
B142: bad debts | E142: =-E138 -> 0 | F142: =-F138 -> 0 | G142: 0 | H142: 0 | I142: 0 | J142: 0 | K142: 0 | L142: 0 | M142: 0 | N142: 0 | O142: 0 | P142: 0
B143: receipts | E143: =-E135 -> 0 | F143: =-F135 -> 0 | G143: 0 | H143: 0 | I143: 0 | J143: 0 | K143: 0 | L143: 0 | M143: 0 | N143: 0 | O143: 0 | P143: 0
B144: closing debtors | E144: =SUM(E140:E143) -> 0 | F144: =SUM(F140:F143) -> 0 | G144: 0 | H144: 0 | I144: 0 | J144: 0 | K144: 0 | L144: 0 | M144: 0 | N144: 0 | O144: 0 | P144: 0
D148: =SUM(E148:I148) -> 0.95 | E148: =cashcol0 -> 0.4 | F148: =cashcol1 -> 0.25 | G148: =cashcol2 -> 0.15 | H148: =cashcol3 -> 0.1 | I148: =cashcol4 -> 0.05
A150: Calculation section Sales | E150: 1 | F150: 2 | G150: 3 | H150: 4 | I150: 5 | J150: 6 | K150: 7 | L150: 8 | M150: 9 | N150: 10 | O150: 11 | P150: 12
B151: Section 1 | D151: Total
A152: 1 | B152: =OFFSET($C$38,,A152) -> 0 | D152: =B152+C152 -> 0 | E152: =IF(E$120-$A152>=0,OFFSET(E$118,,1-$A152),)*$D152 -> 0 | F152: =IF(F$120-$A152>=0,OFFSET(F$118,,1-$A152),)*$D152 -> 0 | G152: 0 | H152: 0 | I152: 0 | J152: 0 | K152: 0 | L152: 0 | M152: 0 | N152: 0 | O152: 0 | P152: 0
A153: 2 | B153: =OFFSET($C$38,,A153) -> 0 | D153: =B153+C153 -> 0 | E153: =IF(E$120-$A153>=0,OFFSET(E$118,,1-$A153),)*$D153 -> 0 | F153: 0 | G153: 0 | H153: 0 | I153: 0 | J153: 0 | K153: 0 | L153: 0 | M153: 0 | N153: 0 | O153: 0 | P153: 0
A154: 3 | B154: 0 | D154: 0 | E154: 0 | F154: 0 | G154: 0 | H154: 0 | I154: 0 | J154: 0 | K154: 0 | L154: 0 | M154: 0 | N154: 0 | O154: 0 | P154: 0
A155: 4 | B155: 0 | D155: 0 | E155: 0 | F155: 0 | G155: 0 | H155: 0 | I155: 0 | J155: 0 | K155: 0 | L155: 0 | M155: 0 | N155: 0 | O155: 0 | P155: 0
A156: 5 | B156: 0 | D156: 0 | E156: 0 | F156: 0 | G156: 0 | H156: 0 | I156: 0 | J156: 0 | K156: 0 | L156: 0 | M156: 0 | N156: 0 | O156: 0 | P156: 0
A157: 6 | B157: 0 | D157: 0 | E157: 0 | F157: 0 | G157: 0 | H157: 0 | I157: 0 | J157: 0 | K157: 0 | L157: 0 | M157: 0 | N157: 0 | O157: 0 | P157: 0
A158: 7 | B158: 0 | D158: 0 | E158: 0 | F158: 0 | G158: 0 | H158: 0 | I158: 0 | J158: 0 | K158: 0 | L158: 0 | M158: 0 | N158: 0 | O158: 0 | P158: 0
A159: 8 | B159: 0 | D159: 0 | E159: 0 | F159: 0 | G159: 0 | H159: 0 | I159: 0 | J159: 0 | K159: 0 | L159: 0 | M159: 0 | N159: 0 | O159: 0 | P159: 0
A160: 9 | B160: 0 | D160: 0 | E160: 0 | F160: 0 | G160: 0 | H160: 0 | I160: 0 | J160: 0 | K160: 0 | L160: 0 | M160: 0 | N160: 0 | O160: 0 | P160: 0
A161: 10 | B161: 0 | D161: 0 | E161: 0 | F161: 0 | G161: 0 | H161: 0 | I161: 0 | J161: 0 | K161: 0 | L161: 0 | M161: 0 | N161: 0 | O161: 0 | P161: 0
A162: 11 | B162: 0 | D162: 0 | E162: 0 | F162: 0 | G162: 0 | H162: 0 | I162: 0 | J162: 0 | K162: 0 | L162: 0 | M162: 0 | N162: 0 | O162: 0 | P162: 0
A163: 12 | B163: 0 | D163: 0 | E163: 0 | F163: 0 | G163: 0 | H163: 0 | I163: 0 | J163: 0 | K163: 0 | L163: 0 | M163: 0 | N163: 0 | O163: 0 | P163: 0
E165: =SUM(E152:E164) -> 0 | F165: =SUM(F152:F164) -> 0 | G165: =SUM(G152:G164) -> 0 | H165: =SUM(H152:H164) -> 0 | I165: =SUM(I152:I164) -> 0 | J165: =SUM(J152:J164) -> 0 | K165: =SUM(K152:K164) -> 0 | L165: =SUM(L152:L164) -> 0 | M165: =SUM(M152:M164) -> 0 | N165: =SUM(N152:N164) -> 0 | O165: =SUM(O152:O164) -> 0 | P165: =SUM(P152:P164) -> 0
B167: bad debts | C167: =baddebtpercent -> 0.05
C168: =baddebtmonth -> 6 | E168: =IF(E$150-$C$168<0,,OFFSET(E$171,,1-$C$168))*$C$167 -> 0 | F168: 0 | G168: 0 | H168: 0 | I168: 0 | J168: =IF(J$150-$C$168<0,,OFFSET(J$171,,1-$C$168))*$C$167 -> 0 | K168: =IF(K$150-$C$168<0,,OFFSET(K$171,,1-$C$168))*$C$167 -> 0 | L168: 0 | M168: 0 | N168: 0 | O168: 0 | P168: 0
B170: Opening Debtors | F170: =E174 -> 0 | G170: =F174 -> 0 | H170: 0 | I170: 0 | J170: 0 | K170: 0 | L170: 0 | M170: 0 | N170: 0 | O170: 0 | P170: 0
B171: Sales | E171: =D152 -> 0 | F171: =D153 -> 0 | G171: =D154 -> 0 | H171: =D155 -> 0 | I171: =D156 -> 0 | J171: =D157 -> 0 | K171: =D158 -> 0 | L171: =D159 -> 0 | M171: =D160 -> 0 | N171: =D161 -> 0 | O171: =D162 -> 0 | P171: =D163 -> 0
B172: bad debts | E172: =-E168 -> 0 | F172: =-F168 -> 0 | G172: 0 | H172: 0 | I172: 0 | J172: 0 | K172: 0 | L172: 0 | M172: 0 | N172: 0 | O172: 0 | P172: 0
B173: receipts | E173: =-E165 -> 0 | F173: =-F165 -> 0 | G173: 0 | H173: 0 | I173: 0 | J173: 0 | K173: 0 | L173: 0 | M173: 0 | N173: 0 | O173: 0 | P173: 0
B174: closing debtors | E174: =SUM(E170:E173) -> 0 | F174: =SUM(F170:F173) -> 0 | G174: =SUM(G170:G173) -> 0 | H174: =SUM(H170:H173) -> 0 | I174: =SUM(I170:I173) -> 0 | J174: =SUM(J170:J173) -> 0 | K174: =SUM(K170:K173) -> 0 | L174: =SUM(L170:L173) -> 0 | M174: =SUM(M170:M173) -> 0 | N174: =SUM(N170:N173) -> 0 | O174: =SUM(O170:O173) -> 0 | P174: =SUM(P170:P173) -> 0
A177: Total of two sections | B177: Opening Drs | F177: =E181 -> 0 | G177: =F181 -> 0 | H177: 0 | I177: 0 | J177: 0 | K177: 0 | L177: 0 | M177: 0 | N177: 0 | O177: 0 | P177: 0
B178: Sales | E178: =E171+E141 -> 0 | F178: =F171+F141 -> 0 | G178: 0 | H178: 0 | I178: 0 | J178: 0 | K178: 0 | L178: 0 | M178: 0 | N178: 0 | O178: 0 | P178: 0
B179: bad debts | E179: =E172+E142 -> 0 | F179: =F172+F142 -> 0 | G179: 0 | H179: 0 | I179: 0 | J179: 0 | K179: 0 | L179: 0 | M179: 0 | N179: 0 | O179: 0 | P179: 0
B180: Receipts | E180: =E173+E143 -> 0 | F180: =F173+F143 -> 0 | G180: 0 | H180: 0 | I180: 0 | J180: 0 | K180: 0 | L180: 0 | M180: 0 | N180: 0 | O180: 0 | P180: 0
E181: =SUM(E177:E180) -> 0 | F181: =SUM(F177:F180) -> 0 | G181: 0 | H181: 0 | I181: 0 | J181: 0 | K181: 0 | L181: 0 | M181: 0 | N181: 0 | O181: 0 | P181: 0
A183: Opening balances | B183: Receipts | E183: =D12 -> 0 | F183: 0 | G183: 0 | H183: 0 | I183: 0 | J183: 0 | K183: 0 | L183: 0 | M183: 0 | N183: 0 | O183: 0 | P183: 0
B184: Bad debt | E184: =D14 -> 0 | F184: 0 | G184: 0 | H184: 0 | I184: 0 | J184: 0 | K184: 0 | L184: 0 | M184: 0 | N184: 0 | O184: 0 | P184: 0
A187: Overall total to cashFlow | E187: 1 | F187: 2 | G187: 3 | H187: 4 | I187: 5 | J187: 6 | K187: 7 | L187: 8 | M187: 9 | N187: 10 | O187: 11 | P187: 12
B188: opening debtors | E188: =opbaldebtors -> 0 | F188: =E193 -> 0 | G188: =F193 -> 0 | H188: 0 | I188: 0 | J188: 0 | K188: 0 | L188: 0 | M188: 0 | N188: 0 | O188: 0 | P188: 0 | R188: =E188 -> 0
B189: Sales | E189: =E178 -> 0 | F189: =F178 -> 0 | G189: 0 | H189: 0 | I189: 0 | J189: 0 | K189: 0 | L189: 0 | M189: 0 | N189: 0 | O189: 0 | P189: 0 | R189: =SUM(E189:Q189) -> 0 | T189: =HLOOKUP(monthno,E187:P193,7) -> 0
A190: Overall total to cashFlow | B190: bad debts | E190: =(E$179-E$184)*VAT_Exclusive_percent -> 0 | F190: 0 | G190: 0 | H190: 0 | I190: 0 | J190: 0 | K190: 0 | L190: 0 | M190: 0 | N190: 0 | O190: 0 | P190: 0 | R190: =SUM(E190:Q190) -> 0
A191: Vat on Bad debts to VAT Acct | B191: Vat on Bad Debts | E191: =(E$179-E$184)*(1-VAT_Exclusive_percent) -> 0 | F191: 0 | G191: 0 | H191: 0 | I191: 0 | J191: 0 | K191: 0 | L191: 0 | M191: 0 | N191: 0 | O191: 0 | P191: 0 | R191: =SUM(E191:Q191) -> 0
A192: Overall total to cashFlow | B192: Receipts | E192: =E180-E183 -> 0 | F192: =F180-F183 -> 0 | G192: 0 | H192: 0 | I192: 0 | J192: 0 | K192: 0 | L192: 0 | M192: 0 | N192: 0 | O192: 0 | P192: 0 | R192: =SUM(E192:Q192) -> 0
A193: Overall total to balance sheet | B193: C/Fwd | E193: =SUM(E188:E192) -> 0 | F193: =SUM(F188:F192) -> 0 | G193: 0 | H193: 0 | I193: 0 | J193: 0 | K193: 0 | L193: 0 | M193: 0 | N193: 0 | O193: 0 | P193: 0
A195: Profit and Loss | E195: =D49+D75 -> 0 | F195: =E49+E75 -> 0 | G195: 0 | H195: 0 | I195: 0 | J195: 0 | K195: 0 | L195: 0 | M195: 0 | N195: 0 | O195: 0 | P195: 0
A197: VAT Account Outputs | E197: =D45+D71 -> 0 | F197: =E45+E71 -> 0 | G197: 0 | H197: 0 | I197: 0 | J197: 0 | K197: 0 | L197: 0 | M197: 0 | N197: 0 | O197: 0 | P197: 0
A198: VAT Account Inputs | E198: =-E191 -> 0 | F198: =-F191 -> 0 | G198: 0 | H198: 0 | I198: 0 | J198: 0 | K198: 0 | L198: 0 | M198: 0 | N198: 0 | O198: 0 | P198: 0

Sheet cosalescomplex
E4: =CashFlow!B22 -> Purchases of goods for resale
C5: Days credit suppliers | G5: =days_credit_suppliers -> 30 | H5: =IF(Average_days_in_month,INT(G5/Average_days_in_month)) -> 1 | I5: =IF(Average_days_in_month,MOD(G5,Average_days_in_month)/Average_days_in_month,) -> 0
A7: Warning -the boxes shaded | C7: are prepopulated with links to the product sales table. You can overwrite if you are not using the table and reinstate with the FormulaFix button in neceessary.
E8: 1 | F8: 2 | G8: 3 | H8: 4 | I8: 5 | J8: 6 | K8: 7 | L8: 8 | M8: 9 | N8: 10 | O8: 11 | P8: 12
E9: =IF(E$8=1,,D33) -> 0 | F9: 0 | G9: 0 | H9: 0 | I9: 0 | J9: 0 | K9: 0 | L9: 0 | M9: 0 | N9: 0 | O9: 0 | P9: 0 | R9: =SUM(E9:Q9) -> 0 | T9: Check | U9: Opening | V9: =E45 -> 0
A10: Reserved for What if? | D10: =IF(AND(whatifvariable=2,whatifsalespercent<>0),"What if % Adj","") ->  | E10: =IF(AND(whatifvariable=2,whatifsalespercent<>0),1+whatifsalespercent,1) -> 1 | F10: =IF(AND(whatifvariable=2,whatifsalespercent<>0),1+whatifsalespercent,1) -> 1 | G10: 1 | H10: 1 | I10: 1 | J10: 1 | K10: 1 | L10: 1 | M10: 1 | N10: 1 | O10: 1 | P10: 1 | U10: Purchases | V10: =R19 -> 0
A11: Std rate invoices - actual cost of goods sold inc VAT | E11: =E76 -> 0 | F11: =F76 -> 0 | G11: 0 | H11: 0 | I11: 0 | J11: 0 | K11: 0 | L11: 0 | M11: 0 | N11: 0 | O11: 0 | P11: 0 | R11: =SUM(E11:Q11) -> 0 | U11: Paid | V11: =-R29-F48-G48 -> 0
A12: Zero rate invoices | E12: =E77 -> 0 | F12: =F77 -> 0 | G12: 0 | H12: 0 | I12: 0 | J12: 0 | K12: 0 | L12: 0 | M12: 0 | N12: 0 | O12: 0 | P12: 0 | R12: =SUM(E12:Q12) -> 0 | U12: Closing | V12: =-P33 -> 0
A13: Total | E13: =SUM(E11:E12) -> 0 | F13: =SUM(F11:F12) -> 0 | G13: 0 | H13: 0 | I13: 0 | J13: 0 | K13: 0 | L13: 0 | M13: 0 | N13: 0 | O13: 0 | P13: 0
A14: Reserved for What if? | D14: =IF(AND(whatifvariable=2,whatifsalespercent<>0),"As adjusted","") ->  | E14: =IF(AND(whatifvariable=2,whatifsalespercent<>0),1+whatifsalespercent,1) -> 1 | F14: 1 | G14: 1 | H14: 1 | I14: 1 | J14: 1 | K14: 1 | L14: 1 | M14: 1 | N14: 1 | O14: 1 | P14: 1
A15: Opening Stock exc VAT Std rated | F15: =E17 -> 0 | G15: =F17 -> 0 | H15: 0 | I15: 0 | J15: 0 | K15: 0 | L15: 0 | M15: 0 | N15: 0 | O15: 0 | P15: 0
A16: Opening Stock - zero rated | F16: =E18 -> 0 | G16: =F18 -> 0 | H16: 0 | I16: 0 | J16: 0 | K16: 0 | L16: 0 | M16: 0 | N16: 0 | O16: 0 | P16: 0
A17: Closing Stock exc VAT Std rated
A18: Closing Stock - zero rated | F18: =F16 -> 0 | G18: =G16 -> 0 | H18: 0 | I18: 0 | J18: 0 | K18: 0 | L18: 0 | M18: 0 | N18: 0 | O18: 0 | P18: 0
A19: Purchases required -cost of sales and stock - Std rated | D19: =IF(AND(whatifvariable=2,whatifsalespercent<>0),"As adjusted","") ->  | E19: =(E11*E10)+((((E17-E15)*stdvat)*E10)+(E17-E15)*E10)+((+E12+E18-E16)*E10) -> 0 | F19: =IF((F11*F10)+((((F17-F15)*stdvat)*F10)+(F17-F15)*F10)+((+F12+F18-F16)*F10)<0,0,((F11*F10)+((((F17-F15)*stdvat)*F10)+(F17-F15)*F10)+((+F12+F18-F16)*F10))) -> 0 | G19: 0 | H19: 0 | I19: 0 | J19: 0 | K19: 0 | L19: 0 | M19: 0 | N19: 0 | O19: 0 | P19: 0 | R19: =SUM(E19:Q19) -> 0
A21: VAT on Purchases Memo | D21: =IF(AND(whatifvariable=2,whatifsalespercent<>0),"As adjusted","") ->  | E21: =(E17-E15)*stdvat*E14+((E11*(1-VAT_Exclusive_percent)*E14)) -> 0 | F21: 0 | G21: 0 | H21: 0 | I21: 0 | J21: 0 | K21: 0 | L21: 0 | M21: 0 | N21: 0 | O21: 0 | P21: 0 | R21: =SUM(E21:Q21) -> 0
A24: Memo information
A25: Net Stock Movement - Std rated ex VAT | D25: =IF(AND(whatifvariable=2,whatifsalespercent<>0),"As adjusted","") ->  | E25: =(E17-E15)*E14 -> 0 | F25: =(F17-F15)*F14 -> 0 | G25: 0 | H25: 0 | I25: 0 | J25: 0 | K25: 0 | L25: 0 | M25: 0 | N25: 0 | O25: 0 | P25: 0 | R25: =SUM(E25:Q25) -> 0
A26: Net Stock Movement - Xero rated | E26: =E18-E16 -> 0 | F26: 0 | G26: 0 | H26: 0 | I26: 0 | J26: 0 | K26: 0 | L26: 0 | M26: 0 | N26: 0 | O26: 0 | P26: 0 | R26: =SUM(E26:Q26) -> 0
U28: Total | V28: =SUM(V9:V13) -> 0
A29: Paid | E29: =-E33+E9+E19 -> 0 | F29: 0 | G29: 0 | H29: 0 | I29: 0 | J29: 0 | K29: 0 | L29: 0 | M29: 0 | N29: 0 | O29: 0 | P29: 0 | R29: =SUM(E29:Q29) -> 0
A30: Paid- opening creditors - see below | E30: =F48 -> 0 | F30: =G48 -> 0 | R30: =SUM(E30:Q30) -> 0
A31: Total Payments | E31: =SUM(E29:E30) -> 0 | F31: =SUM(F29:F30) -> 0 | G31: 0 | H31: 0 | I31: 0 | J31: 0 | K31: 0 | L31: 0 | M31: 0 | N31: 0 | O31: 0 | P31: 0
A33: Closing Creditors | E33: =IF($H$5,SUM(OFFSET(E19,,,1,-MIN($H$5,E$8))),)+IF(E$8-$H$5<=0,,OFFSET(E19,,-$H$5)*$I$5) -> 0 | F33: 0 | G33: 0 | H33: 0 | I33: 0 | J33: 0 | K33: 0 | L33: 0 | M33: 0 | N33: 0 | O33: 0 | P33: 0
A34: Closing Creditors re opening balance | E34: =F50 -> 0 | F34: =G50 -> 0
A35: Total Closing Creditors | E35: =SUM(E33:E34) -> 0 | F35: =SUM(F33:F34) -> 0 | G35: 0 | H35: 0 | I35: 0 | J35: 0 | K35: 0 | L35: 0 | M35: 0 | N35: 0 | O35: 0 | P35: 0
D36: =(D29*stdvat+D29)*D35 -> 0 | E36: 0
A37: Vat Element to VAT Account | D37: =IF(AND(whatifvariable=2,whatifsalespercent<>0),"As adjusted","") ->  | E37: =E21 -> 0 | F37: =F21 -> 0 | G37: 0 | H37: 0 | I37: 0 | J37: 0 | K37: 0 | L37: 0 | M37: 0 | N37: 0 | O37: 0 | P37: 0 | R37: =SUM(E37:Q37) -> 0
A39: Profit and Loss | D39: =IF(AND(whatifvariable=2,whatifsalespercent<>0),"As adjusted","") ->  | E39: =E19-E21-E25 -> 0 | F39: =F19-F21-F25 -> 0 | G39: 0 | H39: 0 | I39: 0 | J39: 0 | K39: 0 | L39: 0 | M39: 0 | N39: 0 | O39: 0 | P39: 0
E40: 1 | F40: 2 | G40: 3 | H40: 4 | I40: 5 | J40: 6 | K40: 7 | L40: 8 | M40: 9 | N40: 10 | O40: 11 | P40: 12
A41: Balance Sheet - Stock | D41: =IF(AND(whatifvariable=2,whatifsalespercent<>0),"As adjusted","") ->  | E41: =(E17+E18)*E14 -> 0 | F41: =(F17+F18)*F14 -> 0 | G41: 0 | H41: 0 | I41: 0 | J41: 0 | K41: 0 | L41: 0 | M41: 0 | N41: 0 | O41: 0 | P41: 0 | T41: =HLOOKUP(monthno,E40:P41,2) -> 0
A43: Opening Creditors - only complete if there are opening balances | E43: 0 | F43: 1 | G43: 2
F44: =IF(F$8=1,,E50) -> 0 | G44: =IF(G$8=1,,F50) -> 0
A45: Opening Creditors | E45: 0
E47: =SUM(E45:E46) -> 0 | F47: =SUM(F45:F46) -> 0 | G47: 0
A48: Paid | E48: =-E50+E44+E47 -> 0 | F48: =-F50+F44+F47 -> 0 | G48: =-G50+G44+G47 -> 0
A50: Closing Creditors | E50: =IF($H$5,SUM(OFFSET(E47,,,1,-MIN($H$5,E$8))),)+IF(E$8-$H$5<=0,,OFFSET(E47,,-$H$5)*$I$5) -> 0 | F50: =IF($H$5,SUM(OFFSET(F47,,,1,-MIN($H$5,F$8))),)+IF(F$8-$H$5<=0,,OFFSET(F47,,-$H$5)*$I$5) -> 0 | G50: =IF($H$5,SUM(OFFSET(G47,,,1,-MIN($H$5,G$8))),)+IF(G$8-$H$5<=0,,OFFSET(G47,,-$H$5)*$I$5) -> 0
A54: Cost of Sales by Product Line | C54: GP %
A56: Product 1
A57: Std rate invoices gross | C57: =Salesinputcomplex!C83 -> 0.4 | E57: =Salesinputcomplex!$D83*(1-$C$57) -> 0 | F57: =Salesinputcomplex!E$83*(1-$C$57) -> 0 | G57: =Salesinputcomplex!F$83*(1-$C$57) -> 0 | H57: =Salesinputcomplex!G$83*(1-$C$57) -> 0 | I57: =Salesinputcomplex!H$83*(1-$C$57) -> 0 | J57: =Salesinputcomplex!I$83*(1-$C$57) -> 0 | K57: =Salesinputcomplex!J$83*(1-$C$57) -> 0 | L57: =Salesinputcomplex!K$83*(1-$C$57) -> 0 | M57: =Salesinputcomplex!L$83*(1-$C$57) -> 0 | N57: =Salesinputcomplex!M$83*(1-$C$57) -> 0 | O57: =Salesinputcomplex!N$83*(1-$C$57) -> 0 | P57: =Salesinputcomplex!O$83*(1-$C$57) -> 0 | R57: =SUM(E57:Q57) -> 0
A58: Zero rate invoices | C58: =Salesinputcomplex!C84 -> 0.4 | E58: =Salesinputcomplex!$D$84*(1-$C$58) -> 0 | F58: =Salesinputcomplex!E$84*(1-$C$58) -> 0 | G58: =Salesinputcomplex!F$84*(1-$C$58) -> 0 | H58: =Salesinputcomplex!G$84*(1-$C$58) -> 0 | I58: =Salesinputcomplex!H$84*(1-$C$58) -> 0 | J58: =Salesinputcomplex!I$84*(1-$C$58) -> 0 | K58: =Salesinputcomplex!J$84*(1-$C$58) -> 0 | L58: =Salesinputcomplex!K$84*(1-$C$58) -> 0 | M58: =Salesinputcomplex!L$84*(1-$C$58) -> 0 | N58: =Salesinputcomplex!M$84*(1-$C$58) -> 0 | O58: =Salesinputcomplex!N$84*(1-$C$58) -> 0 | P58: =Salesinputcomplex!O$84*(1-$C$58) -> 0 | R58: =SUM(E58:Q58) -> 0
A60: Product 2
A61: Std rate invoices gross | C61: =Salesinputcomplex!C87 -> 0.25 | E61: =Salesinputcomplex!D$87*(1-$C$61) -> 0 | F61: =Salesinputcomplex!E$87*(1-$C$61) -> 0 | G61: =Salesinputcomplex!F$87*(1-$C$61) -> 0 | H61: =Salesinputcomplex!G$87*(1-$C$61) -> 0 | I61: =Salesinputcomplex!H$87*(1-$C$61) -> 0 | J61: =Salesinputcomplex!I$87*(1-$C$61) -> 0 | K61: =Salesinputcomplex!J$87*(1-$C$61) -> 0 | L61: =Salesinputcomplex!K$87*(1-$C$61) -> 0 | M61: =Salesinputcomplex!L$87*(1-$C$61) -> 0 | N61: =Salesinputcomplex!M$87*(1-$C$61) -> 0 | O61: =Salesinputcomplex!N$87*(1-$C$61) -> 0 | P61: =Salesinputcomplex!O$87*(1-$C$61) -> 0 | R61: =SUM(E61:Q61) -> 0
A62: Zero rate invoices | C62: =Salesinputcomplex!C88 -> 0.25 | E62: =Salesinputcomplex!D$88*(1-$C$61) -> 0 | F62: =Salesinputcomplex!E$88*(1-$C$61) -> 0 | G62: =Salesinputcomplex!F$88*(1-$C$61) -> 0 | H62: =Salesinputcomplex!G$88*(1-$C$61) -> 0 | I62: =Salesinputcomplex!H$88*(1-$C$61) -> 0 | J62: =Salesinputcomplex!I$88*(1-$C$61) -> 0 | K62: =Salesinputcomplex!J$88*(1-$C$61) -> 0 | L62: =Salesinputcomplex!K$88*(1-$C$61) -> 0 | M62: =Salesinputcomplex!L$88*(1-$C$61) -> 0 | N62: =Salesinputcomplex!M$88*(1-$C$61) -> 0 | O62: =Salesinputcomplex!N$88*(1-$C$61) -> 0 | P62: =Salesinputcomplex!O$88*(1-$C$61) -> 0 | R62: =SUM(E62:Q62) -> 0
A64: Product 3
A65: Std rate invoices gross | C65: =Salesinputcomplex!C91 -> 0.2 | E65: =Salesinputcomplex!D$91*(1-$C$65) -> 0 | F65: =Salesinputcomplex!E$91*(1-$C$65) -> 0 | G65: =Salesinputcomplex!F$91*(1-$C$65) -> 0 | H65: =Salesinputcomplex!G$91*(1-$C$65) -> 0 | I65: =Salesinputcomplex!H$91*(1-$C$65) -> 0 | J65: =Salesinputcomplex!I$91*(1-$C$65) -> 0 | K65: =Salesinputcomplex!J$91*(1-$C$65) -> 0 | L65: =Salesinputcomplex!K$91*(1-$C$65) -> 0 | M65: =Salesinputcomplex!L$91*(1-$C$65) -> 0 | N65: =Salesinputcomplex!M$91*(1-$C$65) -> 0 | O65: =Salesinputcomplex!N$91*(1-$C$65) -> 0 | P65: =Salesinputcomplex!O$91*(1-$C$65) -> 0 | R65: =SUM(E65:Q65) -> 0
A66: Zero rate invoices | C66: =Salesinputcomplex!C92 -> 0.2 | E66: =Salesinputcomplex!D$92*(1-$C$65) -> 0 | F66: =Salesinputcomplex!E$92*(1-$C$65) -> 0 | G66: =Salesinputcomplex!F$92*(1-$C$65) -> 0 | H66: =Salesinputcomplex!G$92*(1-$C$65) -> 0 | I66: =Salesinputcomplex!H$92*(1-$C$65) -> 0 | J66: =Salesinputcomplex!I$92*(1-$C$65) -> 0 | K66: =Salesinputcomplex!J$92*(1-$C$65) -> 0 | L66: =Salesinputcomplex!K$92*(1-$C$65) -> 0 | M66: =Salesinputcomplex!L$92*(1-$C$65) -> 0 | N66: =Salesinputcomplex!M$92*(1-$C$65) -> 0 | O66: =Salesinputcomplex!N$92*(1-$C$65) -> 0 | P66: =Salesinputcomplex!O$92*(1-$C$65) -> 0 | R66: =SUM(E66:Q66) -> 0
A68: Product 4
A69: Std rate invoices gross | C69: =Salesinputcomplex!C95 -> 0.1 | E69: =Salesinputcomplex!D$95*(1-$C$69) -> 0 | F69: =Salesinputcomplex!E$95*(1-$C$69) -> 0 | G69: =Salesinputcomplex!F$95*(1-$C$69) -> 0 | H69: =Salesinputcomplex!G$95*(1-$C$69) -> 0 | I69: =Salesinputcomplex!H$95*(1-$C$69) -> 0 | J69: =Salesinputcomplex!I$95*(1-$C$69) -> 0 | K69: =Salesinputcomplex!J$95*(1-$C$69) -> 0 | L69: =Salesinputcomplex!K$95*(1-$C$69) -> 0 | M69: =Salesinputcomplex!L$95*(1-$C$69) -> 0 | N69: =Salesinputcomplex!M$95*(1-$C$69) -> 0 | O69: =Salesinputcomplex!N$95*(1-$C$69) -> 0 | P69: =Salesinputcomplex!O$95*(1-$C$69) -> 0 | R69: =SUM(E69:Q69) -> 0
A70: Zero rate invoices | C70: =Salesinputcomplex!C96 -> 0.1 | E70: =Salesinputcomplex!D$96*(1-$C$70) -> 0 | F70: =Salesinputcomplex!E$96*(1-$C$70) -> 0 | G70: =Salesinputcomplex!F$96*(1-$C$70) -> 0 | H70: =Salesinputcomplex!G$96*(1-$C$70) -> 0 | I70: =Salesinputcomplex!H$96*(1-$C$70) -> 0 | J70: =Salesinputcomplex!I$96*(1-$C$70) -> 0 | K70: =Salesinputcomplex!J$96*(1-$C$70) -> 0 | L70: =Salesinputcomplex!K$96*(1-$C$70) -> 0 | M70: =Salesinputcomplex!L$96*(1-$C$70) -> 0 | N70: =Salesinputcomplex!M$96*(1-$C$70) -> 0 | O70: =Salesinputcomplex!N$96*(1-$C$70) -> 0 | P70: =Salesinputcomplex!O$96*(1-$C$70) -> 0 | R70: =SUM(E70:Q70) -> 0
A72: Product 5
A73: Std rate invoices gross | C73: =Salesinputcomplex!C99 -> 0 | E73: =Salesinputcomplex!D$99*(1-$C$73) -> 0 | F73: =Salesinputcomplex!E$99*(1-$C$73) -> 0 | G73: =Salesinputcomplex!F$99*(1-$C$73) -> 0 | H73: =Salesinputcomplex!G$99*(1-$C$73) -> 0 | I73: =Salesinputcomplex!H$99*(1-$C$73) -> 0 | J73: =Salesinputcomplex!I$99*(1-$C$73) -> 0 | K73: =Salesinputcomplex!J$99*(1-$C$73) -> 0 | L73: =Salesinputcomplex!K$99*(1-$C$73) -> 0 | M73: =Salesinputcomplex!L$99*(1-$C$73) -> 0 | N73: =Salesinputcomplex!M$99*(1-$C$73) -> 0 | O73: =Salesinputcomplex!N$99*(1-$C$73) -> 0 | P73: =Salesinputcomplex!O$99*(1-$C$73) -> 0 | R73: =SUM(E73:Q73) -> 0
A74: Zero rate invoices | C74: =Salesinputcomplex!C100 -> 0 | E74: =Salesinputcomplex!D$100*(1-$C$73) -> 0 | F74: =Salesinputcomplex!E$100*(1-$C$73) -> 0 | G74: =Salesinputcomplex!F$100*(1-$C$73) -> 0 | H74: =Salesinputcomplex!G$100*(1-$C$73) -> 0 | I74: =Salesinputcomplex!H$100*(1-$C$73) -> 0 | J74: =Salesinputcomplex!I$100*(1-$C$73) -> 0 | K74: =Salesinputcomplex!J$100*(1-$C$73) -> 0 | L74: =Salesinputcomplex!K$100*(1-$C$73) -> 0 | M74: =Salesinputcomplex!L$100*(1-$C$73) -> 0 | N74: =Salesinputcomplex!M$100*(1-$C$73) -> 0 | O74: =Salesinputcomplex!N$100*(1-$C$73) -> 0 | P74: =Salesinputcomplex!O$100*(1-$C$73) -> 0 | R74: =SUM(E74:Q74) -> 0
A76: Total Gross | E76: =E57+E61+E65+E69+E73 -> 0 | F76: =F57+F61+F65+F69+F73 -> 0 | G76: 0 | H76: 0 | I76: 0 | J76: 0 | K76: 0 | L76: 0 | M76: 0 | N76: 0 | O76: 0 | P76: 0 | Q76: 0 | R76: =SUM(E76:Q76) -> 0
A77: Total Zero rate | E77: =E58+E62+E66+E70+E74 -> 0 | F77: 0 | G77: 0 | H77: 0 | I77: 0 | J77: 0 | K77: 0 | L77: 0 | M77: 0 | N77: 0 | O77: 0 | P77: 0 | Q77: 0 | R77: =SUM(E77:Q77) -> 0

Sheet Tax1
B4: Tax1
C5: Tax rate | D5: =profit_tax_rate -> 0.19
B6: From P&L Pre tax
B7: Pre Tax Profit | C7: ='P&L'!C64 ->  | D7: ='P&L'!D64 ->  | E7: ='P&L'!E64 ->  | F7: ='P&L'!F64 ->  | G7: ='P&L'!G64 ->  | H7: ='P&L'!H64 ->  | I7: ='P&L'!I64 ->  | J7: ='P&L'!J64 ->  | K7: ='P&L'!K64 ->  | L7: ='P&L'!L64 ->  | M7: ='P&L'!M64 ->  | N7: ='P&L'!N64 ->  | P7: =SUM(C7:O7) -> 
B8: Depn | C8: ='P&L'!C52 -> 0 | D8: ='P&L'!D52 -> 0 | E8: ='P&L'!E52 -> 0 | F8: ='P&L'!F52 -> 0 | G8: ='P&L'!G52 -> 0 | H8: ='P&L'!H52 -> 0 | I8: ='P&L'!I52 -> 0 | J8: ='P&L'!J52 -> 0 | K8: ='P&L'!K52 -> 0 | L8: ='P&L'!L52 -> 0 | M8: ='P&L'!M52 -> 0 | N8: ='P&L'!N52 -> 0 | P8: =SUM(C8:O8) -> 0
C10: 1 | D10: 2 | E10: 3 | F10: 4 | G10: 5 | H10: 6 | I10: 7 | J10: 8 | K10: 9 | L10: 10 | M10: 11 | N10: 12
A12: Profit from P & L | C12: =C7 ->  | D12: =D7 ->  | P12: =SUM(C12:O12) -> 
A13: Depr'n addback | C13: =C8 -> 0 | D13: =D8 -> 0 | E13: 0 | F13: 0 | G13: 0 | H13: 0 | I13: 0 | J13: 0 | K13: 0 | L13: 0 | M13: 0 | N13: 0 | P13: 0
A14: Cap Expenditure 100% | C14: =-Capex1!D91 -> 0 | D14: =-Capex1!E91 -> 0 | E14: =-Capex1!F91 -> 0 | F14: =-Capex1!G91 -> 0 | G14: =-Capex1!H91 -> 0 | H14: =-Capex1!I91 -> 0 | I14: =-Capex1!J91 -> 0 | J14: =-Capex1!K91 -> 0 | K14: =-Capex1!L91 -> 0 | L14: =-Capex1!M91 -> 0 | M14: =-Capex1!N91 -> 0 | N14: =-Capex1!O91 -> 0 | P14: 0 | AC14: =R18 -> 0 | AD14: =R19 -> 0 | AE14: =R20 -> 0 | AF14: =R21 -> 0 | AG14: =R22 -> 0 | AH14: =R29 -> 0 | AI14: =R30 -> 0 | AJ14: =R31 -> 0
A15: Gain /Loss on Disposal | C15: ='P&L'!C54 -> 0 | D15: ='P&L'!D54 -> 0 | E15: ='P&L'!E54 -> 0 | F15: ='P&L'!F54 -> 0 | G15: ='P&L'!G54 -> 0 | H15: ='P&L'!H54 -> 0 | I15: ='P&L'!I54 -> 0 | J15: ='P&L'!J54 -> 0 | K15: ='P&L'!K54 -> 0 | L15: ='P&L'!L54 -> 0 | M15: ='P&L'!M54 -> 0 | N15: ='P&L'!N54 -> 0 | P15: 0
C16: 0 | P16: 0 | AC16: =P18 ->  | AD16: =P19 -> 0 | AE16: =P20 ->  | AF16: =P21 -> 0 | AG16: =P22 ->  | AH16: =P29 -> 0 | AI16: =P30 -> 0 | AJ16: =P31 -> 0
P17: 0
A18: Taxable | C18: =SUM(C12:C17) ->  | D18: =SUM(D12:D17) -> 
A19: Current period only
A20: Taxable profits to date | C20: =C18 ->  | D20: =D18 ->  | P20: =SUM(C20:O20) -> 
A22: Tax Provision | C22: =ROUND(IF(C20<0,0,C20*profit_tax_rate),0) ->  | D22: =ROUND(IF(SUM($C$20:D20)<0,0,D20*profit_tax_rate),0) ->  | E22: =ROUND(IF(SUM($C$20:E20)<0,0,E20*profit_tax_rate),0) ->  | F22: =ROUND(IF(SUM($C$20:F20)<0,0,F20*profit_tax_rate),0) ->  | G22: =ROUND(IF(SUM($C$20:G20)<0,0,G20*profit_tax_rate),0) ->  | H22: =ROUND(IF(SUM($C$20:H20)<0,0,H20*profit_tax_rate),0) ->  | I22: =ROUND(IF(SUM($C$20:I20)<0,0,I20*profit_tax_rate),0) ->  | J22: =ROUND(IF(SUM($C$20:J20)<0,0,J20*profit_tax_rate),0) ->  | K22: =ROUND(IF(SUM($C$20:K20)<0,0,K20*profit_tax_rate),0) ->  | L22: =ROUND(IF(SUM($C$20:L20)<0,0,L20*profit_tax_rate),0) ->  | M22: =ROUND(IF(SUM($C$20:M20)<0,0,M20*profit_tax_rate),0) ->  | N22: =ROUND(IF(SUM($C$20:N20)<0,0,N20*profit_tax_rate),0) ->  | P22: =SUM(C22:O22) -> 
A24: Provided to date | D24: =C30 -> 0
A26: Provision | C26: =C22 ->  | D26: =D22+D24 ->  | E26: =E22+E24 -> 
A28: Paid | P28: =SUM(C28:O28) -> 0
A30: Cumulative Provision | C30: =C26-C28 ->  | D30: =D26-D28 ->  | E30: =E26-E28 -> 
A32: Opening Balance | D32: =C34 -> 0 | E32: =D34 -> 0 | F32: 0 | G32: 0 | H32: 0 | I32: 0 | J32: 0 | K32: 0 | L32: 0 | M32: 0 | N32: 0 | P32: =SUM(C32:O32) -> 0
A33: Paid | P33: =SUM(C33:O33) -> 0
A34: C/Fwd | C34: =C32-C33 -> 0 | D34: =D32-D33 -> 0 | E34: 0 | F34: 0 | G34: 0 | H34: 0 | I34: 0 | J34: 0 | K34: 0 | L34: 0 | M34: 0 | N34: 0
B36: Opening balance | C36: 1 | D36: 2 | E36: 3 | F36: 4 | G36: 5 | H36: 6 | I36: 7 | J36: 8 | K36: 9 | L36: 10 | M36: 11 | N36: 12
A37: B/Sheet | B37: =C32 -> 0 | C37: =C30+C34 ->  | D37: =D30+D34 ->  | S37: =HLOOKUP(monthno,C36:N37,2) ->  | T37: taxbs
C38: `
A39: P & L | C39: =C22 ->  | D39: =D22 ->  | P39: =SUM(C39:O39) -> 
A41: Paid | C41: =C33+C28 -> 0 | D41: =D33+D28 -> 0 | E41: 0 | F41: 0 | G41: 0 | H41: 0 | I41: 0 | J41: 0 | K41: 0 | L41: 0 | M41: 0 | N41: 0

Sheet Misc 1
B4: Misc 1 | C4: =CashFlow!$B$12 -> Interest received
C10: 1 | D10: 2 | E10: 3 | F10: 4 | G10: 5 | H10: 6 | I10: 7 | J10: 8 | K10: 9 | L10: 10 | M10: 11 | N10: 12
A11: User defined 1 | C11: 0
A12: User defined 2 | C12: 0
A13: User defined 3 | C13: 0 | P13: =SUM(C13:O13) -> 0 | AC13: =R17 -> 0 | AD13: =R18 -> 0 | AE13: =R19 -> 0 | AF13: =R20 -> 0 | AG13: =R21 -> 0 | AH13: =R24 -> 0 | AI13: =R25 -> 0 | AJ13: =R26 -> 0
A14: User defined 4 | C14: 0
A15: User defined 5 | C15: 0 | P15: =SUM(C15:O15) -> 0 | AC15: =P17 -> 0 | AD15: =P18 -> 0 | AE15: =P19 -> 0 | AF15: =P20 -> 0 | AG15: =P21 -> 0 | AH15: =P24 -> 0 | AI15: =P25 -> 0 | AJ15: =P26 -> 0
P16: =SUM(C16:O16) -> 0
A17: Total | C17: =SUM(C11:C16) -> 0 | D17: =SUM(D11:D16) -> 0 | E17: 0 | F17: 0 | G17: 0 | H17: 0 | I17: 0 | J17: 0 | K17: 0 | L17: 0 | M17: 0 | N17: 0 | P17: =SUM(C17:O17) -> 0
C19: =-C21+C13+C17 -> 0 | D19: =-D21+D13+D17 -> 0 | E19: =-E21+E13+E17 -> 0 | F19: =-F21+F13+F17 -> 0 | G19: 0 | H19: 0 | I19: 0 | J19: 0 | K19: 0 | L19: 0 | M19: 0 | N19: 0 | P19: =SUM(C19:O19) -> 0
C20: =CashFlow!B13 -> Miscellaneous Income
C21: =IF($F$7,SUM(OFFSET(C17,,,1,-MIN($F$7,C$10))),)+IF(C$10-$F$7<=0,,OFFSET(C17,,-$F$7)*$G$7) -> 0 | D21: =IF($F$7,SUM(OFFSET(D17,,,1,-MIN($F$7,D$10))),)+IF(D$10-$F$7<=0,,OFFSET(D17,,-$F$7)*$G$7) -> 0 | E21: 0 | F21: 0 | G21: 0 | H21: 0 | I21: 0 | J21: 0 | K21: 0 | L21: 0 | M21: 0 | N21: 0 | P21: =SUM(C21:O21) -> 0
C22: 1 | D22: 2 | E22: 3 | F22: 4 | G22: 5 | H22: 6 | I22: 7 | J22: 8 | K22: 9 | L22: 10 | M22: 11 | N22: 12
A23: User defined 1 | C23: 0
A24: User defined 2 | C24: 0
A25: User defined 3 | C25: 0
A26: User defined 4 | C26: 0
A27: User defined 5 | C27: 0
A29: Total | C29: =SUM(C23:C28) -> 0 | D29: =SUM(D23:D28) -> 0 | E29: 0 | F29: 0 | G29: 0 | H29: 0 | I29: 0 | J29: 0 | K29: 0 | L29: 0 | M29: 0 | N29: 0
P34: =SUM(C34:O34) -> 0

Sheet WorkingSheet (hidden)
S5: P & L | U5: B/S | W5: VAT | Y5: CashFlow
F6: 1 | G6: 2 | H6: 3 | I6: 4 | J6: 5 | K6: 6 | L6: 7 | M6: 8 | N6: 9 | O6: 10 | P6: 11 | Q6: 12 | S6: Dr | T6: Cr | U6: dr | V6: cr | W6: dr | X6: cr
D8: =CashFlow!#REF! -> 
D9: opening accrual | F9: 0 | G9: =F13 -> 30000 | H9: 0 | I9: 0 | J9: 0 | K9: 0 | L9: 0 | M9: 0 | N9: 0 | O9: 0 | P9: 0 | Q9: 0
D10: Invoices inc VAT | F10: 75000
D11: Vat inc | F11: =F10/6 -> 12500 | G11: 0 | H11: 0 | I11: 0 | J11: 0 | K11: 0 | L11: 0 | M11: 0 | N11: 0 | O11: 0 | P11: 0 | Q11: 0 | X11: =SUM(F11:W11) -> 12500
D12: invoices zero VAT | F12: 12000
D13: Closing accrual | F13: 30000 | V13: =Q13 -> 0
D14: Prepayment b/fwd | G14: =F15 -> 0 | H14: 0 | I14: 0 | J14: 0 | K14: 0 | L14: 0 | M14: 0 | N14: 0 | O14: 0 | P14: 0 | Q14: 0
D15: Prepayment c/fwd
D16: Payments | F16: =F9+F10+F12-F13 -> 57000 | G16: =G9+G10+G12-G13 -> 30000 | H16: 0 | I16: 0 | J16: 0 | K16: 0 | L16: 0 | M16: 0 | N16: 0 | O16: 0 | P16: 0 | Q16: 0 | Y16: =SUM(F16:X16) -> 87000
D17: P & L | F17: =-F9+F10-F11+F12+F13+F14-F15 -> 104500 | G17: -30000 | H17: 0 | I17: 0 | J17: 0 | K17: 0 | L17: 0 | M17: 0 | N17: 0 | O17: 0 | P17: 0 | Q17: 0 | T17: =SUM(F17:R17) -> 74500
D19: Advertising
D20: opening accrual | F20: 3000 | G20: =F24 -> 10000 | H20: 0 | I20: 0 | J20: 0 | K20: 0 | L20: 0 | M20: 0 | N20: 0 | O20: 0 | P20: 0 | Q20: 0
D21: Invoices inc VAT | F21: 24000
D22: Vat inc | F22: =F21/6 -> 4000 | G22: =G21/6 -> 0 | H22: 0 | I22: 0 | J22: 0 | K22: 0 | L22: 0 | M22: 0 | N22: 0 | O22: 0 | P22: 0 | Q22: 0 | X22: =SUM(F22:W22) -> 4000
D23: invoices zero VAT | F23: 4000
D24: Closing accrual | F24: 10000 | V24: =Q24 -> 0
D25: Prepayment b/fwd | G25: =F26 -> 18000 | H25: 16000 | I25: 18000 | J25: 16000 | K25: 10000 | L25: 8000 | M25: 6000 | N25: 4000 | O25: 2000 | P25: 0 | Q25: 0
D26: Prepayment c/fwd | F26: 18000 | G26: 16000 | H26: 18000 | I26: 16000 | J26: 10000 | K26: 8000 | L26: 6000 | M26: 4000 | N26: 2000
D27: Payments | G27: =G20+G21+G23-G24 -> 10000 | H27: 0 | I27: 0 | J27: 0 | K27: 0 | L27: 0 | M27: 0 | N27: 0 | O27: 0 | P27: 0 | Q27: 0 | Y27: =SUM(F27:X27) -> 10000
D28: P & L | F28: =-F20+F21-F22+F23+F24+F25-F26 -> 13000 | G28: -8000 | H28: -2000 | I28: 2000 | J28: 6000 | K28: 2000 | L28: 2000 | M28: 2000 | N28: 2000 | O28: 2000 | P28: 0 | Q28: 0 | T28: =SUM(F28:R28) -> 21000
D30: Audit and Accountancy Fees
D31: opening accrual | F31: 0 | G31: =F35 -> 500 | H31: 1000 | I31: 1500 | J31: 0 | K31: 0 | L31: 0 | M31: 0 | N31: 0 | O31: 0 | P31: 0 | Q31: 0
D32: Invoices inc VAT
D33: Vat inc | F33: =F32/6 -> 0 | G33: 0 | H33: 0 | I33: 0 | J33: 0 | K33: 0 | L33: 0 | M33: 0 | N33: 0 | O33: 0 | P33: 0 | Q33: 0 | X33: =SUM(F33:W33) -> 0
D34: invoices zero VAT
D35: Closing accrual | F35: 500 | G35: 1000 | H35: 1500 | V35: =Q35 -> 0
D36: Prepayment b/fwd | G36: =F37 -> 0 | H36: 0 | I36: 0 | J36: 0 | K36: 0 | L36: 0 | M36: 0 | N36: 0 | O36: 0 | P36: 0 | Q36: 0
D37: Prepayment c/fwd | G37: 0 | H37: 0 | I37: 0 | J37: 0 | K37: 0 | L37: 0 | M37: 0 | N37: 0
D38: Payments | F38: =F31+F32+F34-F35 -> -500 | G38: =G31+G32+G34-G35 -> -500 | H38: -500 | I38: 1500 | J38: 0 | K38: 0 | L38: 0 | M38: 0 | N38: 0 | O38: 0 | P38: 0 | Q38: 0
D39: P & L | F39: =-F31+F32-F33+F34+F35+F36-F37 -> 500 | G39: =-G31+G32-G33+G34+G35+G36-G37 -> 500 | H39: 500 | I39: -1500 | J39: 0 | K39: 0 | L39: 0 | M39: 0 | N39: 0 | O39: 0 | P39: 0 | Q39: 0 | T39: =SUM(F39:R39) -> 0
D41: Book-keeping and payroll
D42: opening accrual | F42: 0 | G42: =F46 -> 0 | H42: 0 | I42: 0 | J42: 0 | K42: 0 | L42: 0 | M42: 0 | N42: 0 | O42: 0 | P42: 0 | Q42: 0
D43: Invoices inc VAT
D44: Vat inc | F44: =F43/6 -> 0 | G44: 0 | H44: 0 | I44: 0 | J44: 0 | K44: 0 | L44: 0 | M44: 0 | N44: 0 | O44: 0 | P44: 0 | Q44: 0 | X44: =SUM(F44:W44) -> 0
D45: invoices zero VAT
D46: Closing accrual | V46: =Q46 -> 0
D47: Prepayment b/fwd | F47: 0 | G47: 0 | H47: =G48 -> 0 | I47: 0 | J47: 0 | K47: 0 | L47: 0 | M47: 0 | N47: 0 | O47: 0 | P47: 0 | Q47: 0
D48: Prepayment c/fwd | F48: 0 | G48: 0 | H48: 0 | I48: 0 | J48: 0 | K48: 0 | L48: 0 | M48: 0 | N48: 0
D49: P & L | F49: =-F42+F43-F44+F45+F46+F47-F48 -> 0 | G49: 0 | H49: 0 | I49: 0 | J49: 0 | K49: 0 | L49: 0 | M49: 0 | N49: 0 | O49: 0 | P49: 0 | Q49: 0 | T49: =SUM(F49:R49) -> 0

Sheet Prepayments
B3: Prepayments
C4: Opening balance | D4: 1 | E4: 2 | F4: 3 | G4: 4 | H4: 5 | I4: 6 | J4: 7 | K4: 8 | L4: 9 | M4: 10 | N4: 11 | O4: 12
A5: Total | C5: =SUM(C8:C55) -> 0 | D5: =SUM(D8:D55) -> 0 | E5: =SUM(E8:E55) -> 0 | F5: 0 | G5: 0 | H5: 0 | I5: 0 | J5: 0 | K5: 0 | L5: 0 | M5: 0 | N5: 0 | O5: 0 | S5: =HLOOKUP(monthno,D4:O5,2) -> 0
A8: Cost of sales
A10: Expense1 | B10: =expense1!C6 -> Advertising | C10: =expense1!$C$23 -> 0 | D10: =expense1!C24 -> 0 | E10: =expense1!D24 -> 0 | F10: =expense1!E24 -> 0 | G10: =expense1!F24 -> 0 | H10: =expense1!G24 -> 0 | I10: =expense1!H24 -> 0 | J10: =expense1!I24 -> 0 | K10: =expense1!J24 -> 0 | L10: =expense1!K24 -> 0 | M10: =expense1!L24 -> 0 | N10: =expense1!M24 -> 0 | O10: =expense1!N24 -> 0
A11: Expense2 | B11: =expense2!C6 -> Utilities (gas, electric, water) | C11: =expense2!$C$23 -> 0 | D11: =expense2!C24 -> 0 | E11: =expense2!D24 -> 0 | F11: =expense2!E24 -> 0 | G11: =expense2!F24 -> 0 | H11: =expense2!G24 -> 0 | I11: =expense2!H24 -> 0 | J11: =expense2!I24 -> 0 | K11: =expense2!J24 -> 0 | L11: =expense2!K24 -> 0 | M11: =expense2!L24 -> 0 | N11: =expense2!M24 -> 0 | O11: =expense2!N24 -> 0
A12: Expense3 | B12: =expense3!$C$6 -> Rent | C12: =expense3!$C$23 -> 0 | D12: =expense3!C24 -> 0 | E12: =expense3!D24 -> 0 | F12: =expense3!E24 -> 0 | G12: =expense3!F24 -> 0 | H12: =expense3!G24 -> 0 | I12: =expense3!H24 -> 0 | J12: =expense3!I24 -> 0 | K12: =expense3!J24 -> 0 | L12: =expense3!K24 -> 0 | M12: =expense3!L24 -> 0 | N12: =expense3!M24 -> 0 | O12: =expense3!N24 -> 0
A13: Expense4 | B13: =expense4!$C$6 -> Rates and water | C13: =expense4!$C$23 -> 0 | D13: =expense4!C24 -> 0 | E13: =expense4!D24 -> 0 | F13: =expense4!E24 -> 0 | G13: =expense4!F24 -> 0 | H13: =expense4!G24 -> 0 | I13: =expense4!H24 -> 0 | J13: =expense4!I24 -> 0 | K13: =expense4!J24 -> 0 | L13: =expense4!K24 -> 0 | M13: =expense4!L24 -> 0 | N13: =expense4!M24 -> 0 | O13: =expense4!N24 -> 0
A14: Expense5 | B14: =expense5!$C$6 -> Telephone and internet | C14: =expense5!$C$23 -> 0 | D14: =expense5!C24 -> 0 | E14: =expense5!D24 -> 0 | F14: =expense5!E24 -> 0 | G14: =expense5!F24 -> 0 | H14: =expense5!G24 -> 0 | I14: =expense5!H24 -> 0 | J14: =expense5!I24 -> 0 | K14: =expense5!J24 -> 0 | L14: =expense5!K24 -> 0 | M14: =expense5!L24 -> 0 | N14: =expense5!M24 -> 0 | O14: =expense5!N24 -> 0
A15: Expense6 | B15: =expense6!$C$6 -> Advertising and marketing | C15: =expense6!$C$23 -> 0 | D15: =expense6!C24 -> 0 | E15: =expense6!D24 -> 0 | F15: =expense6!E24 -> 0 | G15: =expense6!F24 -> 0 | H15: =expense6!G24 -> 0 | I15: =expense6!H24 -> 0 | J15: =expense6!I24 -> 0 | K15: =expense6!J24 -> 0 | L15: =expense6!K24 -> 0 | M15: =expense6!L24 -> 0 | N15: =expense6!M24 -> 0 | O15: =expense6!N24 -> 0
A16: Expense7 | B16: =expense7!$C$6 -> Motor running costs | C16: =expense7!$C$23 -> 0 | D16: =expense7!C24 -> 0 | E16: =expense7!D24 -> 0 | F16: =expense7!E24 -> 0 | G16: =expense7!F24 -> 0 | H16: =expense7!G24 -> 0 | I16: =expense7!H24 -> 0 | J16: =expense7!I24 -> 0 | K16: =expense7!J24 -> 0 | L16: =expense7!K24 -> 0 | M16: =expense7!L24 -> 0 | N16: =expense7!M24 -> 0 | O16: =expense7!N24 -> 0
A17: Expense8 | B17: =expense8!$C$6 -> Insurance | C17: =expense8!$C$23 -> 0 | D17: =expense8!C24 -> 0 | E17: =expense8!D24 -> 0 | F17: =expense8!E24 -> 0 | G17: =expense8!F24 -> 0 | H17: =expense8!G24 -> 0 | I17: =expense8!H24 -> 0 | J17: =expense8!I24 -> 0 | K17: =expense8!J24 -> 0 | L17: =expense8!K24 -> 0 | M17: =expense8!L24 -> 0 | N17: =expense8!M24 -> 0 | O17: =expense8!N24 -> 0
A18: Expense9 | B18: =expense9!$C$6 -> Printing, stationery and postage | C18: =expense9!$C$23 -> 0 | D18: =expense9!C24 -> 0 | E18: =expense9!D24 -> 0 | F18: =expense9!E24 -> 0 | G18: =expense9!F24 -> 0 | H18: =expense9!G24 -> 0 | I18: =expense9!H24 -> 0 | J18: =expense9!I24 -> 0 | K18: =expense9!J24 -> 0 | L18: =expense9!K24 -> 0 | M18: =expense9!L24 -> 0 | N18: =expense9!M24 -> 0 | O18: =expense9!N24 -> 0
A19: Expense10 | B19: =expense10!$C$6 -> Leasing | C19: =expense10!$C$23 -> 0 | D19: =expense10!C24 -> 0 | E19: =expense10!D24 -> 0 | F19: =expense10!E24 -> 0 | G19: =expense10!F24 -> 0 | H19: =expense10!G24 -> 0 | I19: =expense10!H24 -> 0 | J19: =expense10!I24 -> 0 | K19: =expense10!J24 -> 0 | L19: =expense10!K24 -> 0 | M19: =expense10!L24 -> 0 | N19: =expense10!M24 -> 0 | O19: =expense10!N24 -> 0
A20: Expense11 | B20: =expense11!$C$6 -> Legal and professional fees | C20: =expense11!$C$23 -> 0 | D20: =expense11!C24 -> 0 | E20: =expense11!D24 -> 0 | F20: =expense11!E24 -> 0 | G20: =expense11!F24 -> 0 | H20: =expense11!G24 -> 0 | I20: =expense11!H24 -> 0 | J20: =expense11!I24 -> 0 | K20: =expense11!J24 -> 0 | L20: =expense11!K24 -> 0 | M20: =expense11!L24 -> 0 | N20: =expense11!M24 -> 0 | O20: =expense11!N24 -> 0
A21: Expense12 | B21: =expense12!$C$6 -> Repairs and renewals | C21: =expense12!$C$23 -> 0 | D21: =expense12!C24 -> 0 | E21: =expense12!D24 -> 0 | F21: =expense12!E24 -> 0 | G21: =expense12!F24 -> 0 | H21: =expense12!G24 -> 0 | I21: =expense12!H24 -> 0 | J21: =expense12!I24 -> 0 | K21: =expense12!J24 -> 0 | L21: =expense12!K24 -> 0 | M21: =expense12!L24 -> 0 | N21: =expense12!M24 -> 0 | O21: =expense12!N24 -> 0
A22: Expense13 | B22: =expense13!$C$6 -> IT Costs | C22: =expense13!$C$23 -> 0 | D22: =expense13!C24 -> 0 | E22: =expense13!D24 -> 0 | F22: =expense13!E24 -> 0 | G22: =expense13!F24 -> 0 | H22: =expense13!G24 -> 0 | I22: =expense13!H24 -> 0 | J22: =expense13!I24 -> 0 | K22: =expense13!J24 -> 0 | L22: =expense13!K24 -> 0 | M22: =expense13!L24 -> 0 | N22: =expense13!M24 -> 0 | O22: =expense13!N24 -> 0
A23: Expense14 | B23: =expense14!$C$6 -> Sundry expenses | C23: =expense14!$C$23 -> 0 | D23: =expense14!C24 -> 0 | E23: =expense14!D24 -> 0 | F23: =expense14!E24 -> 0 | G23: =expense14!F24 -> 0 | H23: =expense14!G24 -> 0 | I23: =expense14!H24 -> 0 | J23: =expense14!I24 -> 0 | K23: =expense14!J24 -> 0 | L23: =expense14!K24 -> 0 | M23: =expense14!L24 -> 0 | N23: =expense14!M24 -> 0 | O23: =expense14!N24 -> 0
A24: Expense15 | B24: =expense15!$C$6 -> Bank charges | C24: =expense15!$C$23 -> 0 | D24: =expense15!C24 -> 0 | E24: =expense15!D24 -> 0 | F24: =expense15!E24 -> 0 | G24: =expense15!F24 -> 0 | H24: =expense15!G24 -> 0 | I24: =expense15!H24 -> 0 | J24: =expense15!I24 -> 0 | K24: =expense15!J24 -> 0 | L24: =expense15!K24 -> 0 | M24: =expense15!L24 -> 0 | N24: =expense15!M24 -> 0 | O24: =expense15!N24 -> 0
A25: Expense16 | B25: =expense16!$C$6 -> Bank loan interest | C25: =expense16!$C$23 -> 0 | D25: =expense16!C24 -> 0 | E25: =expense16!D24 -> 0 | F25: =expense16!E24 -> 0 | G25: =expense16!F24 -> 0 | H25: =expense16!G24 -> 0 | I25: =expense16!H24 -> 0 | J25: =expense16!I24 -> 0 | K25: =expense16!J24 -> 0 | L25: =expense16!K24 -> 0 | M25: =expense16!L24 -> 0 | N25: =expense16!M24 -> 0 | O25: =expense16!N24 -> 0
A26: Expense17 | B26: =expense17!$C$6 -> spare17 | C26: =expense17!$C$23 -> 0 | D26: =expense17!C24 -> 0 | E26: =expense17!D24 -> 0 | F26: =expense17!E24 -> 0 | G26: =expense17!F24 -> 0 | H26: =expense17!G24 -> 0 | I26: =expense17!H24 -> 0 | J26: =expense17!I24 -> 0 | K26: =expense17!J24 -> 0 | L26: =expense17!K24 -> 0 | M26: =expense17!L24 -> 0 | N26: =expense17!M24 -> 0 | O26: =expense17!N24 -> 0
A27: Expense18 | B27: =expense18!$C$6 -> spare18 | C27: =expense18!$C$23 -> 0 | D27: =expense18!C24 -> 0 | E27: =expense18!D24 -> 0 | F27: =expense18!E24 -> 0 | G27: =expense18!F24 -> 0 | H27: =expense18!G24 -> 0 | I27: =expense18!H24 -> 0 | J27: =expense18!I24 -> 0 | K27: =expense18!J24 -> 0 | L27: =expense18!K24 -> 0 | M27: =expense18!L24 -> 0 | N27: =expense18!M24 -> 0 | O27: =expense18!N24 -> 0
A28: Expense19 | B28: =expense19!$C$6 -> spare19 | C28: =expense19!$C$23 -> 0 | D28: =expense19!C24 -> 0 | E28: =expense19!D24 -> 0 | F28: =expense19!E24 -> 0 | G28: =expense19!F24 -> 0 | H28: =expense19!G24 -> 0 | I28: =expense19!H24 -> 0 | J28: =expense19!I24 -> 0 | K28: =expense19!J24 -> 0 | L28: =expense19!K24 -> 0 | M28: =expense19!L24 -> 0 | N28: =expense19!M24 -> 0 | O28: =expense19!N24 -> 0
A29: Expense20 | B29: =expense20!$C$6 -> spare20 | C29: =expense20!$C$23 -> 0 | D29: =expense20!C24 -> 0 | E29: =expense20!D24 -> 0 | F29: =expense20!E24 -> 0 | G29: =expense20!F24 -> 0 | H29: =expense20!G24 -> 0 | I29: =expense20!H24 -> 0 | J29: =expense20!I24 -> 0 | K29: =expense20!J24 -> 0 | L29: =expense20!K24 -> 0 | M29: =expense20!L24 -> 0 | N29: =expense20!M24 -> 0 | O29: =expense20!N24 -> 0
A30: Expense21 | B30: =expense21!$C$6 -> spare21 | C30: =expense21!$C$23 -> 0 | D30: =expense21!C24 -> 0 | E30: =expense21!D24 -> 0 | F30: =expense21!E24 -> 0 | G30: =expense21!F24 -> 0 | H30: =expense21!G24 -> 0 | I30: =expense21!H24 -> 0 | J30: =expense21!I24 -> 0 | K30: =expense21!J24 -> 0 | L30: =expense21!K24 -> 0 | M30: =expense21!L24 -> 0 | N30: =expense21!M24 -> 0 | O30: =expense21!N24 -> 0
A31: Expense22 | B31: =expense22!$C$6 -> spare22 | C31: =expense22!$C$23 -> 0 | D31: =expense22!C24 -> 0 | E31: =expense22!D24 -> 0 | F31: =expense22!E24 -> 0 | G31: =expense22!F24 -> 0 | H31: =expense22!G24 -> 0 | I31: =expense22!H24 -> 0 | J31: =expense22!I24 -> 0 | K31: =expense22!J24 -> 0 | L31: =expense22!K24 -> 0 | M31: =expense22!L24 -> 0 | N31: =expense22!M24 -> 0 | O31: =expense22!N24 -> 0
A32: Expense23 | B32: =expense23!$C$6 -> spare23 | C32: =expense23!$C$23 -> 0 | D32: =expense23!C24 -> 0 | E32: =expense23!D24 -> 0 | F32: =expense23!E24 -> 0 | G32: =expense23!F24 -> 0 | H32: =expense23!G24 -> 0 | I32: =expense23!H24 -> 0 | J32: =expense23!I24 -> 0 | K32: =expense23!J24 -> 0 | L32: =expense23!K24 -> 0 | M32: =expense23!L24 -> 0 | N32: =expense23!M24 -> 0 | O32: =expense23!N24 -> 0
A33: Expense24 | B33: =expense24!$C$6 -> spare24 | C33: =expense24!$C$23 -> 0 | D33: =expense24!C24 -> 0 | E33: =expense24!D24 -> 0 | F33: =expense24!E24 -> 0 | G33: =expense24!F24 -> 0 | H33: =expense24!G24 -> 0 | I33: =expense24!H24 -> 0 | J33: =expense24!I24 -> 0 | K33: =expense24!J24 -> 0 | L33: =expense24!K24 -> 0 | M33: =expense24!L24 -> 0 | N33: =expense24!M24 -> 0 | O33: =expense24!N24 -> 0
A34: Expense25 | B34: =expense25!$C$6 -> spare25 | C34: =expense25!$C$23 -> 0 | D34: =expense25!C24 -> 0 | E34: =expense25!D24 -> 0 | F34: =expense25!E24 -> 0 | G34: =expense25!F24 -> 0 | H34: =expense25!G24 -> 0 | I34: =expense25!H24 -> 0 | J34: =expense25!I24 -> 0 | K34: =expense25!J24 -> 0 | L34: =expense25!K24 -> 0 | M34: =expense25!L24 -> 0 | N34: =expense25!M24 -> 0 | O34: =expense25!N24 -> 0

Sheet Accruals
B4: Accruals
C5: Opening Bal | D5: 1 | E5: 2 | F5: 3 | G5: 4 | H5: 5 | I5: 6 | J5: 7 | K5: 8 | L5: 9 | M5: 10 | N5: 11 | O5: 12 | R5: OpBal | S5: Month
A6: Total | D6: =SUM(D9:D56) -> 0 | E6: =SUM(E9:E56) -> 0 | F6: 0 | G6: 0 | H6: 0 | I6: 0 | J6: 0 | K6: 0 | L6: 0 | M6: 0 | N6: 0 | O6: 0 | S6: =HLOOKUP(monthno,D5:O6,2) -> 0
A9: Cost of sales
A11: Expense1 | B11: =expense1!C6 -> Advertising | C11: =expense1!$C$26 -> 0 | D11: =expense1!$C$27 -> 0 | E11: =expense1!$D$27 -> 0 | F11: =expense1!E27 -> 0 | G11: =expense1!F27 -> 0 | H11: =expense1!G27 -> 0 | I11: =expense1!H27 -> 0 | J11: =expense1!I27 -> 0 | K11: =expense1!J27 -> 0 | L11: =expense1!K27 -> 0 | M11: =expense1!L27 -> 0 | N11: =expense1!M27 -> 0 | O11: =expense1!N27 -> 0
A12: Expense2 | B12: =expense2!$C$6 -> Utilities (gas, electric, water) | C12: =expense2!$C$26 -> 0 | D12: =expense2!C27 -> 0 | E12: =expense2!D27 -> 0 | F12: =expense2!E27 -> 0 | G12: =expense2!F27 -> 0 | H12: =expense2!G27 -> 0 | I12: =expense2!H27 -> 0 | J12: =expense2!I27 -> 0 | K12: =expense2!J27 -> 0 | L12: =expense2!K27 -> 0 | M12: =expense2!L27 -> 0 | N12: =expense2!M27 -> 0 | O12: =expense2!N27 -> 0
A13: Expense3 | B13: =expense3!$C$6 -> Rent | C13: =expense3!$C$26 -> 0 | D13: =expense3!C27 -> 0 | E13: =expense3!D27 -> 0 | F13: =expense3!E27 -> 0 | G13: =expense3!F27 -> 0 | H13: =expense3!G27 -> 0 | I13: =expense3!H27 -> 0 | J13: =expense3!I27 -> 0 | K13: =expense3!J27 -> 0 | L13: =expense3!K27 -> 0 | M13: =expense3!L27 -> 0 | N13: =expense3!M27 -> 0 | O13: =expense3!N27 -> 0
A14: Expense4 | B14: =expense4!$C$6 -> Rates and water | C14: =expense4!$C$26 -> 0 | D14: =expense4!C27 -> 0 | E14: =expense4!D27 -> 0 | F14: =expense4!E27 -> 0 | G14: =expense4!F27 -> 0 | H14: =expense4!G27 -> 0 | I14: =expense4!H27 -> 0 | J14: =expense4!I27 -> 0 | K14: =expense4!J27 -> 0 | L14: =expense4!K27 -> 0 | M14: =expense4!L27 -> 0 | N14: =expense4!M27 -> 0 | O14: =expense4!N27 -> 0
A15: Expense5 | B15: =expense5!$C$6 -> Telephone and internet | C15: =expense5!$C$26 -> 0 | D15: =expense5!C27 -> 0 | E15: =expense5!D27 -> 0 | F15: =expense5!E27 -> 0 | G15: =expense5!F27 -> 0 | H15: =expense5!G27 -> 0 | I15: =expense5!H27 -> 0 | J15: =expense5!I27 -> 0 | K15: =expense5!J27 -> 0 | L15: =expense5!K27 -> 0 | M15: =expense5!L27 -> 0 | N15: =expense5!M27 -> 0 | O15: =expense5!N27 -> 0
A16: Expense6 | B16: =expense6!$C$6 -> Advertising and marketing | C16: =expense6!$C$26 -> 0 | D16: =expense6!C27 -> 0 | E16: =expense6!D27 -> 0 | F16: =expense6!E27 -> 0 | G16: =expense6!F27 -> 0 | H16: =expense6!G27 -> 0 | I16: =expense6!H27 -> 0 | J16: =expense6!I27 -> 0 | K16: =expense6!J27 -> 0 | L16: =expense6!K27 -> 0 | M16: =expense6!L27 -> 0 | N16: =expense6!M27 -> 0 | O16: =expense6!N27 -> 0
A17: Expense7 | B17: =expense7!$C$6 -> Motor running costs | C17: =expense7!$C$26 -> 0 | D17: =expense7!C27 -> 0 | E17: =expense7!D27 -> 0 | F17: =expense7!E27 -> 0 | G17: =expense7!F27 -> 0 | H17: =expense7!G27 -> 0 | I17: =expense7!H27 -> 0 | J17: =expense7!I27 -> 0 | K17: =expense7!J27 -> 0 | L17: =expense7!K27 -> 0 | M17: =expense7!L27 -> 0 | N17: =expense7!M27 -> 0 | O17: =expense7!N27 -> 0
A18: Expense8 | B18: =expense8!$C$6 -> Insurance | C18: =expense8!$C$26 -> 0 | D18: =expense8!C27 -> 0 | E18: =expense8!D27 -> 0 | F18: =expense8!E27 -> 0 | G18: =expense8!F27 -> 0 | H18: =expense8!G27 -> 0 | I18: =expense8!H27 -> 0 | J18: =expense8!I27 -> 0 | K18: =expense8!J27 -> 0 | L18: =expense8!K27 -> 0 | M18: =expense8!L27 -> 0 | N18: =expense8!M27 -> 0 | O18: =expense8!N27 -> 0
A19: Expense9 | B19: =expense9!$C$6 -> Printing, stationery and postage | C19: =expense9!$C$26 -> 0 | D19: =expense9!C27 -> 0 | E19: =expense9!D27 -> 0 | F19: =expense9!E27 -> 0 | G19: =expense9!F27 -> 0 | H19: =expense9!G27 -> 0 | I19: =expense9!H27 -> 0 | J19: =expense9!I27 -> 0 | K19: =expense9!J27 -> 0 | L19: =expense9!K27 -> 0 | M19: =expense9!L27 -> 0 | N19: =expense9!M27 -> 0 | O19: =expense9!N27 -> 0
A20: Expense10 | B20: =expense10!$C$6 -> Leasing | C20: =expense10!$C$26 -> 0 | D20: =expense10!C27 -> 0 | E20: =expense10!D27 -> 0 | F20: =expense10!E27 -> 0 | G20: =expense10!F27 -> 0 | H20: =expense10!G27 -> 0 | I20: =expense10!H27 -> 0 | J20: =expense10!I27 -> 0 | K20: =expense10!J27 -> 0 | L20: =expense10!K27 -> 0 | M20: =expense10!L27 -> 0 | N20: =expense10!M27 -> 0 | O20: =expense10!N27 -> 0
A21: Expense11 | B21: =expense11!$C$6 -> Legal and professional fees | C21: =expense11!$C$26 -> 0 | D21: =expense11!C27 -> 0 | E21: =expense11!D27 -> 0 | F21: =expense11!E27 -> 0 | G21: =expense11!F27 -> 0 | H21: =expense11!G27 -> 0 | I21: =expense11!H27 -> 0 | J21: =expense11!I27 -> 0 | K21: =expense11!J27 -> 0 | L21: =expense11!K27 -> 0 | M21: =expense11!L27 -> 0 | N21: =expense11!M27 -> 0 | O21: =expense11!N27 -> 0
A22: Expense12 | B22: =expense12!$C$6 -> Repairs and renewals | C22: =expense12!$C$26 -> 0 | D22: =expense12!C27 -> 0 | E22: =expense12!D27 -> 0 | F22: =expense12!E27 -> 0 | G22: =expense12!F27 -> 0 | H22: =expense12!G27 -> 0 | I22: =expense12!H27 -> 0 | J22: =expense12!I27 -> 0 | K22: =expense12!J27 -> 0 | L22: =expense12!K27 -> 0 | M22: =expense12!L27 -> 0 | N22: =expense12!M27 -> 0 | O22: =expense12!N27 -> 0
A23: Expense13 | B23: =expense13!$C$6 -> IT Costs | C23: =expense13!$C$26 -> 0 | D23: =expense13!C27 -> 0 | E23: =expense13!D27 -> 0 | F23: =expense13!E27 -> 0 | G23: =expense13!F27 -> 0 | H23: =expense13!G27 -> 0 | I23: =expense13!H27 -> 0 | J23: =expense13!I27 -> 0 | K23: =expense13!J27 -> 0 | L23: =expense13!K27 -> 0 | M23: =expense13!L27 -> 0 | N23: =expense13!M27 -> 0 | O23: =expense13!N27 -> 0
A24: Expense14 | B24: =expense14!$C$6 -> Sundry expenses | C24: =expense14!$C$26 -> 0 | D24: =expense14!C27 -> 0 | E24: =expense14!D27 -> 0 | F24: =expense14!E27 -> 0 | G24: =expense14!F27 -> 0 | H24: =expense14!G27 -> 0 | I24: =expense14!H27 -> 0 | J24: =expense14!I27 -> 0 | K24: =expense14!J27 -> 0 | L24: =expense14!K27 -> 0 | M24: =expense14!L27 -> 0 | N24: =expense14!M27 -> 0 | O24: =expense14!N27 -> 0
A25: Expense15 | B25: =expense15!$C$6 -> Bank charges | C25: =expense15!$C$26 -> 0 | D25: =expense15!C27 -> 0 | E25: =expense15!D27 -> 0 | F25: =expense15!E27 -> 0 | G25: =expense15!F27 -> 0 | H25: =expense15!G27 -> 0 | I25: =expense15!H27 -> 0 | J25: =expense15!I27 -> 0 | K25: =expense15!J27 -> 0 | L25: =expense15!K27 -> 0 | M25: =expense15!L27 -> 0 | N25: =expense15!M27 -> 0 | O25: =expense15!N27 -> 0
A26: Expense16 | B26: =expense16!$C$6 -> Bank loan interest | C26: =expense16!$C$26 -> 0 | D26: =expense16!C27 -> 0 | E26: =expense16!D27 -> 0 | F26: =expense16!E27 -> 0 | G26: =expense16!F27 -> 0 | H26: =expense16!G27 -> 0 | I26: =expense16!H27 -> 0 | J26: =expense16!I27 -> 0 | K26: =expense16!J27 -> 0 | L26: =expense16!K27 -> 0 | M26: =expense16!L27 -> 0 | N26: =expense16!M27 -> 0 | O26: =expense16!N27 -> 0
A27: Expense17 | B27: =expense17!$C$6 -> spare17 | C27: =expense17!$C$26 -> 0 | D27: =expense17!C27 -> 0 | E27: =expense17!D27 -> 0 | F27: =expense17!E27 -> 0 | G27: =expense17!F27 -> 0 | H27: =expense17!G27 -> 0 | I27: =expense17!H27 -> 0 | J27: =expense17!I27 -> 0 | K27: =expense17!J27 -> 0 | L27: =expense17!K27 -> 0 | M27: =expense17!L27 -> 0 | N27: =expense17!M27 -> 0 | O27: =expense17!N27 -> 0
A28: Expense18 | B28: =expense18!$C$6 -> spare18 | C28: =expense18!$C$26 -> 0 | D28: =expense18!C27 -> 0 | E28: =expense18!D27 -> 0 | F28: =expense18!E27 -> 0 | G28: =expense18!F27 -> 0 | H28: =expense18!G27 -> 0 | I28: =expense18!H27 -> 0 | J28: =expense18!I27 -> 0 | K28: =expense18!J27 -> 0 | L28: =expense18!K27 -> 0 | M28: =expense18!L27 -> 0 | N28: =expense18!M27 -> 0 | O28: =expense18!N27 -> 0
A29: Expense19 | B29: =expense19!$C$6 -> spare19 | C29: =expense19!$C$26 -> 0 | D29: =expense19!C27 -> 0 | E29: =expense19!D27 -> 0 | F29: =expense19!E27 -> 0 | G29: =expense19!F27 -> 0 | H29: =expense19!G27 -> 0 | I29: =expense19!H27 -> 0 | J29: =expense19!I27 -> 0 | K29: =expense19!J27 -> 0 | L29: =expense19!K27 -> 0 | M29: =expense19!L27 -> 0 | N29: =expense19!M27 -> 0 | O29: =expense19!N27 -> 0
A30: Expense20 | B30: =expense20!$C$6 -> spare20 | C30: =expense20!$C$26 -> 0 | D30: =expense20!C27 -> 0 | E30: =expense20!D27 -> 0 | F30: =expense20!E27 -> 0 | G30: =expense20!F27 -> 0 | H30: =expense20!G27 -> 0 | I30: =expense20!H27 -> 0 | J30: =expense20!I27 -> 0 | K30: =expense20!J27 -> 0 | L30: =expense20!K27 -> 0 | M30: =expense20!L27 -> 0 | N30: =expense20!M27 -> 0 | O30: =expense20!N27 -> 0
A31: Expense21 | B31: =expense21!$C$6 -> spare21 | C31: =expense21!$C$26 -> 0 | D31: =expense21!C27 -> 0 | E31: =expense21!D27 -> 0 | F31: =expense21!E27 -> 0 | G31: =expense21!F27 -> 0 | H31: =expense21!G27 -> 0 | I31: =expense21!H27 -> 0 | J31: =expense21!I27 -> 0 | K31: =expense21!J27 -> 0 | L31: =expense21!K27 -> 0 | M31: =expense21!L27 -> 0 | N31: =expense21!M27 -> 0 | O31: =expense21!N27 -> 0
A32: Expense22 | B32: =expense22!$C$6 -> spare22 | C32: =expense22!$C$26 -> 0 | D32: =expense22!C27 -> 0 | E32: =expense22!D27 -> 0 | F32: =expense22!E27 -> 0 | G32: =expense22!F27 -> 0 | H32: =expense22!G27 -> 0 | I32: =expense22!H27 -> 0 | J32: =expense22!I27 -> 0 | K32: =expense22!J27 -> 0 | L32: =expense22!K27 -> 0 | M32: =expense22!L27 -> 0 | N32: =expense22!M27 -> 0 | O32: =expense22!N27 -> 0
A33: Expense23 | B33: =expense23!$C$6 -> spare23 | C33: =expense23!$C$26 -> 0 | D33: =expense23!C27 -> 0 | E33: =expense23!D27 -> 0 | F33: =expense23!E27 -> 0 | G33: =expense23!F27 -> 0 | H33: =expense23!G27 -> 0 | I33: =expense23!H27 -> 0 | J33: =expense23!I27 -> 0 | K33: =expense23!J27 -> 0 | L33: =expense23!K27 -> 0 | M33: =expense23!L27 -> 0 | N33: =expense23!M27 -> 0 | O33: =expense23!N27 -> 0
A34: Expense24 | B34: =expense24!$C$6 -> spare24 | C34: =expense24!$C$26 -> 0 | D34: =expense24!C27 -> 0 | E34: =expense24!D27 -> 0 | F34: =expense24!E27 -> 0 | G34: =expense24!F27 -> 0 | H34: =expense24!G27 -> 0 | I34: =expense24!H27 -> 0 | J34: =expense24!I27 -> 0 | K34: =expense24!J27 -> 0 | L34: =expense24!K27 -> 0 | M34: =expense24!L27 -> 0 | N34: =expense24!M27 -> 0 | O34: =expense24!N27 -> 0
A35: Expense25 | B35: =expense25!$C$6 -> spare25 | C35: =expense25!$C$26 -> 0 | D35: =expense25!C27 -> 0 | E35: =expense25!D27 -> 0 | F35: =expense25!E27 -> 0 | G35: =expense25!F27 -> 0 | H35: =expense25!G27 -> 0 | I35: =expense25!H27 -> 0 | J35: =expense25!I27 -> 0 | K35: =expense25!J27 -> 0 | L35: =expense25!K27 -> 0 | M35: =expense25!L27 -> 0 | N35: =expense25!M27 -> 0 | O35: =expense25!N27 -> 0

Sheet creditors
B4: Creditors
C5: Opening Bal | D5: 1 | E5: 2 | F5: 3 | G5: 4 | H5: 5 | I5: 6 | J5: 7 | K5: 8 | L5: 9 | M5: 10 | N5: 11 | O5: 12 | R5: OpBal | S5: Month
A6: Total | C6: =SUM(C9:C56) -> 0 | D6: =SUM(D9:D56) -> 0 | E6: =SUM(E9:E56) -> 0 | F6: 0 | G6: 0 | H6: 0 | I6: 0 | J6: 0 | K6: 0 | L6: 0 | M6: 0 | N6: 0 | O6: 0 | R6: =C6 -> 0 | S6: =HLOOKUP(monthno,D5:O6,2) -> 0
A9: Cost of sales | C9: =cosalescomplex!E45 -> 0 | D9: =cosalescomplex!E35 -> 0 | E9: =cosalescomplex!F35 -> 0 | F9: =cosalescomplex!G35 -> 0 | G9: =cosalescomplex!H35 -> 0 | H9: =cosalescomplex!I35 -> 0 | I9: =cosalescomplex!J35 -> 0 | J9: =cosalescomplex!K35 -> 0 | K9: =cosalescomplex!L35 -> 0 | L9: =cosalescomplex!M35 -> 0 | M9: =cosalescomplex!N35 -> 0 | N9: =cosalescomplex!O35 -> 0 | O9: =cosalescomplex!P35 -> 0
A11: Expense1 | B11: =expense1!C6 -> Advertising | C11: =expense1!$C$11 -> 0 | D11: =expense1!C19 -> 0 | E11: =expense1!D19 -> 0 | F11: =expense1!E19 -> 0 | G11: =expense1!F19 -> 0 | H11: =expense1!G19 -> 0 | I11: =expense1!H19 -> 0 | J11: =expense1!I19 -> 0 | K11: =expense1!J19 -> 0 | L11: =expense1!K19 -> 0 | M11: =expense1!L19 -> 0 | N11: =expense1!M19 -> 0 | O11: =expense1!N19 -> 0
A12: Expense2 | B12: =expense2!$C$6 -> Utilities (gas, electric, water) | C12: =expense2!$C$11 -> 0 | D12: =expense2!C19 -> 0 | E12: =expense2!D19 -> 0 | F12: =expense2!E19 -> 0 | G12: =expense2!F19 -> 0 | H12: =expense2!G19 -> 0 | I12: =expense2!H19 -> 0 | J12: =expense2!I19 -> 0 | K12: =expense2!J19 -> 0 | L12: =expense2!K19 -> 0 | M12: =expense2!L19 -> 0 | N12: =expense2!M19 -> 0 | O12: =expense2!N19 -> 0
A13: Expense3 | B13: =expense3!$C$6 -> Rent | C13: =expense3!$C$11 -> 0 | D13: =expense3!C19 -> 0 | E13: =expense3!D19 -> 0 | F13: =expense3!E19 -> 0 | G13: =expense3!F19 -> 0 | H13: =expense3!G19 -> 0 | I13: =expense3!H19 -> 0 | J13: =expense3!I19 -> 0 | K13: =expense3!J19 -> 0 | L13: =expense3!K19 -> 0 | M13: =expense3!L19 -> 0 | N13: =expense3!M19 -> 0 | O13: =expense3!N19 -> 0
A14: Expense4 | B14: =expense4!$C$6 -> Rates and water | C14: =expense4!$C$11 -> 0 | D14: =expense4!C19 -> 0 | E14: =expense4!D19 -> 0 | F14: =expense4!E19 -> 0 | G14: =expense4!F19 -> 0 | H14: =expense4!G19 -> 0 | I14: =expense4!H19 -> 0 | J14: =expense4!I19 -> 0 | K14: =expense4!J19 -> 0 | L14: =expense4!K19 -> 0 | M14: =expense4!L19 -> 0 | N14: =expense4!M19 -> 0 | O14: =expense4!N19 -> 0
A15: Expense5 | B15: =expense5!$C$6 -> Telephone and internet | C15: =expense5!$C$11 -> 0 | D15: =expense5!C19 -> 0 | E15: =expense5!D19 -> 0 | F15: =expense5!E19 -> 0 | G15: =expense5!F19 -> 0 | H15: =expense5!G19 -> 0 | I15: =expense5!H19 -> 0 | J15: =expense5!I19 -> 0 | K15: =expense5!J19 -> 0 | L15: =expense5!K19 -> 0 | M15: =expense5!L19 -> 0 | N15: =expense5!M19 -> 0 | O15: =expense5!N19 -> 0
A16: Expense6 | B16: =expense6!$C$6 -> Advertising and marketing | C16: =expense6!$C$11 -> 0 | D16: =expense6!C19 -> 0 | E16: =expense6!D19 -> 0 | F16: =expense6!E19 -> 0 | G16: =expense6!F19 -> 0 | H16: =expense6!G19 -> 0 | I16: =expense6!H19 -> 0 | J16: =expense6!I19 -> 0 | K16: =expense6!J19 -> 0 | L16: =expense6!K19 -> 0 | M16: =expense6!L19 -> 0 | N16: =expense6!M19 -> 0 | O16: =expense6!N19 -> 0
A17: Expense7 | B17: =expense7!$C$6 -> Motor running costs | C17: =expense7!$C$11 -> 0 | D17: =expense7!C19 -> 0 | E17: =expense7!D19 -> 0 | F17: =expense7!E19 -> 0 | G17: =expense7!F19 -> 0 | H17: =expense7!G19 -> 0 | I17: =expense7!H19 -> 0 | J17: =expense7!I19 -> 0 | K17: =expense7!J19 -> 0 | L17: =expense7!K19 -> 0 | M17: =expense7!L19 -> 0 | N17: =expense7!M19 -> 0 | O17: =expense7!N19 -> 0
A18: Expense8 | B18: =expense8!$C$6 -> Insurance | C18: =expense8!$C$11 -> 0 | D18: =expense8!C19 -> 0 | E18: =expense8!D19 -> 0 | F18: =expense8!E19 -> 0 | G18: =expense8!F19 -> 0 | H18: =expense8!G19 -> 0 | I18: =expense8!H19 -> 0 | J18: =expense8!I19 -> 0 | K18: =expense8!J19 -> 0 | L18: =expense8!K19 -> 0 | M18: =expense8!L19 -> 0 | N18: =expense8!M19 -> 0 | O18: =expense8!N19 -> 0
A19: Expense9 | B19: =expense9!$C$6 -> Printing, stationery and postage | C19: =expense9!$C$11 -> 0 | D19: =expense9!C19 -> 0 | E19: =expense9!D19 -> 0 | F19: =expense9!E19 -> 0 | G19: =expense9!F19 -> 0 | H19: =expense9!G19 -> 0 | I19: =expense9!H19 -> 0 | J19: =expense9!I19 -> 0 | K19: =expense9!J19 -> 0 | L19: =expense9!K19 -> 0 | M19: =expense9!L19 -> 0 | N19: =expense9!M19 -> 0 | O19: =expense9!N19 -> 0
A20: Expense10 | B20: =expense10!$C$6 -> Leasing | C20: =expense10!$C$11 -> 0 | D20: =expense10!C19 -> 0 | E20: =expense10!D19 -> 0 | F20: =expense10!E19 -> 0 | G20: =expense10!F19 -> 0 | H20: =expense10!G19 -> 0 | I20: =expense10!H19 -> 0 | J20: =expense10!I19 -> 0 | K20: =expense10!J19 -> 0 | L20: =expense10!K19 -> 0 | M20: =expense10!L19 -> 0 | N20: =expense10!M19 -> 0 | O20: =expense10!N19 -> 0
A21: Expense11 | B21: =expense11!$C$6 -> Legal and professional fees | C21: =expense11!$C$11 -> 0 | D21: =expense11!C19 -> 0 | E21: =expense11!D19 -> 0 | F21: =expense11!E19 -> 0 | G21: =expense11!F19 -> 0 | H21: =expense11!G19 -> 0 | I21: =expense11!H19 -> 0 | J21: =expense11!I19 -> 0 | K21: =expense11!J19 -> 0 | L21: =expense11!K19 -> 0 | M21: =expense11!L19 -> 0 | N21: =expense11!M19 -> 0 | O21: =expense11!N19 -> 0
A22: Expense12 | B22: =expense12!$C$6 -> Repairs and renewals | C22: =expense12!$C$11 -> 0 | D22: =expense12!C19 -> 0 | E22: =expense12!D19 -> 0 | F22: =expense12!E19 -> 0 | G22: =expense12!F19 -> 0 | H22: =expense12!G19 -> 0 | I22: =expense12!H19 -> 0 | J22: =expense12!I19 -> 0 | K22: =expense12!J19 -> 0 | L22: =expense12!K19 -> 0 | M22: =expense12!L19 -> 0 | N22: =expense12!M19 -> 0 | O22: =expense12!N19 -> 0
A23: Expense13 | B23: =expense13!$C$6 -> IT Costs | C23: =expense13!$C$11 -> 0 | D23: =expense13!C19 -> 0 | E23: =expense13!D19 -> 0 | F23: =expense13!E19 -> 0 | G23: =expense13!F19 -> 0 | H23: =expense13!G19 -> 0 | I23: =expense13!H19 -> 0 | J23: =expense13!I19 -> 0 | K23: =expense13!J19 -> 0 | L23: =expense13!K19 -> 0 | M23: =expense13!L19 -> 0 | N23: =expense13!M19 -> 0 | O23: =expense13!N19 -> 0
A24: Expense14 | B24: =expense14!$C$6 -> Sundry expenses | C24: =expense14!$C$11 -> 0 | D24: =expense14!C19 -> 0 | E24: =expense14!D19 -> 0 | F24: =expense14!E19 -> 0 | G24: =expense14!F19 -> 0 | H24: =expense14!G19 -> 0 | I24: =expense14!H19 -> 0 | J24: =expense14!I19 -> 0 | K24: =expense14!J19 -> 0 | L24: =expense14!K19 -> 0 | M24: =expense14!L19 -> 0 | N24: =expense14!M19 -> 0 | O24: =expense14!N19 -> 0
A25: Expense15 | B25: =expense15!$C$6 -> Bank charges | C25: =expense15!$C$11 -> 0 | D25: =expense15!C19 -> 0 | E25: =expense15!D19 -> 0 | F25: =expense15!E19 -> 0 | G25: =expense15!F19 -> 0 | H25: =expense15!G19 -> 0 | I25: =expense15!H19 -> 0 | J25: =expense15!I19 -> 0 | K25: =expense15!J19 -> 0 | L25: =expense15!K19 -> 0 | M25: =expense15!L19 -> 0 | N25: =expense15!M19 -> 0 | O25: =expense15!N19 -> 0
A26: Expense16 | B26: =expense16!$C$6 -> Bank loan interest | C26: =expense16!$C$11 -> 0 | D26: =expense16!C19 -> 0 | E26: =expense16!D19 -> 0 | F26: =expense16!E19 -> 0 | G26: =expense16!F19 -> 0 | H26: =expense16!G19 -> 0 | I26: =expense16!H19 -> 0 | J26: =expense16!I19 -> 0 | K26: =expense16!J19 -> 0 | L26: =expense16!K19 -> 0 | M26: =expense16!L19 -> 0 | N26: =expense16!M19 -> 0 | O26: =expense16!N19 -> 0
A27: Expense17 | B27: =expense17!$C$6 -> spare17 | C27: =expense17!$C$11 -> 0 | D27: =expense17!C19 -> 0 | E27: =expense17!D19 -> 0 | F27: =expense17!E19 -> 0 | G27: =expense17!F19 -> 0 | H27: =expense17!G19 -> 0 | I27: =expense17!H19 -> 0 | J27: =expense17!I19 -> 0 | K27: =expense17!J19 -> 0 | L27: =expense17!K19 -> 0 | M27: =expense17!L19 -> 0 | N27: =expense17!M19 -> 0 | O27: =expense17!N19 -> 0
A28: Expense18 | B28: =expense18!$C$6 -> spare18 | C28: =expense18!$C$11 -> 0 | D28: =expense18!C19 -> 0 | E28: =expense18!D19 -> 0 | F28: =expense18!E19 -> 0 | G28: =expense18!F19 -> 0 | H28: =expense18!G19 -> 0 | I28: =expense18!H19 -> 0 | J28: =expense18!I19 -> 0 | K28: =expense18!J19 -> 0 | L28: =expense18!K19 -> 0 | M28: =expense18!L19 -> 0 | N28: =expense18!M19 -> 0 | O28: =expense18!N19 -> 0
A29: Expense19 | B29: =expense19!$C$6 -> spare19 | C29: =expense19!$C$11 -> 0 | D29: =expense19!C19 -> 0 | E29: =expense19!D19 -> 0 | F29: =expense19!E19 -> 0 | G29: =expense19!F19 -> 0 | H29: =expense19!G19 -> 0 | I29: =expense19!H19 -> 0 | J29: =expense19!I19 -> 0 | K29: =expense19!J19 -> 0 | L29: =expense19!K19 -> 0 | M29: =expense19!L19 -> 0 | N29: =expense19!M19 -> 0 | O29: =expense19!N19 -> 0
A30: Expense20 | B30: =expense20!$C$6 -> spare20 | C30: =expense20!$C$11 -> 0 | D30: =expense20!C19 -> 0 | E30: =expense20!D19 -> 0 | F30: =expense20!E19 -> 0 | G30: =expense20!F19 -> 0 | H30: =expense20!G19 -> 0 | I30: =expense20!H19 -> 0 | J30: =expense20!I19 -> 0 | K30: =expense20!J19 -> 0 | L30: =expense20!K19 -> 0 | M30: =expense20!L19 -> 0 | N30: =expense20!M19 -> 0 | O30: =expense20!N19 -> 0
A31: Expense21 | B31: =expense21!$C$6 -> spare21 | C31: =expense21!$C$11 -> 0 | D31: =expense21!C19 -> 0 | E31: =expense21!D19 -> 0 | F31: =expense21!E19 -> 0 | G31: =expense21!F19 -> 0 | H31: =expense21!G19 -> 0 | I31: =expense21!H19 -> 0 | J31: =expense21!I19 -> 0 | K31: =expense21!J19 -> 0 | L31: =expense21!K19 -> 0 | M31: =expense21!L19 -> 0 | N31: =expense21!M19 -> 0 | O31: =expense21!N19 -> 0
A32: Expense22 | B32: =expense22!$C$6 -> spare22 | C32: =expense22!$C$11 -> 0 | D32: =expense23!C19 -> 0 | E32: =expense23!D19 -> 0 | F32: =expense23!E19 -> 0 | G32: =expense23!F19 -> 0 | H32: =expense23!G19 -> 0 | I32: =expense23!H19 -> 0 | J32: =expense23!I19 -> 0 | K32: =expense23!J19 -> 0 | L32: =expense23!K19 -> 0 | M32: =expense23!L19 -> 0 | N32: =expense23!M19 -> 0 | O32: =expense23!N19 -> 0
A33: Expense23 | B33: =expense23!$C$6 -> spare23 | C33: =expense23!$C$11 -> 0 | D33: =expense23!C19 -> 0 | E33: =expense23!D19 -> 0 | F33: =expense23!E19 -> 0 | G33: =expense23!F19 -> 0 | H33: =expense23!G19 -> 0 | I33: =expense23!H19 -> 0 | J33: =expense23!I19 -> 0 | K33: =expense23!J19 -> 0 | L33: =expense23!K19 -> 0 | M33: =expense23!L19 -> 0 | N33: =expense23!M19 -> 0 | O33: =expense23!N19 -> 0
A34: Expense24 | B34: =expense24!$C$6 -> spare24 | C34: =expense24!$C$11 -> 0 | D34: =expense24!C19 -> 0 | E34: =expense24!D19 -> 0 | F34: =expense24!E19 -> 0 | G34: =expense24!F19 -> 0 | H34: =expense24!G19 -> 0 | I34: =expense24!H19 -> 0 | J34: =expense24!I19 -> 0 | K34: =expense24!J19 -> 0 | L34: =expense24!K19 -> 0 | M34: =expense24!L19 -> 0 | N34: =expense24!M19 -> 0 | O34: =expense24!N19 -> 0
A35: Expense25 | B35: =expense25!$C$6 -> spare25 | C35: =expense25!$C$11 -> 0 | D35: =expense25!C19 -> 0 | E35: =expense25!D19 -> 0 | F35: =expense25!E19 -> 0 | G35: =expense25!F19 -> 0 | H35: =expense25!G19 -> 0 | I35: =expense25!H19 -> 0 | J35: =expense25!I19 -> 0 | K35: =expense25!J19 -> 0 | L35: =expense25!K19 -> 0 | M35: =expense25!L19 -> 0 | N35: =expense25!M19 -> 0 | O35: =expense25!N19 -> 0
A36: Capex1 | C36: =Capex1!D11+Capex1!D49 -> 0 | D36: =Capex1!D104 -> 0 | E36: =Capex1!E104 -> 0 | F36: =Capex1!F104 -> 0 | G36: =Capex1!G104 -> 0 | H36: =Capex1!H104 -> 0 | I36: =Capex1!I104 -> 0 | J36: =Capex1!J104 -> 0 | K36: =Capex1!K104 -> 0 | L36: =Capex1!L104 -> 0 | M36: =Capex1!M104 -> 0 | N36: =Capex1!N104 -> 0 | O36: =Capex1!O104 -> 0
A37: Journal | C37: =Journal!C23 -> 0 | D37: =Journal!C25 -> 0 | E37: =Journal!D25 -> 0 | F37: =Journal!E25 -> 0 | G37: =Journal!F25 -> 0 | H37: =Journal!G25 -> 0 | I37: =Journal!H25 -> 0 | J37: =Journal!I25 -> 0 | K37: =Journal!J25 -> 0 | L37: =Journal!K25 -> 0 | M37: =Journal!L25 -> 0 | N37: =Journal!M25 -> 0 | O37: =Journal!N25 -> 0

Sheet InputVAT
C4: Input VAT
C6: =SUM(C9:C63) -> 0 | D6: =SUM(D9:D63) -> 0 | E6: 0 | F6: 0 | G6: 0 | H6: 0 | I6: 0 | J6: 0 | K6: 0 | L6: 0 | M6: 0 | N6: 0
C7: 1 | D7: 2 | E7: 3 | F7: 4 | G7: 5 | H7: 6 | I7: 7 | J7: 8 | K7: 9 | L7: 10 | M7: 11 | N7: 12
A9: Cost of sales | C9: =cosalescomplex!E37 -> 0 | D9: =cosalescomplex!F37 -> 0 | E9: =cosalescomplex!G37 -> 0 | F9: =cosalescomplex!H37 -> 0 | G9: =cosalescomplex!I37 -> 0 | H9: =cosalescomplex!J37 -> 0 | I9: =cosalescomplex!K37 -> 0 | J9: =cosalescomplex!L37 -> 0 | K9: =cosalescomplex!M37 -> 0 | L9: =cosalescomplex!N37 -> 0 | M9: =cosalescomplex!O37 -> 0 | N9: =cosalescomplex!P37 -> 0
A11: Expense1 | B11: =expense1!$C$6 -> Advertising | C11: =expense1!C32 -> 0 | D11: =expense1!$D$32 -> 0 | E11: =expense1!$E$32 -> 0 | F11: =expense1!$F$32 -> 0 | G11: =expense1!$G$32 -> 0 | H11: =expense1!H32 -> 0 | I11: =expense1!I32 -> 0 | J11: =expense1!J32 -> 0 | K11: =expense1!K32 -> 0 | L11: =expense1!L32 -> 0 | M11: =expense1!M32 -> 0 | N11: =expense1!N32 -> 0
A12: Expense2 | B12: =expense2!$C$6 -> Utilities (gas, electric, water) | C12: =expense2!C32 -> 0 | D12: =expense2!D32 -> 0 | E12: =expense2!E32 -> 0 | F12: =expense2!F32 -> 0 | G12: =expense2!G32 -> 0 | H12: =expense2!H32 -> 0 | I12: =expense2!I32 -> 0 | J12: =expense2!J32 -> 0 | K12: =expense2!K32 -> 0 | L12: =expense2!L32 -> 0 | M12: =expense2!M32 -> 0 | N12: =expense2!N32 -> 0
A13: Expense3 | B13: =expense3!$C$6 -> Rent | C13: =expense3!C32 -> 0 | D13: =expense3!D32 -> 0 | E13: =expense3!E32 -> 0 | F13: =expense3!F32 -> 0 | G13: =expense3!G32 -> 0 | H13: =expense3!H32 -> 0 | I13: =expense3!I32 -> 0 | J13: =expense3!J32 -> 0 | K13: =expense3!K32 -> 0 | L13: =expense3!L32 -> 0 | M13: =expense3!M32 -> 0 | N13: =expense3!N32 -> 0
A14: Expense4 | B14: =expense4!$C$6 -> Rates and water | C14: =expense4!C32 -> 0 | D14: =expense4!D32 -> 0 | E14: =expense4!E32 -> 0 | F14: =expense4!F32 -> 0 | G14: =expense4!G32 -> 0 | H14: =expense4!H32 -> 0 | I14: =expense4!I32 -> 0 | J14: =expense4!J32 -> 0 | K14: =expense4!K32 -> 0 | L14: =expense4!L32 -> 0 | M14: =expense4!M32 -> 0 | N14: =expense4!N32 -> 0
A15: Expense5 | B15: =expense5!$C$6 -> Telephone and internet | C15: =expense5!C32 -> 0 | D15: =expense5!D32 -> 0 | E15: =expense5!E32 -> 0 | F15: =expense5!F32 -> 0 | G15: =expense5!G32 -> 0 | H15: =expense5!H32 -> 0 | I15: =expense5!I32 -> 0 | J15: =expense5!J32 -> 0 | K15: =expense5!K32 -> 0 | L15: =expense5!L32 -> 0 | M15: =expense5!M32 -> 0 | N15: =expense5!N32 -> 0
A16: Expense6 | B16: =expense6!$C$6 -> Advertising and marketing | C16: =expense6!C32 -> 0 | D16: =expense6!D32 -> 0 | E16: =expense6!E32 -> 0 | F16: =expense6!F32 -> 0 | G16: =expense6!G32 -> 0 | H16: =expense6!H32 -> 0 | I16: =expense6!I32 -> 0 | J16: =expense6!J32 -> 0 | K16: =expense6!K32 -> 0 | L16: =expense6!L32 -> 0 | M16: =expense6!M32 -> 0 | N16: =expense6!N32 -> 0
A17: Expense7 | B17: =expense7!$C$6 -> Motor running costs | C17: =expense7!C32 -> 0 | D17: =expense7!D32 -> 0 | E17: =expense7!E32 -> 0 | F17: =expense7!F32 -> 0 | G17: =expense7!G32 -> 0 | H17: =expense7!H32 -> 0 | I17: =expense7!I32 -> 0 | J17: =expense7!J32 -> 0 | K17: =expense7!K32 -> 0 | L17: =expense7!L32 -> 0 | M17: =expense7!M32 -> 0 | N17: =expense7!N32 -> 0
A18: Expense8 | B18: =expense8!$C$6 -> Insurance | C18: =expense8!C32 -> 0 | D18: =expense8!D32 -> 0 | E18: =expense8!E32 -> 0 | F18: =expense8!F32 -> 0 | G18: =expense8!G32 -> 0 | H18: =expense8!H32 -> 0 | I18: =expense8!I32 -> 0 | J18: =expense8!J32 -> 0 | K18: =expense8!K32 -> 0 | L18: =expense8!L32 -> 0 | M18: =expense8!M32 -> 0 | N18: =expense8!N32 -> 0
A19: Expense9 | B19: =expense9!$C$6 -> Printing, stationery and postage | C19: =expense9!C32 -> 0 | D19: =expense9!D32 -> 0 | E19: =expense9!E32 -> 0 | F19: =expense9!F32 -> 0 | G19: =expense9!G32 -> 0 | H19: =expense9!H32 -> 0 | I19: =expense9!I32 -> 0 | J19: =expense9!J32 -> 0 | K19: =expense9!K32 -> 0 | L19: =expense9!L32 -> 0 | M19: =expense9!M32 -> 0 | N19: =expense9!N32 -> 0
A20: Expense10 | B20: =expense10!$C$6 -> Leasing | C20: =expense10!C32 -> 0 | D20: =expense10!D32 -> 0 | E20: =expense10!E32 -> 0 | F20: =expense10!F32 -> 0 | G20: =expense10!G32 -> 0 | H20: =expense10!H32 -> 0 | I20: =expense10!I32 -> 0 | J20: =expense10!J32 -> 0 | K20: =expense10!K32 -> 0 | L20: =expense10!L32 -> 0 | M20: =expense10!M32 -> 0 | N20: =expense10!N32 -> 0
A21: Expense11 | B21: =expense11!$C$6 -> Legal and professional fees | C21: =expense11!C32 -> 0 | D21: =expense11!D32 -> 0 | E21: =expense11!E32 -> 0 | F21: =expense11!F32 -> 0 | G21: =expense11!G32 -> 0 | H21: =expense11!H32 -> 0 | I21: =expense11!I32 -> 0 | J21: =expense11!J32 -> 0 | K21: =expense11!K32 -> 0 | L21: =expense11!L32 -> 0 | M21: =expense11!M32 -> 0 | N21: =expense11!N32 -> 0
A22: Expense12 | B22: =expense12!$C$6 -> Repairs and renewals | C22: =expense12!C32 -> 0 | D22: =expense12!D32 -> 0 | E22: =expense12!E32 -> 0 | F22: =expense12!F32 -> 0 | G22: =expense12!G32 -> 0 | H22: =expense12!H32 -> 0 | I22: =expense12!I32 -> 0 | J22: =expense12!J32 -> 0 | K22: =expense12!K32 -> 0 | L22: =expense12!L32 -> 0 | M22: =expense12!M32 -> 0 | N22: =expense12!N32 -> 0
A23: Expense13 | B23: =expense13!$C$6 -> IT Costs | C23: =expense13!C32 -> 0 | D23: =expense13!D32 -> 0 | E23: =expense13!E32 -> 0 | F23: =expense13!F32 -> 0 | G23: =expense13!G32 -> 0 | H23: =expense13!H32 -> 0 | I23: =expense13!I32 -> 0 | J23: =expense13!J32 -> 0 | K23: =expense13!K32 -> 0 | L23: =expense13!L32 -> 0 | M23: =expense13!M32 -> 0 | N23: =expense13!N32 -> 0
A24: Expense14 | B24: =expense14!$C$6 -> Sundry expenses | C24: =expense14!C32 -> 0 | D24: =expense14!D32 -> 0 | E24: =expense14!E32 -> 0 | F24: =expense14!F32 -> 0 | G24: =expense14!G32 -> 0 | H24: =expense14!H32 -> 0 | I24: =expense14!I32 -> 0 | J24: =expense14!J32 -> 0 | K24: =expense14!K32 -> 0 | L24: =expense14!L32 -> 0 | M24: =expense14!M32 -> 0 | N24: =expense14!N32 -> 0
A25: Expense15 | B25: =expense15!$C$6 -> Bank charges | C25: =expense15!C32 -> 0 | D25: =expense15!D32 -> 0 | E25: =expense15!E32 -> 0 | F25: =expense15!F32 -> 0 | G25: =expense15!G32 -> 0 | H25: =expense15!H32 -> 0 | I25: =expense15!I32 -> 0 | J25: =expense15!J32 -> 0 | K25: =expense15!K32 -> 0 | L25: =expense15!L32 -> 0 | M25: =expense15!M32 -> 0 | N25: =expense15!N32 -> 0
A26: Expense16 | B26: =expense16!$C$6 -> Bank loan interest | C26: =expense16!C32 -> 0 | D26: =expense16!D32 -> 0 | E26: =expense16!E32 -> 0 | F26: =expense16!F32 -> 0 | G26: =expense16!G32 -> 0 | H26: =expense16!H32 -> 0 | I26: =expense16!I32 -> 0 | J26: =expense16!J32 -> 0 | K26: =expense16!K32 -> 0 | L26: =expense16!L32 -> 0 | M26: =expense16!M32 -> 0 | N26: =expense16!N32 -> 0
A27: Expense17 | B27: =expense17!$C$6 -> spare17 | C27: =expense17!C32 -> 0 | D27: =expense17!D32 -> 0 | E27: =expense17!E32 -> 0 | F27: =expense17!F32 -> 0 | G27: =expense17!G32 -> 0 | H27: =expense17!H32 -> 0 | I27: =expense17!I32 -> 0 | J27: =expense17!J32 -> 0 | K27: =expense17!K32 -> 0 | L27: =expense17!L32 -> 0 | M27: =expense17!M32 -> 0 | N27: =expense17!N32 -> 0
A28: Expense18 | B28: =expense18!$C$6 -> spare18 | C28: =expense18!C32 -> 0 | D28: =expense18!D32 -> 0 | E28: =expense18!E32 -> 0 | F28: =expense18!F32 -> 0 | G28: =expense18!G32 -> 0 | H28: =expense18!H32 -> 0 | I28: =expense18!I32 -> 0 | J28: =expense18!J32 -> 0 | K28: =expense18!K32 -> 0 | L28: =expense18!L32 -> 0 | M28: =expense18!M32 -> 0 | N28: =expense18!N32 -> 0
A29: Expense19 | B29: =expense19!$C$6 -> spare19 | C29: =expense19!C32 -> 0 | D29: =expense19!D32 -> 0 | E29: =expense19!E32 -> 0 | F29: =expense19!F32 -> 0 | G29: =expense19!G32 -> 0 | H29: =expense19!H32 -> 0 | I29: =expense19!I32 -> 0 | J29: =expense19!J32 -> 0 | K29: =expense19!K32 -> 0 | L29: =expense19!L32 -> 0 | M29: =expense19!M32 -> 0 | N29: =expense19!N32 -> 0
A30: Expense20 | B30: =expense20!$C$6 -> spare20 | C30: =expense20!C32 -> 0 | D30: =expense20!D32 -> 0 | E30: =expense20!E32 -> 0 | F30: =expense20!F32 -> 0 | G30: =expense20!G32 -> 0 | H30: =expense20!H32 -> 0 | I30: =expense20!I32 -> 0 | J30: =expense20!J32 -> 0 | K30: =expense20!K32 -> 0 | L30: =expense20!L32 -> 0 | M30: =expense20!M32 -> 0 | N30: =expense20!N32 -> 0
A31: Expense21 | B31: =expense21!$C$6 -> spare21 | C31: =expense21!C32 -> 0 | D31: =expense21!D32 -> 0 | E31: =expense21!E32 -> 0 | F31: =expense21!F32 -> 0 | G31: =expense21!G32 -> 0 | H31: =expense21!H32 -> 0 | I31: =expense21!I32 -> 0 | J31: =expense21!J32 -> 0 | K31: =expense21!K32 -> 0 | L31: =expense21!L32 -> 0 | M31: =expense21!M32 -> 0 | N31: =expense21!N32 -> 0
A32: Expense22 | B32: =expense22!$C$6 -> spare22 | C32: =expense22!C32 -> 0 | D32: =expense22!D32 -> 0 | E32: =expense22!E32 -> 0 | F32: =expense22!F32 -> 0 | G32: =expense22!G32 -> 0 | H32: =expense22!H32 -> 0 | I32: =expense22!I32 -> 0 | J32: =expense22!J32 -> 0 | K32: =expense22!K32 -> 0 | L32: =expense22!L32 -> 0 | M32: =expense22!M32 -> 0 | N32: =expense22!N32 -> 0
A33: Expense23 | B33: =expense23!$C$6 -> spare23 | C33: =expense23!C32 -> 0 | D33: =expense23!D32 -> 0 | E33: =expense23!E32 -> 0 | F33: =expense23!F32 -> 0 | G33: =expense23!G32 -> 0 | H33: =expense23!H32 -> 0 | I33: =expense23!I32 -> 0 | J33: =expense23!J32 -> 0 | K33: =expense23!K32 -> 0 | L33: =expense23!L32 -> 0 | M33: =expense23!M32 -> 0 | N33: =expense23!N32 -> 0
A34: Expense24 | B34: =expense24!$C$6 -> spare24 | C34: =expense24!C32 -> 0 | D34: =expense24!D32 -> 0 | E34: =expense24!E32 -> 0 | F34: =expense24!F32 -> 0 | G34: =expense24!G32 -> 0 | H34: =expense24!H32 -> 0 | I34: =expense24!I32 -> 0 | J34: =expense24!J32 -> 0 | K34: =expense24!K32 -> 0 | L34: =expense24!L32 -> 0 | M34: =expense24!M32 -> 0 | N34: =expense24!N32 -> 0
A35: Expense25 | B35: =expense25!$C$6 -> spare25 | C35: =expense24!C33 -> 0 | D35: =expense24!D33 -> 0 | E35: =expense24!E33 -> 0 | F35: =expense24!F33 -> 0 | G35: =expense24!G33 -> 0 | H35: =expense24!H33 -> 0 | I35: =expense24!I33 -> 0 | J35: =expense24!J33 -> 0 | K35: =expense24!K33 -> 0 | L35: =expense24!L33 -> 0 | M35: =expense24!M33 -> 0 | N35: =expense24!N33 -> 0
A37: Sales | B37: Bad Debts | C37: =Salesinputcomplex!E198 -> 0 | D37: =Salesinputcomplex!F198 -> 0 | E37: =Salesinputcomplex!G198 -> 0 | F37: =Salesinputcomplex!H198 -> 0 | G37: =Salesinputcomplex!I198 -> 0 | H37: =Salesinputcomplex!J198 -> 0 | I37: =Salesinputcomplex!K198 -> 0 | J37: =Salesinputcomplex!L198 -> 0 | K37: =Salesinputcomplex!M198 -> 0 | L37: =Salesinputcomplex!N198 -> 0 | M37: =Salesinputcomplex!O198 -> 0 | N37: =Salesinputcomplex!P198 -> 0
A38: Journal | B38: VAT Adjustment leasing | C38: =Journal!C35 -> 0 | D38: =Journal!D35 -> 0 | E38: =Journal!E35 -> 0 | F38: =Journal!F35 -> 0 | G38: =Journal!G35 -> 0 | H38: =Journal!H35 -> 0 | I38: =Journal!I35 -> 0 | J38: =Journal!J35 -> 0 | K38: =Journal!K35 -> 0 | L38: =Journal!L35 -> 0 | M38: =Journal!M35 -> 0 | N38: =Journal!N35 -> 0
A42: CapEx1 | B42: =Capex1!D6 -> Capital expenditure | C42: =Capex1!D107 -> 0 | D42: =Capex1!E107 -> 0 | E42: =Capex1!F107 -> 0 | F42: =Capex1!G107 -> 0 | G42: =Capex1!H107 -> 0 | H42: =Capex1!I107 -> 0 | I42: =Capex1!J107 -> 0 | J42: =Capex1!K107 -> 0 | K42: =Capex1!L107 -> 0 | L42: =Capex1!M107 -> 0 | M42: =Capex1!N107 -> 0 | N42: =Capex1!O107 -> 0

Sheet OutputVAT
C4: Output VAT
C6: =SUM(C9:C63) -> 0 | D6: =SUM(D9:D63) -> 0 | E6: 0 | F6: 0 | G6: 0 | H6: 0 | I6: 0 | J6: 0 | K6: 0 | L6: 0 | M6: 0 | N6: 0
C7: 1 | D7: 2 | E7: 3 | F7: 4 | G7: 5 | H7: 6 | I7: 7 | J7: 8 | K7: 9 | L7: 10 | M7: 11 | N7: 12
B9: Sales | C9: =Salesinputcomplex!E197 -> 0 | D9: =Salesinputcomplex!F197 -> 0 | E9: =Salesinputcomplex!G197 -> 0 | F9: =Salesinputcomplex!H197 -> 0 | G9: =Salesinputcomplex!I197 -> 0 | H9: =Salesinputcomplex!J197 -> 0 | I9: =Salesinputcomplex!K197 -> 0 | J9: =Salesinputcomplex!L197 -> 0 | K9: =Salesinputcomplex!M197 -> 0 | L9: =Salesinputcomplex!N197 -> 0 | M9: =Salesinputcomplex!O197 -> 0 | N9: =Salesinputcomplex!P197 -> 0
A10: Capex1 | B10: Asset disposals | C10: =-Capex1!D106 -> 0 | D10: =-Capex1!E106 -> 0 | E10: =-Capex1!F106 -> 0 | F10: =-Capex1!G106 -> 0 | G10: =-Capex1!H106 -> 0 | H10: =-Capex1!I106 -> 0 | I10: =-Capex1!J106 -> 0 | J10: =-Capex1!K106 -> 0 | K10: =-Capex1!L106 -> 0 | L10: =-Capex1!M106 -> 0 | M10: =-Capex1!N106 -> 0 | N10: =-Capex1!O106 -> 0
B11: Scale Charge | C11: =-Journal!C15 -> 0 | D11: =-Journal!D15 -> 0 | E11: =-Journal!E15 -> 0 | F11: =-Journal!F15 -> 0 | G11: =-Journal!G15 -> 0 | H11: =-Journal!H15 -> 0 | I11: =-Journal!I15 -> 0 | J11: =-Journal!J15 -> 0 | K11: =-Journal!K15 -> 0 | L11: =-Journal!L15 -> 0 | M11: =-Journal!M15 -> 0 | N11: =-Journal!N15 -> 0

Sheet VATAccount
C5: Opening bal | D5: 1 | E5: 2 | F5: 3 | G5: 4 | H5: 5 | I5: 6 | J5: 7 | K5: 8 | L5: 9 | M5: 10 | N5: 11 | O5: 12
A9: Output VAT | D9: =OutputVAT!C6 -> 0 | E9: =OutputVAT!D6 -> 0 | F9: =OutputVAT!E6 -> 0 | G9: =OutputVAT!F6 -> 0 | H9: =OutputVAT!G6 -> 0 | I9: =OutputVAT!H6 -> 0 | J9: =OutputVAT!I6 -> 0 | K9: =OutputVAT!J6 -> 0 | L9: =OutputVAT!K6 -> 0 | M9: =OutputVAT!L6 -> 0 | N9: =OutputVAT!M6 -> 0 | O9: =OutputVAT!N6 -> 0
A11: Input VAT | D11: =InputVAT!C6 -> 0 | E11: =InputVAT!D6 -> 0 | F11: =InputVAT!E6 -> 0 | G11: =InputVAT!F6 -> 0 | H11: =InputVAT!G6 -> 0 | I11: =InputVAT!H6 -> 0 | J11: =InputVAT!I6 -> 0 | K11: =InputVAT!J6 -> 0 | L11: =InputVAT!K6 -> 0 | M11: =InputVAT!L6 -> 0 | N11: =InputVAT!M6 -> 0 | O11: =InputVAT!N6 -> 0
R13: Check | S13: B/fwd | T13: =D16 -> 0
A14: Net | D14: =D9-D11 -> 0 | E14: =E9-E11 -> 0 | F14: 0 | G14: 0 | H14: 0 | I14: 0 | J14: 0 | K14: 0 | L14: 0 | M14: 0 | N14: 0 | O14: 0 | Q14: =SUM(D14:P14) -> 0 | S14: Net | T14: =Q14 -> 0
S15: paid/recd | T15: =Q18 -> 0
A16: B/fwd | D16: =C20 -> 0 | E16: =D20 -> 0 | F16: =E20 -> 0 | G16: 0 | H16: 0 | I16: 0 | J16: 0 | K16: 0 | L16: 0 | M16: 0 | N16: 0 | O16: 0 | S16: Cfwd | T16: =-O20 -> 0
A18: Paid/Repaid | D18: =IF(Vat_Payt_month_no=0,-D16,0) -> 0 | E18: =IF(Vat_Payt_month_no=1,-E16,0) -> 0 | F18: =IF(Vat_Payt_month_no=2,-F16,0) -> 0 | G18: =IF(Vat_Payt_month_no=3,-G16,0) -> 0 | H18: =IF(Vat_Payt_month_no=1,-H16,0) -> 0 | I18: =IF(Vat_Payt_month_no=2,-I16,0) -> 0 | J18: =IF(Vat_Payt_month_no=3,-J16,0) -> 0 | K18: =IF(Vat_Payt_month_no=1,-K16,0) -> 0 | L18: =IF(Vat_Payt_month_no=2,-L16,0) -> 0 | M18: =IF(Vat_Payt_month_no=3,-M16,0) -> 0 | N18: =IF(Vat_Payt_month_no=1,-N16,0) -> 0 | O18: =IF(Vat_Payt_month_no=2,-O16,0) -> 0 | Q18: =SUM(D18:P18) -> 0 | T18: =SUM(T13:T17) -> 0
A20: C/Fwd | C20: 0 | D20: =SUM(D14:D19) -> 0 | E20: =SUM(E14:E19) -> 0 | F20: =SUM(F14:F19) -> 0 | G20: 0 | H20: 0 | I20: 0 | J20: 0 | K20: 0 | L20: 0 | M20: 0 | N20: 0 | O20: 0
A21: Due is + . Repayment is -
D24: 1 | E24: 2 | F24: 3 | G24: 4 | H24: 5 | I24: 6 | J24: 7 | K24: 8 | L24: 9 | M24: 10 | N24: 11 | O24: 12
A25: Due | D25: =D20 -> 0 | E25: =E20 -> 0 | F25: 0 | G25: 0 | H25: 0 | I25: 0 | J25: 0 | K25: 0 | L25: 0 | M25: 0 | N25: 0 | O25: 0 | T25: =HLOOKUP(monthno,D24:O25,2) -> 0 | U25: VatBs
A26: Paid | D26: =D18 -> 0 | E26: =E18 -> 0 | F26: 0 | G26: 0 | H26: 0 | I26: 0 | J26: 0 | K26: 0 | L26: 0 | M26: 0 | N26: 0 | O26: 0

Sheet Wages-Simple
D4: Wages
D6: =start_date -> 2019-09-01 | E6: =EDATE(D6,1) -> 2019-10-01 | F6: =EDATE(E6,1) -> 2019-11-01 | G6: =EDATE(F6,1) -> 2019-12-01 | H6: 2020-01-01 | I6: 2020-02-01 | J6: 2020-03-01 | K6: 2020-04-01 | L6: 2020-05-01 | M6: 2020-06-01 | N6: 2020-07-01 | O6: 2020-08-01 | P6: Total
C7: Opening balance | D7: 1 | E7: 2 | F7: 3 | G7: 4 | H7: 5 | I7: 6 | J7: 7 | K7: 8 | L7: 9 | M7: 10 | N7: 11 | O7: 12
U8: Check | AD8: =S12 -> 0 | AE8: =S13 -> 0 | AF8: =S14 -> 0 | AG8: =#REF! ->  | AH8: =S15 -> 0 | AI8: =S19 -> 0 | AJ8: =S20 -> 0 | AK8: =S21 -> 0
A9: A | B9: Gross wages P &L | Q9: =SUM(D9:P9) -> 0 | U9: Gross | V9: =Q9 -> 0 | W9: Net | X9: =Q20 -> 0
Q10: =SUM(D10:P10) -> 0 | U10: Ers NI | V10: =Q11 -> 0 | W10: paye | X10: =Q18 -> 0 | AD10: =Q12 -> 0 | AE10: =Q13 -> 0 | AF10: =Q14 -> 0 | AG10: =#REF! ->  | AH10: =Q15 -> 0 | AI10: =Q19 -> 0 | AJ10: =Q20 -> 0 | AK10: =Q21 -> 0
A11: B | B11: Ers NI (full amount pre Ers Allce) | Q11: =SUM(D11:P11) -> 0 | U11: Ers Pension | V11: =Q13 -> 0 | W11: pension | X11: =Q15 -> 0
A13: C | B13: Ers Pension P & L | Q13: =SUM(D13:P13) -> 0 | V13: =SUM(V9:V12) -> 0 | X13: =SUM(X9:X12) -> 0
A15: D | B15: Pensions B/S | Q15: =SUM(D15:P15) -> 0
B16: (Ers and Eees)
A18: E | B18: Tax and NI B/S | Q18: =SUM(D18:P18) -> 0
B19: (inc. full ers NI, ees NI and Tax)
B20: Net Pay Control | C20: A+B-C+D-E | D20: =D9+D11-D15+D13-D18 -> 0 | E20: =E9+E11-E15+E13-E18 -> 0 | F20: 0 | G20: 0 | H20: 0 | I20: 0 | J20: 0 | K20: 0 | L20: 0 | M20: 0 | N20: 0 | O20: 0 | Q20: =SUM(D20:P20) -> 0
B22: Cashflow net wages | D22: =D20 -> 0 | E22: =E20 -> 0 | F22: 0 | G22: 0 | H22: 0 | I22: 0 | J22: 0 | K22: 0 | L22: 0 | M22: 0 | N22: 0 | O22: 0
B24: Cashflow pension | D24: =C15 -> 0 | E24: =D15 -> 0 | F24: 0 | G24: 0 | H24: 0 | I24: 0 | J24: 0 | K24: 0 | L24: 0 | M24: 0 | N24: 0 | O24: 0
B26: Cashflow PAYE | D26: =C18 -> 0 | E26: =D18-ERsallceSummarymth1 -> 0 | F26: =E18-E32 -> 0 | G26: =F18-F32 -> 0 | H26: 0 | I26: 0 | J26: 0 | K26: 0 | L26: 0 | M26: 0 | N26: 0 | O26: 0
B29: Calculation of Employers NI
B30: Allowance remaining | D30: =IF(Emp_allce=1,IF(ErsNiAllceTabSelect=2,Emp_allce_rate,0)) -> 0 | E30: =IF(MONTH(E6)=4,Emp_allce_rate,D34) -> 0 | F30: =IF(MONTH(F6)=4,Emp_allce_rate,E34) -> 0 | G30: =IF(MONTH(G6)=4,Emp_allce_rate,F34) -> 0 | H30: =IF(MONTH(H6)=4,Emp_allce_rate,G34) -> 0 | I30: =IF(MONTH(I6)=4,Emp_allce_rate,H34) -> 0 | J30: =IF(MONTH(J6)=4,Emp_allce_rate,I34) -> 0 | K30: =IF(MONTH(K6)=4,Emp_allce_rate,J34) -> 3000 | L30: =IF(MONTH(L6)=4,Emp_allce_rate,K34) -> 0 | M30: =IF(MONTH(M6)=4,Emp_allce_rate,L34) -> 0 | N30: =IF(MONTH(N6)=4,Emp_allce_rate,M34) -> 0 | O30: =IF(MONTH(O6)=4,Emp_allce_rate,N34) -> 0
B32: E'ers Allowance Used (P&L and BS) | D32: =IF(ErsNiAllceTabSelect=1,0,IF(D11<D30,D11,D11-D30)) -> 0 | E32: 0 | F32: 0 | G32: 0 | H32: 0 | I32: 0 | J32: 0 | K32: 0 | L32: 0 | M32: 0 | N32: 0 | O32: 0
B34: Unused Allowance c/fwd | D34: =IF(ErsNiAllceTabSelect=2,D30-D32,0) -> 0 | E34: 0 | F34: 0 | G34: 0 | H34: 0 | I34: 0 | J34: 0 | K34: 0 | L34: 0 | M34: 0 | N34: 0 | O34: 0
B35: (new tax year overrides any c/fwd balance)
C38: opAL | D38: 1 | E38: 2 | F38: 3 | G38: 4 | H38: 5 | I38: 6 | J38: 7 | K38: 8 | L38: 9 | M38: 10 | N38: 11 | O38: 12
B39: paye | C39: =C18 -> 0 | D39: =D18-ERsallceSummarymth1 -> 0 | E39: =E18-E32 -> 0 | F39: =F18-F32 -> 0 | G39: 0 | H39: 0 | I39: 0 | J39: 0 | K39: 0 | L39: 0 | M39: 0 | N39: 0 | O39: 0 | Q39: =HLOOKUP(monthno,$B$38:$O$40,2) -> 0
B40: Pension | C40: =C15 -> 0 | D40: =D15 -> 0 | E40: =E15 -> 0 | F40: 0 | G40: 0 | H40: 0 | I40: 0 | J40: 0 | K40: 0 | L40: 0 | M40: 0 | N40: 0 | O40: 0 | Q40: =HLOOKUP(monthno,$B$38:$O$40,3) -> 0
B42: Warnings
A43: xxx | B43: =IF(SUM($D$43:$O$43)>0,"Row B should be less than or equal to Row E","") ->  | D43: =IF((D11-D18)>0,"error","") ->  | E43: =IF((E11-E18)>0,"error","") -> 
D44: =IF(D11-D18<0,0,D11-D18) -> 0 | E44: =IF(E11-E18<0,0,E11-E18) -> 0 | F44: 0 | G44: 0 | H44: 0 | I44: 0 | J44: 0 | K44: 0 | L44: 0 | M44: 0 | N44: 0 | O44: 0 | Q44: =SUM(D43:O43) -> 0
A45: xxx | C45: =IF(Q44>0,"Warning - Row B figures should usually be less than or equal to Row E","") -> 

Sheet Wages
D4: Wages
D6: =start_date -> 2019-09-01 | E6: =EDATE(D6,1) -> 2019-10-01 | F6: =EDATE(E6,1) -> 2019-11-01 | G6: =EDATE(F6,1) -> 2019-12-01 | H6: 2020-01-01 | I6: 2020-02-01 | J6: 2020-03-01 | K6: 2020-04-01 | L6: 2020-05-01 | M6: 2020-06-01 | N6: 2020-07-01 | O6: 2020-08-01 | P6: Total
C7: Opening balance | D7: 1 | E7: 2 | F7: 3 | G7: 4 | H7: 5 | I7: 6 | J7: 7 | K7: 8 | L7: 9 | M7: 10 | N7: 11 | O7: 12
U8: Check | AD8: =S12 -> 0 | AE8: =S13 -> 0 | AF8: =S14 -> 0 | AG8: =S15 -> 0 | AH8: =S16 -> 0 | AI8: =S19 -> 0 | AJ8: =S20 -> 0 | AK8: =S21 -> 0
B9: Gross wages P &L | D9: =D61 -> 0 | E9: =E61 -> 0 | F9: 0 | G9: 0 | H9: 0 | I9: 0 | J9: 0 | K9: 0 | L9: 0 | M9: 0 | N9: 0 | O9: 0 | Q9: =SUM(D9:P9) -> 0 | U9: Gross | V9: =Q9 -> 0 | W9: Net | X9: =Q20 -> 0
Q10: =SUM(D10:P10) -> 0 | U10: Ers NI | V10: =Q11 -> 0 | W10: paye | X10: =Q18 -> 0 | AD10: =Q12 -> 0 | AE10: =Q13 -> 0 | AF10: =Q14 -> 0 | AG10: =Q15 -> 0 | AH10: =Q16 -> 0 | AI10: =Q19 -> 0 | AJ10: =Q20 -> 0 | AK10: =Q21 -> 0
B11: Ers NI P & L | D11: =D93 -> 0 | E11: =E93 -> 0 | F11: =F93 -> 0 | G11: 0 | H11: 0 | I11: 0 | J11: 0 | K11: 0 | L11: 0 | M11: 0 | N11: 0 | O11: 0 | Q11: =SUM(D11:P11) -> 0 | U11: Ers Pension | V11: =Q13 -> 0 | W11: pension | X11: =Q16 -> 0
B13: ERS pension P & L | D13: =D121 -> 0 | E13: =E121 -> 0 | F13: 0 | G13: 0 | H13: 0 | I13: 0 | J13: 0 | K13: 0 | L13: 0 | M13: 0 | N13: 0 | O13: 0 | Q13: =SUM(D13:P13) -> 0 | V13: =SUM(V9:V12) -> 0 | X13: =SUM(X9:X12) -> 0
B16: Pension - B/Sheet | D16: =D121+D136 -> 0 | E16: =E121+E136 -> 0 | F16: 0 | G16: 0 | H16: 0 | I16: 0 | J16: 0 | K16: 0 | L16: 0 | M16: 0 | N16: 0 | O16: 0 | Q16: =SUM(D16:P16) -> 0
B18: PAYE B/Sheet | D18: =D75+D93+D107 -> 0 | E18: 0 | F18: 0 | G18: 0 | H18: 0 | I18: 0 | J18: 0 | K18: 0 | L18: 0 | M18: 0 | N18: 0 | O18: 0 | Q18: =SUM(D18:P18) -> 0
B20: Net Pay | D20: =D9-D75-D107-D136 -> 0 | E20: 0 | F20: 0 | G20: 0 | H20: 0 | I20: 0 | J20: 0 | K20: 0 | L20: 0 | M20: 0 | N20: 0 | O20: 0 | Q20: =SUM(D20:P20) -> 0
F23: =E24 -> 0 | G23: 0 | H23: 0 | I23: 0 | J23: 0 | K23: 0 | L23: 0 | M23: 0 | N23: 0 | O23: 0
D28: Total | E28: =$D$35*E35+$D$36*E36+$D$37*E37+$D$38*E38+$D$39*E39+$D$40*E40+$D$41*E41+$D$42*E42+$D$43*E43+$D$44*E44 -> 0 | K28: =$D$35*K35+$D$36*K36+$D$37*K37+$D$38*K38+$D$39*K39+$D$40*K40+$D$41*K41+$D$42*K42+$D$43*K43+$D$44*K44 -> 0 | O28: =$D$35*O35+$D$36*O36+$D$37*O37+$D$38*O38+$D$39*O39+$D$40*O40+$D$41*O41+$D$42*O42+$D$43*O43+$D$44*O44 -> 0 | P28: =$D$35*P35+$D$36*P36+$D$37*P37+$D$38*P38+$D$39*P39+$D$40*P40+$D$41*P41+$D$42*P42+$D$43*P43+$D$44*P44 -> 0 | Q28: =$D$35*Q35+$D$36*Q36+$D$37*Q37+$D$38*Q38+$D$39*Q39+$D$40*Q40+$D$41*Q41+$D$42*Q42+$D$43*Q43+$D$44*Q44 -> 0 | R28: =$D$35*R35+$D$36*R36+$D$37*R37+$D$38*R38+$D$39*R39+$D$40*R40+$D$41*R41+$D$42*R42+$D$43*R43+$D$44*R44 -> 0 | T28: =$D$35*T35+$D$36*T36+$D$37*T37+$D$38*T38+$D$39*T39+$D$40*T40+$D$41*T41+$D$42*T42+$D$43*T43+$D$44*T44 -> 0 | U28: =$D$35*U35+$D$36*U36+$D$37*U37+$D$38*U38+$D$39*U39+$D$40*U40+$D$41*U41+$D$42*U42+$D$43*U43+$D$44*U44 -> 0
D29: Monthly | E29: =E28/12 -> 0 | K29: =K28/12 -> 0 | O29: =O28/12 -> 0 | P29: =P28/12 -> 0 | Q29: =Q28/12 -> 0 | R29: =R28/12 -> 0 | T29: =T28/12 -> 0 | U29: =U28/12 -> 0
D32: =D10/6 -> 0 | E32: 0 | F32: 0 | G32: 0 | H32: 0 | I32: 0 | J32: 0 | K32: 0 | M32: =M10/6 -> 0 | N32: =N10/6 -> 0 | O32: =O10/6 -> 0 | Q32: =SUM(D32:P32) -> 0 | R32: Total | S32: AE | T32: EES | U32: ERS
B33: Gross pay | D33: Number in | H33: Tax Calculation | K33: Total | L33: Ni ERS on | M33: Ni Ees | O33: Ers NI | P33: Ees NI | Q33: Total | R33: Deducted | S33: Liable | T33: AE | U33: AE
B34: Group | D34: Group | E34: Gross pay/ee | F34: Pallce | G34: Taxable | H34: 0.2 | I34: 0.4 | J34: 0.45 | K34: Tax | L34: =ERSNIRate -> 0.138 | M34: =EesNILowerrate -> 0.09 | N34: =EesNIUpperrate -> 0.02 | Q34: NI | R34: Tax + NI | T34: =aeeerate -> 0.05 | U34: =aeerrate -> 0.03
B35: Dept 1 | D35: 1 | F35: =IF(E35<=persallowancetaper,persallce,IF(E35>=taxband3,0,(persallce-((E35-persallowancetaper)/2)))) -> 12500 | G35: =IF(E35-F35<0,0,E35-F35) -> 0 | H35: =IF(G35-taxband2<0,G35,taxband2-persallce) -> 0 | I35: =IF(G35>=taxband3,taxband3-H35,G35-H35) -> 0 | J35: =G35-H35-I35 -> 0 | K35: =H35*$H$34+I35*$I$34+J35*$J$34 -> 0 | L35: =IF(E35-NIlowerlimit<0,0,E35-NIlowerlimit) -> 0 | M35: =IF(E35-NIlowerlimit<0,0,IF(E35>NIupperlimit,NIupperlimit-NIlowerlimit,E35-NIlowerlimit)) -> 0 | N35: =L35-M35 -> 0 | O35: =L35*$L$34 -> 0 | P35: =M35*$M$34+N35*$N$34 -> 0 | Q35: =O35+P35 -> 0 | R35: =K35+Q35 -> 0 | S35: =IF(E35>AEupperband,AEupperband-AElowerband,IF(E35<AElowerband,0,E35-AElowerband)) -> 0 | T35: =S35*$T$34 -> 0 | U35: =S35*$U$34 -> 0
B36: 2 | D36: 1 | F36: 12500 | G36: =IF(E36-F36<0,0,E36-F36) -> 0 | H36: 0 | I36: 0 | J36: =G36-H36-I36 -> 0 | K36: =H36*$H$34+I36*$I$34+J36*$J$34 -> 0 | L36: 0 | M36: 0 | N36: =L36-M36 -> 0 | O36: =L36*$L$34 -> 0 | P36: =M36*$M$34+N36*$N$34 -> 0 | Q36: =O36+P36 -> 0 | R36: =K36+Q36 -> 0 | S36: 0 | T36: =S36*$T$34 -> 0 | U36: =S36*$U$34 -> 0
B37: 3 | D37: 1 | F37: 12500 | G37: 0 | H37: 0 | I37: 0 | J37: 0 | K37: 0 | L37: 0 | M37: 0 | N37: 0 | O37: 0 | P37: 0 | Q37: 0 | R37: 0 | S37: 0 | T37: 0 | U37: 0
B38: 4 | D38: 1 | F38: 12500 | G38: 0 | H38: 0 | I38: 0 | J38: 0 | K38: 0 | L38: 0 | M38: 0 | N38: 0 | O38: 0 | P38: 0 | Q38: 0 | R38: 0 | S38: 0 | T38: 0 | U38: 0
B39: 5 | D39: 1 | F39: 12500 | G39: 0 | H39: 0 | I39: 0 | J39: 0 | K39: 0 | L39: 0 | M39: 0 | N39: 0 | O39: 0 | P39: 0 | Q39: 0 | R39: 0 | S39: 0 | T39: 0 | U39: 0
B40: 6 | D40: 1 | F40: 12500 | G40: 0 | H40: 0 | I40: 0 | J40: 0 | K40: 0 | L40: 0 | M40: 0 | N40: 0 | O40: 0 | P40: 0 | Q40: 0 | R40: 0 | S40: 0 | T40: 0 | U40: 0
B41: 7 | D41: 1 | F41: 12500 | G41: 0 | H41: 0 | I41: 0 | J41: 0 | K41: 0 | L41: 0 | M41: 0 | N41: 0 | O41: 0 | P41: 0 | Q41: 0 | R41: 0 | S41: 0 | T41: 0 | U41: 0
B42: 8 | D42: 1 | F42: 12500 | G42: 0 | H42: 0 | I42: 0 | J42: 0 | K42: 0 | L42: 0 | M42: 0 | N42: 0 | O42: 0 | P42: 0 | Q42: 0 | R42: 0 | S42: 0 | T42: 0 | U42: 0
B43: 9 | D43: 1 | F43: 12500 | G43: 0 | H43: 0 | I43: 0 | J43: 0 | K43: 0 | L43: 0 | M43: 0 | N43: 0 | O43: 0 | P43: 0 | Q43: 0 | R43: 0 | S43: 0 | T43: 0 | U43: 0
B44: 10 | D44: 1 | F44: 12500 | G44: 0 | H44: 0 | I44: 0 | J44: 0 | K44: 0 | L44: 0 | M44: 0 | N44: 0 | O44: 0 | P44: 0 | Q44: 0 | R44: 0 | S44: 0 | T44: 0 | U44: 0
D47: Employed in Month number | F47: Gross PAY | H47: delete from below any months where wages are NOT required for that particular employee - the formula will be deleted - copy from any other cell or undo to reinstate it
D48: 1 | E48: 2 | F48: 3 | G48: 4 | H48: 5 | I48: 6 | J48: 7 | K48: 8 | L48: 9 | M48: 10 | N48: 11 | O48: 12
B49: =B35 -> Dept 1 | D49: =$D35*$E35/12 -> 0 | E49: 0 | F49: 0 | G49: 0 | H49: 0 | I49: 0 | J49: 0 | K49: 0 | L49: 0 | M49: 0 | N49: 0 | O49: 0 | Q49: =SUM(D49:O49) -> 0
B50: =B36 -> 2 | D50: =$D36*$E36/12 -> 0 | E50: 0 | F50: 0 | G50: 0 | H50: 0 | I50: 0 | J50: 0 | K50: 0 | L50: 0 | M50: 0 | N50: 0 | O50: 0 | Q50: =SUM(D50:O50) -> 0
B51: 3 | D51: =$D37*$E37/12 -> 0 | E51: 0 | F51: 0 | G51: 0 | H51: 0 | I51: 0 | J51: 0 | K51: 0 | L51: 0 | M51: 0 | N51: 0 | O51: 0 | Q51: 0
B52: 4 | D52: =$D38*$E38/12 -> 0 | E52: 0 | F52: 0 | G52: 0 | H52: 0 | I52: 0 | J52: 0 | K52: 0 | L52: 0 | M52: 0 | N52: 0 | O52: 0 | Q52: 0
B53: 5 | D53: =$D39*$E39/12 -> 0 | E53: 0 | F53: 0 | G53: 0 | H53: 0 | I53: 0 | J53: 0 | K53: 0 | L53: 0 | M53: 0 | N53: 0 | O53: 0 | Q53: 0
B54: 6 | D54: =$D40*$E40/12 -> 0 | E54: 0 | F54: 0 | G54: 0 | H54: 0 | I54: 0 | J54: 0 | K54: 0 | L54: 0 | M54: 0 | N54: 0 | O54: 0 | Q54: 0
B55: 7 | D55: =$D41*$E41/12 -> 0 | E55: 0 | F55: 0 | G55: 0 | H55: 0 | I55: 0 | J55: 0 | K55: 0 | L55: 0 | M55: 0 | N55: 0 | O55: 0 | Q55: 0
B56: 8 | D56: =$D42*$E42/12 -> 0 | E56: 0 | F56: 0 | G56: 0 | H56: 0 | I56: 0 | J56: 0 | K56: 0 | L56: 0 | M56: 0 | N56: 0 | O56: 0 | Q56: 0
B57: 9 | D57: =$D43*$E43/12 -> 0 | E57: 0 | F57: 0 | G57: 0 | H57: 0 | I57: 0 | J57: 0 | K57: 0 | L57: 0 | M57: 0 | N57: 0 | O57: 0 | Q57: 0
B58: 10 | D58: =$D44*$E44/12 -> 0 | E58: 0 | F58: 0 | G58: 0 | H58: 0 | I58: 0 | J58: 0 | K58: 0 | L58: 0 | M58: 0 | N58: 0 | O58: 0 | Q58: 0
D59: =$D$35*E45/12 -> 0 | E59: 0 | F59: 0 | G59: 0 | H59: 0 | I59: 0 | J59: 0 | K59: 0 | L59: 0 | M59: 0 | N59: 0 | O59: 0
D60: 0 | E60: 0 | F60: 0 | G60: 0 | H60: 0 | I60: 0 | J60: 0 | K60: 0 | L60: 0 | M60: 0 | N60: 0 | O60: 0
D61: =SUM(D49:D60) -> 0 | E61: =SUM(E49:E60) -> 0 | F61: 0 | G61: 0 | H61: 0 | I61: 0 | J61: 0 | K61: 0 | L61: 0 | M61: 0 | N61: 0 | O61: 0 | Q61: =SUM(Q49:Q60) -> 0
D63: Tax
B64: =B49 -> Dept 1 | D64: =IF(D49=0,0,$K$35*$D$35/12) -> 0 | E64: =IF(E49=0,0,$K$35*$D$35/12) -> 0 | F64: 0 | G64: 0 | H64: 0 | I64: 0 | J64: 0 | K64: 0 | L64: 0 | M64: 0 | N64: 0 | O64: 0 | Q64: =SUM(D64:O64) -> 0
B65: =B50 -> 2 | D65: =IF(D50=0,0,$K36*$D36/12) -> 0 | E65: =IF(E50=0,0,$K36*$D36/12) -> 0 | F65: 0 | G65: 0 | H65: 0 | I65: 0 | J65: 0 | K65: 0 | L65: 0 | M65: 0 | N65: 0 | O65: 0 | Q65: =SUM(D65:O65) -> 0
B66: 3 | D66: =IF(D51=0,0,$K37*$D37/12) -> 0 | E66: 0 | F66: 0 | G66: 0 | H66: 0 | I66: 0 | J66: 0 | K66: 0 | L66: 0 | M66: 0 | N66: 0 | O66: 0 | Q66: 0
B67: 4 | D67: =IF(D52=0,0,$K38*$D38/12) -> 0 | E67: 0 | F67: 0 | G67: 0 | H67: 0 | I67: 0 | J67: 0 | K67: 0 | L67: 0 | M67: 0 | N67: 0 | O67: 0 | Q67: 0
B68: 5 | D68: =IF(D53=0,0,$K39*$D39/12) -> 0 | E68: 0 | F68: 0 | G68: 0 | H68: 0 | I68: 0 | J68: 0 | K68: 0 | L68: 0 | M68: 0 | N68: 0 | O68: 0 | Q68: 0
B69: 6 | D69: =IF(D54=0,0,$K40*$D40/12) -> 0 | E69: 0 | F69: 0 | G69: 0 | H69: 0 | I69: 0 | J69: 0 | K69: 0 | L69: 0 | M69: 0 | N69: 0 | O69: 0 | Q69: 0
B70: 7 | D70: =IF(D55=0,0,$K41*$D41/12) -> 0 | E70: 0 | F70: 0 | G70: 0 | H70: 0 | I70: 0 | J70: 0 | K70: 0 | L70: 0 | M70: 0 | N70: 0 | O70: 0 | Q70: 0
B71: 8 | D71: =IF(D56=0,0,$K42*$D42/12) -> 0 | E71: 0 | F71: 0 | G71: 0 | H71: 0 | I71: 0 | J71: 0 | K71: 0 | L71: 0 | M71: 0 | N71: 0 | O71: 0 | Q71: 0
B72: 9 | D72: =IF(D57=0,0,$K43*$D43/12) -> 0 | E72: 0 | F72: 0 | G72: 0 | H72: 0 | I72: 0 | J72: 0 | K72: 0 | L72: 0 | M72: 0 | N72: 0 | O72: 0 | Q72: 0
B73: 10 | D73: 0 | E73: 0 | F73: 0 | G73: 0 | H73: 0 | I73: 0 | J73: 0 | K73: 0 | L73: 0 | M73: 0 | N73: 0 | O73: 0 | Q73: =SUM(D73:O73) -> 0
D75: =SUM(D63:D74) -> 0 | E75: =SUM(E63:E74) -> 0 | F75: =SUM(F63:F74) -> 0 | G75: =SUM(G63:G74) -> 0 | H75: =SUM(H63:H74) -> 0 | I75: =SUM(I63:I74) -> 0 | J75: =SUM(J63:J74) -> 0 | K75: =SUM(K63:K74) -> 0 | L75: =SUM(L63:L74) -> 0 | M75: =SUM(M63:M74) -> 0 | N75: =SUM(N63:N74) -> 0 | O75: =SUM(O63:O74) -> 0 | Q75: =SUM(Q63:Q74) -> 0
D78: ERS NI
B79: =B64 -> Dept 1 | D79: =IF(D49=0,0,$O35*$D$35/12) -> 0 | E79: =IF(E49=0,0,$O35*$D$35/12) -> 0 | F79: 0 | G79: 0 | H79: 0 | I79: 0 | J79: 0 | K79: 0 | L79: 0 | M79: 0 | N79: 0 | O79: 0 | Q79: =SUM(D79:O79) -> 0
B80: =B65 -> 2 | D80: =IF(D50=0,0,$O36*$D$35/12) -> 0 | E80: 0 | F80: 0 | G80: 0 | H80: 0 | I80: 0 | J80: 0 | K80: 0 | L80: 0 | M80: 0 | N80: 0 | O80: 0 | Q80: =SUM(D80:O80) -> 0
B81: 3 | D81: =IF(D51=0,0,$O37*$D$35/12) -> 0 | E81: 0 | F81: 0 | G81: 0 | H81: 0 | I81: 0 | J81: 0 | K81: 0 | L81: 0 | M81: 0 | N81: 0 | O81: 0 | Q81: 0
B82: 4 | D82: =IF(D52=0,0,$O38*$D$35/12) -> 0 | E82: 0 | F82: 0 | G82: 0 | H82: 0 | I82: 0 | J82: 0 | K82: 0 | L82: 0 | M82: 0 | N82: 0 | O82: 0 | Q82: 0
B83: 5 | D83: =IF(D53=0,0,$O39*$D$35/12) -> 0 | E83: 0 | F83: 0 | G83: 0 | H83: 0 | I83: 0 | J83: 0 | K83: 0 | L83: 0 | M83: 0 | N83: 0 | O83: 0 | Q83: 0
B84: 6 | D84: =IF(D54=0,0,$O40*$D$35/12) -> 0 | E84: 0 | F84: 0 | G84: 0 | H84: 0 | I84: 0 | J84: 0 | K84: 0 | L84: 0 | M84: 0 | N84: 0 | O84: 0 | Q84: 0
B85: 7 | D85: =IF(D55=0,0,$O41*$D$35/12) -> 0 | E85: 0 | F85: 0 | G85: 0 | H85: 0 | I85: 0 | J85: 0 | K85: 0 | L85: 0 | M85: 0 | N85: 0 | O85: 0 | Q85: 0
B86: 8 | D86: =IF(D56=0,0,$O42*$D$35/12) -> 0 | E86: 0 | F86: 0 | G86: 0 | H86: 0 | I86: 0 | J86: 0 | K86: 0 | L86: 0 | M86: 0 | N86: 0 | O86: 0 | Q86: 0
B87: 9 | D87: =IF(D57=0,0,$O43*$D$35/12) -> 0 | E87: 0 | F87: 0 | G87: 0 | H87: 0 | I87: 0 | J87: 0 | K87: 0 | L87: 0 | M87: 0 | N87: 0 | O87: 0 | Q87: 0
B88: 10 | D88: =IF(D58=0,0,$O44*$D$35/12) -> 0 | E88: 0 | F88: 0 | G88: 0 | H88: 0 | I88: 0 | J88: 0 | K88: 0 | L88: 0 | M88: 0 | N88: 0 | O88: 0 | Q88: 0
B89: Total | D89: =SUM(D77:D88) -> 0 | E89: =SUM(E77:E88) -> 0 | F89: =SUM(F77:F88) -> 0 | G89: =SUM(G77:G88) -> 0 | H89: =SUM(H77:H88) -> 0 | I89: =SUM(I77:I88) -> 0 | J89: =SUM(J77:J88) -> 0 | K89: =SUM(K77:K88) -> 0 | L89: =SUM(L77:L88) -> 0 | M89: =SUM(M77:M88) -> 0 | N89: =SUM(N77:N88) -> 0 | O89: =SUM(O77:O88) -> 0 | Q89: =SUM(Q77:Q88) -> 0
B90: Employers Allce unused | D90: =IF(ErsNiAllceTabSelect=1,Emp_allce_rate,0) -> 3000 | E90: =IF(ErsNiAllceTabSelect=2,0,IF(MONTH(E6)=4,Emp_allce_rate,D92)) -> 3000 | F90: 3000 | G90: 3000 | H90: 3000 | I90: 3000 | J90: 3000 | K90: 3000 | L90: 3000 | M90: 3000 | N90: 3000 | O90: 3000
B91: Employers Allce used | D91: =IF(ErsNiAllceTabSelect=1,MIN(D90,D89),0) -> 0 | E91: 0 | F91: 0 | G91: 0 | H91: 0 | I91: 0 | J91: 0 | K91: 0 | L91: 0 | M91: 0 | N91: 0 | O91: 0
B92: Ers Allce C/Fwd | D92: =D90-D91 -> 3000 | E92: =E90-E91 -> 3000 | F92: 3000 | G92: 3000 | H92: 3000 | I92: 3000 | J92: 3000 | K92: 3000 | L92: 3000 | M92: 3000 | N92: 3000 | O92: 3000 | Q92: 36000
B93: Ers NI to P & L | D93: =D89-D91 -> 0 | E93: =E89-E91 -> 0 | F93: 0 | G93: 0 | H93: 0 | I93: 0 | J93: 0 | K93: 0 | L93: 0 | M93: 0 | N93: 0 | O93: 0 | Q93: =SUM(D93:O93) -> 0
D95: EES NI
B96: =B79 -> Dept 1 | D96: =IF(D49=0,0,$P35*$D$35/12) -> 0 | E96: =IF(E49=0,0,$P35*$D$35/12) -> 0 | F96: 0 | G96: 0 | H96: 0 | I96: 0 | J96: 0 | K96: 0 | L96: 0 | M96: 0 | N96: 0 | O96: 0 | Q96: =SUM(D96:O96) -> 0
B97: 2 | D97: =IF(D50=0,0,$P36*$D$35/12) -> 0 | E97: 0 | F97: 0 | G97: 0 | H97: 0 | I97: 0 | J97: 0 | K97: 0 | L97: 0 | M97: 0 | N97: 0 | O97: 0 | Q97: =SUM(D97:O97) -> 0
B98: 3 | D98: =IF(D51=0,0,$P37*$D$35/12) -> 0 | E98: 0 | F98: 0 | G98: 0 | H98: 0 | I98: 0 | J98: 0 | K98: 0 | L98: 0 | M98: 0 | N98: 0 | O98: 0 | Q98: 0
B99: 4 | D99: =IF(D52=0,0,$P38*$D$35/12) -> 0 | E99: 0 | F99: 0 | G99: 0 | H99: 0 | I99: 0 | J99: 0 | K99: 0 | L99: 0 | M99: 0 | N99: 0 | O99: 0 | Q99: 0
B100: 5 | D100: =IF(D53=0,0,$P39*$D$35/12) -> 0 | E100: 0 | F100: 0 | G100: 0 | H100: 0 | I100: 0 | J100: 0 | K100: 0 | L100: 0 | M100: 0 | N100: 0 | O100: 0 | Q100: 0
B101: 6 | D101: =IF(D54=0,0,$P40*$D$35/12) -> 0 | E101: 0 | F101: 0 | G101: 0 | H101: 0 | I101: 0 | J101: 0 | K101: 0 | L101: 0 | M101: 0 | N101: 0 | O101: 0 | Q101: 0
B102: 7 | D102: =IF(D55=0,0,$P41*$D$35/12) -> 0 | E102: 0 | F102: 0 | G102: 0 | H102: 0 | I102: 0 | J102: 0 | K102: 0 | L102: 0 | M102: 0 | N102: 0 | O102: 0 | Q102: 0
B103: 8 | D103: =IF(D56=0,0,$P42*$D$35/12) -> 0 | E103: 0 | F103: 0 | G103: 0 | H103: 0 | I103: 0 | J103: 0 | K103: 0 | L103: 0 | M103: 0 | N103: 0 | O103: 0 | Q103: 0
B104: 9 | D104: =IF(D57=0,0,$P43*$D$35/12) -> 0 | E104: 0 | F104: 0 | G104: 0 | H104: 0 | I104: 0 | J104: 0 | K104: 0 | L104: 0 | M104: 0 | N104: 0 | O104: 0 | Q104: 0
B105: 10 | D105: =IF(D58=0,0,$P44*$D$35/12) -> 0 | E105: 0 | F105: 0 | G105: 0 | H105: 0 | I105: 0 | J105: 0 | K105: 0 | L105: 0 | M105: 0 | N105: 0 | O105: 0 | Q105: 0
D107: =SUM(D95:D106) -> 0 | E107: =SUM(E95:E106) -> 0 | F107: =SUM(F95:F106) -> 0 | G107: =SUM(G95:G106) -> 0 | H107: =SUM(H95:H106) -> 0 | I107: =SUM(I95:I106) -> 0 | J107: =SUM(J95:J106) -> 0 | K107: =SUM(K95:K106) -> 0 | L107: =SUM(L95:L106) -> 0 | M107: =SUM(M95:M106) -> 0 | N107: =SUM(N95:N106) -> 0 | O107: =SUM(O95:O106) -> 0 | Q107: =SUM(Q95:Q106) -> 0
D109: Ers Pension
B110: =B96 -> Dept 1 | D110: =IF(D49=0,0,$U35*$D$35/12) -> 0 | E110: =IF(E49=0,0,$U35*$D$35/12) -> 0 | F110: 0 | G110: 0 | H110: 0 | I110: 0 | J110: 0 | K110: 0 | L110: 0 | M110: 0 | N110: 0 | O110: 0 | Q110: =SUM(D110:O110) -> 0
B111: =B97 -> 2 | D111: =IF(D50=0,0,$U36*$D$35/12) -> 0 | E111: 0 | F111: 0 | G111: 0 | H111: 0 | I111: 0 | J111: 0 | K111: 0 | L111: 0 | M111: 0 | N111: 0 | O111: 0 | Q111: =SUM(D111:O111) -> 0
B112: 3 | D112: =IF(D51=0,0,$U37*$D$35/12) -> 0 | E112: 0 | F112: 0 | G112: 0 | H112: 0 | I112: 0 | J112: 0 | K112: 0 | L112: 0 | M112: 0 | N112: 0 | O112: 0 | Q112: 0
B113: 4 | D113: =IF(D52=0,0,$U38*$D$35/12) -> 0 | E113: 0 | F113: 0 | G113: 0 | H113: 0 | I113: 0 | J113: 0 | K113: 0 | L113: 0 | M113: 0 | N113: 0 | O113: 0 | Q113: 0
B114: 5 | D114: =IF(D53=0,0,$U39*$D$35/12) -> 0 | E114: 0 | F114: 0 | G114: 0 | H114: 0 | I114: 0 | J114: 0 | K114: 0 | L114: 0 | M114: 0 | N114: 0 | O114: 0 | Q114: 0
B115: 6 | D115: =IF(D54=0,0,$U40*$D$35/12) -> 0 | E115: 0 | F115: 0 | G115: 0 | H115: 0 | I115: 0 | J115: 0 | K115: 0 | L115: 0 | M115: 0 | N115: 0 | O115: 0 | Q115: 0
B116: 7 | D116: =IF(D55=0,0,$U41*$D$35/12) -> 0 | E116: 0 | F116: 0 | G116: 0 | H116: 0 | I116: 0 | J116: 0 | K116: 0 | L116: 0 | M116: 0 | N116: 0 | O116: 0 | Q116: 0
B117: 8 | D117: =IF(D56=0,0,$U42*$D$35/12) -> 0 | E117: 0 | F117: 0 | G117: 0 | H117: 0 | I117: 0 | J117: 0 | K117: 0 | L117: 0 | M117: 0 | N117: 0 | O117: 0 | Q117: 0
B118: 9 | D118: =IF(D57=0,0,$U43*$D$35/12) -> 0 | E118: 0 | F118: 0 | G118: 0 | H118: 0 | I118: 0 | J118: 0 | K118: 0 | L118: 0 | M118: 0 | N118: 0 | O118: 0 | Q118: 0
B119: 10 | D119: =IF(D58=0,0,$U44*$D$35/12) -> 0 | E119: 0 | F119: 0 | G119: 0 | H119: 0 | I119: 0 | J119: 0 | K119: 0 | L119: 0 | M119: 0 | N119: 0 | O119: 0 | Q119: 0
D121: =SUM(D109:D120) -> 0 | E121: =SUM(E109:E120) -> 0 | F121: =SUM(F109:F120) -> 0 | G121: =SUM(G109:G120) -> 0 | H121: =SUM(H109:H120) -> 0 | I121: =SUM(I109:I120) -> 0 | J121: =SUM(J109:J120) -> 0 | K121: =SUM(K109:K120) -> 0 | L121: =SUM(L109:L120) -> 0 | M121: =SUM(M109:M120) -> 0 | N121: =SUM(N109:N120) -> 0 | O121: =SUM(O109:O120) -> 0 | Q121: =SUM(Q109:Q120) -> 0
D124: EES Pension
B125: =B110 -> Dept 1 | D125: =IF(D49=0,0,$T35*$D$35/12) -> 0 | E125: =IF(E49=0,0,$T35*$D$35/12) -> 0 | F125: 0 | G125: 0 | H125: 0 | I125: 0 | J125: 0 | K125: 0 | L125: 0 | M125: 0 | N125: 0 | O125: 0 | Q125: =SUM(D125:O125) -> 0
B126: =B111 -> 2 | D126: =IF(D50=0,0,$T36*$D$35/12) -> 0 | E126: 0 | F126: 0 | G126: 0 | H126: 0 | I126: 0 | J126: 0 | K126: 0 | L126: 0 | M126: 0 | N126: 0 | O126: 0 | Q126: =SUM(D126:O126) -> 0
B127: 3 | D127: =IF(D51=0,0,$T37*$D$35/12) -> 0 | E127: 0 | F127: 0 | G127: 0 | H127: 0 | I127: 0 | J127: 0 | K127: 0 | L127: 0 | M127: 0 | N127: 0 | O127: 0 | Q127: 0
B128: 4 | D128: =IF(D52=0,0,$T38*$D$35/12) -> 0 | E128: 0 | F128: 0 | G128: 0 | H128: 0 | I128: 0 | J128: 0 | K128: 0 | L128: 0 | M128: 0 | N128: 0 | O128: 0 | Q128: 0
B129: 5 | D129: =IF(D53=0,0,$T39*$D$35/12) -> 0 | E129: 0 | F129: 0 | G129: 0 | H129: 0 | I129: 0 | J129: 0 | K129: 0 | L129: 0 | M129: 0 | N129: 0 | O129: 0 | Q129: 0
B130: 6 | D130: =IF(D54=0,0,$T40*$D$35/12) -> 0 | E130: 0 | F130: 0 | G130: 0 | H130: 0 | I130: 0 | J130: 0 | K130: 0 | L130: 0 | M130: 0 | N130: 0 | O130: 0 | Q130: 0
B131: 7 | D131: =IF(D55=0,0,$T41*$D$35/12) -> 0 | E131: 0 | F131: 0 | G131: 0 | H131: 0 | I131: 0 | J131: 0 | K131: 0 | L131: 0 | M131: 0 | N131: 0 | O131: 0 | Q131: 0
B132: 8 | D132: =IF(D56=0,0,$T42*$D$35/12) -> 0 | E132: 0 | F132: 0 | G132: 0 | H132: 0 | I132: 0 | J132: 0 | K132: 0 | L132: 0 | M132: 0 | N132: 0 | O132: 0 | Q132: 0
B133: 9 | D133: =IF(D57=0,0,$T43*$D$35/12) -> 0 | E133: 0 | F133: 0 | G133: 0 | H133: 0 | I133: 0 | J133: 0 | K133: 0 | L133: 0 | M133: 0 | N133: 0 | O133: 0 | Q133: 0
B134: 10 | D134: =IF(D58=0,0,$T44*$D$35/12) -> 0 | E134: 0 | F134: 0 | G134: 0 | H134: 0 | I134: 0 | J134: 0 | K134: 0 | L134: 0 | M134: 0 | N134: 0 | O134: 0 | Q134: 0
D136: =SUM(D124:D135) -> 0 | E136: =SUM(E124:E135) -> 0 | F136: =SUM(F124:F135) -> 0 | G136: =SUM(G124:G135) -> 0 | H136: =SUM(H124:H135) -> 0 | I136: =SUM(I124:I135) -> 0 | J136: =SUM(J124:J135) -> 0 | K136: =SUM(K124:K135) -> 0 | L136: =SUM(L124:L135) -> 0 | M136: =SUM(M124:M135) -> 0 | N136: =SUM(N124:N135) -> 0 | O136: =SUM(O124:O135) -> 0 | Q136: =SUM(Q124:Q135) -> 0
C141: opAL | D141: 1 | E141: 2 | F141: 3 | G141: 4 | H141: 5 | I141: 6 | J141: 7 | K141: 8 | L141: 9 | M141: 10 | N141: 11 | O141: 12
C142: =C16 -> 0 | D142: =D16 -> 0 | E142: =E16 -> 0 | F142: 0 | G142: 0 | H142: 0 | I142: 0 | J142: 0 | K142: 0 | L142: 0 | M142: 0 | N142: 0 | O142: 0 | Q142: =HLOOKUP(monthno,$B$141:$O$142,2) -> 0
C143: =C18 -> 0 | D143: =D18 -> 0 | E143: =E18 -> 0 | F143: 0 | G143: 0 | H143: 0 | I143: 0 | J143: 0 | K143: 0 | L143: 0 | M143: 0 | N143: 0 | O143: 0 | Q143: =HLOOKUP(monthno,$B$141:$O$143,3) -> 0

Sheet expense1
C4: Expense 1
C6: =CashFlow!$B$23 -> Advertising
B7: Days credit suppliers | E7: =days_credit_suppliers -> 30 | F7: =IF(Average_days_in_month,INT(E7/Average_days_in_month)) -> 1 | G7: =IF(Average_days_in_month,MOD(E7,Average_days_in_month)/Average_days_in_month,) -> 0
C10: 1 | D10: 2 | E10: 3 | F10: 4 | G10: 5 | H10: 6 | I10: 7 | J10: 8 | K10: 9 | L10: 10 | M10: 11 | N10: 12
A11: Opening Creditors | D11: =IF(D$10=1,,C19) -> 0 | E11: 0 | F11: 0 | G11: 0 | H11: 0 | I11: 0 | J11: 0 | K11: 0 | L11: 0 | M11: 0 | N11: 0 | P11: =SUM(C11:O11) -> 0 | R11: Check | S11: Opening | T11: =C11 -> 0 | AC11: =R15 -> 0 | AD11: =R16 -> 0 | AE11: =R17 -> 0 | AF11: =R18 -> 0 | AG11: =R19 -> 0 | AH11: =R22 -> 0 | AI11: =R23 -> 0 | AJ11: =R24 -> 0
S12: expenses | T12: =P15 -> 0
A13: Std rate invoices gross | P13: =SUM(C13:O13) -> 0 | S13: Paid | T13: =-P17 -> 0 | AC13: =P15 -> 0 | AD13: =P16 -> 0 | AE13: =P17 -> 0 | AF13: =P18 -> 0 | AG13: =P19 -> 0 | AH13: =P22 -> 0 | AI13: =P23 -> 0 | AJ13: =P24 -> 0
A14: Zero rate invoices | P14: =SUM(C14:O14) -> 0 | S14: Closing | T14: =-N19 -> 0
A15: Total | C15: =SUM(C13:C14) -> 0 | D15: =SUM(D13:D14) -> 0 | E15: 0 | F15: 0 | G15: 0 | H15: 0 | I15: 0 | J15: 0 | K15: 0 | L15: 0 | M15: 0 | N15: 0 | P15: =SUM(C15:O15) -> 0
S16: Total | T16: =SUM(T11:T15) -> 0
A17: Paid | C17: =-C19+C11+C15 -> 0 | D17: =-D19+D11+D15 -> 0 | E17: =-E19+E11+E15 -> 0 | F17: =-F19+F11+F15 -> 0 | G17: 0 | H17: 0 | I17: 0 | J17: 0 | K17: 0 | L17: 0 | M17: 0 | N17: 0 | P17: =SUM(C17:O17) -> 0
A19: Closing Creditors | C19: =IF($F$7,SUM(OFFSET(C15,,,1,-MIN($F$7,C$10))),)+IF(C$10-$F$7<=0,,OFFSET(C15,,-$F$7)*$G$7) -> 0 | D19: =IF($F$7,SUM(OFFSET(D15,,,1,-MIN($F$7,D$10))),)+IF(D$10-$F$7<=0,,OFFSET(D15,,-$F$7)*$G$7) -> 0 | E19: 0 | F19: 0 | G19: 0 | H19: 0 | I19: 0 | J19: 0 | K19: 0 | L19: 0 | M19: 0 | N19: 0 | P19: =SUM(C19:O19) -> 0
A21: VAT Exclusive | C21: =C15-C32 -> 0 | D21: =D15-D32 -> 0 | E21: 0 | F21: 0 | G21: 0 | H21: 0 | I21: 0 | J21: 0 | K21: 0 | L21: 0 | M21: 0 | N21: 0 | P21: =SUM(C21:O21) -> 0
A23: Prepayment B/Fwd | D23: =C24 -> 0 | E23: =D24 -> 0 | F23: 0 | G23: 0 | H23: 0 | I23: 0 | J23: 0 | K23: 0 | L23: 0 | M23: 0 | N23: 0
A24: Prepayment C/Fwd
A26: Accrual B/Fwd | D26: =C27 -> 0 | E26: =D27 -> 0 | F26: 0 | G26: 0 | H26: 0 | I26: 0 | J26: 0 | K26: 0 | L26: 0 | M26: 0 | N26: 0
A27: Accrual C/Fwd
A30: Profit and Loss | C30: =C21+C23-C24-C26+C27 -> 0 | D30: 0 | E30: 0 | F30: 0 | G30: 0 | H30: 0 | I30: 0 | J30: 0 | K30: 0 | L30: 0 | M30: 0 | N30: 0 | P30: =SUM(C30:O30) -> 0
A32: Vat Element to VAT Account | C32: =IF(stdvat=0%,0,C13*(1-VAT_Exclusive_percent)) -> 0 | D32: 0 | E32: 0 | F32: 0 | G32: 0 | H32: 0 | I32: 0 | J32: 0 | K32: 0 | L32: 0 | M32: 0 | N32: 0 | P32: =SUM(C32:O32) -> 0

Sheet expense2
C4: Expense 2
C6: =CashFlow!$B$24 -> Utilities (gas, electric, water)
B7: Days credit suppliers | E7: =days_credit_suppliers -> 30 | F7: =IF(Average_days_in_month,INT(E7/Average_days_in_month)) -> 1 | G7: =IF(Average_days_in_month,MOD(E7,Average_days_in_month)/Average_days_in_month,) -> 0
C10: 1 | D10: 2 | E10: 3 | F10: 4 | G10: 5 | H10: 6 | I10: 7 | J10: 8 | K10: 9 | L10: 10 | M10: 11 | N10: 12
A11: Opening Creditors | D11: =IF(D$10=1,,C19) -> 0 | E11: 0 | F11: 0 | G11: 0 | H11: 0 | I11: 0 | J11: 0 | K11: 0 | L11: 0 | M11: 0 | N11: 0 | P11: =SUM(C11:O11) -> 0 | R11: Check | S11: Opening | T11: =C11 -> 0 | AC11: =R15 -> 0 | AD11: =R16 -> 0 | AE11: =R17 -> 0 | AF11: =R18 -> 0 | AG11: =R19 -> 0 | AH11: =R22 -> 0 | AI11: =R23 -> 0 | AJ11: =R24 -> 0
S12: expenses | T12: =P15 -> 0
A13: Std rate invoices gross | P13: =SUM(C13:O13) -> 0 | S13: Paid | T13: =-P17 -> 0 | AC13: =P15 -> 0 | AD13: =P16 -> 0 | AE13: =P17 -> 0 | AF13: =P18 -> 0 | AG13: =P19 -> 0 | AH13: =P22 -> 0 | AI13: =P23 -> 0 | AJ13: =P24 -> 0
A14: Zero rate invoices | P14: =SUM(C14:O14) -> 0 | S14: Closing | T14: =-N19 -> 0
A15: Total | C15: =SUM(C13:C14) -> 0 | D15: =SUM(D13:D14) -> 0 | E15: 0 | F15: 0 | G15: 0 | H15: 0 | I15: 0 | J15: 0 | K15: 0 | L15: 0 | M15: 0 | N15: 0 | P15: =SUM(C15:O15) -> 0
S16: Total | T16: =SUM(T11:T15) -> 0
A17: Paid | C17: =-C19+C11+C15 -> 0 | D17: =-D19+D11+D15 -> 0 | E17: =-E19+E11+E15 -> 0 | F17: =-F19+F11+F15 -> 0 | G17: 0 | H17: 0 | I17: 0 | J17: 0 | K17: 0 | L17: 0 | M17: 0 | N17: 0 | P17: =SUM(C17:O17) -> 0
A19: Closing Creditors | C19: =IF($F$7,SUM(OFFSET(C15,,,1,-MIN($F$7,C$10))),)+IF(C$10-$F$7<=0,,OFFSET(C15,,-$F$7)*$G$7) -> 0 | D19: =IF($F$7,SUM(OFFSET(D15,,,1,-MIN($F$7,D$10))),)+IF(D$10-$F$7<=0,,OFFSET(D15,,-$F$7)*$G$7) -> 0 | E19: 0 | F19: 0 | G19: 0 | H19: 0 | I19: 0 | J19: 0 | K19: 0 | L19: 0 | M19: 0 | N19: 0 | P19: =SUM(C19:O19) -> 0
A21: VAT Exclusive | C21: =C15-C32 -> 0 | D21: =D15-D32 -> 0 | E21: 0 | F21: 0 | G21: 0 | H21: 0 | I21: 0 | J21: 0 | K21: 0 | L21: 0 | M21: 0 | N21: 0 | P21: =SUM(C21:O21) -> 0
A23: Prepayment B/Fwd | D23: =C24 -> 0 | E23: =D24 -> 0 | F23: 0 | G23: 0 | H23: 0 | I23: 0 | J23: 0 | K23: 0 | L23: 0 | M23: 0 | N23: 0
A24: Prepayment C/Fwd
A26: Accrual B/Fwd | D26: =C27 -> 0 | E26: =D27 -> 0 | F26: 0 | G26: 0 | H26: 0 | I26: 0 | J26: 0 | K26: 0 | L26: 0 | M26: 0 | N26: 0
A27: Accrual C/Fwd
A30: Profit and Loss | C30: =C21+C23-C24-C26+C27 -> 0 | D30: 0 | E30: 0 | F30: 0 | G30: 0 | H30: 0 | I30: 0 | J30: 0 | K30: 0 | L30: 0 | M30: 0 | N30: 0 | P30: =SUM(C30:O30) -> 0
A32: Vat Element to VAT Account | C32: =IF(stdvat=0%,0,C13*(1-VAT_Exclusive_percent)) -> 0 | D32: 0 | E32: 0 | F32: 0 | G32: 0 | H32: 0 | I32: 0 | J32: 0 | K32: 0 | L32: 0 | M32: 0 | N32: 0 | P32: =SUM(C32:O32) -> 0

Sheet expense3
C4: Expense 3
C6: =CashFlow!$B$25 -> Rent
B7: Days credit suppliers | E7: =days_credit_suppliers -> 30 | F7: =IF(Average_days_in_month,INT(E7/Average_days_in_month)) -> 1 | G7: =IF(Average_days_in_month,MOD(E7,Average_days_in_month)/Average_days_in_month,) -> 0
C10: 1 | D10: 2 | E10: 3 | F10: 4 | G10: 5 | H10: 6 | I10: 7 | J10: 8 | K10: 9 | L10: 10 | M10: 11 | N10: 12
A11: Opening Creditors | D11: =IF(D$10=1,,C19) -> 0 | E11: 0 | F11: 0 | G11: 0 | H11: 0 | I11: 0 | J11: 0 | K11: 0 | L11: 0 | M11: 0 | N11: 0 | P11: =SUM(C11:O11) -> 0 | R11: Check | S11: Opening | T11: =C11 -> 0 | AC11: =R15 -> 0 | AD11: =R16 -> 0 | AE11: =R17 -> 0 | AF11: =R18 -> 0 | AG11: =R19 -> 0 | AH11: =R22 -> 0 | AI11: =R23 -> 0 | AJ11: =R24 -> 0
S12: expenses | T12: =P15 -> 0
A13: Std rate invoices gross | P13: =SUM(C13:O13) -> 0 | S13: Paid | T13: =-P17 -> 0 | AC13: =P15 -> 0 | AD13: =P16 -> 0 | AE13: =P17 -> 0 | AF13: =P18 -> 0 | AG13: =P19 -> 0 | AH13: =P22 -> 0 | AI13: =P23 -> 0 | AJ13: =P24 -> 0
A14: Zero rate invoices | P14: =SUM(C14:O14) -> 0 | S14: Closing | T14: =-N19 -> 0
A15: Total | C15: =SUM(C13:C14) -> 0 | D15: =SUM(D13:D14) -> 0 | E15: 0 | F15: 0 | G15: 0 | H15: 0 | I15: 0 | J15: 0 | K15: 0 | L15: 0 | M15: 0 | N15: 0 | P15: =SUM(C15:O15) -> 0
S16: Total | T16: =SUM(T11:T15) -> 0
A17: Paid | C17: =-C19+C11+C15 -> 0 | D17: =-D19+D11+D15 -> 0 | E17: =-E19+E11+E15 -> 0 | F17: =-F19+F11+F15 -> 0 | G17: 0 | H17: 0 | I17: 0 | J17: 0 | K17: 0 | L17: 0 | M17: 0 | N17: 0 | P17: =SUM(C17:O17) -> 0
A19: Closing Creditors | C19: =IF($F$7,SUM(OFFSET(C15,,,1,-MIN($F$7,C$10))),)+IF(C$10-$F$7<=0,,OFFSET(C15,,-$F$7)*$G$7) -> 0 | D19: =IF($F$7,SUM(OFFSET(D15,,,1,-MIN($F$7,D$10))),)+IF(D$10-$F$7<=0,,OFFSET(D15,,-$F$7)*$G$7) -> 0 | E19: 0 | F19: 0 | G19: 0 | H19: 0 | I19: 0 | J19: 0 | K19: 0 | L19: 0 | M19: 0 | N19: 0 | P19: =SUM(C19:O19) -> 0
A21: VAT Exclusive | C21: =C15-C32 -> 0 | D21: =D15-D32 -> 0 | E21: 0 | F21: 0 | G21: 0 | H21: 0 | I21: 0 | J21: 0 | K21: 0 | L21: 0 | M21: 0 | N21: 0 | P21: =SUM(C21:O21) -> 0
A23: Prepayment B/Fwd | D23: =C24 -> 0 | E23: =D24 -> 0 | F23: 0 | G23: 0 | H23: 0 | I23: 0 | J23: 0 | K23: 0 | L23: 0 | M23: 0 | N23: 0
A24: Prepayment C/Fwd
A26: Accrual B/Fwd | D26: =C27 -> 0 | E26: =D27 -> 0 | F26: 0 | G26: 0 | H26: 0 | I26: 0 | J26: 0 | K26: 0 | L26: 0 | M26: 0 | N26: 0
A27: Accrual C/Fwd
A30: Profit and Loss | C30: =C21+C23-C24-C26+C27 -> 0 | D30: 0 | E30: 0 | F30: 0 | G30: 0 | H30: 0 | I30: 0 | J30: 0 | K30: 0 | L30: 0 | M30: 0 | N30: 0 | P30: =SUM(C30:O30) -> 0
A32: Vat Element to VAT Account | C32: =IF(stdvat=0%,0,C13*(1-VAT_Exclusive_percent)) -> 0 | D32: 0 | E32: 0 | F32: 0 | G32: 0 | H32: 0 | I32: 0 | J32: 0 | K32: 0 | L32: 0 | M32: 0 | N32: 0 | P32: =SUM(C32:O32) -> 0

Sheet expense4
C4: Expense 4
C6: =CashFlow!$B$26 -> Rates and water
B7: Days credit suppliers | E7: =days_credit_suppliers -> 30 | F7: =IF(Average_days_in_month,INT(E7/Average_days_in_month)) -> 1 | G7: =IF(Average_days_in_month,MOD(E7,Average_days_in_month)/Average_days_in_month,) -> 0
C10: 1 | D10: 2 | E10: 3 | F10: 4 | G10: 5 | H10: 6 | I10: 7 | J10: 8 | K10: 9 | L10: 10 | M10: 11 | N10: 12
A11: Opening Creditors | D11: =IF(D$10=1,,C19) -> 0 | E11: 0 | F11: 0 | G11: 0 | H11: 0 | I11: 0 | J11: 0 | K11: 0 | L11: 0 | M11: 0 | N11: 0 | P11: =SUM(C11:O11) -> 0 | R11: Check | S11: Opening | T11: =C11 -> 0 | AC11: =R15 -> 0 | AD11: =R16 -> 0 | AE11: =R17 -> 0 | AF11: =R18 -> 0 | AG11: =R19 -> 0 | AH11: =R22 -> 0 | AI11: =R23 -> 0 | AJ11: =R24 -> 0
S12: expenses | T12: =P15 -> 0
A13: Std rate invoices gross | P13: =SUM(C13:O13) -> 0 | S13: Paid | T13: =-P17 -> 0 | AC13: =P15 -> 0 | AD13: =P16 -> 0 | AE13: =P17 -> 0 | AF13: =P18 -> 0 | AG13: =P19 -> 0 | AH13: =P22 -> 0 | AI13: =P23 -> 0 | AJ13: =P24 -> 0
A14: Zero rate invoices | P14: =SUM(C14:O14) -> 0 | S14: Closing | T14: =-N19 -> 0
A15: Total | C15: =SUM(C13:C14) -> 0 | D15: =SUM(D13:D14) -> 0 | E15: 0 | F15: 0 | G15: 0 | H15: 0 | I15: 0 | J15: 0 | K15: 0 | L15: 0 | M15: 0 | N15: 0 | P15: =SUM(C15:O15) -> 0
S16: Total | T16: =SUM(T11:T15) -> 0
A17: Paid | C17: =-C19+C11+C15 -> 0 | D17: =-D19+D11+D15 -> 0 | E17: =-E19+E11+E15 -> 0 | F17: =-F19+F11+F15 -> 0 | G17: 0 | H17: 0 | I17: 0 | J17: 0 | K17: 0 | L17: 0 | M17: 0 | N17: 0 | P17: =SUM(C17:O17) -> 0
A19: Closing Creditors | C19: =IF($F$7,SUM(OFFSET(C15,,,1,-MIN($F$7,C$10))),)+IF(C$10-$F$7<=0,,OFFSET(C15,,-$F$7)*$G$7) -> 0 | D19: =IF($F$7,SUM(OFFSET(D15,,,1,-MIN($F$7,D$10))),)+IF(D$10-$F$7<=0,,OFFSET(D15,,-$F$7)*$G$7) -> 0 | E19: 0 | F19: 0 | G19: 0 | H19: 0 | I19: 0 | J19: 0 | K19: 0 | L19: 0 | M19: 0 | N19: 0 | P19: =SUM(C19:O19) -> 0
A21: VAT Exclusive | C21: =C15-C32 -> 0 | D21: =D15-D32 -> 0 | E21: 0 | F21: 0 | G21: 0 | H21: 0 | I21: 0 | J21: 0 | K21: 0 | L21: 0 | M21: 0 | N21: 0 | P21: =SUM(C21:O21) -> 0
A23: Prepayment B/Fwd | D23: =C24 -> 0 | E23: =D24 -> 0 | F23: 0 | G23: 0 | H23: 0 | I23: 0 | J23: 0 | K23: 0 | L23: 0 | M23: 0 | N23: 0
A24: Prepayment C/Fwd | G24: 0
A26: Accrual B/Fwd | D26: =C27 -> 0 | E26: =D27 -> 0 | F26: 0 | G26: 0 | H26: 0 | I26: 0 | J26: 0 | K26: 0 | L26: 0 | M26: 0 | N26: 0
A27: Accrual C/Fwd
A30: Profit and Loss | C30: =C21+C23-C24-C26+C27 -> 0 | D30: 0 | E30: 0 | F30: 0 | G30: 0 | H30: 0 | I30: 0 | J30: 0 | K30: 0 | L30: 0 | M30: 0 | N30: 0 | P30: =SUM(C30:O30) -> 0
A32: Vat Element to VAT Account | C32: =IF(stdvat=0%,0,C13*(1-VAT_Exclusive_percent)) -> 0 | D32: 0 | E32: 0 | F32: 0 | G32: 0 | H32: 0 | I32: 0 | J32: 0 | K32: 0 | L32: 0 | M32: 0 | N32: 0 | P32: =SUM(C32:O32) -> 0

Sheet expense5
C4: Expense 5
C6: =CashFlow!$B$27 -> Telephone and internet
B7: Days credit suppliers | E7: =days_credit_suppliers -> 30 | F7: =IF(Average_days_in_month,INT(E7/Average_days_in_month)) -> 1 | G7: =IF(Average_days_in_month,MOD(E7,Average_days_in_month)/Average_days_in_month,) -> 0
C10: 1 | D10: 2 | E10: 3 | F10: 4 | G10: 5 | H10: 6 | I10: 7 | J10: 8 | K10: 9 | L10: 10 | M10: 11 | N10: 12
A11: Opening Creditors | D11: =IF(D$10=1,,C19) -> 0 | E11: 0 | F11: 0 | G11: 0 | H11: 0 | I11: 0 | J11: 0 | K11: 0 | L11: 0 | M11: 0 | N11: 0 | P11: =SUM(C11:O11) -> 0 | R11: Check | S11: Opening | T11: =C11 -> 0 | AC11: =R15 -> 0 | AD11: =R16 -> 0 | AE11: =R17 -> 0 | AF11: =R18 -> 0 | AG11: =R19 -> 0 | AH11: =R22 -> 0 | AI11: =R23 -> 0 | AJ11: =R24 -> 0
S12: expenses | T12: =P15 -> 0
A13: Std rate invoices gross | P13: =SUM(C13:O13) -> 0 | S13: Paid | T13: =-P17 -> 0 | AC13: =P15 -> 0 | AD13: =P16 -> 0 | AE13: =P17 -> 0 | AF13: =P18 -> 0 | AG13: =P19 -> 0 | AH13: =P22 -> 0 | AI13: =P23 -> 0 | AJ13: =P24 -> 0
A14: Zero rate invoices | P14: =SUM(C14:O14) -> 0 | S14: Closing | T14: =-N19 -> 0
A15: Total | C15: =SUM(C13:C14) -> 0 | D15: =SUM(D13:D14) -> 0 | E15: 0 | F15: 0 | G15: 0 | H15: 0 | I15: 0 | J15: 0 | K15: 0 | L15: 0 | M15: 0 | N15: 0 | P15: =SUM(C15:O15) -> 0
S16: Total | T16: =SUM(T11:T15) -> 0
A17: Paid | C17: =-C19+C11+C15 -> 0 | D17: =-D19+D11+D15 -> 0 | E17: =-E19+E11+E15 -> 0 | F17: =-F19+F11+F15 -> 0 | G17: 0 | H17: 0 | I17: 0 | J17: 0 | K17: 0 | L17: 0 | M17: 0 | N17: 0 | P17: =SUM(C17:O17) -> 0
A19: Closing Creditors | C19: =IF($F$7,SUM(OFFSET(C15,,,1,-MIN($F$7,C$10))),)+IF(C$10-$F$7<=0,,OFFSET(C15,,-$F$7)*$G$7) -> 0 | D19: =IF($F$7,SUM(OFFSET(D15,,,1,-MIN($F$7,D$10))),)+IF(D$10-$F$7<=0,,OFFSET(D15,,-$F$7)*$G$7) -> 0 | E19: 0 | F19: 0 | G19: 0 | H19: 0 | I19: 0 | J19: 0 | K19: 0 | L19: 0 | M19: 0 | N19: 0 | P19: =SUM(C19:O19) -> 0
A21: VAT Exclusive | C21: =C15-C32 -> 0 | D21: =D15-D32 -> 0 | E21: 0 | F21: 0 | G21: 0 | H21: 0 | I21: 0 | J21: 0 | K21: 0 | L21: 0 | M21: 0 | N21: 0 | P21: =SUM(C21:O21) -> 0
A23: Prepayment B/Fwd | D23: =C24 -> 0 | E23: =D24 -> 0 | F23: 0 | G23: 0 | H23: 0 | I23: 0 | J23: 0 | K23: 0 | L23: 0 | M23: 0 | N23: 0
A24: Prepayment C/Fwd
A26: Accrual B/Fwd | D26: =C27 -> 0 | E26: =D27 -> 0 | F26: 0 | G26: 0 | H26: 0 | I26: 0 | J26: 0 | K26: 0 | L26: 0 | M26: 0 | N26: 0
A27: Accrual C/Fwd
A30: Profit and Loss | C30: =C21+C23-C24-C26+C27 -> 0 | D30: 0 | E30: 0 | F30: 0 | G30: 0 | H30: 0 | I30: 0 | J30: 0 | K30: 0 | L30: 0 | M30: 0 | N30: 0 | P30: =SUM(C30:O30) -> 0
A32: Vat Element to VAT Account | C32: =IF(stdvat=0%,0,C13*(1-VAT_Exclusive_percent)) -> 0 | D32: 0 | E32: 0 | F32: 0 | G32: 0 | H32: 0 | I32: 0 | J32: 0 | K32: 0 | L32: 0 | M32: 0 | N32: 0 | P32: =SUM(C32:O32) -> 0

Sheet expense6
C4: Expense 6
C6: =CashFlow!$B$28 -> Advertising and marketing
B7: Days credit suppliers | E7: =days_credit_suppliers -> 30 | F7: =IF(Average_days_in_month,INT(E7/Average_days_in_month)) -> 1 | G7: =IF(Average_days_in_month,MOD(E7,Average_days_in_month)/Average_days_in_month,) -> 0
C10: 1 | D10: 2 | E10: 3 | F10: 4 | G10: 5 | H10: 6 | I10: 7 | J10: 8 | K10: 9 | L10: 10 | M10: 11 | N10: 12
A11: Opening Creditors | D11: =IF(D$10=1,,C19) -> 0 | E11: 0 | F11: 0 | G11: 0 | H11: 0 | I11: 0 | J11: 0 | K11: 0 | L11: 0 | M11: 0 | N11: 0 | P11: =SUM(C11:O11) -> 0 | R11: Check | S11: Opening | T11: =C11 -> 0 | AC11: =R15 -> 0 | AD11: =R16 -> 0 | AE11: =R17 -> 0 | AF11: =R18 -> 0 | AG11: =R19 -> 0 | AH11: =R22 -> 0 | AI11: =R23 -> 0 | AJ11: =R24 -> 0
S12: expenses | T12: =P15 -> 0
A13: Std rate invoices gross | P13: =SUM(C13:O13) -> 0 | S13: Paid | T13: =-P17 -> 0 | AC13: =P15 -> 0 | AD13: =P16 -> 0 | AE13: =P17 -> 0 | AF13: =P18 -> 0 | AG13: =P19 -> 0 | AH13: =P22 -> 0 | AI13: =P23 -> 0 | AJ13: =P24 -> 0
A14: Zero rate invoices | P14: =SUM(C14:O14) -> 0 | S14: Closing | T14: =-N19 -> 0
A15: Total | C15: =SUM(C13:C14) -> 0 | D15: =SUM(D13:D14) -> 0 | E15: 0 | F15: 0 | G15: 0 | H15: 0 | I15: 0 | J15: 0 | K15: 0 | L15: 0 | M15: 0 | N15: 0 | P15: =SUM(C15:O15) -> 0
S16: Total | T16: =SUM(T11:T15) -> 0
A17: Paid | C17: =-C19+C11+C15 -> 0 | D17: =-D19+D11+D15 -> 0 | E17: =-E19+E11+E15 -> 0 | F17: =-F19+F11+F15 -> 0 | G17: 0 | H17: 0 | I17: 0 | J17: 0 | K17: 0 | L17: 0 | M17: 0 | N17: 0 | P17: =SUM(C17:O17) -> 0
A19: Closing Creditors | C19: =IF($F$7,SUM(OFFSET(C15,,,1,-MIN($F$7,C$10))),)+IF(C$10-$F$7<=0,,OFFSET(C15,,-$F$7)*$G$7) -> 0 | D19: =IF($F$7,SUM(OFFSET(D15,,,1,-MIN($F$7,D$10))),)+IF(D$10-$F$7<=0,,OFFSET(D15,,-$F$7)*$G$7) -> 0 | E19: 0 | F19: 0 | G19: 0 | H19: 0 | I19: 0 | J19: 0 | K19: 0 | L19: 0 | M19: 0 | N19: 0 | P19: =SUM(C19:O19) -> 0
A21: VAT Exclusive | C21: =C15-C32 -> 0 | D21: =D15-D32 -> 0 | E21: 0 | F21: 0 | G21: 0 | H21: 0 | I21: 0 | J21: 0 | K21: 0 | L21: 0 | M21: 0 | N21: 0 | P21: =SUM(C21:O21) -> 0
A23: Prepayment B/Fwd | D23: =C24 -> 0 | E23: =D24 -> 0 | F23: 0 | G23: 0 | H23: 0 | I23: 0 | J23: 0 | K23: 0 | L23: 0 | M23: 0 | N23: 0
A24: Prepayment C/Fwd
A26: Accrual B/Fwd | D26: =C27 -> 0 | E26: =D27 -> 0 | F26: 0 | G26: 0 | H26: 0 | I26: 0 | J26: 0 | K26: 0 | L26: 0 | M26: 0 | N26: 0
A27: Accrual C/Fwd
A30: Profit and Loss | C30: =C21+C23-C24-C26+C27 -> 0 | D30: 0 | E30: 0 | F30: 0 | G30: 0 | H30: 0 | I30: 0 | J30: 0 | K30: 0 | L30: 0 | M30: 0 | N30: 0 | P30: =SUM(C30:O30) -> 0
A32: Vat Element to VAT Account | C32: =IF(stdvat=0%,0,C13*(1-VAT_Exclusive_percent)) -> 0 | D32: 0 | E32: 0 | F32: 0 | G32: 0 | H32: 0 | I32: 0 | J32: 0 | K32: 0 | L32: 0 | M32: 0 | N32: 0 | P32: =SUM(C32:O32) -> 0

Sheet expense7
C4: Expense 7
C6: =CashFlow!$B$29 -> Motor running costs
B7: Days credit suppliers | E7: =days_credit_suppliers -> 30 | F7: =IF(Average_days_in_month,INT(E7/Average_days_in_month)) -> 1 | G7: =IF(Average_days_in_month,MOD(E7,Average_days_in_month)/Average_days_in_month,) -> 0
C10: 1 | D10: 2 | E10: 3 | F10: 4 | G10: 5 | H10: 6 | I10: 7 | J10: 8 | K10: 9 | L10: 10 | M10: 11 | N10: 12
A11: Opening Creditors | D11: =IF(D$10=1,,C19) -> 0 | E11: 0 | F11: 0 | G11: 0 | H11: 0 | I11: 0 | J11: 0 | K11: 0 | L11: 0 | M11: 0 | N11: 0 | P11: =SUM(C11:O11) -> 0 | R11: Check | S11: Opening | T11: =C11 -> 0 | AC11: =R15 -> 0 | AD11: =R16 -> 0 | AE11: =R17 -> 0 | AF11: =R18 -> 0 | AG11: =R19 -> 0 | AH11: =R22 -> 0 | AI11: =R23 -> 0 | AJ11: =R24 -> 0
S12: expenses | T12: =P15 -> 0
A13: Std rate invoices gross | P13: =SUM(C13:O13) -> 0 | S13: Paid | T13: =-P17 -> 0 | AC13: =P15 -> 0 | AD13: =P16 -> 0 | AE13: =P17 -> 0 | AF13: =P18 -> 0 | AG13: =P19 -> 0 | AH13: =P22 -> 0 | AI13: =P23 -> 0 | AJ13: =P24 -> 0
A14: Zero rate invoices | P14: =SUM(C14:O14) -> 0 | S14: Closing | T14: =-N19 -> 0
A15: Total | C15: =SUM(C13:C14) -> 0 | D15: =SUM(D13:D14) -> 0 | E15: 0 | F15: 0 | G15: 0 | H15: 0 | I15: 0 | J15: 0 | K15: 0 | L15: 0 | M15: 0 | N15: 0 | P15: =SUM(C15:O15) -> 0
S16: Total | T16: =SUM(T11:T15) -> 0
A17: Paid | C17: =-C19+C11+C15 -> 0 | D17: =-D19+D11+D15 -> 0 | E17: =-E19+E11+E15 -> 0 | F17: =-F19+F11+F15 -> 0 | G17: 0 | H17: 0 | I17: 0 | J17: 0 | K17: 0 | L17: 0 | M17: 0 | N17: 0 | P17: =SUM(C17:O17) -> 0
A19: Closing Creditors | C19: =IF($F$7,SUM(OFFSET(C15,,,1,-MIN($F$7,C$10))),)+IF(C$10-$F$7<=0,,OFFSET(C15,,-$F$7)*$G$7) -> 0 | D19: =IF($F$7,SUM(OFFSET(D15,,,1,-MIN($F$7,D$10))),)+IF(D$10-$F$7<=0,,OFFSET(D15,,-$F$7)*$G$7) -> 0 | E19: 0 | F19: 0 | G19: 0 | H19: 0 | I19: 0 | J19: 0 | K19: 0 | L19: 0 | M19: 0 | N19: 0 | P19: =SUM(C19:O19) -> 0
A21: VAT Exclusive | C21: =C15-C32 -> 0 | D21: =D15-D32 -> 0 | E21: 0 | F21: 0 | G21: 0 | H21: 0 | I21: 0 | J21: 0 | K21: 0 | L21: 0 | M21: 0 | N21: 0 | P21: =SUM(C21:O21) -> 0
A23: Prepayment B/Fwd | D23: =C24 -> 0 | E23: =D24 -> 0 | F23: 0 | G23: 0 | H23: 0 | I23: 0 | J23: 0 | K23: 0 | L23: 0 | M23: 0 | N23: 0
A24: Prepayment C/Fwd
A26: Accrual B/Fwd | D26: =C27 -> 0 | E26: =D27 -> 0 | F26: 0 | G26: 0 | H26: 0 | I26: 0 | J26: 0 | K26: 0 | L26: 0 | M26: 0 | N26: 0
A27: Accrual C/Fwd
A30: Profit and Loss | C30: =C21+C23-C24-C26+C27 -> 0 | D30: 0 | E30: 0 | F30: 0 | G30: 0 | H30: 0 | I30: 0 | J30: 0 | K30: 0 | L30: 0 | M30: 0 | N30: 0 | P30: =SUM(C30:O30) -> 0
A32: Vat Element to VAT Account | C32: =IF(stdvat=0%,0,C13*(1-VAT_Exclusive_percent)) -> 0 | D32: 0 | E32: 0 | F32: 0 | G32: 0 | H32: 0 | I32: 0 | J32: 0 | K32: 0 | L32: 0 | M32: 0 | N32: 0 | P32: =SUM(C32:O32) -> 0

Sheet expense8
C4: Expense 8
C6: =CashFlow!$B$30 -> Insurance
B7: Days credit suppliers | E7: =days_credit_suppliers -> 30 | F7: =IF(Average_days_in_month,INT(E7/Average_days_in_month)) -> 1 | G7: =IF(Average_days_in_month,MOD(E7,Average_days_in_month)/Average_days_in_month,) -> 0
C10: 1 | D10: 2 | E10: 3 | F10: 4 | G10: 5 | H10: 6 | I10: 7 | J10: 8 | K10: 9 | L10: 10 | M10: 11 | N10: 12
A11: Opening Creditors | D11: =IF(D$10=1,,C19) -> 0 | E11: 0 | F11: 0 | G11: 0 | H11: 0 | I11: 0 | J11: 0 | K11: 0 | L11: 0 | M11: 0 | N11: 0 | P11: =SUM(C11:O11) -> 0 | R11: Check | S11: Opening | T11: =C11 -> 0 | AC11: =R15 -> 0 | AD11: =R16 -> 0 | AE11: =R17 -> 0 | AF11: =R18 -> 0 | AG11: =R19 -> 0 | AH11: =R22 -> 0 | AI11: =R23 -> 0 | AJ11: =R24 -> 0
S12: expenses | T12: =P15 -> 0
A13: Std rate invoices gross | P13: =SUM(C13:O13) -> 0 | S13: Paid | T13: =-P17 -> 0 | AC13: =P15 -> 0 | AD13: =P16 -> 0 | AE13: =P17 -> 0 | AF13: =P18 -> 0 | AG13: =P19 -> 0 | AH13: =P22 -> 0 | AI13: =P23 -> 0 | AJ13: =P24 -> 0
A14: Zero rate invoices | P14: =SUM(C14:O14) -> 0 | S14: Closing | T14: =-N19 -> 0
A15: Total | C15: =SUM(C13:C14) -> 0 | D15: =SUM(D13:D14) -> 0 | E15: 0 | F15: 0 | G15: 0 | H15: 0 | I15: 0 | J15: 0 | K15: 0 | L15: 0 | M15: 0 | N15: 0 | P15: =SUM(C15:O15) -> 0
S16: Total | T16: =SUM(T11:T15) -> 0
A17: Paid | C17: =-C19+C11+C15 -> 0 | D17: =-D19+D11+D15 -> 0 | E17: =-E19+E11+E15 -> 0 | F17: =-F19+F11+F15 -> 0 | G17: 0 | H17: 0 | I17: 0 | J17: 0 | K17: 0 | L17: 0 | M17: 0 | N17: 0 | P17: =SUM(C17:O17) -> 0
A19: Closing Creditors | C19: =IF($F$7,SUM(OFFSET(C15,,,1,-MIN($F$7,C$10))),)+IF(C$10-$F$7<=0,,OFFSET(C15,,-$F$7)*$G$7) -> 0 | D19: =IF($F$7,SUM(OFFSET(D15,,,1,-MIN($F$7,D$10))),)+IF(D$10-$F$7<=0,,OFFSET(D15,,-$F$7)*$G$7) -> 0 | E19: 0 | F19: 0 | G19: 0 | H19: 0 | I19: 0 | J19: 0 | K19: 0 | L19: 0 | M19: 0 | N19: 0 | P19: =SUM(C19:O19) -> 0
A21: VAT Exclusive | C21: =C15-C32 -> 0 | D21: =D15-D32 -> 0 | E21: 0 | F21: 0 | G21: 0 | H21: 0 | I21: 0 | J21: 0 | K21: 0 | L21: 0 | M21: 0 | N21: 0 | P21: =SUM(C21:O21) -> 0
A23: Prepayment B/Fwd | D23: =C24 -> 0 | E23: =D24 -> 0 | F23: 0 | G23: 0 | H23: 0 | I23: 0 | J23: 0 | K23: 0 | L23: 0 | M23: 0 | N23: 0
A24: Prepayment C/Fwd
A26: Accrual B/Fwd | D26: =C27 -> 0 | E26: =D27 -> 0 | F26: 0 | G26: 0 | H26: 0 | I26: 0 | J26: 0 | K26: 0 | L26: 0 | M26: 0 | N26: 0
A27: Accrual C/Fwd
A30: Profit and Loss | C30: =C21+C23-C24-C26+C27 -> 0 | D30: 0 | E30: 0 | F30: 0 | G30: 0 | H30: 0 | I30: 0 | J30: 0 | K30: 0 | L30: 0 | M30: 0 | N30: 0 | P30: =SUM(C30:O30) -> 0
A32: Vat Element to VAT Account | C32: =IF(stdvat=0%,0,C13*(1-VAT_Exclusive_percent)) -> 0 | D32: 0 | E32: 0 | F32: 0 | G32: 0 | H32: 0 | I32: 0 | J32: 0 | K32: 0 | L32: 0 | M32: 0 | N32: 0 | P32: =SUM(C32:O32) -> 0

Sheet expense9
C4: Expense 9
C6: =CashFlow!$B$31 -> Printing, stationery and postage
B7: Days credit suppliers | E7: =days_credit_suppliers -> 30 | F7: =IF(Average_days_in_month,INT(E7/Average_days_in_month)) -> 1 | G7: =IF(Average_days_in_month,MOD(E7,Average_days_in_month)/Average_days_in_month,) -> 0
C10: 1 | D10: 2 | E10: 3 | F10: 4 | G10: 5 | H10: 6 | I10: 7 | J10: 8 | K10: 9 | L10: 10 | M10: 11 | N10: 12
A11: Opening Creditors | D11: =IF(D$10=1,,C19) -> 0 | E11: 0 | F11: 0 | G11: 0 | H11: 0 | I11: 0 | J11: 0 | K11: 0 | L11: 0 | M11: 0 | N11: 0 | P11: =SUM(C11:O11) -> 0 | R11: Check | S11: Opening | T11: =C11 -> 0 | AC11: =R15 -> 0 | AD11: =R16 -> 0 | AE11: =R17 -> 0 | AF11: =R18 -> 0 | AG11: =R19 -> 0 | AH11: =R22 -> 0 | AI11: =R23 -> 0 | AJ11: =R24 -> 0
S12: expenses | T12: =P15 -> 0
A13: Std rate invoices gross | P13: =SUM(C13:O13) -> 0 | S13: Paid | T13: =-P17 -> 0 | AC13: =P15 -> 0 | AD13: =P16 -> 0 | AE13: =P17 -> 0 | AF13: =P18 -> 0 | AG13: =P19 -> 0 | AH13: =P22 -> 0 | AI13: =P23 -> 0 | AJ13: =P24 -> 0
A14: Zero rate invoices | P14: =SUM(C14:O14) -> 0 | S14: Closing | T14: =-N19 -> 0
A15: Total | C15: =SUM(C13:C14) -> 0 | D15: =SUM(D13:D14) -> 0 | E15: 0 | F15: 0 | G15: 0 | H15: 0 | I15: 0 | J15: 0 | K15: 0 | L15: 0 | M15: 0 | N15: 0 | P15: =SUM(C15:O15) -> 0
S16: Total | T16: =SUM(T11:T15) -> 0
A17: Paid | C17: =-C19+C11+C15 -> 0 | D17: =-D19+D11+D15 -> 0 | E17: =-E19+E11+E15 -> 0 | F17: =-F19+F11+F15 -> 0 | G17: 0 | H17: 0 | I17: 0 | J17: 0 | K17: 0 | L17: 0 | M17: 0 | N17: 0 | P17: =SUM(C17:O17) -> 0
A19: Closing Creditors | C19: =IF($F$7,SUM(OFFSET(C15,,,1,-MIN($F$7,C$10))),)+IF(C$10-$F$7<=0,,OFFSET(C15,,-$F$7)*$G$7) -> 0 | D19: =IF($F$7,SUM(OFFSET(D15,,,1,-MIN($F$7,D$10))),)+IF(D$10-$F$7<=0,,OFFSET(D15,,-$F$7)*$G$7) -> 0 | E19: 0 | F19: 0 | G19: 0 | H19: 0 | I19: 0 | J19: 0 | K19: 0 | L19: 0 | M19: 0 | N19: 0 | P19: =SUM(C19:O19) -> 0
A21: VAT Exclusive | C21: =C15-C32 -> 0 | D21: =D15-D32 -> 0 | E21: 0 | F21: 0 | G21: 0 | H21: 0 | I21: 0 | J21: 0 | K21: 0 | L21: 0 | M21: 0 | N21: 0 | P21: =SUM(C21:O21) -> 0
A23: Prepayment B/Fwd | D23: =C24 -> 0 | E23: =D24 -> 0 | F23: 0 | G23: 0 | H23: 0 | I23: 0 | J23: 0 | K23: 0 | L23: 0 | M23: 0 | N23: 0
A24: Prepayment C/Fwd
A26: Accrual B/Fwd | D26: =C27 -> 0 | E26: =D27 -> 0 | F26: 0 | G26: 0 | H26: 0 | I26: 0 | J26: 0 | K26: 0 | L26: 0 | M26: 0 | N26: 0
A27: Accrual C/Fwd
A30: Profit and Loss | C30: =C21+C23-C24-C26+C27 -> 0 | D30: 0 | E30: 0 | F30: 0 | G30: 0 | H30: 0 | I30: 0 | J30: 0 | K30: 0 | L30: 0 | M30: 0 | N30: 0 | P30: =SUM(C30:O30) -> 0
A32: Vat Element to VAT Account | C32: =IF(stdvat=0%,0,C13*(1-VAT_Exclusive_percent)) -> 0 | D32: 0 | E32: 0 | F32: 0 | G32: 0 | H32: 0 | I32: 0 | J32: 0 | K32: 0 | L32: 0 | M32: 0 | N32: 0 | P32: =SUM(C32:O32) -> 0

Sheet expense10
C4: Expense 10
C6: =CashFlow!$B$32 -> Leasing
B7: Days credit suppliers | E7: =days_credit_suppliers -> 30 | F7: =IF(Average_days_in_month,INT(E7/Average_days_in_month)) -> 1 | G7: =IF(Average_days_in_month,MOD(E7,Average_days_in_month)/Average_days_in_month,) -> 0
C10: 1 | D10: 2 | E10: 3 | F10: 4 | G10: 5 | H10: 6 | I10: 7 | J10: 8 | K10: 9 | L10: 10 | M10: 11 | N10: 12
A11: Opening Creditors | D11: =IF(D$10=1,,C19) -> 0 | E11: 0 | F11: 0 | G11: 0 | H11: 0 | I11: 0 | J11: 0 | K11: 0 | L11: 0 | M11: 0 | N11: 0 | P11: =SUM(C11:O11) -> 0 | R11: Check | S11: Opening | T11: =C11 -> 0 | AC11: =R15 -> 0 | AD11: =R16 -> 0 | AE11: =R17 -> 0 | AF11: =R18 -> 0 | AG11: =R19 -> 0 | AH11: =R22 -> 0 | AI11: =R23 -> 0 | AJ11: =R24 -> 0
S12: expenses | T12: =P15 -> 0
A13: Std rate invoices gross | P13: =SUM(C13:O13) -> 0 | S13: Paid | T13: =-P17 -> 0 | AC13: =P15 -> 0 | AD13: =P16 -> 0 | AE13: =P17 -> 0 | AF13: =P18 -> 0 | AG13: =P19 -> 0 | AH13: =P22 -> 0 | AI13: =P23 -> 0 | AJ13: =P24 -> 0
A14: Zero rate invoices | P14: =SUM(C14:O14) -> 0 | S14: Closing | T14: =-N19 -> 0
A15: Total | C15: =SUM(C13:C14) -> 0 | D15: =SUM(D13:D14) -> 0 | E15: 0 | F15: 0 | G15: 0 | H15: 0 | I15: 0 | J15: 0 | K15: 0 | L15: 0 | M15: 0 | N15: 0 | P15: =SUM(C15:O15) -> 0
S16: Total | T16: =SUM(T11:T15) -> 0
A17: Paid | C17: =-C19+C11+C15 -> 0 | D17: =-D19+D11+D15 -> 0 | E17: =-E19+E11+E15 -> 0 | F17: =-F19+F11+F15 -> 0 | G17: 0 | H17: 0 | I17: 0 | J17: 0 | K17: 0 | L17: 0 | M17: 0 | N17: 0 | P17: =SUM(C17:O17) -> 0
A19: Closing Creditors | C19: =IF($F$7,SUM(OFFSET(C15,,,1,-MIN($F$7,C$10))),)+IF(C$10-$F$7<=0,,OFFSET(C15,,-$F$7)*$G$7) -> 0 | D19: =IF($F$7,SUM(OFFSET(D15,,,1,-MIN($F$7,D$10))),)+IF(D$10-$F$7<=0,,OFFSET(D15,,-$F$7)*$G$7) -> 0 | E19: 0 | F19: 0 | G19: 0 | H19: 0 | I19: 0 | J19: 0 | K19: 0 | L19: 0 | M19: 0 | N19: 0 | P19: =SUM(C19:O19) -> 0
A21: VAT Exclusive | C21: =C15-C32 -> 0 | D21: =D15-D32 -> 0 | E21: 0 | F21: 0 | G21: 0 | H21: 0 | I21: 0 | J21: 0 | K21: 0 | L21: 0 | M21: 0 | N21: 0 | P21: =SUM(C21:O21) -> 0
A23: Prepayment B/Fwd | D23: =C24 -> 0 | E23: =D24 -> 0 | F23: 0 | G23: 0 | H23: 0 | I23: 0 | J23: 0 | K23: 0 | L23: 0 | M23: 0 | N23: 0
A24: Prepayment C/Fwd
A26: Accrual B/Fwd | D26: =C27 -> 0 | E26: =D27 -> 0 | F26: 0 | G26: 0 | H26: 0 | I26: 0 | J26: 0 | K26: 0 | L26: 0 | M26: 0 | N26: 0
A27: Accrual C/Fwd
A30: Profit and Loss | C30: =C21+C23-C24-C26+C27 -> 0 | D30: 0 | E30: 0 | F30: 0 | G30: 0 | H30: 0 | I30: 0 | J30: 0 | K30: 0 | L30: 0 | M30: 0 | N30: 0 | P30: =SUM(C30:O30) -> 0
A32: Vat Element to VAT Account | C32: =IF(stdvat=0%,0,C13*(1-VAT_Exclusive_percent)) -> 0 | D32: 0 | E32: 0 | F32: 0 | G32: 0 | H32: 0 | I32: 0 | J32: 0 | K32: 0 | L32: 0 | M32: 0 | N32: 0 | P32: =SUM(C32:O32) -> 0

Sheet expense11
C4: Expense 11
C6: =CashFlow!$B$33 -> Legal and professional fees
B7: Days credit suppliers | E7: =days_credit_suppliers -> 30 | F7: =IF(Average_days_in_month,INT(E7/Average_days_in_month)) -> 1 | G7: =IF(Average_days_in_month,MOD(E7,Average_days_in_month)/Average_days_in_month,) -> 0
C10: 1 | D10: 2 | E10: 3 | F10: 4 | G10: 5 | H10: 6 | I10: 7 | J10: 8 | K10: 9 | L10: 10 | M10: 11 | N10: 12
A11: Opening Creditors | D11: =IF(D$10=1,,C19) -> 0 | E11: 0 | F11: 0 | G11: 0 | H11: 0 | I11: 0 | J11: 0 | K11: 0 | L11: 0 | M11: 0 | N11: 0 | P11: =SUM(C11:O11) -> 0 | R11: Check | S11: Opening | T11: =C11 -> 0 | AC11: =R15 -> 0 | AD11: =R16 -> 0 | AE11: =R17 -> 0 | AF11: =R18 -> 0 | AG11: =R19 -> 0 | AH11: =R22 -> 0 | AI11: =R23 -> 0 | AJ11: =R24 -> 0
S12: expenses | T12: =P15 -> 0
A13: Std rate invoices gross | P13: =SUM(C13:O13) -> 0 | S13: Paid | T13: =-P17 -> 0 | AC13: =P15 -> 0 | AD13: =P16 -> 0 | AE13: =P17 -> 0 | AF13: =P18 -> 0 | AG13: =P19 -> 0 | AH13: =P22 -> 0 | AI13: =P23 -> 0 | AJ13: =P24 -> 0
A14: Zero rate invoices | P14: =SUM(C14:O14) -> 0 | S14: Closing | T14: =-N19 -> 0
A15: Total | C15: =SUM(C13:C14) -> 0 | D15: =SUM(D13:D14) -> 0 | E15: 0 | F15: 0 | G15: 0 | H15: 0 | I15: 0 | J15: 0 | K15: 0 | L15: 0 | M15: 0 | N15: 0 | P15: =SUM(C15:O15) -> 0
S16: Total | T16: =SUM(T11:T15) -> 0
A17: Paid | C17: =-C19+C11+C15 -> 0 | D17: =-D19+D11+D15 -> 0 | E17: =-E19+E11+E15 -> 0 | F17: =-F19+F11+F15 -> 0 | G17: 0 | H17: 0 | I17: 0 | J17: 0 | K17: 0 | L17: 0 | M17: 0 | N17: 0 | P17: =SUM(C17:O17) -> 0
A19: Closing Creditors | C19: =IF($F$7,SUM(OFFSET(C15,,,1,-MIN($F$7,C$10))),)+IF(C$10-$F$7<=0,,OFFSET(C15,,-$F$7)*$G$7) -> 0 | D19: =IF($F$7,SUM(OFFSET(D15,,,1,-MIN($F$7,D$10))),)+IF(D$10-$F$7<=0,,OFFSET(D15,,-$F$7)*$G$7) -> 0 | E19: 0 | F19: 0 | G19: 0 | H19: 0 | I19: 0 | J19: 0 | K19: 0 | L19: 0 | M19: 0 | N19: 0 | P19: =SUM(C19:O19) -> 0
A21: VAT Exclusive | C21: =C15-C32 -> 0 | D21: =D15-D32 -> 0 | E21: 0 | F21: 0 | G21: 0 | H21: 0 | I21: 0 | J21: 0 | K21: 0 | L21: 0 | M21: 0 | N21: 0 | P21: =SUM(C21:O21) -> 0
A23: Prepayment B/Fwd | D23: =C24 -> 0 | E23: =D24 -> 0 | F23: 0 | G23: 0 | H23: 0 | I23: 0 | J23: 0 | K23: 0 | L23: 0 | M23: 0 | N23: 0
A24: Prepayment C/Fwd
A26: Accrual B/Fwd | D26: =C27 -> 0 | E26: =D27 -> 0 | F26: 0 | G26: 0 | H26: 0 | I26: 0 | J26: 0 | K26: 0 | L26: 0 | M26: 0 | N26: 0
A27: Accrual C/Fwd
A30: Profit and Loss | C30: =C21+C23-C24-C26+C27 -> 0 | D30: 0 | E30: 0 | F30: 0 | G30: 0 | H30: 0 | I30: 0 | J30: 0 | K30: 0 | L30: 0 | M30: 0 | N30: 0 | P30: =SUM(C30:O30) -> 0
A32: Vat Element to VAT Account | C32: =IF(stdvat=0%,0,C13*(1-VAT_Exclusive_percent)) -> 0 | D32: 0 | E32: 0 | F32: 0 | G32: 0 | H32: 0 | I32: 0 | J32: 0 | K32: 0 | L32: 0 | M32: 0 | N32: 0 | P32: =SUM(C32:O32) -> 0

Sheet expense12
C4: Expense 12
C6: =CashFlow!$B$34 -> Repairs and renewals
B7: Days credit suppliers | E7: =days_credit_suppliers -> 30 | F7: =IF(Average_days_in_month,INT(E7/Average_days_in_month)) -> 1 | G7: =IF(Average_days_in_month,MOD(E7,Average_days_in_month)/Average_days_in_month,) -> 0
C10: 1 | D10: 2 | E10: 3 | F10: 4 | G10: 5 | H10: 6 | I10: 7 | J10: 8 | K10: 9 | L10: 10 | M10: 11 | N10: 12
A11: Opening Creditors | D11: =IF(D$10=1,,C19) -> 0 | E11: 0 | F11: 0 | G11: 0 | H11: 0 | I11: 0 | J11: 0 | K11: 0 | L11: 0 | M11: 0 | N11: 0 | P11: =SUM(C11:O11) -> 0 | R11: Check | S11: Opening | T11: =C11 -> 0 | AC11: =R15 -> 0 | AD11: =R16 -> 0 | AE11: =R17 -> 0 | AF11: =R18 -> 0 | AG11: =R19 -> 0 | AH11: =R22 -> 0 | AI11: =R23 -> 0 | AJ11: =R24 -> 0
S12: expenses | T12: =P15 -> 0
A13: Std rate invoices gross | P13: =SUM(C13:O13) -> 0 | S13: Paid | T13: =-P17 -> 0 | AC13: =P15 -> 0 | AD13: =P16 -> 0 | AE13: =P17 -> 0 | AF13: =P18 -> 0 | AG13: =P19 -> 0 | AH13: =P22 -> 0 | AI13: =P23 -> 0 | AJ13: =P24 -> 0
A14: Zero rate invoices | P14: =SUM(C14:O14) -> 0 | S14: Closing | T14: =-N19 -> 0
A15: Total | C15: =SUM(C13:C14) -> 0 | D15: =SUM(D13:D14) -> 0 | E15: 0 | F15: 0 | G15: 0 | H15: 0 | I15: 0 | J15: 0 | K15: 0 | L15: 0 | M15: 0 | N15: 0 | P15: =SUM(C15:O15) -> 0
S16: Total | T16: =SUM(T11:T15) -> 0
A17: Paid | C17: =-C19+C11+C15 -> 0 | D17: =-D19+D11+D15 -> 0 | E17: =-E19+E11+E15 -> 0 | F17: =-F19+F11+F15 -> 0 | G17: 0 | H17: 0 | I17: 0 | J17: 0 | K17: 0 | L17: 0 | M17: 0 | N17: 0 | P17: =SUM(C17:O17) -> 0
A19: Closing Creditors | C19: =IF($F$7,SUM(OFFSET(C15,,,1,-MIN($F$7,C$10))),)+IF(C$10-$F$7<=0,,OFFSET(C15,,-$F$7)*$G$7) -> 0 | D19: =IF($F$7,SUM(OFFSET(D15,,,1,-MIN($F$7,D$10))),)+IF(D$10-$F$7<=0,,OFFSET(D15,,-$F$7)*$G$7) -> 0 | E19: 0 | F19: 0 | G19: 0 | H19: 0 | I19: 0 | J19: 0 | K19: 0 | L19: 0 | M19: 0 | N19: 0 | P19: =SUM(C19:O19) -> 0
A21: VAT Exclusive | C21: =C15-C32 -> 0 | D21: =D15-D32 -> 0 | E21: 0 | F21: 0 | G21: 0 | H21: 0 | I21: 0 | J21: 0 | K21: 0 | L21: 0 | M21: 0 | N21: 0 | P21: =SUM(C21:O21) -> 0
A23: Prepayment B/Fwd | D23: =C24 -> 0 | E23: =D24 -> 0 | F23: 0 | G23: 0 | H23: 0 | I23: 0 | J23: 0 | K23: 0 | L23: 0 | M23: 0 | N23: 0
A24: Prepayment C/Fwd
A26: Accrual B/Fwd | D26: =C27 -> 0 | E26: =D27 -> 0 | F26: 0 | G26: 0 | H26: 0 | I26: 0 | J26: 0 | K26: 0 | L26: 0 | M26: 0 | N26: 0
A27: Accrual C/Fwd
A30: Profit and Loss | C30: =C21+C23-C24-C26+C27 -> 0 | D30: 0 | E30: 0 | F30: 0 | G30: 0 | H30: 0 | I30: 0 | J30: 0 | K30: 0 | L30: 0 | M30: 0 | N30: 0 | P30: =SUM(C30:O30) -> 0
A32: Vat Element to VAT Account | C32: =IF(stdvat=0%,0,C13*(1-VAT_Exclusive_percent)) -> 0 | D32: 0 | E32: 0 | F32: 0 | G32: 0 | H32: 0 | I32: 0 | J32: 0 | K32: 0 | L32: 0 | M32: 0 | N32: 0 | P32: =SUM(C32:O32) -> 0

Sheet expense13
C4: Expense 13
C6: =CashFlow!$B$35 -> IT Costs
B7: Days credit suppliers | E7: =days_credit_suppliers -> 30 | F7: =IF(Average_days_in_month,INT(E7/Average_days_in_month)) -> 1 | G7: =IF(Average_days_in_month,MOD(E7,Average_days_in_month)/Average_days_in_month,) -> 0
C10: 1 | D10: 2 | E10: 3 | F10: 4 | G10: 5 | H10: 6 | I10: 7 | J10: 8 | K10: 9 | L10: 10 | M10: 11 | N10: 12
A11: Opening Creditors | D11: =IF(D$10=1,,C19) -> 0 | E11: 0 | F11: 0 | G11: 0 | H11: 0 | I11: 0 | J11: 0 | K11: 0 | L11: 0 | M11: 0 | N11: 0 | P11: =SUM(C11:O11) -> 0 | R11: Check | S11: Opening | T11: =C11 -> 0 | AC11: =R15 -> 0 | AD11: =R16 -> 0 | AE11: =R17 -> 0 | AF11: =R18 -> 0 | AG11: =R19 -> 0 | AH11: =R22 -> 0 | AI11: =R23 -> 0 | AJ11: =R24 -> 0
S12: expenses | T12: =P15 -> 0
A13: Std rate invoices gross | P13: =SUM(C13:O13) -> 0 | S13: Paid | T13: =-P17 -> 0 | AC13: =P15 -> 0 | AD13: =P16 -> 0 | AE13: =P17 -> 0 | AF13: =P18 -> 0 | AG13: =P19 -> 0 | AH13: =P22 -> 0 | AI13: =P23 -> 0 | AJ13: =P24 -> 0
A14: Zero rate invoices | P14: =SUM(C14:O14) -> 0 | S14: Closing | T14: =-N19 -> 0
A15: Total | C15: =SUM(C13:C14) -> 0 | D15: =SUM(D13:D14) -> 0 | E15: 0 | F15: 0 | G15: 0 | H15: 0 | I15: 0 | J15: 0 | K15: 0 | L15: 0 | M15: 0 | N15: 0 | P15: =SUM(C15:O15) -> 0
S16: Total | T16: =SUM(T11:T15) -> 0
A17: Paid | C17: =-C19+C11+C15 -> 0 | D17: =-D19+D11+D15 -> 0 | E17: =-E19+E11+E15 -> 0 | F17: =-F19+F11+F15 -> 0 | G17: 0 | H17: 0 | I17: 0 | J17: 0 | K17: 0 | L17: 0 | M17: 0 | N17: 0 | P17: =SUM(C17:O17) -> 0
A19: Closing Creditors | C19: =IF($F$7,SUM(OFFSET(C15,,,1,-MIN($F$7,C$10))),)+IF(C$10-$F$7<=0,,OFFSET(C15,,-$F$7)*$G$7) -> 0 | D19: =IF($F$7,SUM(OFFSET(D15,,,1,-MIN($F$7,D$10))),)+IF(D$10-$F$7<=0,,OFFSET(D15,,-$F$7)*$G$7) -> 0 | E19: 0 | F19: 0 | G19: 0 | H19: 0 | I19: 0 | J19: 0 | K19: 0 | L19: 0 | M19: 0 | N19: 0 | P19: =SUM(C19:O19) -> 0
A21: VAT Exclusive | C21: =C15-C32 -> 0 | D21: =D15-D32 -> 0 | E21: 0 | F21: 0 | G21: 0 | H21: 0 | I21: 0 | J21: 0 | K21: 0 | L21: 0 | M21: 0 | N21: 0 | P21: =SUM(C21:O21) -> 0
A23: Prepayment B/Fwd | D23: =C24 -> 0 | E23: =D24 -> 0 | F23: 0 | G23: 0 | H23: 0 | I23: 0 | J23: 0 | K23: 0 | L23: 0 | M23: 0 | N23: 0
A24: Prepayment C/Fwd
A26: Accrual B/Fwd | D26: =C27 -> 0 | E26: =D27 -> 0 | F26: 0 | G26: 0 | H26: 0 | I26: 0 | J26: 0 | K26: 0 | L26: 0 | M26: 0 | N26: 0
A27: Accrual C/Fwd
A30: Profit and Loss | C30: =C21+C23-C24-C26+C27 -> 0 | D30: 0 | E30: 0 | F30: 0 | G30: 0 | H30: 0 | I30: 0 | J30: 0 | K30: 0 | L30: 0 | M30: 0 | N30: 0 | P30: =SUM(C30:O30) -> 0
A32: Vat Element to VAT Account | C32: =IF(stdvat=0%,0,C13*(1-VAT_Exclusive_percent)) -> 0 | D32: 0 | E32: 0 | F32: 0 | G32: 0 | H32: 0 | I32: 0 | J32: 0 | K32: 0 | L32: 0 | M32: 0 | N32: 0 | P32: =SUM(C32:O32) -> 0

Sheet expense14
C4: Expense 14
C6: =CashFlow!$B$36 -> Sundry expenses
B7: Days credit suppliers | E7: =days_credit_suppliers -> 30 | F7: =IF(Average_days_in_month,INT(E7/Average_days_in_month)) -> 1 | G7: =IF(Average_days_in_month,MOD(E7,Average_days_in_month)/Average_days_in_month,) -> 0
C10: 1 | D10: 2 | E10: 3 | F10: 4 | G10: 5 | H10: 6 | I10: 7 | J10: 8 | K10: 9 | L10: 10 | M10: 11 | N10: 12
A11: Opening Creditors | D11: =IF(D$10=1,,C19) -> 0 | E11: 0 | F11: 0 | G11: 0 | H11: 0 | I11: 0 | J11: 0 | K11: 0 | L11: 0 | M11: 0 | N11: 0 | P11: =SUM(C11:O11) -> 0 | R11: Check | S11: Opening | T11: =C11 -> 0 | AC11: =R15 -> 0 | AD11: =R16 -> 0 | AE11: =R17 -> 0 | AF11: =R18 -> 0 | AG11: =R19 -> 0 | AH11: =R22 -> 0 | AI11: =R23 -> 0 | AJ11: =R24 -> 0
S12: expenses | T12: =P15 -> 0
A13: Std rate invoices gross | P13: =SUM(C13:O13) -> 0 | S13: Paid | T13: =-P17 -> 0 | AC13: =P15 -> 0 | AD13: =P16 -> 0 | AE13: =P17 -> 0 | AF13: =P18 -> 0 | AG13: =P19 -> 0 | AH13: =P22 -> 0 | AI13: =P23 -> 0 | AJ13: =P24 -> 0
A14: Zero rate invoices | P14: =SUM(C14:O14) -> 0 | S14: Closing | T14: =-N19 -> 0
A15: Total | C15: =SUM(C13:C14) -> 0 | D15: =SUM(D13:D14) -> 0 | E15: 0 | F15: 0 | G15: 0 | H15: 0 | I15: 0 | J15: 0 | K15: 0 | L15: 0 | M15: 0 | N15: 0 | P15: =SUM(C15:O15) -> 0
S16: Total | T16: =SUM(T11:T15) -> 0
A17: Paid | C17: =-C19+C11+C15 -> 0 | D17: =-D19+D11+D15 -> 0 | E17: =-E19+E11+E15 -> 0 | F17: =-F19+F11+F15 -> 0 | G17: 0 | H17: 0 | I17: 0 | J17: 0 | K17: 0 | L17: 0 | M17: 0 | N17: 0 | P17: =SUM(C17:O17) -> 0
A19: Closing Creditors | C19: =IF($F$7,SUM(OFFSET(C15,,,1,-MIN($F$7,C$10))),)+IF(C$10-$F$7<=0,,OFFSET(C15,,-$F$7)*$G$7) -> 0 | D19: =IF($F$7,SUM(OFFSET(D15,,,1,-MIN($F$7,D$10))),)+IF(D$10-$F$7<=0,,OFFSET(D15,,-$F$7)*$G$7) -> 0 | E19: 0 | F19: 0 | G19: 0 | H19: 0 | I19: 0 | J19: 0 | K19: 0 | L19: 0 | M19: 0 | N19: 0 | P19: =SUM(C19:O19) -> 0
A21: VAT Exclusive | C21: =C15-C32 -> 0 | D21: =D15-D32 -> 0 | E21: 0 | F21: 0 | G21: 0 | H21: 0 | I21: 0 | J21: 0 | K21: 0 | L21: 0 | M21: 0 | N21: 0 | P21: =SUM(C21:O21) -> 0
A23: Prepayment B/Fwd | D23: =C24 -> 0 | E23: =D24 -> 0 | F23: 0 | G23: 0 | H23: 0 | I23: 0 | J23: 0 | K23: 0 | L23: 0 | M23: 0 | N23: 0
A24: Prepayment C/Fwd
A26: Accrual B/Fwd | D26: =C27 -> 0 | E26: =D27 -> 0 | F26: 0 | G26: 0 | H26: 0 | I26: 0 | J26: 0 | K26: 0 | L26: 0 | M26: 0 | N26: 0
A27: Accrual C/Fwd
A30: Profit and Loss | C30: =C21+C23-C24-C26+C27 -> 0 | D30: 0 | E30: 0 | F30: 0 | G30: 0 | H30: 0 | I30: 0 | J30: 0 | K30: 0 | L30: 0 | M30: 0 | N30: 0 | P30: =SUM(C30:O30) -> 0
A32: Vat Element to VAT Account | C32: =IF(stdvat=0%,0,C13*(1-VAT_Exclusive_percent)) -> 0 | D32: 0 | E32: 0 | F32: 0 | G32: 0 | H32: 0 | I32: 0 | J32: 0 | K32: 0 | L32: 0 | M32: 0 | N32: 0 | P32: =SUM(C32:O32) -> 0

Sheet expense15
C4: Expense 15
C6: =CashFlow!$B$37 -> Bank charges
B7: Days credit suppliers | E7: =days_credit_suppliers -> 30 | F7: =IF(Average_days_in_month,INT(E7/Average_days_in_month)) -> 1 | G7: =IF(Average_days_in_month,MOD(E7,Average_days_in_month)/Average_days_in_month,) -> 0
C10: 1 | D10: 2 | E10: 3 | F10: 4 | G10: 5 | H10: 6 | I10: 7 | J10: 8 | K10: 9 | L10: 10 | M10: 11 | N10: 12
A11: Opening Creditors | D11: =IF(D$10=1,,C19) -> 0 | E11: 0 | F11: 0 | G11: 0 | H11: 0 | I11: 0 | J11: 0 | K11: 0 | L11: 0 | M11: 0 | N11: 0 | P11: =SUM(C11:O11) -> 0 | R11: Check | S11: Opening | T11: =C11 -> 0 | AC11: =R15 -> 0 | AD11: =R16 -> 0 | AE11: =R17 -> 0 | AF11: =R18 -> 0 | AG11: =R19 -> 0 | AH11: =R22 -> 0 | AI11: =R23 -> 0 | AJ11: =R24 -> 0
S12: expenses | T12: =P15 -> 0
A13: Std rate invoices gross | P13: =SUM(C13:O13) -> 0 | S13: Paid | T13: =-P17 -> 0 | AC13: =P15 -> 0 | AD13: =P16 -> 0 | AE13: =P17 -> 0 | AF13: =P18 -> 0 | AG13: =P19 -> 0 | AH13: =P22 -> 0 | AI13: =P23 -> 0 | AJ13: =P24 -> 0
A14: Zero rate invoices | P14: =SUM(C14:O14) -> 0 | S14: Closing | T14: =-N19 -> 0
A15: Total | C15: =SUM(C13:C14) -> 0 | D15: =SUM(D13:D14) -> 0 | E15: 0 | F15: 0 | G15: 0 | H15: 0 | I15: 0 | J15: 0 | K15: 0 | L15: 0 | M15: 0 | N15: 0 | P15: =SUM(C15:O15) -> 0
S16: Total | T16: =SUM(T11:T15) -> 0
A17: Paid | C17: =-C19+C11+C15 -> 0 | D17: =-D19+D11+D15 -> 0 | E17: =-E19+E11+E15 -> 0 | F17: =-F19+F11+F15 -> 0 | G17: 0 | H17: 0 | I17: 0 | J17: 0 | K17: 0 | L17: 0 | M17: 0 | N17: 0 | P17: =SUM(C17:O17) -> 0
A19: Closing Creditors | C19: =IF($F$7,SUM(OFFSET(C15,,,1,-MIN($F$7,C$10))),)+IF(C$10-$F$7<=0,,OFFSET(C15,,-$F$7)*$G$7) -> 0 | D19: =IF($F$7,SUM(OFFSET(D15,,,1,-MIN($F$7,D$10))),)+IF(D$10-$F$7<=0,,OFFSET(D15,,-$F$7)*$G$7) -> 0 | E19: 0 | F19: 0 | G19: 0 | H19: 0 | I19: 0 | J19: 0 | K19: 0 | L19: 0 | M19: 0 | N19: 0 | P19: =SUM(C19:O19) -> 0
A21: VAT Exclusive | C21: =C15-C32 -> 0 | D21: =D15-D32 -> 0 | E21: 0 | F21: 0 | G21: 0 | H21: 0 | I21: 0 | J21: 0 | K21: 0 | L21: 0 | M21: 0 | N21: 0 | P21: =SUM(C21:O21) -> 0
A23: Prepayment B/Fwd | D23: =C24 -> 0 | E23: =D24 -> 0 | F23: 0 | G23: 0 | H23: 0 | I23: 0 | J23: 0 | K23: 0 | L23: 0 | M23: 0 | N23: 0
A24: Prepayment C/Fwd
A26: Accrual B/Fwd | D26: =C27 -> 0 | E26: =D27 -> 0 | F26: 0 | G26: 0 | H26: 0 | I26: 0 | J26: 0 | K26: 0 | L26: 0 | M26: 0 | N26: 0
A27: Accrual C/Fwd
A30: Profit and Loss | C30: =C21+C23-C24-C26+C27 -> 0 | D30: 0 | E30: 0 | F30: 0 | G30: 0 | H30: 0 | I30: 0 | J30: 0 | K30: 0 | L30: 0 | M30: 0 | N30: 0 | P30: =SUM(C30:O30) -> 0
A32: Vat Element to VAT Account | C32: =IF(stdvat=0%,0,C13*(1-VAT_Exclusive_percent)) -> 0 | D32: 0 | E32: 0 | F32: 0 | G32: 0 | H32: 0 | I32: 0 | J32: 0 | K32: 0 | L32: 0 | M32: 0 | N32: 0 | P32: =SUM(C32:O32) -> 0

Sheet expense16
C4: Expense 16
C6: =CashFlow!$B$38 -> Bank loan interest
B7: Days credit suppliers | E7: =days_credit_suppliers -> 30 | F7: =IF(Average_days_in_month,INT(E7/Average_days_in_month)) -> 1 | G7: =IF(Average_days_in_month,MOD(E7,Average_days_in_month)/Average_days_in_month,) -> 0
C10: 1 | D10: 2 | E10: 3 | F10: 4 | G10: 5 | H10: 6 | I10: 7 | J10: 8 | K10: 9 | L10: 10 | M10: 11 | N10: 12
A11: Opening Creditors | D11: =IF(D$10=1,,C19) -> 0 | E11: 0 | F11: 0 | G11: 0 | H11: 0 | I11: 0 | J11: 0 | K11: 0 | L11: 0 | M11: 0 | N11: 0 | P11: =SUM(C11:O11) -> 0 | R11: Check | S11: Opening | T11: =C11 -> 0 | AC11: =R15 -> 0 | AD11: =R16 -> 0 | AE11: =R17 -> 0 | AF11: =R18 -> 0 | AG11: =R19 -> 0 | AH11: =R22 -> 0 | AI11: =R23 -> 0 | AJ11: =R24 -> 0
S12: expenses | T12: =P15 -> 0
A13: Std rate invoices gross | P13: =SUM(C13:O13) -> 0 | S13: Paid | T13: =-P17 -> 0 | AC13: =P15 -> 0 | AD13: =P16 -> 0 | AE13: =P17 -> 0 | AF13: =P18 -> 0 | AG13: =P19 -> 0 | AH13: =P22 -> 0 | AI13: =P23 -> 0 | AJ13: =P24 -> 0
A14: Zero rate invoices | P14: =SUM(C14:O14) -> 0 | S14: Closing | T14: =-N19 -> 0
A15: Total | C15: =SUM(C13:C14) -> 0 | D15: =SUM(D13:D14) -> 0 | E15: 0 | F15: 0 | G15: 0 | H15: 0 | I15: 0 | J15: 0 | K15: 0 | L15: 0 | M15: 0 | N15: 0 | P15: =SUM(C15:O15) -> 0
S16: Total | T16: =SUM(T11:T15) -> 0
A17: Paid | C17: =-C19+C11+C15 -> 0 | D17: =-D19+D11+D15 -> 0 | E17: =-E19+E11+E15 -> 0 | F17: =-F19+F11+F15 -> 0 | G17: 0 | H17: 0 | I17: 0 | J17: 0 | K17: 0 | L17: 0 | M17: 0 | N17: 0 | P17: =SUM(C17:O17) -> 0
A19: Closing Creditors | C19: =IF($F$7,SUM(OFFSET(C15,,,1,-MIN($F$7,C$10))),)+IF(C$10-$F$7<=0,,OFFSET(C15,,-$F$7)*$G$7) -> 0 | D19: =IF($F$7,SUM(OFFSET(D15,,,1,-MIN($F$7,D$10))),)+IF(D$10-$F$7<=0,,OFFSET(D15,,-$F$7)*$G$7) -> 0 | E19: 0 | F19: 0 | G19: 0 | H19: 0 | I19: 0 | J19: 0 | K19: 0 | L19: 0 | M19: 0 | N19: 0 | P19: =SUM(C19:O19) -> 0
A21: VAT Exclusive | C21: =C15-C32 -> 0 | D21: =D15-D32 -> 0 | E21: 0 | F21: 0 | G21: 0 | H21: 0 | I21: 0 | J21: 0 | K21: 0 | L21: 0 | M21: 0 | N21: 0 | P21: =SUM(C21:O21) -> 0
A23: Prepayment B/Fwd | D23: =C24 -> 0 | E23: =D24 -> 0 | F23: 0 | G23: 0 | H23: 0 | I23: 0 | J23: 0 | K23: 0 | L23: 0 | M23: 0 | N23: 0
A24: Prepayment C/Fwd
A26: Accrual B/Fwd | D26: =C27 -> 0 | E26: =D27 -> 0 | F26: 0 | G26: 0 | H26: 0 | I26: 0 | J26: 0 | K26: 0 | L26: 0 | M26: 0 | N26: 0
A27: Accrual C/Fwd
A30: Profit and Loss | C30: =C21+C23-C24-C26+C27 -> 0 | D30: 0 | E30: 0 | F30: 0 | G30: 0 | H30: 0 | I30: 0 | J30: 0 | K30: 0 | L30: 0 | M30: 0 | N30: 0 | P30: =SUM(C30:O30) -> 0
A32: Vat Element to VAT Account | C32: =IF(stdvat=0%,0,C13*(1-VAT_Exclusive_percent)) -> 0 | D32: 0 | E32: 0 | F32: 0 | G32: 0 | H32: 0 | I32: 0 | J32: 0 | K32: 0 | L32: 0 | M32: 0 | N32: 0 | P32: =SUM(C32:O32) -> 0

Sheet expense17
C4: Expense 17
C6: =CashFlow!$B$39 -> spare17
B7: Days credit suppliers | E7: =days_credit_suppliers -> 30 | F7: =IF(Average_days_in_month,INT(E7/Average_days_in_month)) -> 1 | G7: =IF(Average_days_in_month,MOD(E7,Average_days_in_month)/Average_days_in_month,) -> 0
C10: 1 | D10: 2 | E10: 3 | F10: 4 | G10: 5 | H10: 6 | I10: 7 | J10: 8 | K10: 9 | L10: 10 | M10: 11 | N10: 12
A11: Opening Creditors | D11: =IF(D$10=1,,C19) -> 0 | E11: 0 | F11: 0 | G11: 0 | H11: 0 | I11: 0 | J11: 0 | K11: 0 | L11: 0 | M11: 0 | N11: 0 | P11: =SUM(C11:O11) -> 0 | R11: Check | S11: Opening | T11: =C11 -> 0 | AC11: =R15 -> 0 | AD11: =R16 -> 0 | AE11: =R17 -> 0 | AF11: =R18 -> 0 | AG11: =R19 -> 0 | AH11: =R22 -> 0 | AI11: =R23 -> 0 | AJ11: =R24 -> 0
S12: expenses | T12: =P15 -> 0
A13: Std rate invoices gross | P13: =SUM(C13:O13) -> 0 | S13: Paid | T13: =-P17 -> 0 | AC13: =P15 -> 0 | AD13: =P16 -> 0 | AE13: =P17 -> 0 | AF13: =P18 -> 0 | AG13: =P19 -> 0 | AH13: =P22 -> 0 | AI13: =P23 -> 0 | AJ13: =P24 -> 0
A14: Zero rate invoices | P14: =SUM(C14:O14) -> 0 | S14: Closing | T14: =-N19 -> 0
A15: Total | C15: =SUM(C13:C14) -> 0 | D15: =SUM(D13:D14) -> 0 | E15: 0 | F15: 0 | G15: 0 | H15: 0 | I15: 0 | J15: 0 | K15: 0 | L15: 0 | M15: 0 | N15: 0 | P15: =SUM(C15:O15) -> 0
S16: Total | T16: =SUM(T11:T15) -> 0
A17: Paid | C17: =-C19+C11+C15 -> 0 | D17: =-D19+D11+D15 -> 0 | E17: =-E19+E11+E15 -> 0 | F17: =-F19+F11+F15 -> 0 | G17: 0 | H17: 0 | I17: 0 | J17: 0 | K17: 0 | L17: 0 | M17: 0 | N17: 0 | P17: =SUM(C17:O17) -> 0
A19: Closing Creditors | C19: =IF($F$7,SUM(OFFSET(C15,,,1,-MIN($F$7,C$10))),)+IF(C$10-$F$7<=0,,OFFSET(C15,,-$F$7)*$G$7) -> 0 | D19: =IF($F$7,SUM(OFFSET(D15,,,1,-MIN($F$7,D$10))),)+IF(D$10-$F$7<=0,,OFFSET(D15,,-$F$7)*$G$7) -> 0 | E19: 0 | F19: 0 | G19: 0 | H19: 0 | I19: 0 | J19: 0 | K19: 0 | L19: 0 | M19: 0 | N19: 0 | P19: =SUM(C19:O19) -> 0
A21: VAT Exclusive | C21: =C15-C32 -> 0 | D21: =D15-D32 -> 0 | E21: 0 | F21: 0 | G21: 0 | H21: 0 | I21: 0 | J21: 0 | K21: 0 | L21: 0 | M21: 0 | N21: 0 | P21: =SUM(C21:O21) -> 0
A23: Prepayment B/Fwd | D23: =C24 -> 0 | E23: =D24 -> 0 | F23: 0 | G23: 0 | H23: 0 | I23: 0 | J23: 0 | K23: 0 | L23: 0 | M23: 0 | N23: 0
A24: Prepayment C/Fwd
A26: Accrual B/Fwd | D26: =C27 -> 0 | E26: =D27 -> 0 | F26: 0 | G26: 0 | H26: 0 | I26: 0 | J26: 0 | K26: 0 | L26: 0 | M26: 0 | N26: 0
A27: Accrual C/Fwd
A30: Profit and Loss | C30: =C21+C23-C24-C26+C27 -> 0 | D30: 0 | E30: 0 | F30: 0 | G30: 0 | H30: 0 | I30: 0 | J30: 0 | K30: 0 | L30: 0 | M30: 0 | N30: 0 | P30: =SUM(C30:O30) -> 0
A32: Vat Element to VAT Account | C32: =IF(stdvat=0%,0,C13*(1-VAT_Exclusive_percent)) -> 0 | D32: 0 | E32: 0 | F32: 0 | G32: 0 | H32: 0 | I32: 0 | J32: 0 | K32: 0 | L32: 0 | M32: 0 | N32: 0 | P32: =SUM(C32:O32) -> 0

Sheet expense18
C4: Expense 18
C6: =CashFlow!$B$40 -> spare18
B7: Days credit suppliers | E7: =days_credit_suppliers -> 30 | F7: =IF(Average_days_in_month,INT(E7/Average_days_in_month)) -> 1 | G7: =IF(Average_days_in_month,MOD(E7,Average_days_in_month)/Average_days_in_month,) -> 0
C10: 1 | D10: 2 | E10: 3 | F10: 4 | G10: 5 | H10: 6 | I10: 7 | J10: 8 | K10: 9 | L10: 10 | M10: 11 | N10: 12
A11: Opening Creditors | D11: =IF(D$10=1,,C19) -> 0 | E11: 0 | F11: 0 | G11: 0 | H11: 0 | I11: 0 | J11: 0 | K11: 0 | L11: 0 | M11: 0 | N11: 0 | P11: =SUM(C11:O11) -> 0 | R11: Check | S11: Opening | T11: =C11 -> 0 | AC11: =R15 -> 0 | AD11: =R16 -> 0 | AE11: =R17 -> 0 | AF11: =R18 -> 0 | AG11: =R19 -> 0 | AH11: =R22 -> 0 | AI11: =R23 -> 0 | AJ11: =R24 -> 0
S12: expenses | T12: =P15 -> 0
A13: Std rate invoices gross | P13: =SUM(C13:O13) -> 0 | S13: Paid | T13: =-P17 -> 0 | AC13: =P15 -> 0 | AD13: =P16 -> 0 | AE13: =P17 -> 0 | AF13: =P18 -> 0 | AG13: =P19 -> 0 | AH13: =P22 -> 0 | AI13: =P23 -> 0 | AJ13: =P24 -> 0
A14: Zero rate invoices | P14: =SUM(C14:O14) -> 0 | S14: Closing | T14: =-N19 -> 0
A15: Total | C15: =SUM(C13:C14) -> 0 | D15: =SUM(D13:D14) -> 0 | E15: 0 | F15: 0 | G15: 0 | H15: 0 | I15: 0 | J15: 0 | K15: 0 | L15: 0 | M15: 0 | N15: 0 | P15: =SUM(C15:O15) -> 0
S16: Total | T16: =SUM(T11:T15) -> 0
A17: Paid | C17: =-C19+C11+C15 -> 0 | D17: =-D19+D11+D15 -> 0 | E17: =-E19+E11+E15 -> 0 | F17: =-F19+F11+F15 -> 0 | G17: 0 | H17: 0 | I17: 0 | J17: 0 | K17: 0 | L17: 0 | M17: 0 | N17: 0 | P17: =SUM(C17:O17) -> 0
A19: Closing Creditors | C19: =IF($F$7,SUM(OFFSET(C15,,,1,-MIN($F$7,C$10))),)+IF(C$10-$F$7<=0,,OFFSET(C15,,-$F$7)*$G$7) -> 0 | D19: =IF($F$7,SUM(OFFSET(D15,,,1,-MIN($F$7,D$10))),)+IF(D$10-$F$7<=0,,OFFSET(D15,,-$F$7)*$G$7) -> 0 | E19: 0 | F19: 0 | G19: 0 | H19: 0 | I19: 0 | J19: 0 | K19: 0 | L19: 0 | M19: 0 | N19: 0 | P19: =SUM(C19:O19) -> 0
A21: VAT Exclusive | C21: =C15-C32 -> 0 | D21: =D15-D32 -> 0 | E21: 0 | F21: 0 | G21: 0 | H21: 0 | I21: 0 | J21: 0 | K21: 0 | L21: 0 | M21: 0 | N21: 0 | P21: =SUM(C21:O21) -> 0
A23: Prepayment B/Fwd | D23: =C24 -> 0 | E23: =D24 -> 0 | F23: 0 | G23: 0 | H23: 0 | I23: 0 | J23: 0 | K23: 0 | L23: 0 | M23: 0 | N23: 0
A24: Prepayment C/Fwd
A26: Accrual B/Fwd | D26: =C27 -> 0 | E26: =D27 -> 0 | F26: 0 | G26: 0 | H26: 0 | I26: 0 | J26: 0 | K26: 0 | L26: 0 | M26: 0 | N26: 0
A27: Accrual C/Fwd
A30: Profit and Loss | C30: =C21+C23-C24-C26+C27 -> 0 | D30: 0 | E30: 0 | F30: 0 | G30: 0 | H30: 0 | I30: 0 | J30: 0 | K30: 0 | L30: 0 | M30: 0 | N30: 0 | P30: =SUM(C30:O30) -> 0
A32: Vat Element to VAT Account | C32: =IF(stdvat=0%,0,C13*(1-VAT_Exclusive_percent)) -> 0 | D32: 0 | E32: 0 | F32: 0 | G32: 0 | H32: 0 | I32: 0 | J32: 0 | K32: 0 | L32: 0 | M32: 0 | N32: 0 | P32: =SUM(C32:O32) -> 0

Sheet expense19
C4: Expense 19
C6: =CashFlow!$B$41 -> spare19
B7: Days credit suppliers | E7: =days_credit_suppliers -> 30 | F7: =IF(Average_days_in_month,INT(E7/Average_days_in_month)) -> 1 | G7: =IF(Average_days_in_month,MOD(E7,Average_days_in_month)/Average_days_in_month,) -> 0
C10: 1 | D10: 2 | E10: 3 | F10: 4 | G10: 5 | H10: 6 | I10: 7 | J10: 8 | K10: 9 | L10: 10 | M10: 11 | N10: 12
A11: Opening Creditors | D11: =IF(D$10=1,,C19) -> 0 | E11: 0 | F11: 0 | G11: 0 | H11: 0 | I11: 0 | J11: 0 | K11: 0 | L11: 0 | M11: 0 | N11: 0 | P11: =SUM(C11:O11) -> 0 | R11: Check | S11: Opening | T11: =C11 -> 0 | AC11: =R15 -> 0 | AD11: =R16 -> 0 | AE11: =R17 -> 0 | AF11: =R18 -> 0 | AG11: =R19 -> 0 | AH11: =R22 -> 0 | AI11: =R23 -> 0 | AJ11: =R24 -> 0
S12: expenses | T12: =P15 -> 0
A13: Std rate invoices gross | P13: =SUM(C13:O13) -> 0 | S13: Paid | T13: =-P17 -> 0 | AC13: =P15 -> 0 | AD13: =P16 -> 0 | AE13: =P17 -> 0 | AF13: =P18 -> 0 | AG13: =P19 -> 0 | AH13: =P22 -> 0 | AI13: =P23 -> 0 | AJ13: =P24 -> 0
A14: Zero rate invoices | P14: =SUM(C14:O14) -> 0 | S14: Closing | T14: =-N19 -> 0
A15: Total | C15: =SUM(C13:C14) -> 0 | D15: =SUM(D13:D14) -> 0 | E15: 0 | F15: 0 | G15: 0 | H15: 0 | I15: 0 | J15: 0 | K15: 0 | L15: 0 | M15: 0 | N15: 0 | P15: =SUM(C15:O15) -> 0
S16: Total | T16: =SUM(T11:T15) -> 0
A17: Paid | C17: =-C19+C11+C15 -> 0 | D17: =-D19+D11+D15 -> 0 | E17: =-E19+E11+E15 -> 0 | F17: =-F19+F11+F15 -> 0 | G17: 0 | H17: 0 | I17: 0 | J17: 0 | K17: 0 | L17: 0 | M17: 0 | N17: 0 | P17: =SUM(C17:O17) -> 0
A19: Closing Creditors | C19: =IF($F$7,SUM(OFFSET(C15,,,1,-MIN($F$7,C$10))),)+IF(C$10-$F$7<=0,,OFFSET(C15,,-$F$7)*$G$7) -> 0 | D19: =IF($F$7,SUM(OFFSET(D15,,,1,-MIN($F$7,D$10))),)+IF(D$10-$F$7<=0,,OFFSET(D15,,-$F$7)*$G$7) -> 0 | E19: 0 | F19: 0 | G19: 0 | H19: 0 | I19: 0 | J19: 0 | K19: 0 | L19: 0 | M19: 0 | N19: 0 | P19: =SUM(C19:O19) -> 0
A21: VAT Exclusive | C21: =C15-C32 -> 0 | D21: =D15-D32 -> 0 | E21: 0 | F21: 0 | G21: 0 | H21: 0 | I21: 0 | J21: 0 | K21: 0 | L21: 0 | M21: 0 | N21: 0 | P21: =SUM(C21:O21) -> 0
A23: Prepayment B/Fwd | D23: =C24 -> 0 | E23: =D24 -> 0 | F23: 0 | G23: 0 | H23: 0 | I23: 0 | J23: 0 | K23: 0 | L23: 0 | M23: 0 | N23: 0
A24: Prepayment C/Fwd
A26: Accrual B/Fwd | D26: =C27 -> 0 | E26: =D27 -> 0 | F26: 0 | G26: 0 | H26: 0 | I26: 0 | J26: 0 | K26: 0 | L26: 0 | M26: 0 | N26: 0
A27: Accrual C/Fwd
A30: Profit and Loss | C30: =C21+C23-C24-C26+C27 -> 0 | D30: 0 | E30: 0 | F30: 0 | G30: 0 | H30: 0 | I30: 0 | J30: 0 | K30: 0 | L30: 0 | M30: 0 | N30: 0 | P30: =SUM(C30:O30) -> 0
A32: Vat Element to VAT Account | C32: =IF(stdvat=0%,0,C13*(1-VAT_Exclusive_percent)) -> 0 | D32: 0 | E32: 0 | F32: 0 | G32: 0 | H32: 0 | I32: 0 | J32: 0 | K32: 0 | L32: 0 | M32: 0 | N32: 0 | P32: =SUM(C32:O32) -> 0

Sheet expense20
C4: Expense 20
C6: =CashFlow!$B$42 -> spare20
B7: Days credit suppliers | E7: =days_credit_suppliers -> 30 | F7: =IF(Average_days_in_month,INT(E7/Average_days_in_month)) -> 1 | G7: =IF(Average_days_in_month,MOD(E7,Average_days_in_month)/Average_days_in_month,) -> 0
C10: 1 | D10: 2 | E10: 3 | F10: 4 | G10: 5 | H10: 6 | I10: 7 | J10: 8 | K10: 9 | L10: 10 | M10: 11 | N10: 12
A11: Opening Creditors | D11: =IF(D$10=1,,C19) -> 0 | E11: 0 | F11: 0 | G11: 0 | H11: 0 | I11: 0 | J11: 0 | K11: 0 | L11: 0 | M11: 0 | N11: 0 | P11: =SUM(C11:O11) -> 0 | R11: Check | S11: Opening | T11: =C11 -> 0 | AC11: =R15 -> 0 | AD11: =R16 -> 0 | AE11: =R17 -> 0 | AF11: =R18 -> 0 | AG11: =R19 -> 0 | AH11: =R22 -> 0 | AI11: =R23 -> 0 | AJ11: =R24 -> 0
S12: expenses | T12: =P15 -> 0
A13: Std rate invoices gross | P13: =SUM(C13:O13) -> 0 | S13: Paid | T13: =-P17 -> 0 | AC13: =P15 -> 0 | AD13: =P16 -> 0 | AE13: =P17 -> 0 | AF13: =P18 -> 0 | AG13: =P19 -> 0 | AH13: =P22 -> 0 | AI13: =P23 -> 0 | AJ13: =P24 -> 0
A14: Zero rate invoices | P14: =SUM(C14:O14) -> 0 | S14: Closing | T14: =-N19 -> 0
A15: Total | C15: =SUM(C13:C14) -> 0 | D15: =SUM(D13:D14) -> 0 | E15: 0 | F15: 0 | G15: 0 | H15: 0 | I15: 0 | J15: 0 | K15: 0 | L15: 0 | M15: 0 | N15: 0 | P15: =SUM(C15:O15) -> 0
S16: Total | T16: =SUM(T11:T15) -> 0
A17: Paid | C17: =-C19+C11+C15 -> 0 | D17: =-D19+D11+D15 -> 0 | E17: =-E19+E11+E15 -> 0 | F17: =-F19+F11+F15 -> 0 | G17: 0 | H17: 0 | I17: 0 | J17: 0 | K17: 0 | L17: 0 | M17: 0 | N17: 0 | P17: =SUM(C17:O17) -> 0
A19: Closing Creditors | C19: =IF($F$7,SUM(OFFSET(C15,,,1,-MIN($F$7,C$10))),)+IF(C$10-$F$7<=0,,OFFSET(C15,,-$F$7)*$G$7) -> 0 | D19: =IF($F$7,SUM(OFFSET(D15,,,1,-MIN($F$7,D$10))),)+IF(D$10-$F$7<=0,,OFFSET(D15,,-$F$7)*$G$7) -> 0 | E19: 0 | F19: 0 | G19: 0 | H19: 0 | I19: 0 | J19: 0 | K19: 0 | L19: 0 | M19: 0 | N19: 0 | P19: =SUM(C19:O19) -> 0
A21: VAT Exclusive | C21: =C15-C32 -> 0 | D21: =D15-D32 -> 0 | E21: 0 | F21: 0 | G21: 0 | H21: 0 | I21: 0 | J21: 0 | K21: 0 | L21: 0 | M21: 0 | N21: 0 | P21: =SUM(C21:O21) -> 0
A23: Prepayment B/Fwd | D23: =C24 -> 0 | E23: =D24 -> 0 | F23: 0 | G23: 0 | H23: 0 | I23: 0 | J23: 0 | K23: 0 | L23: 0 | M23: 0 | N23: 0
A24: Prepayment C/Fwd
A26: Accrual B/Fwd | D26: =C27 -> 0 | E26: =D27 -> 0 | F26: 0 | G26: 0 | H26: 0 | I26: 0 | J26: 0 | K26: 0 | L26: 0 | M26: 0 | N26: 0
A27: Accrual C/Fwd
A30: Profit and Loss | C30: =C21+C23-C24-C26+C27 -> 0 | D30: 0 | E30: 0 | F30: 0 | G30: 0 | H30: 0 | I30: 0 | J30: 0 | K30: 0 | L30: 0 | M30: 0 | N30: 0 | P30: =SUM(C30:O30) -> 0
A32: Vat Element to VAT Account | C32: =IF(stdvat=0%,0,C13*(1-VAT_Exclusive_percent)) -> 0 | D32: 0 | E32: 0 | F32: 0 | G32: 0 | H32: 0 | I32: 0 | J32: 0 | K32: 0 | L32: 0 | M32: 0 | N32: 0 | P32: =SUM(C32:O32) -> 0

Sheet expense21
C4: Expense 21
C6: =CashFlow!$B$43 -> spare21
B7: Days credit suppliers | E7: =days_credit_suppliers -> 30 | F7: =IF(Average_days_in_month,INT(E7/Average_days_in_month)) -> 1 | G7: =IF(Average_days_in_month,MOD(E7,Average_days_in_month)/Average_days_in_month,) -> 0
C10: 1 | D10: 2 | E10: 3 | F10: 4 | G10: 5 | H10: 6 | I10: 7 | J10: 8 | K10: 9 | L10: 10 | M10: 11 | N10: 12
A11: Opening Creditors | D11: =IF(D$10=1,,C19) -> 0 | E11: 0 | F11: 0 | G11: 0 | H11: 0 | I11: 0 | J11: 0 | K11: 0 | L11: 0 | M11: 0 | N11: 0 | P11: =SUM(C11:O11) -> 0 | R11: Check | S11: Opening | T11: =C11 -> 0 | AC11: =R15 -> 0 | AD11: =R16 -> 0 | AE11: =R17 -> 0 | AF11: =R18 -> 0 | AG11: =R19 -> 0 | AH11: =R22 -> 0 | AI11: =R23 -> 0 | AJ11: =R24 -> 0
S12: expenses | T12: =P15 -> 0
A13: Std rate invoices gross | P13: =SUM(C13:O13) -> 0 | S13: Paid | T13: =-P17 -> 0 | AC13: =P15 -> 0 | AD13: =P16 -> 0 | AE13: =P17 -> 0 | AF13: =P18 -> 0 | AG13: =P19 -> 0 | AH13: =P22 -> 0 | AI13: =P23 -> 0 | AJ13: =P24 -> 0
A14: Zero rate invoices | P14: =SUM(C14:O14) -> 0 | S14: Closing | T14: =-N19 -> 0
A15: Total | C15: =SUM(C13:C14) -> 0 | D15: =SUM(D13:D14) -> 0 | E15: 0 | F15: 0 | G15: 0 | H15: 0 | I15: 0 | J15: 0 | K15: 0 | L15: 0 | M15: 0 | N15: 0 | P15: =SUM(C15:O15) -> 0
S16: Total | T16: =SUM(T11:T15) -> 0
A17: Paid | C17: =-C19+C11+C15 -> 0 | D17: =-D19+D11+D15 -> 0 | E17: =-E19+E11+E15 -> 0 | F17: =-F19+F11+F15 -> 0 | G17: 0 | H17: 0 | I17: 0 | J17: 0 | K17: 0 | L17: 0 | M17: 0 | N17: 0 | P17: =SUM(C17:O17) -> 0
A19: Closing Creditors | C19: =IF($F$7,SUM(OFFSET(C15,,,1,-MIN($F$7,C$10))),)+IF(C$10-$F$7<=0,,OFFSET(C15,,-$F$7)*$G$7) -> 0 | D19: =IF($F$7,SUM(OFFSET(D15,,,1,-MIN($F$7,D$10))),)+IF(D$10-$F$7<=0,,OFFSET(D15,,-$F$7)*$G$7) -> 0 | E19: 0 | F19: 0 | G19: 0 | H19: 0 | I19: 0 | J19: 0 | K19: 0 | L19: 0 | M19: 0 | N19: 0 | P19: =SUM(C19:O19) -> 0
A21: VAT Exclusive | C21: =C15-C32 -> 0 | D21: =D15-D32 -> 0 | E21: 0 | F21: 0 | G21: 0 | H21: 0 | I21: 0 | J21: 0 | K21: 0 | L21: 0 | M21: 0 | N21: 0 | P21: =SUM(C21:O21) -> 0
A23: Prepayment B/Fwd | D23: =C24 -> 0 | E23: =D24 -> 0 | F23: 0 | G23: 0 | H23: 0 | I23: 0 | J23: 0 | K23: 0 | L23: 0 | M23: 0 | N23: 0
A24: Prepayment C/Fwd
A26: Accrual B/Fwd | D26: =C27 -> 0 | E26: =D27 -> 0 | F26: 0 | G26: 0 | H26: 0 | I26: 0 | J26: 0 | K26: 0 | L26: 0 | M26: 0 | N26: 0
A27: Accrual C/Fwd
A30: Profit and Loss | C30: =C21+C23-C24-C26+C27 -> 0 | D30: 0 | E30: 0 | F30: 0 | G30: 0 | H30: 0 | I30: 0 | J30: 0 | K30: 0 | L30: 0 | M30: 0 | N30: 0 | P30: =SUM(C30:O30) -> 0
A32: Vat Element to VAT Account | C32: =IF(stdvat=0%,0,C13*(1-VAT_Exclusive_percent)) -> 0 | D32: 0 | E32: 0 | F32: 0 | G32: 0 | H32: 0 | I32: 0 | J32: 0 | K32: 0 | L32: 0 | M32: 0 | N32: 0 | P32: =SUM(C32:O32) -> 0

Sheet expense22
C4: Expense 22
C6: =CashFlow!$B$44 -> spare22
B7: Days credit suppliers | E7: =days_credit_suppliers -> 30 | F7: =IF(Average_days_in_month,INT(E7/Average_days_in_month)) -> 1 | G7: =IF(Average_days_in_month,MOD(E7,Average_days_in_month)/Average_days_in_month,) -> 0
C10: 1 | D10: 2 | E10: 3 | F10: 4 | G10: 5 | H10: 6 | I10: 7 | J10: 8 | K10: 9 | L10: 10 | M10: 11 | N10: 12
A11: Opening Creditors | D11: =IF(D$10=1,,C19) -> 0 | E11: 0 | F11: 0 | G11: 0 | H11: 0 | I11: 0 | J11: 0 | K11: 0 | L11: 0 | M11: 0 | N11: 0 | P11: =SUM(C11:O11) -> 0 | R11: Check | S11: Opening | T11: =C11 -> 0 | AC11: =R15 -> 0 | AD11: =R16 -> 0 | AE11: =R17 -> 0 | AF11: =R18 -> 0 | AG11: =R19 -> 0 | AH11: =R22 -> 0 | AI11: =R23 -> 0 | AJ11: =R24 -> 0
S12: expenses | T12: =P15 -> 0
A13: Std rate invoices gross | P13: =SUM(C13:O13) -> 0 | S13: Paid | T13: =-P17 -> 0 | AC13: =P15 -> 0 | AD13: =P16 -> 0 | AE13: =P17 -> 0 | AF13: =P18 -> 0 | AG13: =P19 -> 0 | AH13: =P22 -> 0 | AI13: =P23 -> 0 | AJ13: =P24 -> 0
A14: Zero rate invoices | P14: =SUM(C14:O14) -> 0 | S14: Closing | T14: =-N19 -> 0
A15: Total | C15: =SUM(C13:C14) -> 0 | D15: =SUM(D13:D14) -> 0 | E15: 0 | F15: 0 | G15: 0 | H15: 0 | I15: 0 | J15: 0 | K15: 0 | L15: 0 | M15: 0 | N15: 0 | P15: =SUM(C15:O15) -> 0
S16: Total | T16: =SUM(T11:T15) -> 0
A17: Paid | C17: =-C19+C11+C15 -> 0 | D17: =-D19+D11+D15 -> 0 | E17: =-E19+E11+E15 -> 0 | F17: =-F19+F11+F15 -> 0 | G17: 0 | H17: 0 | I17: 0 | J17: 0 | K17: 0 | L17: 0 | M17: 0 | N17: 0 | P17: =SUM(C17:O17) -> 0
A19: Closing Creditors | C19: =IF($F$7,SUM(OFFSET(C15,,,1,-MIN($F$7,C$10))),)+IF(C$10-$F$7<=0,,OFFSET(C15,,-$F$7)*$G$7) -> 0 | D19: =IF($F$7,SUM(OFFSET(D15,,,1,-MIN($F$7,D$10))),)+IF(D$10-$F$7<=0,,OFFSET(D15,,-$F$7)*$G$7) -> 0 | E19: 0 | F19: 0 | G19: 0 | H19: 0 | I19: 0 | J19: 0 | K19: 0 | L19: 0 | M19: 0 | N19: 0 | P19: =SUM(C19:O19) -> 0
A21: VAT Exclusive | C21: =C15-C32 -> 0 | D21: =D15-D32 -> 0 | E21: 0 | F21: 0 | G21: 0 | H21: 0 | I21: 0 | J21: 0 | K21: 0 | L21: 0 | M21: 0 | N21: 0 | P21: =SUM(C21:O21) -> 0
A23: Prepayment B/Fwd | D23: =C24 -> 0 | E23: =D24 -> 0 | F23: 0 | G23: 0 | H23: 0 | I23: 0 | J23: 0 | K23: 0 | L23: 0 | M23: 0 | N23: 0
A24: Prepayment C/Fwd
A26: Accrual B/Fwd | D26: =C27 -> 0 | E26: =D27 -> 0 | F26: 0 | G26: 0 | H26: 0 | I26: 0 | J26: 0 | K26: 0 | L26: 0 | M26: 0 | N26: 0
A27: Accrual C/Fwd
A30: Profit and Loss | C30: =C21+C23-C24-C26+C27 -> 0 | D30: 0 | E30: 0 | F30: 0 | G30: 0 | H30: 0 | I30: 0 | J30: 0 | K30: 0 | L30: 0 | M30: 0 | N30: 0 | P30: =SUM(C30:O30) -> 0
A32: Vat Element to VAT Account | C32: =IF(stdvat=0%,0,C13*(1-VAT_Exclusive_percent)) -> 0 | D32: 0 | E32: 0 | F32: 0 | G32: 0 | H32: 0 | I32: 0 | J32: 0 | K32: 0 | L32: 0 | M32: 0 | N32: 0 | P32: =SUM(C32:O32) -> 0

Sheet expense23
C4: Expense 23
C6: =CashFlow!$B$45 -> spare23
B7: Days credit suppliers | E7: =days_credit_suppliers -> 30 | F7: =IF(Average_days_in_month,INT(E7/Average_days_in_month)) -> 1 | G7: =IF(Average_days_in_month,MOD(E7,Average_days_in_month)/Average_days_in_month,) -> 0
C10: 1 | D10: 2 | E10: 3 | F10: 4 | G10: 5 | H10: 6 | I10: 7 | J10: 8 | K10: 9 | L10: 10 | M10: 11 | N10: 12
A11: Opening Creditors | D11: =IF(D$10=1,,C19) -> 0 | E11: 0 | F11: 0 | G11: 0 | H11: 0 | I11: 0 | J11: 0 | K11: 0 | L11: 0 | M11: 0 | N11: 0 | P11: =SUM(C11:O11) -> 0 | R11: Check | S11: Opening | T11: =C11 -> 0 | AC11: =R15 -> 0 | AD11: =R16 -> 0 | AE11: =R17 -> 0 | AF11: =R18 -> 0 | AG11: =R19 -> 0 | AH11: =R22 -> 0 | AI11: =R23 -> 0 | AJ11: =R24 -> 0
S12: expenses | T12: =P15 -> 0
A13: Std rate invoices gross | P13: =SUM(C13:O13) -> 0 | S13: Paid | T13: =-P17 -> 0 | AC13: =P15 -> 0 | AD13: =P16 -> 0 | AE13: =P17 -> 0 | AF13: =P18 -> 0 | AG13: =P19 -> 0 | AH13: =P22 -> 0 | AI13: =P23 -> 0 | AJ13: =P24 -> 0
A14: Zero rate invoices | P14: =SUM(C14:O14) -> 0 | S14: Closing | T14: =-N19 -> 0
A15: Total | C15: =SUM(C13:C14) -> 0 | D15: =SUM(D13:D14) -> 0 | E15: 0 | F15: 0 | G15: 0 | H15: 0 | I15: 0 | J15: 0 | K15: 0 | L15: 0 | M15: 0 | N15: 0 | P15: =SUM(C15:O15) -> 0
S16: Total | T16: =SUM(T11:T15) -> 0
A17: Paid | C17: =-C19+C11+C15 -> 0 | D17: =-D19+D11+D15 -> 0 | E17: =-E19+E11+E15 -> 0 | F17: =-F19+F11+F15 -> 0 | G17: 0 | H17: 0 | I17: 0 | J17: 0 | K17: 0 | L17: 0 | M17: 0 | N17: 0 | P17: =SUM(C17:O17) -> 0
A19: Closing Creditors | C19: =IF($F$7,SUM(OFFSET(C15,,,1,-MIN($F$7,C$10))),)+IF(C$10-$F$7<=0,,OFFSET(C15,,-$F$7)*$G$7) -> 0 | D19: =IF($F$7,SUM(OFFSET(D15,,,1,-MIN($F$7,D$10))),)+IF(D$10-$F$7<=0,,OFFSET(D15,,-$F$7)*$G$7) -> 0 | E19: 0 | F19: 0 | G19: 0 | H19: 0 | I19: 0 | J19: 0 | K19: 0 | L19: 0 | M19: 0 | N19: 0 | P19: =SUM(C19:O19) -> 0
A21: VAT Exclusive | C21: =C15-C32 -> 0 | D21: =D15-D32 -> 0 | E21: 0 | F21: 0 | G21: 0 | H21: 0 | I21: 0 | J21: 0 | K21: 0 | L21: 0 | M21: 0 | N21: 0 | P21: =SUM(C21:O21) -> 0
A23: Prepayment B/Fwd | D23: =C24 -> 0 | E23: =D24 -> 0 | F23: 0 | G23: 0 | H23: 0 | I23: 0 | J23: 0 | K23: 0 | L23: 0 | M23: 0 | N23: 0
A24: Prepayment C/Fwd
A26: Accrual B/Fwd | D26: =C27 -> 0 | E26: =D27 -> 0 | F26: 0 | G26: 0 | H26: 0 | I26: 0 | J26: 0 | K26: 0 | L26: 0 | M26: 0 | N26: 0
A27: Accrual C/Fwd
A30: Profit and Loss | C30: =C21+C23-C24-C26+C27 -> 0 | D30: 0 | E30: 0 | F30: 0 | G30: 0 | H30: 0 | I30: 0 | J30: 0 | K30: 0 | L30: 0 | M30: 0 | N30: 0 | P30: =SUM(C30:O30) -> 0
A32: Vat Element to VAT Account | C32: =IF(stdvat=0%,0,C13*(1-VAT_Exclusive_percent)) -> 0 | D32: 0 | E32: 0 | F32: 0 | G32: 0 | H32: 0 | I32: 0 | J32: 0 | K32: 0 | L32: 0 | M32: 0 | N32: 0 | P32: =SUM(C32:O32) -> 0

Sheet expense24
C4: Expense 24
C6: =CashFlow!$B$49 -> spare24
B7: Days credit suppliers | E7: =days_credit_suppliers -> 30 | F7: =IF(Average_days_in_month,INT(E7/Average_days_in_month)) -> 1 | G7: =IF(Average_days_in_month,MOD(E7,Average_days_in_month)/Average_days_in_month,) -> 0
C10: 1 | D10: 2 | E10: 3 | F10: 4 | G10: 5 | H10: 6 | I10: 7 | J10: 8 | K10: 9 | L10: 10 | M10: 11 | N10: 12
A11: Opening Creditors | D11: =IF(D$10=1,,C19) -> 0 | E11: 0 | F11: 0 | G11: 0 | H11: 0 | I11: 0 | J11: 0 | K11: 0 | L11: 0 | M11: 0 | N11: 0 | P11: =SUM(C11:O11) -> 0 | R11: Check | S11: Opening | T11: =C11 -> 0 | AC11: =R15 -> 0 | AD11: =R16 -> 0 | AE11: =R17 -> 0 | AF11: =R18 -> 0 | AG11: =R19 -> 0 | AH11: =R22 -> 0 | AI11: =R23 -> 0 | AJ11: =R24 -> 0
S12: expenses | T12: =P15 -> 0
A13: Std rate invoices gross | P13: =SUM(C13:O13) -> 0 | S13: Paid | T13: =-P17 -> 0 | AC13: =P15 -> 0 | AD13: =P16 -> 0 | AE13: =P17 -> 0 | AF13: =P18 -> 0 | AG13: =P19 -> 0 | AH13: =P22 -> 0 | AI13: =P23 -> 0 | AJ13: =P24 -> 0
A14: Zero rate invoices | P14: =SUM(C14:O14) -> 0 | S14: Closing | T14: =-N19 -> 0
A15: Total | C15: =SUM(C13:C14) -> 0 | D15: =SUM(D13:D14) -> 0 | E15: 0 | F15: 0 | G15: 0 | H15: 0 | I15: 0 | J15: 0 | K15: 0 | L15: 0 | M15: 0 | N15: 0 | P15: =SUM(C15:O15) -> 0
S16: Total | T16: =SUM(T11:T15) -> 0
A17: Paid | C17: =-C19+C11+C15 -> 0 | D17: =-D19+D11+D15 -> 0 | E17: =-E19+E11+E15 -> 0 | F17: =-F19+F11+F15 -> 0 | G17: 0 | H17: 0 | I17: 0 | J17: 0 | K17: 0 | L17: 0 | M17: 0 | N17: 0 | P17: =SUM(C17:O17) -> 0
A19: Closing Creditors | C19: =IF($F$7,SUM(OFFSET(C15,,,1,-MIN($F$7,C$10))),)+IF(C$10-$F$7<=0,,OFFSET(C15,,-$F$7)*$G$7) -> 0 | D19: =IF($F$7,SUM(OFFSET(D15,,,1,-MIN($F$7,D$10))),)+IF(D$10-$F$7<=0,,OFFSET(D15,,-$F$7)*$G$7) -> 0 | E19: 0 | F19: 0 | G19: 0 | H19: 0 | I19: 0 | J19: 0 | K19: 0 | L19: 0 | M19: 0 | N19: 0 | P19: =SUM(C19:O19) -> 0
A21: VAT Exclusive | C21: =C15-C32 -> 0 | D21: =D15-D32 -> 0 | E21: 0 | F21: 0 | G21: 0 | H21: 0 | I21: 0 | J21: 0 | K21: 0 | L21: 0 | M21: 0 | N21: 0 | P21: =SUM(C21:O21) -> 0
A23: Prepayment B/Fwd | D23: =C24 -> 0 | E23: =D24 -> 0 | F23: 0 | G23: 0 | H23: 0 | I23: 0 | J23: 0 | K23: 0 | L23: 0 | M23: 0 | N23: 0
A24: Prepayment C/Fwd
A26: Accrual B/Fwd | D26: =C27 -> 0 | E26: =D27 -> 0 | F26: 0 | G26: 0 | H26: 0 | I26: 0 | J26: 0 | K26: 0 | L26: 0 | M26: 0 | N26: 0
A27: Accrual C/Fwd
A30: Profit and Loss | C30: =C21+C23-C24-C26+C27 -> 0 | D30: 0 | E30: 0 | F30: 0 | G30: 0 | H30: 0 | I30: 0 | J30: 0 | K30: 0 | L30: 0 | M30: 0 | N30: 0 | P30: =SUM(C30:O30) -> 0
A32: Vat Element to VAT Account | C32: =IF(stdvat=0%,0,C13*(1-VAT_Exclusive_percent)) -> 0 | D32: 0 | E32: 0 | F32: 0 | G32: 0 | H32: 0 | I32: 0 | J32: 0 | K32: 0 | L32: 0 | M32: 0 | N32: 0 | P32: =SUM(C32:O32) -> 0

Sheet expense25
C4: Expense 25
C6: =CashFlow!$B$50 -> spare25
B7: Days credit suppliers | E7: =days_credit_suppliers -> 30 | F7: =IF(Average_days_in_month,INT(E7/Average_days_in_month)) -> 1 | G7: =IF(Average_days_in_month,MOD(E7,Average_days_in_month)/Average_days_in_month,) -> 0
C10: 1 | D10: 2 | E10: 3 | F10: 4 | G10: 5 | H10: 6 | I10: 7 | J10: 8 | K10: 9 | L10: 10 | M10: 11 | N10: 12
A11: Opening Creditors | D11: =IF(D$10=1,,C19) -> 0 | E11: 0 | F11: 0 | G11: 0 | H11: 0 | I11: 0 | J11: 0 | K11: 0 | L11: 0 | M11: 0 | N11: 0 | P11: =SUM(C11:O11) -> 0 | R11: Check | S11: Opening | T11: =C11 -> 0 | AC11: =R15 -> 0 | AD11: =R16 -> 0 | AE11: =R17 -> 0 | AF11: =R18 -> 0 | AG11: =R19 -> 0 | AH11: =R22 -> 0 | AI11: =R23 -> 0 | AJ11: =R24 -> 0
S12: expenses | T12: =P15 -> 0
A13: Std rate invoices gross | P13: =SUM(C13:O13) -> 0 | S13: Paid | T13: =-P17 -> 0 | AC13: =P15 -> 0 | AD13: =P16 -> 0 | AE13: =P17 -> 0 | AF13: =P18 -> 0 | AG13: =P19 -> 0 | AH13: =P22 -> 0 | AI13: =P23 -> 0 | AJ13: =P24 -> 0
A14: Zero rate invoices | P14: =SUM(C14:O14) -> 0 | S14: Closing | T14: =-N19 -> 0
A15: Total | C15: =SUM(C13:C14) -> 0 | D15: =SUM(D13:D14) -> 0 | E15: 0 | F15: 0 | G15: 0 | H15: 0 | I15: 0 | J15: 0 | K15: 0 | L15: 0 | M15: 0 | N15: 0 | P15: =SUM(C15:O15) -> 0
S16: Total | T16: =SUM(T11:T15) -> 0
A17: Paid | C17: =-C19+C11+C15 -> 0 | D17: =-D19+D11+D15 -> 0 | E17: =-E19+E11+E15 -> 0 | F17: =-F19+F11+F15 -> 0 | G17: 0 | H17: 0 | I17: 0 | J17: 0 | K17: 0 | L17: 0 | M17: 0 | N17: 0 | P17: =SUM(C17:O17) -> 0
A19: Closing Creditors | C19: =IF($F$7,SUM(OFFSET(C15,,,1,-MIN($F$7,C$10))),)+IF(C$10-$F$7<=0,,OFFSET(C15,,-$F$7)*$G$7) -> 0 | D19: =IF($F$7,SUM(OFFSET(D15,,,1,-MIN($F$7,D$10))),)+IF(D$10-$F$7<=0,,OFFSET(D15,,-$F$7)*$G$7) -> 0 | E19: 0 | F19: 0 | G19: 0 | H19: 0 | I19: 0 | J19: 0 | K19: 0 | L19: 0 | M19: 0 | N19: 0 | P19: =SUM(C19:O19) -> 0
A21: VAT Exclusive | C21: =C15-C32 -> 0 | D21: =D15-D32 -> 0 | E21: 0 | F21: 0 | G21: 0 | H21: 0 | I21: 0 | J21: 0 | K21: 0 | L21: 0 | M21: 0 | N21: 0 | P21: =SUM(C21:O21) -> 0
A23: Prepayment B/Fwd | D23: =C24 -> 0 | E23: =D24 -> 0 | F23: 0 | G23: 0 | H23: 0 | I23: 0 | J23: 0 | K23: 0 | L23: 0 | M23: 0 | N23: 0
A24: Prepayment C/Fwd
A26: Accrual B/Fwd | D26: =C27 -> 0 | E26: =D27 -> 0 | F26: 0 | G26: 0 | H26: 0 | I26: 0 | J26: 0 | K26: 0 | L26: 0 | M26: 0 | N26: 0
A27: Accrual C/Fwd
A30: Profit and Loss | C30: =C21+C23-C24-C26+C27 -> 0 | D30: 0 | E30: 0 | F30: 0 | G30: 0 | H30: 0 | I30: 0 | J30: 0 | K30: 0 | L30: 0 | M30: 0 | N30: 0 | P30: =SUM(C30:O30) -> 0
A32: Vat Element to VAT Account | C32: =IF(stdvat=0%,0,C13*(1-VAT_Exclusive_percent)) -> 0 | D32: 0 | E32: 0 | F32: 0 | G32: 0 | H32: 0 | I32: 0 | J32: 0 | K32: 0 | L32: 0 | M32: 0 | N32: 0 | P32: =SUM(C32:O32) -> 0

Sheet CrCard+bankChs
I2: There are no data entry fields on this page
C4: Crbkch
C6: =CashFlow!$B$51 -> Bank overdraft interest
B7: Percentage paid by credit card | E7: =creditcardsalespercent -> 0.6 | F7: =IF(Average_days_in_month,INT(E7/Average_days_in_month)) -> 0
B8: Credit card rate | E8: =creditcardrate -> 0.025
C10: 1 | D10: 2 | E10: 3 | F10: 4 | G10: 5 | H10: 6 | I10: 7 | J10: 8 | K10: 9 | L10: 10 | M10: 11 | N10: 12
D11: =IF(D$10=1,,C19) -> 0 | E11: 0 | F11: 0 | G11: 0 | H11: 0 | I11: 0 | J11: 0 | K11: 0 | L11: 0 | M11: 0 | N11: 0 | P11: =SUM(C11:O11) -> 0 | AC11: =R15 -> 0 | AD11: =R16 -> 0 | AE11: =R17 -> 0 | AF11: =R18 -> 0 | AG11: =R19 -> 0 | AH11: =R22 -> 0 | AI11: =R23 -> 0 | AJ11: =R24 -> 0
A13: Cash From Sales | C13: =CashFlow!C11 -> 0 | D13: =CashFlow!D11 -> 0 | E13: =CashFlow!E11 -> 0 | F13: =CashFlow!F11 -> 0 | G13: =CashFlow!G11 -> 0 | H13: =CashFlow!H11 -> 0 | I13: =CashFlow!I11 -> 0 | J13: =CashFlow!J11 -> 0 | K13: =CashFlow!K11 -> 0 | L13: =CashFlow!L11 -> 0 | M13: =CashFlow!M11 -> 0 | N13: =CashFlow!N11 -> 0 | P13: =SUM(C13:O13) -> 0 | AC13: =P15 -> 0 | AD13: =P16 -> 0 | AE13: =P17 -> 0 | AF13: =P18 -> 0 | AG13: =P19 -> 0 | AH13: =P22 -> 0 | AI13: =P23 -> 0 | AJ13: =P24 -> 
P14: =SUM(C14:O14) -> 0
A15: Credit card receipts | D15: =D13*creditcardsalespercent -> 0 | E15: 0 | F15: 0 | G15: 0 | H15: 0 | I15: 0 | J15: 0 | K15: 0 | L15: 0 | M15: 0 | N15: 0 | P15: =SUM(C15:O15) -> 0
A17: Credit card charges | C17: =C15*creditcardrate -> 0 | D17: 0 | E17: 0 | F17: 0 | G17: 0 | H17: 0 | I17: 0 | J17: 0 | K17: 0 | L17: 0 | M17: 0 | N17: 0 | P17: =SUM(C17:O17) -> 0
B20: Bank interest rate | D20: =overdraftintrate -> 0.0425
A22: Closing cash balance | C22: =CashFlow!C65 ->  | D22: =CashFlow!D65 ->  | E22: =CashFlow!E65 ->  | F22: =CashFlow!F65 ->  | G22: =CashFlow!G65 ->  | H22: =CashFlow!H65 ->  | I22: =CashFlow!I65 ->  | J22: =CashFlow!J65 ->  | K22: =CashFlow!K65 ->  | L22: =CashFlow!L65 ->  | M22: =CashFlow!M65 ->  | N22: =CashFlow!N65 -> 
A24: Interest | C24: =IF(C22<0,(-C22*overdraftintrate/12),0) ->  | P24: =SUM(C24:O24) -> 

Sheet Draw1
B4: Draw1 | C4: =CashFlow!$B$55 -> Drawings/Directors loan Rep'ts
C10: 1 | D10: 2 | E10: 3 | F10: 4 | G10: 5 | H10: 6 | I10: 7 | J10: 8 | K10: 9 | L10: 10 | M10: 11 | N10: 12
A11: User defined 1 | C11: 0
A12: User defined 2 | C12: 0
A13: User defined 3 | C13: 0 | P13: =SUM(C13:O13) -> 0 | R13: Check | T13: =C13 -> 0 | AC13: =R17 -> 0 | AD13: =R18 -> 0 | AE13: =R19 -> 0 | AF13: =R20 -> 0 | AG13: =R21 -> 0 | AH13: =R24 -> 0 | AI13: =R25 -> 0 | AJ13: =R26 -> 0
A14: User defined 4 | S14: expenses | T14: =P17 -> 0
A15: User defined 5 | C15: 0 | P15: =SUM(C15:O15) -> 0 | S15: Paid | T15: =-P19 -> 0 | AC15: =P17 -> 0 | AD15: =P18 -> 0 | AE15: =P19 -> 0 | AF15: =P20 -> 0 | AG15: =P21 -> 0 | AH15: =P24 -> 0 | AI15: =P25 -> 0 | AJ15: =P26 -> 0
A16: Repayments | P16: =SUM(C16:O16) -> 0 | T16: =-N21 -> 0
A17: Total | C17: =SUM(C11:C16) -> 0 | D17: =SUM(D11:D16) -> 0 | E17: 0 | F17: 0 | G17: 0 | H17: 0 | I17: 0 | J17: 0 | K17: 0 | L17: 0 | M17: 0 | N17: 0 | P17: =SUM(C17:O17) -> 0
S18: Total | T18: =SUM(T13:T17) -> 0
A19: Paid | C19: =-C21+C13+C17 -> 0 | D19: =-D21+D13+D17 -> 0 | E19: =-E21+E13+E17 -> 0 | F19: =-F21+F13+F17 -> 0 | G19: 0 | H19: 0 | I19: 0 | J19: 0 | K19: 0 | L19: 0 | M19: 0 | N19: 0 | P19: =SUM(C19:O19) -> 0
C21: =IF($F$7,SUM(OFFSET(C17,,,1,-MIN($F$7,C$10))),)+IF(C$10-$F$7<=0,,OFFSET(C17,,-$F$7)*$G$7) -> 0 | D21: =IF($F$7,SUM(OFFSET(D17,,,1,-MIN($F$7,D$10))),)+IF(D$10-$F$7<=0,,OFFSET(D17,,-$F$7)*$G$7) -> 0 | E21: 0 | F21: 0 | G21: 0 | H21: 0 | I21: 0 | J21: 0 | K21: 0 | L21: 0 | M21: 0 | N21: 0 | P21: =SUM(C21:O21) -> 0
D25: =C26 -> 0 | E25: =D26 -> 0 | F25: 0 | G25: 0 | H25: 0 | I25: 0 | J25: 0 | K25: 0 | L25: 0 | M25: 0 | N25: 0
D28: =C29 -> 0 | E28: =D29 -> 0 | F28: 0 | G28: 0 | H28: 0 | I28: 0 | J28: 0 | K28: 0 | L28: 0 | M28: 0 | N28: 0
C31: 1 | D31: 2 | E31: 3 | F31: 4 | G31: 5 | H31: 6 | I31: 7 | J31: 8 | K31: 9 | L31: 10 | M31: 11 | N31: 12
A32: Balance Sheet | C32: =C19 -> 0 | D32: =C32+D19 -> 0 | E32: =D32+E19 -> 0 | F32: 0 | G32: 0 | H32: 0 | I32: 0 | J32: 0 | K32: 0 | L32: 0 | M32: 0 | N32: 0 | S32: =HLOOKUP(monthno,C31:N32,2) -> 0
C34: =C15/6 -> 0 | D34: =D15/6 -> 0 | E34: 0 | F34: 0 | G34: 0 | H34: 0 | I34: 0 | J34: 0 | K34: 0 | L34: 0 | M34: 0 | N34: 0 | P34: =SUM(C34:O34) -> 0

Sheet Cap1
B4: Cap1 | C4: =CashFlow!$B$16 -> Capital Introduced/Directors loan
C10: 1 | D10: 2 | E10: 3 | F10: 4 | G10: 5 | H10: 6 | I10: 7 | J10: 8 | K10: 9 | L10: 10 | M10: 11 | N10: 12
A11: User defined 1 | D11: 0 | E11: 0 | F11: 0 | G11: 0 | H11: 0 | I11: 0 | J11: 0 | K11: 0 | L11: 0 | M11: 0 | N11: 0 | P11: =SUM(C11:O11) -> 0 | R11: Check | T11: =C11 -> 0 | AC11: =R15 -> 0 | AD11: =R16 -> 0 | AE11: =R17 -> 0 | AF11: =R18 -> 0 | AG11: =R19 -> 0 | AH11: =R22 -> 0 | AI11: =R23 -> 0 | AJ11: =R24 -> 0
A12: User defined 1 | D12: 0 | E12: 0 | F12: 0 | G12: 0 | H12: 0 | I12: 0 | J12: 0 | K12: 0 | L12: 0 | M12: 0 | N12: 0 | S12: expenses | T12: =P15 -> 0
A13: User defined 1 | D13: 0 | E13: 0 | F13: 0 | G13: 0 | H13: 0 | I13: 0 | J13: 0 | K13: 0 | L13: 0 | M13: 0 | N13: 0 | P13: =SUM(C13:O13) -> 0 | S13: Paid | T13: =-P17 -> 0 | AC13: =P15 -> 0 | AD13: =P16 -> 0 | AE13: =P17 -> 0 | AF13: =P18 -> 0 | AG13: =P19 -> 0 | AH13: =P22 -> 0 | AI13: =P23 -> 0 | AJ13: =P24 -> 0
A14: Capital Introduced/Loan | E14: 0 | F14: 0 | G14: 0 | H14: 0 | I14: 0 | J14: 0 | K14: 0 | L14: 0 | M14: 0 | N14: 0 | P14: =SUM(C14:O14) -> 0 | T14: =-N19 -> 0
A15: Total | C15: =SUM(C13:C14) -> 0 | D15: =SUM(D13:D14) -> 0 | E15: 0 | F15: 0 | G15: 0 | H15: 0 | I15: 0 | J15: 0 | K15: 0 | L15: 0 | M15: 0 | N15: 0 | P15: =SUM(C15:O15) -> 0
S16: Total | T16: =SUM(T11:T15) -> 0
A17: Paid in | C17: =-C19+C11+C15 -> 0 | D17: =-D19+D11+D15 -> 0 | E17: =-E19+E11+E15 -> 0 | F17: =-F19+F11+F15 -> 0 | G17: 0 | H17: 0 | I17: 0 | J17: 0 | K17: 0 | L17: 0 | M17: 0 | N17: 0 | P17: =SUM(C17:O17) -> 0
C19: =IF($F$7,SUM(OFFSET(C15,,,1,-MIN($F$7,C$10))),)+IF(C$10-$F$7<=0,,OFFSET(C15,,-$F$7)*$G$7) -> 0 | D19: =IF($F$7,SUM(OFFSET(D15,,,1,-MIN($F$7,D$10))),)+IF(D$10-$F$7<=0,,OFFSET(D15,,-$F$7)*$G$7) -> 0 | E19: 0 | F19: 0 | G19: 0 | H19: 0 | I19: 0 | J19: 0 | K19: 0 | L19: 0 | M19: 0 | N19: 0 | P19: =SUM(C19:O19) -> 0
D23: =C24 -> 0 | E23: =D24 -> 0 | F23: 0 | G23: 0 | H23: 0 | I23: 0 | J23: 0 | K23: 0 | L23: 0 | M23: 0 | N23: 0
D26: =C27 -> 0 | E26: =D27 -> 0 | F26: 0 | G26: 0 | H26: 0 | I26: 0 | J26: 0 | K26: 0 | L26: 0 | M26: 0 | N26: 0
B29: Opening balance | C29: 1 | D29: 2 | E29: 3 | F29: 4 | G29: 5 | H29: 6 | I29: 7 | J29: 8 | K29: 9 | L29: 10 | M29: 11 | N29: 12
A30: Balance Sheet | C30: =C17 -> 0 | D30: =C30+D17 -> 0 | E30: =D30+E17 -> 0 | F30: 0 | G30: 0 | H30: 0 | I30: 0 | J30: 0 | K30: 0 | L30: 0 | M30: 0 | N30: 0 | S30: =HLOOKUP(monthno,C29:N30,2) -> 0 | T30: Capint
C32: =C13/6 -> 0 | D32: =D13/6 -> 0 | E32: 0 | F32: 0 | G32: 0 | H32: 0 | I32: 0 | J32: 0 | K32: 0 | L32: 0 | M32: 0 | N32: 0 | P32: =SUM(C32:O32) -> 0

Sheet Capex1
D4: Expense 27
D6: =CashFlow!$B$54 -> Capital expenditure
B7: Days credit suppliers | F7: =days_credit_suppliers -> 30 | G7: =IF(Average_days_in_month,INT(F7/Average_days_in_month)) -> 1 | H7: =IF(Average_days_in_month,MOD(F7,Average_days_in_month)/Average_days_in_month,) -> 0
A10: Asset type 1 | C10: Opening Balance | D10: 1 | E10: 2 | F10: 3 | G10: 4 | H10: 5 | I10: 6 | J10: 7 | K10: 8 | L10: 9 | M10: 10 | N10: 11 | O10: 12
A11: Opening Creditors | E11: =IF(E$10=1,,D19) -> 0 | F11: 0 | G11: 0 | H11: 0 | I11: 0 | J11: 0 | K11: 0 | L11: 0 | M11: 0 | N11: 0 | O11: 0 | AD11: =S15 -> 0 | AE11: =S16 -> 0 | AF11: =S17 -> 0 | AG11: =S18 -> 0 | AH11: =S19 -> 0 | AI11: =S24 -> 0 | AJ11: =S25 -> 0 | AK11: =S26 -> 0
A13: Std rate invoices gross | Q13: =SUM(D13:P13) -> 0 | AD13: =Q15 -> 0 | AE13: =Q16 -> 0 | AF13: =Q17 -> 0 | AG13: =Q18 -> 0 | AH13: =Q19 -> 0 | AI13: =Q24 -> 0 | AJ13: =Q25 -> 0 | AK13: =Q26 -> 0
A14: Zero rate invoices | Q14: =SUM(D14:P14) -> 0
A15: Total | D15: =SUM(D13:D14) -> 0 | E15: =SUM(E13:E14) -> 0 | F15: 0 | G15: 0 | H15: 0 | I15: 0 | J15: 0 | K15: 0 | L15: 0 | M15: 0 | N15: 0 | O15: 0 | Q15: =SUM(D15:P15) -> 0
A17: Paid | D17: =-D19+D11+D15 -> 0 | E17: =-E19+E11+E15 -> 0 | F17: =-F19+F11+F15 -> 0 | G17: =-G19+G11+G15 -> 0 | H17: 0 | I17: 0 | J17: 0 | K17: 0 | L17: 0 | M17: 0 | N17: 0 | O17: 0 | Q17: =SUM(D17:P17) -> 0
A19: Closing Creditors | D19: =IF($G$7,SUM(OFFSET(D15,,,1,-MIN($G$7,D$10))),)+IF(D$10-$G$7<=0,,OFFSET(D15,,-$G$7)*$H$7) -> 0 | E19: =IF($G$7,SUM(OFFSET(E15,,,1,-MIN($G$7,E$10))),)+IF(E$10-$G$7<=0,,OFFSET(E15,,-$G$7)*$H$7) -> 0 | F19: 0 | G19: 0 | H19: 0 | I19: 0 | J19: 0 | K19: 0 | L19: 0 | M19: 0 | N19: 0 | O19: 0
A21: VAT Exclusive | D21: =D15-D45 -> 0 | E21: 0 | F21: 0 | G21: 0 | H21: 0 | I21: 0 | J21: 0 | K21: 0 | L21: 0 | M21: 0 | N21: 0 | O21: 0 | Q21: =SUM(D21:P21) -> 0
C24: Depreciation Rate | D24: 0.33 | F24: Straight Line (1) or Reducing Balance (2) | I24: 1
C25: B/Fwd | D25: 1 | E25: 2 | F25: 3 | G25: 4 | H25: 5 | I25: 6 | J25: 7 | K25: 8 | L25: 9 | M25: 10 | N25: 11 | O25: 12 | T25: B/s
A26: Cost | C26: 0 | D26: =C29 -> 0 | E26: =D29 -> 0 | F26: 0 | G26: 0 | H26: 0 | I26: 0 | J26: 0 | K26: 0 | L26: 0 | M26: 0 | N26: 0 | O26: 0 | T26: =HLOOKUP(monthno,$D$25:$O$36,4) -> 0 | U26: Cost
A27: Additions | D27: =D21 -> 0 | E27: =E21 -> 0 | F27: 0 | G27: 0 | H27: 0 | I27: 0 | J27: 0 | K27: 0 | L27: 0 | M27: 0 | N27: 0 | O27: 0 | Q27: =SUM(D27:P27) -> 0 | T27: =HLOOKUP(monthno,$D$25:$O$36,8) -> 0 | U27: Depn
A28: Disposals at cost | E28: =-E40 -> 0 | F28: 0 | G28: 0 | H28: 0 | I28: 0 | J28: 0 | K28: 0 | L28: 0 | M28: 0 | N28: 0 | O28: 0
A29: C.Fwd | C29: =C26+C27 -> 0 | D29: =D26+D27+D28 -> 0 | E29: =E26+E27+E28 -> 0 | F29: 0 | G29: 0 | H29: 0 | I29: 0 | J29: 0 | K29: 0 | L29: 0 | M29: 0 | N29: 0 | O29: 0 | T29: =HLOOKUP(monthno,$D$25:$O$36,10) -> 0 | U29: NBV
A31: Depreciation b/Fwd (-) | C31: 0 | D31: =C34 -> 0 | E31: =D34 -> 0 | F31: 0 | G31: 0 | H31: 0 | I31: 0 | J31: 0 | K31: 0 | L31: 0 | M31: 0 | N31: 0 | O31: 0
A32: Depreciation in period | D32: =(ROUND(IF($I$24=1,-D29*$D$24/12,-(D29+D31)*$D$24/12),2)) -> 0 | E32: =(ROUND(IF($I$24=1,-E29*$D$24/12,-(E29+E31)*$D$24/12),2)) -> 0 | F32: 0 | G32: 0 | H32: 0 | I32: 0 | J32: 0 | K32: 0 | L32: 0 | M32: 0 | N32: 0 | O32: 0 | Q32: =SUM(D32:P32) -> 0
A33: Depreciation on disposals
A34: Depreciation c/fwd | C34: =C31+C32 -> 0 | D34: =D31+D32+D33 -> 0 | E34: =E31+E32+E33 -> 0 | F34: 0 | G34: 0 | H34: 0 | I34: 0 | J34: 0 | K34: 0 | L34: 0 | M34: 0 | N34: 0 | O34: 0
A36: Net Book Value | C36: =C29+C34 -> 0 | D36: =D29+D34 -> 0 | E36: =E29+E34 -> 0 | F36: 0 | G36: 0 | H36: 0 | I36: 0 | J36: 0 | K36: 0 | L36: 0 | M36: 0 | N36: 0 | O36: 0
A38: Disposal proceeds inc VAT
A39: Disposal proceeds - zero rated
A40: Disposal Proceeds net of VAT | D40: =D38+D44+D39 -> 0 | E40: =E38+E44+E39 -> 0 | F40: 0 | G40: 0 | H40: 0 | I40: 0 | J40: 0 | K40: 0 | L40: 0 | M40: 0 | N40: 0 | O40: 0 | Q40: =SUM(D40:P40) -> 0
A41: Book Value of disposals | D41: =-D28-D33 -> 0 | E41: =-E28-E33 -> 0 | F41: 0 | G41: 0 | H41: 0 | I41: 0 | J41: 0 | K41: 0 | L41: 0 | M41: 0 | N41: 0 | O41: 0 | Q41: =SUM(D41:P41) -> 0
A42: Gain/Loss on disposal | D42: =D40-D41 -> 0 | E42: =E40-E41 -> 0 | F42: 0 | G42: 0 | H42: 0 | I42: 0 | J42: 0 | K42: 0 | L42: 0 | M42: 0 | N42: 0 | O42: 0 | Q42: =SUM(D42:P42) -> 0
A44: Vat Element to VAT Account - Disposals | D44: =IF(stdvat=0%,0,-((D38*(1-VAT_Exclusive_percent)))) -> 0 | E44: 0 | F44: 0 | G44: 0 | H44: 0 | I44: 0 | J44: 0 | K44: 0 | L44: 0 | M44: 0 | N44: 0 | O44: 0 | Q44: =SUM(D44:P44) -> 0
A45: Vat Element to VAT Account - Additions | D45: =IF(stdvat=0%,0,((D13*(1-VAT_Exclusive_percent)))) -> 0 | E45: 0 | F45: 0 | G45: 0 | H45: 0 | I45: 0 | J45: 0 | K45: 0 | L45: 0 | M45: 0 | N45: 0 | O45: 0 | Q45: =SUM(D45:P45) -> 0
A48: Asset type 2 | C48: Opening Balance | D48: 1 | E48: 2 | F48: 3 | G48: 4 | H48: 5 | I48: 6 | J48: 7 | K48: 8 | L48: 9 | M48: 10 | N48: 11 | O48: 12
A49: Opening Creditors | E49: =IF(E$10=1,,D57) -> 0 | F49: =IF(F$10=1,,E57) -> 0 | G49: =IF(G$10=1,,F57) -> 0 | H49: =IF(H$10=1,,G57) -> 0 | I49: =IF(I$10=1,,H57) -> 0 | J49: =IF(J$10=1,,I57) -> 0 | K49: =IF(K$10=1,,J57) -> 0 | L49: =IF(L$10=1,,K57) -> 0 | M49: =IF(M$10=1,,L57) -> 0 | N49: =IF(N$10=1,,M57) -> 0 | O49: =IF(O$10=1,,N57) -> 0
A51: Std rate invoices gross | Q51: =SUM(D51:P51) -> 0
A52: Zero rate invoices | Q52: =SUM(D52:P52) -> 0
A53: Total | D53: =SUM(D51:D52) -> 0 | E53: =SUM(E51:E52) -> 0 | F53: 0 | G53: 0 | H53: 0 | I53: 0 | J53: 0 | K53: 0 | L53: 0 | M53: 0 | N53: 0 | O53: 0 | Q53: =SUM(D53:P53) -> 0
A55: Paid | D55: =-D57+D49+D53 -> 0 | E55: =-E57+E49+E53 -> 0 | F55: =-F57+F49+F53 -> 0 | G55: =-G57+G49+G53 -> 0 | H55: 0 | I55: 0 | J55: 0 | K55: 0 | L55: 0 | M55: 0 | N55: 0 | O55: 0 | Q55: =SUM(D55:P55) -> 0
A57: Closing Creditors | D57: =IF($G$7,SUM(OFFSET(D53,,,1,-MIN($G$7,D$10))),)+IF(D$10-$G$7<=0,,OFFSET(D53,,-$G$7)*$H$7) -> 0 | E57: =IF($G$7,SUM(OFFSET(E53,,,1,-MIN($G$7,E$10))),)+IF(E$10-$G$7<=0,,OFFSET(E53,,-$G$7)*$H$7) -> 0 | F57: 0 | G57: 0 | H57: 0 | I57: 0 | J57: 0 | K57: 0 | L57: 0 | M57: 0 | N57: 0 | O57: 0 | Q57: =SUM(D57:P57) -> 0
A59: VAT Exclusive | D59: =D53-D83 -> 0 | E59: 0 | F59: 0 | G59: 0 | H59: 0 | I59: 0 | J59: 0 | K59: 0 | L59: 0 | M59: 0 | N59: 0 | O59: 0 | Q59: =SUM(D59:P59) -> 0
C62: Depreciation Rate | D62: 0.25 | F62: Straight Line (1) or Reducing Balance (2) | I62: 1
C63: B/Fwd | D63: 1 | E63: 2 | F63: 3 | G63: 4 | H63: 5 | I63: 6 | J63: 7 | K63: 8 | L63: 9 | M63: 10 | N63: 11 | O63: 12 | T63: B/s
A64: Cost | D64: =C67 -> 0 | E64: =D67 -> 0 | F64: 0 | G64: 0 | H64: 0 | I64: 0 | J64: 0 | K64: 0 | L64: 0 | M64: 0 | N64: 0 | O64: 0 | T64: =HLOOKUP(monthno,$D$25:$O$36,4) -> 0 | U64: Cost
A65: Additions | D65: =D59 -> 0 | E65: =E59 -> 0 | F65: 0 | G65: 0 | H65: 0 | I65: 0 | J65: 0 | K65: 0 | L65: 0 | M65: 0 | N65: 0 | O65: 0 | Q65: =SUM(D65:P65) -> 0 | T65: =HLOOKUP(monthno,$D$25:$O$36,8) -> 0 | U65: Depn
A66: Disposals at cost | E66: =-E78 -> 0 | F66: 0 | G66: 0 | H66: 0 | I66: 0 | J66: 0 | K66: 0 | L66: 0 | M66: 0 | N66: 0 | O66: 0
A67: C.Fwd | C67: =C64+C65 -> 0 | D67: =D64+D65+D66 -> 0 | E67: =E64+E65+E66 -> 0 | F67: =F64+F65+F66 -> 0 | G67: =G64+G65+G66 -> 0 | H67: =H64+H65+H66 -> 0 | I67: =I64+I65+I66 -> 0 | J67: =J64+J65+J66 -> 0 | K67: =K64+K65+K66 -> 0 | L67: =L64+L65+L66 -> 0 | M67: =M64+M65+M66 -> 0 | N67: =N64+N65+N66 -> 0 | O67: =O64+O65+O66 -> 0 | T67: =HLOOKUP(monthno,$D$25:$O$36,10) -> 0 | U67: NBV
A69: Depreciation b/Fwd (-) | D69: =C72 -> 0 | E69: =D72 -> 0 | F69: 0 | G69: 0 | H69: 0 | I69: 0 | J69: 0 | K69: 0 | L69: 0 | M69: 0 | N69: 0 | O69: 0
A70: Depreciation in period | D70: =(ROUND(IF($I$62=1,-D67*$D$62/12,-(D67+D69)*$D$62/12),2)) -> 0 | E70: =(ROUND(IF($I$62=1,-E67*$D$62/12,-(E67+E69)*$D$62/12),2)) -> 0 | F70: 0 | G70: 0 | H70: 0 | I70: 0 | J70: 0 | K70: 0 | L70: 0 | M70: 0 | N70: 0 | O70: 0
A71: Depreciation on disposals
A72: Depreciation c/fwd | C72: =C69+C70 -> 0 | D72: =D69+D70+D71 -> 0 | E72: =E69+E70+E71 -> 0 | F72: =F69+F70+F71 -> 0 | G72: =G69+G70+G71 -> 0 | H72: =H69+H70+H71 -> 0 | I72: =I69+I70+I71 -> 0 | J72: =J69+J70+J71 -> 0 | K72: =K69+K70+K71 -> 0 | L72: =L69+L70+L71 -> 0 | M72: =M69+M70+M71 -> 0 | N72: =N69+N70+N71 -> 0 | O72: =O69+O70+O71 -> 0
A74: Net Book Value | C74: =C67+C72 -> 0 | D74: =D67+D72 -> 0 | E74: =E67+E72 -> 0 | F74: 0 | G74: 0 | H74: 0 | I74: 0 | J74: 0 | K74: 0 | L74: 0 | M74: 0 | N74: 0 | O74: 0
A76: Disposal proceeds inc vAt
A77: Disposal proceeds - zero rated
A78: Disposal Proceeds net of VAT | D78: =D76+D82+D77 -> 0 | E78: =E76+E82+E77 -> 0 | F78: =F76+F82+F77 -> 0 | G78: =G76+G82+G77 -> 0 | H78: =H76+H82+H77 -> 0 | I78: =I76+I82+I77 -> 0 | J78: =J76+J82+J77 -> 0 | K78: =K76+K82+K77 -> 0 | L78: =L76+L82+L77 -> 0 | M78: =M76+M82+M77 -> 0 | N78: =N76+N82+N77 -> 0 | O78: =O76+O82+O77 -> 0 | Q78: =SUM(D78:P78) -> 0
A79: Book Value of disposals | D79: =-D66-D71 -> 0 | E79: =-E66-E71 -> 0 | F79: 0 | G79: 0 | H79: 0 | I79: 0 | J79: 0 | K79: 0 | L79: 0 | M79: 0 | N79: 0 | O79: 0 | Q79: =SUM(D79:P79) -> 0
A80: Gain/Loss on disposal | D80: =D78-D79 -> 0 | E80: =E78-E79 -> 0 | F80: =F78-F79 -> 0 | G80: =G78-G79 -> 0 | H80: =H78-H79 -> 0 | I80: =I78-I79 -> 0 | J80: =J78-J79 -> 0 | K80: =K78-K79 -> 0 | L80: =L78-L79 -> 0 | M80: =M78-M79 -> 0 | N80: =N78-N79 -> 0 | O80: =O78-O79 -> 0 | Q80: =SUM(D80:P80) -> 0
A82: Vat Element to VAT Account - Disposals | D82: =IF(stdvat=0%,0,-((D76*(1-VAT_Exclusive_percent)))) -> 0 | E82: 0 | F82: 0 | G82: 0 | H82: 0 | I82: 0 | J82: 0 | K82: 0 | L82: 0 | M82: 0 | N82: 0 | O82: 0 | Q82: =SUM(D82:P82) -> 0
A83: Vat Element to VAT Account - Additions | D83: =IF(stdvat=0%,0,((D51*(1-VAT_Exclusive_percent)))) -> 0 | E83: 0 | F83: 0 | G83: 0 | H83: 0 | I83: 0 | J83: 0 | K83: 0 | L83: 0 | M83: 0 | N83: 0 | O83: 0 | Q83: =SUM(D83:P83) -> 0
A86: Totals | D86: 1 | E86: 2 | F86: 3 | G86: 4 | H86: 5 | I86: 6 | J86: 7 | K86: 8 | L86: 9 | M86: 10 | N86: 11 | O86: 12
A88: Payments | D88: =D17+D55 -> 0 | E88: =E17+E55 -> 0 | F88: 0 | G88: 0 | H88: 0 | I88: 0 | J88: 0 | K88: 0 | L88: 0 | M88: 0 | N88: 0 | O88: 0 | Q88: =SUM(D88:P88) -> 0
A90: B/Fwd | D90: =C64+C26 -> 0 | E90: =D93 -> 0 | F90: =E93 -> 0 | G90: 0 | H90: 0 | I90: 0 | J90: 0 | K90: 0 | L90: 0 | M90: 0 | N90: 0 | O90: 0
A91: Additions | D91: =D65+D27 -> 0 | E91: =E65+E27 -> 0 | F91: 0 | G91: 0 | H91: 0 | I91: 0 | J91: 0 | K91: 0 | L91: 0 | M91: 0 | N91: 0 | O91: 0 | Q91: =SUM(D91:P91) -> 0 | T91: =HLOOKUP(monthno,$D$86:$Q$107,8) -> 0 | U91: fabs1
A92: Disposals | D92: =D66+D28 -> 0 | E92: =E66+E28 -> 0 | F92: 0 | G92: 0 | H92: 0 | I92: 0 | J92: 0 | K92: 0 | L92: 0 | M92: 0 | N92: 0 | O92: 0 | Q92: =SUM(D92:P92) -> 0 | T92: =HLOOKUP(monthno,$D$86:$Q$107,13) -> 0 | U92: depnbs
A93: C.Fwd | D93: =SUM(D90:D92) -> 0 | E93: =SUM(E90:E92) -> 0 | F93: 0 | G93: 0 | H93: 0 | I93: 0 | J93: 0 | K93: 0 | L93: 0 | M93: 0 | N93: 0 | O93: 0
A95: Depn b/fwd | D95: =C69+C31 -> 0 | E95: =D98 -> 0 | F95: =E98 -> 0 | G95: 0 | H95: 0 | I95: 0 | J95: 0 | K95: 0 | L95: 0 | M95: 0 | N95: 0 | O95: 0
A96: Depn for period | D96: =D70+D32 -> 0 | E96: =E70+E32 -> 0 | F96: 0 | G96: 0 | H96: 0 | I96: 0 | J96: 0 | K96: 0 | L96: 0 | M96: 0 | N96: 0 | O96: 0 | Q96: =SUM(D96:P96) -> 0
A97: Depn on disposals | D97: =D33+D71 -> 0 | E97: =E33+E71 -> 0 | F97: 0 | G97: 0 | H97: 0 | I97: 0 | J97: 0 | K97: 0 | L97: 0 | M97: 0 | N97: 0 | O97: 0 | Q97: =SUM(D97:P97) -> 0
A98: C/Fwd | D98: =SUM(D95:D97) -> 0 | E98: =SUM(E95:E97) -> 0 | F98: 0 | G98: 0 | H98: 0 | I98: 0 | J98: 0 | K98: 0 | L98: 0 | M98: 0 | N98: 0 | O98: 0
A100: Proceeds inc VAT | D100: =D76+D77 -> 0 | E100: =E76+E77 -> 0 | F100: 0 | G100: 0 | H100: 0 | I100: 0 | J100: 0 | K100: 0 | L100: 0 | M100: 0 | N100: 0 | O100: 0 | Q100: =SUM(D100:P100) -> 0
A101: Proceeds Ex VAT | D101: =D78+D40 -> 0 | E101: =E78+E40 -> 0 | F101: 0 | G101: 0 | H101: 0 | I101: 0 | J101: 0 | K101: 0 | L101: 0 | M101: 0 | N101: 0 | O101: 0 | Q101: =SUM(D101:P101) -> 0
A102: Gain/Loss on disposal | D102: =D80+D42 -> 0 | E102: =E80+E42 -> 0 | F102: 0 | G102: 0 | H102: 0 | I102: 0 | J102: 0 | K102: 0 | L102: 0 | M102: 0 | N102: 0 | O102: 0 | Q102: =SUM(D102:P102) -> 0
A104: Closing Creditors | D104: =D57+D19 -> 0 | E104: =E57+E19 -> 0 | F104: =F57+F19 -> 0
A106: Vat Element to VAT Account - Disposals | D106: =D82+D44 -> 0 | E106: =E82+E44 -> 0 | F106: 0 | G106: 0 | H106: 0 | I106: 0 | J106: 0 | K106: 0 | L106: 0 | M106: 0 | N106: 0 | O106: 0
A107: Vat Element to VAT Account - Additions | D107: =D83+D45 -> 0 | E107: =E83+E45 -> 0 | F107: 0 | G107: 0 | H107: 0 | I107: 0 | J107: 0 | K107: 0 | L107: 0 | M107: 0 | N107: 0 | O107: 0

Sheet HP1
C4: Expense 28
C6: =CashFlow!B56 -> Loan / HP repayments
A7: LOAN 1
B8: Interest rate | C8: 0.05
C10: 1 | D10: 2 | E10: 3 | F10: 4 | G10: 5 | H10: 6 | I10: 7 | J10: 8 | K10: 9 | L10: 10 | M10: 11 | N10: 12
